{"text_format":"1","workbook":"xlsx","n_sheets":11,"sheets":["Macro1","Consolidated Report","Consolidated Report Comments","GUI XREF","52722 Flat Rate","52722 Non-Frozen","52722 Frozen","Sheet3","UEL Header","Sheet1","UEL Details"],"not_rendered":{"charts":0,"images":1,"macros":1,"external_links":0,"defined_names":64,"comments":0,"pivot_tables":0},"unopened":[],"bounds":{"document_bytes":16777216,"sheet_cells":100000,"rows_first":2000,"rows_last":500,"rows_between":2000,"halvings":0,"cell_chars":16384,"cell_head_chars":4096},"cells_cut":0,"cells_raw":0,"read":"whole","date_system":"1900"}

{"sheet":"Macro1","index":0,"n_rows":0,"n_cols":0,"rows_kept":0,"cut":false,"hidden":false,"merged":[]}

{"sheet":"Consolidated Report","index":1,"n_rows":48,"n_cols":75,"rows_kept":48,"cut":false,"hidden":true,"merged":[[16,1,16,4],[17,1,17,4],[14,0,14,11],[15,1,15,4],[13,1,13,4],[0,0,0,4],[1,0,2,4],[3,0,3,2],[4,0,4,2],[12,1,12,4],[5,0,5,11],[6,0,6,11],[7,1,7,4],[7,5,7,10],[8,1,8,4],[9,1,9,4],[10,1,10,4],[11,0,11,11],[27,1,27,4],[28,1,28,4],[18,1,18,4],[19,0,19,9],[23,0,23,11],[24,1,24,4],[25,0,25,11],[26,1,26,4],[19,10,19,11],[20,1,20,4],[22,1,22,4],[21,1,21,4],[39,0,39,9],[39,10,39,11],[29,1,29,4],[30,0,30,11],[31,1,31,4],[32,1,32,4],[33,0,33,11],[34,1,34,4],[35,1,35,4],[36,0,36,11],[37,1,37,4],[38,1,38,4],[46,1,46,4],[47,1,47,4],[40,1,40,4],[41,1,41,4],[42,0,42,11],[43,1,43,4],[44,1,44,4],[45,1,45,4]]}
["1. Name of Public Housing Agency:"]
[{"$f":"HAName","v":""}]
[]
["8. Operating Fund Project Number:"]
[{"$f":"IF(PPN=0,\"\",PPN)","v":""}]
["Consolidated Report"]
["Section 1 - General Information"]
["Line No.","Description",null,null,null,"Incentive Categories and Utility Types",null,null,null,null,null,"Total"]
[null,"Incentive Type"]
[null,"Utility Type","Utility Type"]
["A","B",null,null,null,"C","D","E","F","G","H","I"]
["Section 2 - Current consumption Level"]
["01",{"$f":"+'52722 Flat Rate'!B19:E19","v":"Actual Consumption (12-month period 7/1/2010 to 6/30/2011"}]
["01a","Unit of consumption (e.g., gallons, kWh, therms)"]
["Section 3 - Rolling Base consumption Level"]
["02",{"$f":"+'52722 Flat Rate'!B22:E22","v":"Rolling base year 1 - actual consumption (12-month period 7/1/2009 to 6/30/2010)"}]
["03",{"$f":"+'52722 Flat Rate'!B23:E23","v":"Rolling base year 2 - actual consumption (12-month period 7/1/2008 to 6/30/2009)"}]
["04",{"$f":"+'52722 Flat Rate'!B24:E24","v":"Rolling base year 3 - actual consumption (12-month period 7/1/2007 to 6/30/2008)"}]
["05","Total Consumption during 3-year Rolling Base period (Lines 02 + 03 + 04)"]
[null,null,null,null,null,null,null,null,null,null,{"$f":"CONCATENATE(\"Operating Fund Project Number\n\",PPN)","v":"Operating Fund Project Number\n"}]
["06","Average rolling base consumption (Line 05 ÷ 3)"]
["07","Actual consumption for new units"]
["08","Rolling Base Consumption (Line 06 + 07)"]
["Section 4 - Base Consumption"]
["09","Base Consumption (lesser of Line 01 or 08)"]
["Section 5 - Utility Consumption Incentive"]
["10","Actual consumption > rolling base (If Line 01 is greater than Line 08, enter the difference as positive; if not, enter 0)"]
["11","Actual consumption < rolling base (If Line 01 is less than Line 08, enter the difference as positive; if not, enter 0)"]
["12","75%/25% Split (Line 10 x 0.25)"]
["13","75%/25% Split (Line 11 x 0.75)"]
["Section 6 - Payable Consumption"]
["14","Annualization of consumption for new units"]
["15","Payable consumption (Sum of Line 09, Line 12, Line 13, and Line 14)"]
["Section 7 - Actual Utility Costs and Average Rate"]
["16",{"$f":"+'52722 Flat Rate'!B41:E41","v":"Actual utility costs (12-month period 7/1/2010 to 6/30/2011)"}]
["17","Actual average utility rate (Line 16 ¸ Line 01)"]
["Section 8 - Base Utilities and Inflation/Deflation Factor"]
["18","Base utilities expense level - whole dollars (Line 15 x Line 17)",null,null,null,null,null,null,null,null,null,{"$f":"SUM($F$38:$K$38)","v":0}]
[19,{"$f":"+'52722 Flat Rate'!B45:E45","v":"Surcharges for excess consumption of PHA-supplied utilities (12-month period 7/1/2010 to 6/30/2011) - whole dollars"},null,null,null,null,null,null,null,null,null,{"$f":"+ExcessConsumption","v":0}]
[null,null,null,null,null,null,null,null,null,null,{"$f":"+K20","v":"Operating Fund Project Number\n"},null,null,null,null,null,null,null,null,null,{"$f":"+ExcessConsumption","v":0},null,null,null,null,null,null,null,null,{"$f":"+ExcessConsumption","v":0},null,null,null,null,null,null,null,null,{"$f":"+ExcessConsumption","v":0},null,null,null,null,null,null,null,null,{"$f":"+ExcessConsumption","v":0},null,null,null,null,null,null,null,null,{"$f":"+ExcessConsumption","v":0},null,null,null,null,null,null,null,null,{"$f":"+ExcessConsumption","v":0},null,null,null,null,null,null,null,null,{"$f":"+ExcessConsumption","v":0}]
[20,"Base Utilities expense level minus surcharges (Line 18 minus Line 19)",null,null,null,null,null,null,null,null,null,{"$f":"+L38-L39","v":0}]
[21,"Utilities inflation/deflation factor",null,null,null,null,null,null,null,null,null,{"$f":"+InflationFactor","v":1.0791999999999999}]
["Section 9 - Calculation of Utilities Expense Level"]
[22,"Utilities expense level adjusted for inflation/deflation - whole dollars (Line 20 x Line 21)",null,null,null,null,null,null,null,null,null,{"$f":"+ROUND(L41*L42,0)","v":0}]
[23,"Energy rate incentive",null,null,null,null,null,null,null,null,null,{"$f":"+ENERGYRATEREDUCTION","v":0}]
[24,"Utilities expense level - whole dollars (Line 22 + Line 23)",null,null,null,null,null,null,null,null,null,{"$f":"+L44+L45","v":0}]
[25,"Eligible unit months (from the original form HUD-52723, Column B, Line 15 plus Line 17 minus Line 04)",null,null,null,null,null,null,null,null,null,{"$f":"+EUM","v":0}]
[26,"Utilities Expense Level - PUM (Line 24 ¸ Line 25)",null,null,null,null,null,null,null,null,null,{"$f":"IF(L47=0,0,ROUND(+L46/L47,2))","v":0}]

{"sheet":"Consolidated Report Comments","index":2,"n_rows":1,"n_cols":5,"rows_kept":1,"cut":false,"hidden":true,"merged":[]}
["No.","Category","Utility Type","Unit of Consumption","Comment"]

{"sheet":"GUI XREF","index":3,"n_rows":10335,"n_cols":144,"rows_kept":1125,"cut":true,"hidden":true,"merged":[[0,27,0,32],[0,33,0,38],[0,39,0,44]],"bounds":{"rows_first":500,"rows_last":125,"rows_between":500,"halvings":2}}
["Seq","PHA","HA_Name","ACC","DUNS","ROFO","FYE",null,null,null,null,null,null,null,{"$f":"MAX(O3:O15)+1","v":12},null,null,null,null,null,null,null,null,"TotalNF",{"$f":"COUNTA(AB3:AG3)","v":0},null,null,"Non-Frozen",null,null,null,null,null,"Frozen",null,null,null,null,null,"Flat Rate",null,null,null,null,null,null,null,null,null,null,null,null,"Seq","PHA","PPN","HA_Name","ACC","DUNS","ROFO","FYE",null,null,null,{"$f":"+Z15","v":0},{"$f":"+AA15","v":"Incentive Type"},"","","","","","","","","","","","","Flat Rate","Flat Rate","Flat Rate","Flat Rate","Flat Rate",null,null,{"$f":"+K2","v":0},null,null,null,null,null,null,{"$f":"\"This is saved as: \" & CELL(\"filename\")","v":"This is saved as: G:\\HUD\\UEL Tool Fixes\\[CY-2012_HUD-52722_UEL_Excel_Tool_(Version_1.7).xlsm]GUI XREF"}]
[1,null,"Please Select an Operating Fund Project Number",null,null,null,3142,null,null,"PPN",null,null,null,null,0,"Select a Utility Type",null,null,null,null,null,null,null,"TotalFZ",{"$f":"COUNTA(AH3:AM3)","v":0},null,null,"A","B","C","D","E","F","A","B","C","D","E","F","A","B","C","D","E","F",null,null,null,null,null,null,null,1,null,"Please Select an Operating Fund Project Number",null,null,null,null,null,null,null,null,{"$f":"+Z16","v":0},"Utility Type","","","","","","","","","","","","","","","","","",null,null,{"$f":"+K3","v":""},null,null,null,null,null,null,"version 1.1","initial release"]
[2,"AK001","Alaska Housing Finance Corporation","SF-210","101930000","1001","2011-06-30",null,null,"HAName",{"$f":"IF(ISERROR(VLOOKUP(LEFT(PPN,5),PHALOOKUP,2,FALSE)),\"\",VLOOKUP(LEFT(PPN,5),PHALOOKUP,2,FALSE))","v":""},null,null,null,1,"Water and Sewer (if combined)","UOMWATERSEWER",1,"Coal","Pounds",null,null,null,"TotalFL",{"$f":"COUNTA(AN3:AS3)","v":0},null,null,null,null,null,null,null,null,null,null,null,null,null,null,null,null,null,null,null,null,{"$f":"COUNTIF($AU$3:$AU$20,\"<=\"&AU3)","v":0},"",{"$f":"IF(ISNA(VLOOKUP(ROW()-ROW($AV$2),$AT$3:$AU$20,2,FALSE)),\"\",VLOOKUP(ROW()-ROW($AV$2),$AT$3:$AU$20,2,FALSE))","v":""},{"$f":"IF(AV3=\"\",0,1)","v":0},null,null,null,2,"AK001","AK001000213","Alaska Housing Finance Corporation","SF-210","101930000","1001","06/30",null,"",null,{"$f":"+Z19","v":"01"},"Actual Consumption",0,0,0,0,0,0,0,0,{"$f":"+AJ19","v":0},0,0,0,"Flat Rate","Flat Rate","Flat Rate","Flat Rate","Flat Rate","Flat Rate",{"$f":"+AT19","v":0},"","",null,"","","","2011-06-16","version 1.2","commented out all code for get user name in module Mod Get User Name\\",null,null,null,null,null,null,"","","","","","","","","","","","","","","","","","","","","","","","","","","","","","","","","","","","","","","","","","","","",""]
[3,"AL001","Housing Authority of the Birmingham District","A-3877","075464289","0409","2011-06-30",null,null,"ACC",{"$f":"IF(ISERROR(VLOOKUP(LEFT(PPN,5),PHALOOKUP,3,FALSE)),\"\",VLOOKUP(LEFT(PPN,5),PHALOOKUP,3,FALSE))","v":""},null,null,null,2,"Water (if reported separately)","UOMWATER",2,null,"Tons",null,null,null,null,{"$f":"SUM(Y1:Y3)","v":0},null,null,null,null,null,null,null,null,null,null,null,null,null,null,"",null,null,null,null,null,{"$f":"COUNTIF($AU$3:$AU$20,\"<=\"&AU4)","v":0},"",{"$f":"IF(ISNA(VLOOKUP(ROW()-ROW($AV$2),$AT$3:$AU$20,2,FALSE)),\"\",VLOOKUP(ROW()-ROW($AV$2),$AT$3:$AU$20,2,FALSE))","v":""},{"$f":"IF(AV4=\"\",0,1)","v":0},null,null,null,3,"AK001","AK001000216","Alaska Housing Finance Corporation","SF-210","101930000","1001","06/30",null,"",null,"01a","Unit of consumption (e.g., gallons, kWh, therms)","","","","","","","","","","","","","Flat Rate","Flat Rate","Flat Rate","Flat Rate","Flat Rate","Flat Rate",{"$f":"+AT20","v":0},"","",null,"","","","","","due to user error message compile error",null,null,null,null,null,null,null,"","","","","","","","","","","","","","","","","","","","","","","","","","","","","","","","","","","","","","","","","","","",""]
[4,"AL002","Mobile Housing Board","A4108","082058900","0409","2011-12-31",null,null,"DUNS",{"$f":"IF(ISERROR(VLOOKUP(LEFT(PPN,5),PHALOOKUP,4,FALSE)),\"\",VLOOKUP(LEFT(PPN,5),PHALOOKUP,4,FALSE))","v":""},null,null,null,3,"Sewer (if reported separately)","UOMSEWER",3,null,"Other (specify)",null,null,null,null,null,null,null,null,null,null,null,null,null,null,null,null,null,null,null,null,null,null,null,null,null,0,"","",0,null,null,null,4,"AK001","AK001000244","Alaska Housing Finance Corporation","SF-210","101930000","1001","06/30",null,null,null,{"$f":"+Z22","v":"02"},"Rolling base year 1 - actual consumption",0,0,0,0,0,0,0,0,{"$f":"+AJ22","v":0},0,0,0,"Flat Rate","Flat Rate","Flat Rate","Flat Rate","Flat Rate","Flat Rate",{"$f":"+AT22","v":0},"",null,null,null,null,null,"2011-06-16","version 1.3","on workbook open, added on error resume next just before Range(Warning)=strWarning",null,null,null,null,null,null,null,null,null,null,null,null,null,null,null,null,null,null,null,null,null,null,null,null,0,null,0,null,0,null,null,null,null,null,0,null,0,null,0,null,0,null,null,0,null,0]
[5,"AL004","HA Anniston","A-3042","169148475","0409","2011-03-31",null,null,"ROFO",{"$f":"IF(ISERROR(VLOOKUP(LEFT(PPN,5),PHALOOKUP,5,FALSE)),\"\",VLOOKUP(LEFT(PPN,5),PHALOOKUP,5,FALSE))","v":""},null,null,null,4,"Electricity","UOMELEC",null,null,null,null,null,null,null,null,null,null,null,null,null,null,null,null,null,null,null,null,null,null,null,null,null,null,null,null,0,"","",0,null,null,null,5,"AK001","AK001000247","Alaska Housing Finance Corporation","SF-210","101930000","1001","06/30",null,null,null,"03","Rolling base year 2 - actual consumption",0,0,0,0,0,0,0,0,0,0,0,0,"Flat Rate","Flat Rate","Flat Rate","Flat Rate","Flat Rate","Flat Rate",{"$f":"+AT23","v":0},"",null,null,null,null,null,null,null,"Will gets a debug error here",null,null,null,null,null,null,null,null,null,null,null,null,null,null,null,null,null,null,null,null,null,null,null,null,0,null,0,null,0,null,null,null,null,null,0,null,0,null,0,null,0,null,null,0,null,0]
[6,"AL005","Phenix City Housing Authority","A-3799","052630282","0409","2011-09-30",null,null,"FYE",{"$f":"IF(ISERROR(VLOOKUP(LEFT(PPN,5),PHALOOKUP,6,FALSE)),\"\",VLOOKUP(LEFT(PPN,5),PHALOOKUP,6,FALSE))","v":""},null,null,null,5,"Gas","UOMGAS",1,"Electricity","Kilowatt Hours (KWH)",null,null,null,null,null,null,null,null,null,null,null,null,null,null,null,null,null,null,null,null,null,null,null,null,null,0,"","",0,null,null,null,6,"AK001","AK001000257","Alaska Housing Finance Corporation","SF-210","101930000","1001","06/30",null,null,null,"04","Rolling base year 3 - actual consumption",0,0,0,0,0,0,0,0,0,0,0,0,"Flat Rate","Flat Rate","Flat Rate","Flat Rate","Flat Rate","Flat Rate",{"$f":"+AT24","v":0},0,null,null,null,null,null,null,null,null,null,null,null,null,null,null,null,null,null,null,null,null,null,null,null,null,null,null,null,null,null,null,null,null,0,null,0,null,0,null,null,null,null,null,0,null,0,null,0,null,0,null,null,0,null,0]
[7,"AL006","Housing Authority of the City of Montgomery","A-3897","106917255","0409","2011-03-31",null,null,"UnitChangeInd",null,null,null,null,6,"Fuel Oil","UOMOIL",2,null,"Other (specify)",null,null,null,null,null,null,null,null,null,null,null,null,null,null,null,null,null,null,null,null,null,null,null,null,null,0,"","",0,null,null,null,7,"AK001","AK001000260","Alaska Housing Finance Corporation","SF-210","101930000","1001","06/30",null,null,null,"05","Total Consumption during 3-year Rolling Base period",0,0,0,0,0,0,0,0,0,0,0,0,"Flat Rate","Flat Rate","Flat Rate","Flat Rate","Flat Rate","Flat Rate",{"$f":"+AT25","v":0},0,null,null,null,null,null,"2011-06-18","version 1.41","Responding to email from FO (Betsy Marsh, Huu Dang)",null,null,null,null,null,null,null,null,null,null,null,null,null,null,null,null,null,null,null,null,null,null,null,null,0,null,0,null,0,null,null,null,null,null,0,null,0,null,0,null,0,null,null,0,null,0]
[8,"AL007","Housing Authority of the City of Dothan","A-3815","942424243","0409","2011-12-31",null,null,"RRIYN",null,null,null,null,7,"Coal","UOMCOAL",null,null,null,null,null,null,null,null,null,null,null,null,null,null,null,null,null,null,null,null,null,null,null,null,null,null,null,null,0,"","",0,null,null,null,8,"AK001","AK001000263","Alaska Housing Finance Corporation","SF-210","101930000","1001","06/30",null,null,null,{"$f":"+Z27","v":"06"},"Average rolling base consumption (Line 05 ¸ 3)",0,0,0,0,0,0,0,0,{"$f":"+AJ27","v":0},0,0,0,"Flat Rate","Flat Rate","Flat Rate","Flat Rate","Flat Rate","Flat Rate",{"$f":"+AT27","v":0},0,null,null,null,null,null,"thru",null,"During edit mode, if no entry made, vb code treated as a \"'\" which is text.  Screwed up formulas",null,null,null,null,null,null,null,null,null,null,null,null,null,null,null,null,null,null,null,null,null,null,null,null,0,null,0,null,0,null,null,null,null,null,0,null,0,null,0,null,0,null,null,0,null,0]
[9,"AL008","Selma Housing Authority","A4010","038268850","0409","2011-12-31",null,null,"ExcessConsumption",0,null,null,null,8,"Wood","UOMWOOD",1,"Fuel Oil","Gallons",null,null,null,null,null,null,null,null,null,null,null,null,null,null,null,null,null,null,null,null,null,null,null,null,null,0,"","",0,null,null,null,9,"AK001","AK001000265","Alaska Housing Finance Corporation","SF-210","101930000","1001","06/30",null,null,null,"07","Actual consumption for new units",0,0,0,0,0,0,0,0,0,0,0,0,"Flat Rate","Flat Rate","Flat Rate","Flat Rate","Flat Rate","Flat Rate",{"$f":"+AT28","v":0},0,null,null,null,null,null,"2011-06-22",null,"Chenged vb code in Mod00_Setup, fChangeData, to remove leading single quote from numeroc text boxes",null,null,null,null,null,null,null,null,null,null,null,null,null,null,null,null,null,null,null,null,null,null,null,null,0,null,0,null,0,null,null,null,null,null,0,null,0,null,0,null,0,null,null,0,null,0]
[10,"AL009","Housing Authority of the City of Attalla","A-2428","075454611","0409","2011-12-31",null,null,"ENERGYRATEREDUCTION",0,null,null,null,9,"Steam","UOMSTEAM",2,null,"Other (specify)",null,null,null,null,null,null,null,null,null,null,null,null,null,null,null,null,null,null,null,null,null,null,null,null,null,0,"","",0,null,null,null,10,"AK001","AK001000271","Alaska Housing Finance Corporation","SF-210","101930000","1001","06/30",null,null,null,"08","Rolling Base Consumption (Line 06 + 07)",0,0,0,0,0,0,0,0,0,0,0,0,"Flat Rate","Flat Rate","Flat Rate","Flat Rate","Flat Rate","Flat Rate",{"$f":"+AT29","v":0},0,null,null,null,null,null,null,null,"added version no to gui form",null,null,null,null,null,null,null,null,null,null,null,null,null,null,null,null,null,null,null,null,null,null,null,null,0,null,0,null,0,null,null,null,null,null,0,null,0,null,0,null,0,null,null,0,null,0]
[11,"AL010","Fairfield Housing Authority","A-4107","144588837","0409","2011-03-31",null,null,"EUM",0,null,null,null,10,"Propane","UOMPROPANE",null,null,null,null,null,null,null,null,null,"","",null,null,null,null,null,null,null,null,null,null,null,"",null,null,null,null,null,0,{"$f":"IF(AK3<>\"\",+$AH$1 & \", \"&\"Col \" & AK2&\", \" & AK3&\", \" & AK4,\"\")","v":""},"",0,null,null,null,11,"AK001","AK001000273","Alaska Housing Finance Corporation","SF-210","101930000","1001","06/30",null,null,null,{"$f":"+Z31","v":"09"},"Base Consumption (lesser of Line 01 or 08)",0,0,0,0,0,0,0,0,0,0,0,0,"Flat Rate","Flat Rate","Flat Rate","Flat Rate","Flat Rate","Flat Rate",0,1.0791999999999999,null,null,null,null,null,null,null,"Changed form lines 01, 02, 03, 04, 07, 14 and 16 to convert to values.  Was calculating NF and probably"]
[12,"AL011","Housing Authority of the City of Fort Payne","A-3895","555453179","0409","2011-09-30",null,null,"InflationFactor",1.0791999999999999,null,null,null,11,"Other (specify)","UOMOTHER",1,"Gas","Therms",null,null,null,null,null,null,null,null,null,null,null,null,null,null,null,null,null,null,null,null,null,null,null,null,null,0,{"$f":"IF(AL3<>\"\",+$AH$1 & \", \"&\"Col \" & AL2&\", \" & AL3&\", \" & AL4,\"\")","v":""},"",0,null,null,null,12,"AK001","AK001000274","Alaska Housing Finance Corporation","SF-210","101930000","1001","06/30",null,null,null,{"$f":"+Z33","v":"10"},"Actual consumption > rolling base (If Line 01 is greater than Line 08, enter the difference as positive; if not, enter 0",0,0,0,0,0,0,0,0,{"$f":"+AJ33","v":0},0,0,0,"Flat Rate","Flat Rate","Flat Rate","Flat Rate","Flat Rate","Flat Rate",{"$f":"+AT33","v":0},"07/1/2010 to 06/30/2011",null,null,null,null,null,null,null,"Frozen incorrectly"]
[13,"AL012","Housing Authority of the City of Jasper","A-3896","969616853","0409","2011-06-30",null,null,"StudyYear","07/1/2010 to 06/30/2011",null,null,null,null,null,null,2,null,"Cubic Feet",null,null,null,null,null,null,null,null,null,null,null,null,null,null,null,null,null,null,null,null,null,null,null,null,null,0,{"$f":"IF(AM3<>\"\",+$AH$1 & \", \"&\"Col \" & AM2&\", \" & AM3&\", \" & AM4,\"\")","v":""},"",0,null,null,null,13,"AK001","AK001000275","Alaska Housing Finance Corporation","SF-210","101930000","1001","06/30",null,null,null,"11","Actual consumption < rolling base (If Line 01 is less than Line 08, enter the difference as positive; if not, enter 0)",0,0,0,0,0,0,0,0,0,0,0,0,"Flat Rate","Flat Rate","Flat Rate","Flat Rate","Flat Rate","Flat Rate",{"$f":"+AT34","v":0},null,null,null,null,null,null,null,null,"Responed to Will and Rahul to have workbook always ope to sheet3  without any macros"]
[14,"AL013","Tarrant Housing Authority","A-2146","137772393","0409","2011-12-31",null,null,null,null,null,null,null,null,null,null,3,null,"100 cubic feet  (CCF)",null,null,null,null,null,null,"Incentive Type",{"$f":"IF(AB3=\"\",\"\",+$AB$1)","v":""},"","","","","",{"$f":"IF(AH3=\"\",\"\",+$AH$1)","v":""},"","","","","","Flat Rate","Flat Rate","Flat Rate","Flat Rate","Flat Rate","Flat Rate",0,{"$f":"IF(AN3<>\"\",+$AN$1 & \", \"&\"Col \" & AN2&\", \" & AN3&\", \" & AN4,\"\")","v":""},"",0,null,null,null,14,"AK001","AK001000277","Alaska Housing Finance Corporation","SF-210","101930000","1001","06/30",null,null,null,"12","75%/25% Split (Line 10 x 0.25)","","","","","","","","","","","","","Flat Rate","Flat Rate","Flat Rate","Flat Rate","Flat Rate","Flat Rate",{"$f":"+AT35","v":0},null,null,null,null,null,null,null,null,"added code in workbook module to manually change all visibles to xlveryhidden, except for sheet3"]
[15,"AL014","Guntersville Housing Authority","A-3879","026505052","0409","2011-06-30",null,null,null,null,null,null,null,null,null,null,4,null,"1000 cubic feet (MCF)",null,null,null,null,null,null,"Utility Type",{"$f":"IF(+AB3=\"\",\"\",AB3)","v":""},{"$f":"IF(+AC3=\"\",\"\",AC3)","v":""},"","","","",{"$f":"IF(+AH3=\"\",\"\",AH3)","v":""},"","","","","",{"$f":"IF(+AN3=\"\",\"\",AN3)","v":""},"","","","","",0,{"$f":"IF(AO3<>\"\",+$AN$1 & \", \"&\"Col \" & AO2&\", \" & AO3&\", \" & AO4,\"\")","v":""},"",0,null,null,null,15,"AK001","AK001000279","Alaska Housing Finance Corporation","SF-210","101930000","1001","06/30",null,null,null,"13","75%/25% Split (Line 11 x 0.75)","","","","","","","","","","","","","Flat Rate","Flat Rate","Flat Rate","Flat Rate","Flat Rate","Flat Rate",{"$f":"+AT36","v":0},null,null,null,null,null,null,null,null,"code was run once and can only be rerun by specifically running that procedure"]
[16,"AL047","The Housing Authority of the City of Huntsville","A-3885","144588811","0409","2011-03-31",null,null,null,null,null,null,null,null,null,null,5,null,"Other (specify)",null,null,null,null,null,null,null,null,null,null,null,null,null,null,null,null,null,null,null,null,null,null,null,null,null,0,{"$f":"IF(AP3<>\"\",+$AN$1 & \", \"&\"Col \" & AP2&\", \" & AP3&\", \" & AP4,\"\")","v":""},"",0,null,null,null,16,"AK001","AK001000280","Alaska Housing Finance Corporation","SF-210","101930000","1001","06/30",null,null,null,{"$f":"+Z38","v":14},"Annualization of consumption for new units",0,0,0,0,0,0,0,0,{"$f":"+AJ38","v":0},0,0,0,"Flat Rate","Flat Rate","Flat Rate","Flat Rate","Flat Rate","Flat Rate",{"$f":"+AT38","v":0},null,null,null,null,null,null,null,null,"changed saveas from .xls to .xlsm"]
[17,"AL048","Housing Authority of the City of Decatur","A-3814","144584356","0409","2011-06-30",null,null,null,null,null,null,null,null,null,null,null,null,null,null,null,null,null,null,null,null,null,null,null,null,null,null,null,null,null,null,null,null,null,null,null,null,null,null,0,{"$f":"IF(AQ3<>\"\",+$AN$1 & \", \"&\"Col \" & AQ2&\", \" & AQ3&\", \" & AQ4,\"\")","v":""},"",0,null,null,null,17,"AL001","AL001000001","Housing Authority of the Birmingham District","A-3877","075464289","0409","06/30",null,null,null,15,"Payable consumption (Sum of Line 09, Line 12, Line 13, and Line 14)",0,0,0,0,0,0,0,0,0,0,0,0,"Flat Rate","Flat Rate","Flat Rate","Flat Rate","Flat Rate","Flat Rate",{"$f":"+AT39","v":0},null,null,null,null,null,null,"2011-06-22","version 1.42(to steve)","Removed vbe reference to outlook.  Already using late binding"]
[18,"AL049","Greater Gadsden Housing Authority","A-4013","004515144","0409","2011-06-30",null,null,null,null,null,null,null,null,null,null,1,"Propane","Gallons",null,null,null,null,null,"01","Actual Consumption",{"$f":"VALUE(+AB5)","v":0},{"$f":"VALUE(+AC5)","v":0},0,0,0,0,0,0,0,0,0,0,{"$f":"+$AN$15","v":"Flat Rate"},{"$f":"+$AO$15","v":"Flat Rate"},{"$f":"+$AP$15","v":"Flat Rate"},{"$f":"+$AQ$15","v":"Flat Rate"},{"$f":"+$AR$15","v":"Flat Rate"},{"$f":"+$AS$15","v":"Flat Rate"},0,{"$f":"IF(AR3<>\"\",+$AN$1 & \", \"&\"Col \" & AR2&\", \" & AR3&\", \" & AR4,\"\")","v":""},"",0,null,null,null,18,"AL001","AL001000004","Housing Authority of the Birmingham District","A-3877","075464289","0409","06/30",null,null,null,{"$f":"+Z41","v":16},"Actual utility costs",0,0,0,0,0,0,0,0,{"$f":"+AJ41","v":0},0,0,0,"","","","","","",{"$f":"+AT41","v":0},null,null,null,null,null,null,null,null,"For testing purposes, changed email from HUD to sgsell"]
[19,"AL050","HA Auburn","A-2423","016066250","0409","2011-06-30",null,null,null,null,null,null,null,null,null,null,2,null,"Other (specify)",null,null,null,null,null,"01a","Unit of consumption (e.g., gallons, kWh, therms)",{"$f":"IF(+AB4=\"\",\"\",AB4)","v":""},{"$f":"IF(+AC4=\"\",\"\",AC4)","v":""},"","","","",{"$f":"IF(+AH4=\"\",\"\",AH4)","v":""},"","","","","",{"$f":"+$AN$15","v":"Flat Rate"},{"$f":"+$AO$15","v":"Flat Rate"},{"$f":"+$AP$15","v":"Flat Rate"},{"$f":"+$AQ$15","v":"Flat Rate"},{"$f":"+$AR$15","v":"Flat Rate"},{"$f":"+$AS$15","v":"Flat Rate"},0,{"$f":"IF(AS3<>\"\",+$AN$1 & \", \"&\"Col \" & AS2&\", \" & AS3&\", \" & AS4,\"\")","v":""},"",0,null,null,null,19,"AL001","AL001000006","Housing Authority of the Birmingham District","A-3877","075464289","0409","06/30",null,null,null,17,"Actual average utility rate (Line 16 ¸ Line 01)",0,0,0,0,0,0,0,0,0,0,0,0,"Flat Rate","Flat Rate","Flat Rate","Flat Rate","Flat Rate","Flat Rate",{"$f":"+AT42","v":0}]
[20,"AL051","Housing Authority of Red Bay","A-3805","618155626","0409","2011-12-31",null,null,null,null,null,null,null,null,null,null,null,null,null,null,null,null,null,null,null,null,null,null,null,null,null,null,null,null,null,null,null,null,null,null,null,null,null,null,null,null,null,null,null,null,null,20,"AL001","AL001000007","Housing Authority of the Birmingham District","A-3877","075464289","0409","06/30",null,null,null,{"$f":"+Z44","v":18},"Base utilities expense level - whole dollars (Line 15 x Line 17)",0,0,0,0,0,0,0,0,{"$f":"+AJ44","v":0},0,0,0,"","","","","","",{"$f":"+AT44","v":0},null,null,null,null,null,null,"2011-07-30","version 1.43-2","added new amps and removed duplicates"]
[21,"AL052","HA Cullman","A-2311","616925053","0409","2011-09-30",null,null,null,null,null,null,null,null,null,null,1,"Sewer (if reported separately)","Gallons",null,null,null,null,null,"02","Rolling base year 1 - actual consumption",{"$f":"VALUE(+AB6)","v":0},{"$f":"VALUE(+AC6)","v":0},0,0,0,0,0,0,0,0,0,0,{"$f":"+$AN$15","v":"Flat Rate"},{"$f":"+$AO$15","v":"Flat Rate"},{"$f":"+$AP$15","v":"Flat Rate"},{"$f":"+$AQ$15","v":"Flat Rate"},{"$f":"+$AR$15","v":"Flat Rate"},{"$f":"+$AS$15","v":"Flat Rate"},null,null,null,null,null,null,null,21,"AL001","AL001000008","Housing Authority of the Birmingham District","A-3877","075464289","0409","06/30",null,null,null,19,"Surcharges for excess consumption of PHA-supplied utilities - whole dollars",0,0,0,0,0,0,0,0,0,0,0,0,0,0,0,0,0,0,{"$f":"+AT45","v":0}]
[22,"AL053","Housing Authority of Hamilton, Alabama","A-3477","059880633","0409","2011-12-31",null,null,null,null,null,null,null,null,null,null,2,null,"100 Gallons (Cgal)",null,null,null,null,null,"03","Rolling base year 2 - actual consumption",{"$f":"VALUE(+AB7)","v":0},0,0,0,0,0,0,0,0,0,0,0,{"$f":"+$AN$15","v":"Flat Rate"},{"$f":"+$AO$15","v":"Flat Rate"},{"$f":"+$AP$15","v":"Flat Rate"},{"$f":"+$AQ$15","v":"Flat Rate"},{"$f":"+$AR$15","v":"Flat Rate"},{"$f":"+$AS$15","v":"Flat Rate"},null,"1st row",{"$f":"IF(ISNA(MATCH(1,$AW$1:$AW$20,0)),0,MATCH(1,$AW$1:$AW$20,0))","v":0},null,null,null,null,22,"AL001","AL001000009","Housing Authority of the Birmingham District","A-3877","075464289","0409","06/30",null,null,null,{"$f":"+Z47","v":20},"Base Utilities expense level minus surcharges (Line 18 minus Line 19)",0,0,0,0,0,0,0,0,{"$f":"+AJ47","v":0},0,0,0,0,0,0,0,0,0,{"$f":"+AT47","v":0}]
[23,"AL054","Florence H/A","A-2410","078975109","0409","2011-09-30",null,null,null,{"$f":"+FYE","v":""},null,null,null,null,null,null,3,null,"1000 Gallons (Mgal)",null,null,null,null,null,"04","Rolling base year 3 - actual consumption",0,0,0,0,0,0,0,0,0,0,0,0,{"$f":"+$AN$15","v":"Flat Rate"},{"$f":"+$AO$15","v":"Flat Rate"},{"$f":"+$AP$15","v":"Flat Rate"},{"$f":"+$AQ$15","v":"Flat Rate"},{"$f":"+$AR$15","v":"Flat Rate"},{"$f":"+$AS$15","v":"Flat Rate"},null,null,{"$f":"SUM(AW1:AW20)","v":0},null,null,null,null,23,"AL001","AL001000010","Housing Authority of the Birmingham District","A-3877","075464289","0409","06/30",null,null,null,21,"Utilities inflation/deflation factor",0,0,0,0,0,0,0,0,0,0,0,0,0,0,0,0,0,0,{"$f":"+AT48","v":1.0791999999999999}]
[24,"AL055","HA Cordova","A-2967","002059947","0409","2011-09-30",null,null,null,null,null,null,null,null,null,null,4,null,"Cubic feet",null,null,null,null,null,"05","Total Consumption during 3-year Rolling Base period",{"$f":"IF(AB15=\"Flat Rate\",\"Flat Rate\",SUM(ROUND(AB22,0),ROUND(AB23,0),ROUND(AB24,0)))","v":0},0,0,0,0,0,0,0,0,0,0,0,{"$f":"+$AN$15","v":"Flat Rate"},{"$f":"+$AO$15","v":"Flat Rate"},{"$f":"+$AP$15","v":"Flat Rate"},{"$f":"+$AQ$15","v":"Flat Rate"},{"$f":"+$AR$15","v":"Flat Rate"},{"$f":"+$AS$15","v":"Flat Rate"},null,"last row",{"$f":"+AV23+AV24-1","v":-1},null,null,null,null,24,"AL001","AL001000011","Housing Authority of the Birmingham District","A-3877","075464289","0409","06/30",null,null,null,{"$f":"+Z50","v":22},"Utilities expense level adjusted for inflation/deflation - whole dollars (Line 20 x Line 21)",0,0,0,0,0,0,0,0,{"$f":"+AJ50","v":0},0,0,0,0,0,0,0,0,0,{"$f":"+AT50","v":0}]
[25,"AL056","Haleyville Housing Authority","A-3831","040656225","0409","2011-03-31",null,null,null,null,null,null,null,null,null,null,5,null,"100 cubic feet  (CCF)",null,null,null,null,null,null,null,null,null,null,null,null,null,null,null,null,null,null,null,null,null,null,null,null,null,null,null,null,null,null,null,null,25,"AL001","AL001000013","Housing Authority of the Birmingham District","A-3877","075464289","0409","06/30",null,null,null,23,"Energy rate incentive",0,0,0,0,0,0,0,0,0,0,0,0,0,0,0,0,0,0,{"$f":"+AT51","v":0}]
[26,"AL057","Sylacauga Housing Authority","A-3795","081392383","0409","2011-06-30",null,null,null,null,null,null,null,null,null,null,6,null,"1000 cubic feet (MCF)",null,null,null,null,null,"06","Average rolling base consumption (Line 05 ¸ 3)",{"$f":"IF(AB15=\"Flat Rate\",\"Flat Rate\",AVERAGE(ROUND(AB22,0),ROUND(AB23,0),ROUND(AB24,0)))","v":0},0,0,0,0,0,0,0,0,0,0,0,{"$f":"+$AN$15","v":"Flat Rate"},{"$f":"+$AO$15","v":"Flat Rate"},{"$f":"+$AP$15","v":"Flat Rate"},{"$f":"+$AQ$15","v":"Flat Rate"},{"$f":"+$AR$15","v":"Flat Rate"},{"$f":"+$AS$15","v":"Flat Rate"},null,null,null,null,null,null,null,26,"AL001","AL001000014","Housing Authority of the Birmingham District","A-3877","075464289","0409","06/30",null,null,null,24,"Utilities expense level - whole dollars (Line 22 + Line 23)",0,0,0,0,0,0,0,0,0,0,0,0,0,0,0,0,0,0,{"$f":"+AT52","v":0}]
[27,"AL058","Winfield Housing Authority","A-4262","169140506","0409","2011-12-31",null,null,null,null,null,null,null,null,null,null,7,null,"Other (specify)",null,null,null,null,null,"07","Actual consumption for new units",{"$f":"VALUE(+AB9)","v":0},{"$f":"VALUE(+AC9)","v":0},0,0,0,0,0,0,0,0,0,0,{"$f":"+$AN$15","v":"Flat Rate"},{"$f":"+$AO$15","v":"Flat Rate"},{"$f":"+$AP$15","v":"Flat Rate"},{"$f":"+$AQ$15","v":"Flat Rate"},{"$f":"+$AR$15","v":"Flat Rate"},{"$f":"+$AS$15","v":"Flat Rate"},null,null,null,null,null,null,null,27,"AL001","AL001000016","Housing Authority of the Birmingham District","A-3877","075464289","0409","06/30",null,null,null,25,"Eligible unit months (from the original form HUD-52723, Column B, Line 15 plus Line 17 minus Line 04)",0,0,0,0,0,0,0,0,0,0,0,0,0,0,0,0,0,0,{"$f":"+AT53","v":0}]
[28,"AL059","Housing Authority of the City of Tuscumbia","A-2315","139721406","0409","2011-03-31",null,null,null,null,null,null,null,null,null,null,null,null,null,null,null,null,null,null,"08","Rolling Base Consumption (Line 06 + 07)",{"$f":"IF(AB15=\"Flat Rate\",\"Flat Rate\",SUM(ROUND(AB27,0),ROUND(AB28,0)))","v":0},0,0,0,0,0,0,0,0,0,0,0,{"$f":"+$AN$15","v":"Flat Rate"},{"$f":"+$AO$15","v":"Flat Rate"},{"$f":"+$AP$15","v":"Flat Rate"},{"$f":"+$AQ$15","v":"Flat Rate"},{"$f":"+$AR$15","v":"Flat Rate"},{"$f":"+$AS$15","v":"Flat Rate"},null,null,null,null,null,null,null,28,"AL001","AL001000017","Housing Authority of the Birmingham District","A-3877","075464289","0409","06/30",null,null,null,26,"Utilities Expense Level - PUM (Line 24 ¸ Line 25)",0,0,0,0,0,0,0,0,0,0,0,0,0,0,0,0,0,0,{"$f":"+AT54","v":0}]
[29,"AL060","HA Russellville","A-3033","168003390","0409","2011-06-30",null,null,null,null,null,null,null,null,null,null,1,"Water and Sewer (if combined)","Gallons",null,null,null,null,null,null,null,null,null,null,null,null,null,null,null,null,null,null,null,null,null,null,null,null,null,null,null,null,null,null,null,null,29,"AL001","AL001000018","Housing Authority of the Birmingham District","A-3877","075464289","0409","06/30"]
[30,"AL061","HA Opelika","A-3884","084371111","0409","2011-06-30",null,null,null,null,null,null,null,null,null,null,2,null,"100 Gallons (Cgal)",null,null,null,null,null,"09","Base Consumption (lesser of Line 01 or 08)",{"$f":"IF(AB$15=\"Flat Rate\",\"Flat Rate\",IF(AB$15=\"Frozen\",AB$29,MIN(AB$29,AB$19)))","v":0},0,0,0,0,0,0,0,0,0,0,0,"Flat Rate","Flat Rate","Flat Rate","Flat Rate","Flat Rate","Flat Rate",null,null,null,null,null,null,null,30,"AL001","AL001000021","Housing Authority of the Birmingham District","A-3877","075464289","0409","06/30"]
[31,"AL062","Housing Authority of the City of Lanett, Al","A-2411","603885229","0409","2011-09-30",null,null,null,null,null,null,null,null,null,null,3,null,"1000 Gallons (Mgal)",null,null,null,null,null,null,null,null,null,null,null,null,null,null,null,null,null,null,null,null,null,null,null,null,null,null,null,null,null,null,null,null,31,"AL001","AL001000023","Housing Authority of the Birmingham District","A-3877","075464289","0409","06/30"]
[32,"AL063","H A Oneonta","A-3791","004446464","0409","2011-12-31",null,null,null,null,null,null,null,null,null,null,4,null,"Cubic feet",null,null,null,null,null,"10","Actual consumption > rolling base (If Line 01 is greater than Line 08, enter the difference as positive; if not, enter 0",{"$f":"IF(AB$15=\"Flat Rate\",\"Flat Rate\",IF(AB$15<>\"Frozen\",MAX(AB$19-AB$29,0),\"\"))","v":0},{"$f":"IF(AC$15=\"Flat Rate\",\"Flat Rate\",IF(AC$15<>\"Frozen\",MAX(AC$19-AC$29,0),\"\"))","v":0},0,0,0,0,0,0,0,0,0,0,"Flat Rate","Flat Rate","Flat Rate","Flat Rate","Flat Rate","Flat Rate",null,null,null,null,null,null,null,32,"AL001","AL001000031","Housing Authority of the Birmingham District","A-3877","075464289","0409","06/30"]
[33,"AL064","Housing Authority of the City of Carbon Hill","A-3014","363653023","0409","2011-12-31",null,null,null,null,null,null,null,null,null,null,5,null,"100 cubic feet  (CCF)",null,null,null,null,null,"11","Actual consumption < rolling base (If Line 01 is less than Line 08, enter the difference as positive; if not, enter 0)",{"$f":"IF(AB$15=\"Flat Rate\",\"Flat Rate\",IF(AB$15<>\"Frozen\",MAX(AB$29-AB$19,0),\"\"))","v":0},0,0,0,0,0,0,0,0,0,0,0,{"$f":"+$AN$15","v":"Flat Rate"},{"$f":"+$AO$15","v":"Flat Rate"},{"$f":"+$AP$15","v":"Flat Rate"},{"$f":"+$AQ$15","v":"Flat Rate"},{"$f":"+$AR$15","v":"Flat Rate"},{"$f":"+$AS$15","v":"Flat Rate"},null,null,null,null,null,null,null,33,"AL001","AL001000032","Housing Authority of the Birmingham District","A-3877","075464289","0409","06/30"]
[34,"AL065","Housing Authority of the City of Roanoke, Al","A-4263","049208739","0409","2011-06-30",null,null,null,null,null,null,null,null,null,null,6,null,"1000 cubic feet (MCF)",null,null,null,null,null,"12","75%/25% Split (Line 10 x 0.25)",{"$f":"IF(AB$15=\"Flat Rate\",\"Flat Rate\",IF(AB$15=\"Non-Frozen\",ROUND(AB33*0.25,0),\"\"))","v":""},"","","","","","","","","","","",{"$f":"+$AN$15","v":"Flat Rate"},{"$f":"+$AO$15","v":"Flat Rate"},{"$f":"+$AP$15","v":"Flat Rate"},{"$f":"+$AQ$15","v":"Flat Rate"},{"$f":"+$AR$15","v":"Flat Rate"},{"$f":"+$AS$15","v":"Flat Rate"},null,null,null,null,null,null,null,34,"AL001","AL001000033","Housing Authority of the Birmingham District","A-3877","075464289","0409","06/30"]
[35,"AL066","Housing Authority of Reform","A-2950","834544855","0409","2011-03-31",null,null,null,null,null,null,null,null,null,null,7,null,"Other (specify)",null,null,null,null,null,"13","75%/25% Split (Line 11 x 0.75)",{"$f":"IF(AB$15=\"Flat Rate\",\"Flat Rate\",IF(AB$15=\"Non-Frozen\",ROUND(AB34*0.75,0),\"\"))","v":""},"","","","","","","","","","","",{"$f":"+$AN$15","v":"Flat Rate"},{"$f":"+$AO$15","v":"Flat Rate"},{"$f":"+$AP$15","v":"Flat Rate"},{"$f":"+$AQ$15","v":"Flat Rate"},{"$f":"+$AR$15","v":"Flat Rate"},{"$f":"+$AS$15","v":"Flat Rate"},null,null,null,null,null,null,null,35,"AL001","AL001000037","Housing Authority of the Birmingham District","A-3877","075464289","0409","06/30"]
[36,"AL067","HOUSING AUTHORITY OF THE CITY OF ATHENS, AL","A-2424","001892843","0409","2011-12-31",null,null,null,null,null,null,null,null,null,null,null,null,null,null,null,null,null,null,null,null,null,null,null,null,null,null,null,null,null,null,null,null,null,null,null,null,null,null,null,null,null,null,null,null,null,36,"AL002","AL002000001","Mobile Housing Board","A4108","082058900","0409","12/31"]
[37,"AL068","Sheffield Housing Authority","A-4261","079127932","0409","2011-03-31",null,null,null,null,null,null,null,null,null,null,1,"Water (if reported separately)","Gallons",null,null,null,null,null,14,"Annualization of consumption for new units",{"$f":"VALUE(+AB10)","v":0},{"$f":"VALUE(+AC10)","v":0},0,0,0,0,0,0,0,0,0,0,{"$f":"+$AN$15","v":"Flat Rate"},{"$f":"+$AO$15","v":"Flat Rate"},{"$f":"+$AP$15","v":"Flat Rate"},{"$f":"+$AQ$15","v":"Flat Rate"},{"$f":"+$AR$15","v":"Flat Rate"},{"$f":"+$AS$15","v":"Flat Rate"},null,null,null,null,null,null,null,37,"AL002","AL002000002","Mobile Housing Board","A4108","082058900","0409","12/31"]
[38,"AL069","HA Leeds","A-2945","107979379","0409","2011-06-30",null,null,null,null,null,null,null,null,null,null,2,null,"100 Gallons (Cgal)",null,null,null,null,null,15,"Payable consumption (Sum of Line 09, Line 12, Line 13, and Line 14)",{"$f":"IF(AB15=\"Flat Rate\",\"Flat Rate\",(SUM(IF(ISNUMBER(AB31),ROUND(AB31,0),0),IF(ISNUMBER(AB35),ROUND(AB35,0)),0,IF(ISNUMBER(AB36),ROUND(AB36,0),0),IF(ISNUMBER(AB38),ROUND(AB38,0),0))))","v":0},0,0,0,0,0,0,0,0,0,0,0,{"$f":"+$AN$15","v":"Flat Rate"},{"$f":"+$AO$15","v":"Flat Rate"},{"$f":"+$AP$15","v":"Flat Rate"},{"$f":"+$AQ$15","v":"Flat Rate"},{"$f":"+$AR$15","v":"Flat Rate"},{"$f":"+$AS$15","v":"Flat Rate"},null,null,null,null,null,null,null,38,"AL002","AL002000003","Mobile Housing Board","A4108","082058900","0409","12/31"]
[39,"AL070","City of Union Springs Housing Authority","A-3801","129646878","0409","2011-03-31",null,null,null,null,null,null,null,null,null,null,3,null,"1000 Gallons (Mgal)",null,null,null,null,null,null,null,null,null,null,null,null,null,null,null,null,null,null,null,null,null,null,null,null,null,null,null,null,null,null,null,null,39,"AL002","AL002000005","Mobile Housing Board","A4108","082058900","0409","12/31"]
[40,"AL071","Housing Authority of Guin, Alabama","A-2941","001915628","0409","2011-06-30",null,null,null,null,null,null,null,null,null,null,4,null,"Cubic feet",null,null,null,null,null,16,"Actual utility costs",{"$f":"VALUE(+AB11)","v":0},{"$f":"VALUE(+AC11)","v":0},0,0,0,0,0,0,0,0,0,0,{"$f":"IF(AN11>0,AN11,\"\")","v":""},"","","","","",null,null,null,null,null,null,null,40,"AL002","AL002000006","Mobile Housing Board","A4108","082058900","0409","12/31"]
[41,"AL072","HA Columbiana","A-3814","094472347","0409","2011-09-30",null,null,null,null,null,null,null,null,null,null,5,null,"100 cubic feet  (CCF)",null,null,null,null,null,17,"Actual average utility rate (Line 16 ¸ Line 01)",{"$f":"IF(AB15=\"Flat Rate\",\"Flat Rate\",IF(ISERROR(AB41/AB19),0,ROUND(AB41/AB19,4)))","v":0},0,0,0,0,0,0,0,0,0,0,0,{"$f":"+$AN$15","v":"Flat Rate"},{"$f":"+$AO$15","v":"Flat Rate"},{"$f":"+$AP$15","v":"Flat Rate"},{"$f":"+$AQ$15","v":"Flat Rate"},{"$f":"+$AR$15","v":"Flat Rate"},{"$f":"+$AS$15","v":"Flat Rate"},null,null,null,null,null,null,null,41,"AL002","AL002000008","Mobile Housing Board","A4108","082058900","0409","12/31"]
[42,"AL073","Ozark Housing Authority","A-3887","800130791","0409","2011-03-31",null,null,null,null,null,null,null,null,null,null,6,null,"1000 cubic feet (MCF)",null,null,null,null,null,null,null,null,null,null,null,null,null,null,null,null,null,null,null,null,null,null,null,null,null,null,null,null,null,null,null,null,42,"AL002","AL002000010","Mobile Housing Board","A4108","082058900","0409","12/31"]
[43,"AL074","Housing Authority of Boston","A-3817","017710802","0409","2011-06-30",null,null,null,null,null,null,null,null,null,null,7,null,"Other (specify)",null,null,null,null,null,18,"Base utilities expense level - whole dollars (Line 15 x Line 17)",{"$f":"IF(ISNUMBER(ROUND(AB39*AB42,0)),ROUND(AB39*AB42,0),ROUND(AB41,0))","v":0},0,0,0,0,0,0,0,0,0,0,0,{"$f":"+AN41","v":""},"","","","","",{"$f":"SUM(AB44:AS44)","v":0},null,null,null,null,null,null,43,"AL002","AL002000011","Mobile Housing Board","A4108","082058900","0409","12/31"]
[44,"AL075","Boaz Housing Authority","A-3800","001928571","0409","2011-06-30",null,null,null,null,null,null,null,null,null,null,null,null,null,null,null,null,null,null,19,"Surcharges for excess consumption of PHA-supplied utilities - whole dollars",null,null,null,null,null,null,null,null,null,null,null,null,null,null,null,null,null,null,{"$f":"+ExcessConsumption","v":0},null,null,null,null,null,null,44,"AL002","AL002000012","Mobile Housing Board","A4108","082058900","0409","12/31"]
[45,"AL076","Hackleburg Housing Authority","A-3029","168001980","0409","2011-03-31",null,null,null,null,null,null,null,null,null,null,1,"Wood","Tons",null,null,null,null,null,null,null,null,null,null,null,null,null,null,null,null,null,null,null,null,null,null,null,null,null,null,null,null,null,null,null,null,45,"AL002","AL002000013","Mobile Housing Board","A4108","082058900","0409","12/31"]
[46,"AL077","HA Tuscaloosa","A-3521","002052207","0409","2011-03-31",null,null,null,null,null,null,null,null,null,null,2,null,"Other (specify)",null,null,null,null,null,20,"Base Utilities expense level minus surcharges (Line 18 minus Line 19)",null,null,null,null,null,null,null,null,null,null,null,null,null,null,null,null,null,null,{"$f":"ROUND(AT44,0)-ROUND(AT45,0)","v":0},null,null,null,null,null,null,46,"AL002","AL002000014","Mobile Housing Board","A4108","082058900","0409","12/31"]
[47,"AL078","Housing Authority of the Town of Berry","A3031","013066662","0409","2011-06-30",null,null,null,null,null,null,null,null,null,null,null,null,null,null,null,null,null,null,21,"Utilities inflation/deflation factor",null,null,null,null,null,null,null,null,null,null,null,null,null,null,null,null,null,null,{"$f":"+InflationFactor","v":1.0791999999999999},null,null,null,null,null,null,47,"AL002","AL002000015","Mobile Housing Board","A4108","082058900","0409","12/31"]
[48,"AL079","Housing Authority of the Town of Montevallo","A-3019","145407016","0409","2011-06-30",null,null,null,null,null,null,null,null,null,null,1,"Steam","Pounds",null,null,null,null,null,null,null,null,null,null,null,null,null,null,null,null,null,null,null,null,null,null,null,null,null,null,null,null,null,null,null,null,48,"AL002","AL002000016","Mobile Housing Board","A4108","082058900","0409","12/31"]
[49,"AL080","Housing Authority of the City of Moulton, Al","A-2953","618155352","0409","2011-12-31",null,null,null,null,null,null,null,null,null,null,null,null,"Therms",null,null,null,null,null,22,"Utilities expense level adjusted for inflation/deflation - whole dollars (Line 20 x Line 21)",null,null,null,null,null,null,null,null,null,null,null,null,null,null,null,null,null,null,{"$f":"ROUND(AT47*AT48,0)","v":0},null,null,null,null,null,null,49,{"$f":"LEFT(BC50,5)","v":"AL002"},"AL002000019","Mobile Housing Board","A4108","082058900","0409","12/31"]
[50,"AL081","Bear Creek Housing Authority","A-3022","137463217","0409","2011-03-31",null,null,null,null,null,null,null,null,null,null,null,null,"BTU",null,null,null,null,null,23,"Energy rate incentive",null,null,null,null,null,null,null,null,null,null,null,null,null,null,null,null,null,null,{"$f":"ROUND(+ENERGYRATEREDUCTION,0)","v":0},null,null,null,null,null,null,50,"AL002","AL002000022","Mobile Housing Board","A4108","082058900","0409","12/31"]
[51,"AL082","Crossville Housing Auhtority","A-2430","138252726","0409","2011-06-30",null,null,null,null,null,null,null,null,null,null,null,null,"Other (specify)",null,null,null,null,null,24,"Utilities expense level - whole dollars (Line 22 + Line 23)",null,null,null,null,null,null,null,null,null,null,null,null,null,null,null,null,null,null,{"$f":"+AT50+AT51","v":0},null,null,null,null,null,null,51,"AL004","AL004000001","HA Anniston","A-3042","169148475","0409","03/31"]
[52,"AL083","Collinsville Housing Authority","A-3899","030055441","0409","2011-12-31",null,null,null,null,null,null,null,null,null,null,null,null,null,null,null,null,null,null,25,"Eligible unit months (from the original form HUD-52723, Column B, Line 15 plus Line 17 minus Line 04)",null,null,null,null,null,null,null,null,null,null,null,null,null,null,null,null,null,null,{"$f":"+EUM","v":0},null,null,null,null,null,null,52,"AL004","AL004000002","HA Anniston","A-3042","169148475","0409","03/31"]
[53,"AL084","Housing Authority of the City of Vernon, Al","A-2951","796452266","0409","2011-12-31",null,null,null,null,null,null,null,null,null,null,null,null,null,null,null,null,null,null,26,"Utilities Expense Level - PUM (Line 24 ¸ Line 25)",null,null,null,null,null,null,null,null,null,null,null,null,null,null,null,null,null,null,{"$f":"IF(AT53=0,0,ROUND((AT52/AT53),2))","v":0},null,null,null,null,null,null,53,"AL004","AL004000003","HA Anniston","A-3042","169148475","0409","03/31"]
[54,"AL085","Housing Authority of the Town of Calera","A-2425","145406851","0409","2011-06-30",null,null,null,null,null,null,null,null,null,null,1,"Other","100 cubic feet  (CCF)",null,null,null,null,null,null,null,null,null,null,null,null,null,null,null,null,null,null,null,null,null,null,null,null,null,null,null,null,null,null,null,null,54,"AL005","AL005000001","Phenix City Housing Authority","A-3799","052630282","0409","09/30"]
[55,"AL086","Jefferson County Housing Authority","A-2954","101705270","0409","2011-12-31",null,null,null,null,null,null,null,null,null,null,2,null,"100 Gallons (Cgal)",null,null,null,null,null,null,null,null,null,null,null,null,null,null,null,null,null,null,null,null,null,null,null,null,null,null,null,null,null,null,null,null,55,"AL005","AL005000002","Phenix City Housing Authority","A-3799","052630282","0409","09/30"]
[56,"AL087","Housing Authority of the City of Hartselle","A-3793","616925509","0409","2011-06-30",null,null,null,null,null,null,null,null,null,null,3,null,"1000 cubic feet (MCF)",null,null,null,null,null,null,null,null,null,null,null,null,null,null,null,null,null,null,null,null,null,null,null,null,null,null,null,null,null,null,null,null,56,"AL005","AL005000005","Phenix City Housing Authority","A-3799","052630282","0409","09/30"]
[57,"AL088","Housing Authority of the City of Luverne, Al","A-3819","961168978","0409","2011-12-31",null,null,null,null,null,null,null,null,null,null,4,null,"1000 Gallons (Mgal)",null,null,null,null,null,null,null,null,null,null,null,null,null,null,null,null,null,null,null,null,null,null,null,null,null,null,null,null,null,null,null,null,57,"AL005","AL005000006","Phenix City Housing Authority","A-3799","052630282","0409","09/30"]
[58,"AL089","Vincent Housing Authority","A-2416","139439807","0409","2011-09-30",null,null,null,null,null,null,null,null,null,null,5,null,"BTU",null,null,null,null,null,null,null,null,null,null,null,null,null,null,null,null,null,null,null,null,null,null,null,null,null,null,null,null,null,null,null,null,58,"AL005","AL005000010","Phenix City Housing Authority","A-3799","052630282","0409","09/30"]
[59,"AL090","Phil Campbell Housing Authority","A-3013","137464264","0409","2011-06-30",null,null,null,null,null,null,null,null,null,null,6,null,"Cubic feet",null,null,null,null,null,null,null,null,null,null,null,null,null,null,null,null,null,null,null,null,null,null,null,null,null,null,null,null,null,null,null,null,59,"AL005","AL005000012","Phenix City Housing Authority","A-3799","052630282","0409","09/30"]
[60,"AL091","HA Arab","A-3023","001938521","0409","2011-09-30",null,null,null,null,null,null,null,null,null,null,7,null,"Gallons",null,null,null,null,null,null,null,null,null,null,null,null,null,null,null,null,null,null,null,null,null,null,null,null,null,null,null,null,null,null,null,null,60,"AL006","AL006000001","Housing Authority of the City of Montgomery","A-3897","106917255","0409","03/31"]
[61,"AL093","Housing Authority of the Town of Hanceville","A-4003","827211335","0409","2011-06-30",null,null,null,null,null,null,null,null,null,null,8,null,"Kilowatt Hours (kWh)",null,null,null,null,null,null,null,null,null,null,null,null,null,null,null,null,null,null,null,null,null,null,null,null,null,null,null,null,null,null,null,null,61,"AL006","AL006000002","Housing Authority of the City of Montgomery","A-3897","106917255","0409","03/31"]
[62,"AL094","Housing Authority of the City of Georgiana","A-3024","800987380","0409","2011-03-31",null,null,null,null,null,null,null,null,null,null,9,null,"Pounds",null,null,null,null,null,null,null,null,null,null,null,null,null,null,null,null,null,null,null,null,null,null,null,null,null,null,null,null,null,null,null,null,62,"AL006","AL006000003","Housing Authority of the City of Montgomery","A-3897","106917255","0409","03/31"]
[63,"AL095","HA Millport","A-2947","102075520","0409","2011-12-31",null,null,null,null,null,null,null,null,null,null,10,null,"Therms",null,null,null,null,null,null,null,null,null,null,null,null,null,null,null,null,null,null,null,null,null,null,null,null,null,null,null,null,null,null,null,null,63,"AL006","AL006000004","Housing Authority of the City of Montgomery","A-3897","106917255","0409","03/31"]
[64,"AL096","Housing Authority of the City of Heflin","A-3457","053948787","0409","2011-09-30",null,null,null,null,null,null,null,null,null,null,11,null,"Tons",null,null,null,null,null,null,null,null,null,null,null,null,null,null,null,null,null,null,null,null,null,null,null,null,null,null,null,null,null,null,null,null,64,"AL006","AL006000005","Housing Authority of the City of Montgomery","A-3897","106917255","0409","03/31"]
[65,"AL098","Housing Authority of the City of Aliceville","A-4001","013116376","0409","2011-06-30",null,null,null,null,null,null,null,null,null,null,null,null,"Other (specify)",null,null,null,null,null,null,null,null,null,null,null,null,null,null,null,null,null,null,null,null,null,null,null,null,null,null,null,null,null,null,null,null,65,"AL006","AL006000006","Housing Authority of the City of Montgomery","A-3897","106917255","0409","03/31"]
[66,"AL099","HA Scottsboro","A-3889","001863083","0409","2011-12-31",null,null,null,null,null,null,null,null,null,null,null,null,null,null,null,null,null,null,null,null,null,null,null,null,null,null,null,null,null,null,null,null,null,null,null,null,null,null,null,null,null,null,null,null,null,66,"AL006","AL006000007","Housing Authority of the City of Montgomery","A-3897","106917255","0409","03/31"]
[67,"AL100","Housing Authority of the City of Columbia","A-3025","139397454","0409","2011-03-31",null,null,null,null,null,null,null,null,null,null,null,null,null,null,null,null,null,null,null,null,null,null,null,null,null,null,null,null,null,null,null,null,null,null,null,null,null,null,null,null,null,null,null,null,null,67,"AL006","AL006000008","Housing Authority of the City of Montgomery","A-3897","106917255","0409","03/31"]
[68,"AL101","Abbeville Housing Authority","A-2427","011852953","0409","2011-12-31",null,null,null,null,null,null,null,null,null,null,null,null,null,null,null,null,null,null,null,null,null,null,null,null,null,null,null,null,null,null,null,null,null,null,null,null,null,null,null,null,null,null,null,null,null,68,"AL006","AL006000009","Housing Authority of the City of Montgomery","A-3897","106917255","0409","03/31"]
[69,"AL102","Altoona Housing Authority","A-3874","138395194","0409","2011-12-31",null,null,null,null,null,null,null,null,null,null,null,null,null,null,null,null,null,null,null,null,null,null,null,null,null,null,null,null,null,null,null,null,null,null,null,null,null,null,null,null,null,null,null,null,null,69,"AL006","AL006000011","Housing Authority of the City of Montgomery","A-3897","106917255","0409","03/31"]
[70,"AL103","Housing Authority of the City of Hartford","A-2402","617690904","0409","2011-09-30",null,null,null,null,null,null,null,null,null,null,null,null,null,null,null,null,null,null,null,null,null,null,null,null,null,null,null,null,null,null,null,null,null,null,null,null,null,null,null,null,null,null,null,null,null,70,"AL007","AL007000010","Housing Authority of the City of Dothan","A-3815","942424243","0409","12/31"]
[71,"AL104","Cottonwood Housing Authority","A-3816","800987059","0409","2011-06-30",null,null,null,null,null,null,null,null,null,null,null,null,null,null,null,null,null,null,null,null,null,null,null,null,null,null,null,null,null,null,null,null,null,null,null,null,null,null,null,null,null,null,null,null,null,71,"AL007","AL007000020","Housing Authority of the City of Dothan","A-3815","942424243","0409","12/31"]
[72,"AL105","Housing Authority of the City of Talladega, Al","A-3300","137469065","0409","2011-12-31",null,null,null,null,null,null,null,null,null,null,null,null,null,null,null,null,null,null,null,null,null,null,null,null,null,null,null,null,null,null,null,null,null,null,null,null,null,null,null,null,null,null,null,null,null,72,"AL007","AL007000030","Housing Authority of the City of Dothan","A-3815","942424243","0409","12/31"]
[73,"AL106","Pell City Housing Authority","A-2949","020296203","0409","2011-09-30",null,null,null,null,null,null,null,null,null,null,null,null,null,null,null,null,null,null,null,null,null,null,null,null,null,null,null,null,null,null,null,null,null,null,null,null,null,null,null,null,null,null,null,null,null,73,"AL007","AL007000040","Housing Authority of the City of Dothan","A-3815","942424243","0409","12/31"]
[74,"AL107","HA Elba","A-4501","126296748","0409","2011-06-30",null,null,null,null,null,null,null,null,null,null,null,null,null,null,null,null,null,null,null,null,null,null,null,null,null,null,null,null,null,null,null,null,null,null,null,null,null,null,null,null,null,null,null,null,null,74,"AL007","AL007000050","Housing Authority of the City of Dothan","A-3815","942424243","0409","12/31"]
[75,"AL108","Ragland Housing Authority","A-2959","017712444","0409","2011-06-30",null,null,null,null,null,null,null,null,null,null,null,null,null,null,null,null,null,null,null,null,null,null,null,null,null,null,null,null,null,null,null,null,null,null,null,null,null,null,null,null,null,null,null,null,null,75,"AL008","AL008000002","Selma Housing Authority","A4010","038268850","0409","12/31"]
[76,"AL109","Housing Authority of the City of Demopolis, Al","A3474","040653388","0409","2011-12-31",null,null,null,null,null,null,null,null,null,null,null,null,null,null,null,null,null,null,null,null,null,null,null,null,null,null,null,null,null,null,null,null,null,null,null,null,null,null,null,null,null,null,null,null,null,76,"AL008","AL008000003","Selma Housing Authority","A4010","038268850","0409","12/31"]
[77,"AL110","HA Piedmont","A-3820","001734763","0409","2011-06-30",null,null,null,null,null,null,null,null,null,null,null,null,null,null,null,null,null,null,null,null,null,null,null,null,null,null,null,null,null,null,null,null,null,null,null,null,null,null,null,null,null,null,null,null,null,77,"AL008","AL008000007","Selma Housing Authority","A4010","038268850","0409","12/31"]
[78,"AL111","Housing Authority of the City of Florala","A-2313","001788835","0409","2011-12-31",null,null,null,null,null,null,null,null,null,null,null,null,null,null,null,null,null,null,null,null,null,null,null,null,null,null,null,null,null,null,null,null,null,null,null,null,null,null,null,null,null,null,null,null,null,78,"AL008","AL008000008","Selma Housing Authority","A4010","038268850","0409","12/31"]
[79,"AL112","HA Opp","A-3067","001789916","0409","2011-06-30",null,null,null,null,null,null,null,null,null,null,null,null,null,null,null,null,null,null,null,null,null,null,null,null,null,null,null,null,null,null,null,null,null,null,null,null,null,null,null,null,null,null,null,null,null,79,"AL009","AL009000003","Housing Authority of the City of Attalla","A-2428","075454611","0409","12/31"]
[80,"AL114","Lineville Housing Authority","A-2414","801761857","0409","2011-09-30",null,null,null,null,null,null,null,null,null,null,null,null,null,null,null,null,null,null,null,null,null,null,null,null,null,null,null,null,null,null,null,null,null,null,null,null,null,null,null,null,null,null,null,null,null,80,"AL010","AL010000001","Fairfield Housing Authority","A-4107","144588837","0409","03/31"]
[81,"AL115","Enterprise Housing Authority","A2401","440066137","0409","2011-12-31",null,null,null,null,null,null,null,null,null,null,null,null,null,null,null,null,null,null,null,null,null,null,null,null,null,null,null,null,null,null,null,null,null,null,null,null,null,null,null,null,null,null,null,null,null,81,"AL010","AL010000002","Fairfield Housing Authority","A-4107","144588837","0409","03/31"]
[82,"AL116","York Housing Authority","A-2324","012288812","0409","2011-03-31",null,null,null,null,null,null,null,null,null,null,null,null,null,null,null,null,null,null,null,null,null,null,null,null,null,null,null,null,null,null,null,null,null,null,null,null,null,null,null,null,null,null,null,null,null,82,"AL011","AL011000001","Housing Authority of the City of Fort Payne","A-3895","555453179","0409","09/30"]
[83,"AL117","Washington County Housing Authority","A-3008","002064475","0409","2011-09-30",null,null,null,null,null,null,null,null,null,null,null,null,null,null,null,null,null,null,null,null,null,null,null,null,null,null,null,null,null,null,null,null,null,null,null,null,null,null,null,null,null,null,null,null,null,83,"AL011","AL011000002","Housing Authority of the City of Fort Payne","A-3895","555453179","0409","09/30"]
[84,"AL118","Eufaula Housing Authority","A3813","965284508","0409","2011-12-31",null,null,null,null,null,null,null,null,null,null,null,null,null,null,null,null,null,null,null,null,null,null,null,null,null,null,null,null,null,null,null,null,null,null,null,null,null,null,null,null,null,null,null,null,null,84,"AL012","AL012000001","Housing Authority of the City of Jasper","A-3896","969616853","0409","06/30"]
[85,"AL119","Housing Authority of the City of Sulligent, Al","A-2969","001878057","0409","2011-06-30",null,null,null,null,null,null,null,null,null,null,null,null,null,null,null,null,null,null,null,null,null,null,null,null,null,null,null,null,null,null,null,null,null,null,null,null,null,null,null,null,null,null,null,null,null,85,"AL012","AL012000006","Housing Authority of the City of Jasper","A-3896","969616853","0409","06/30"]
[86,"AL120","Housing Authority of the City of Linden","A2312","144541062","0409","2011-06-30",null,null,null,null,null,null,null,null,null,null,null,null,null,null,null,null,null,null,null,null,null,null,null,null,null,null,null,null,null,null,null,null,null,null,null,null,null,null,null,null,null,null,null,null,null,86,"AL013","AL013000001","Tarrant Housing Authority","A-2146","137772393","0409","12/31"]
[87,"AL121","Albertville Housing Authority","A-3900","617667183","0409","2011-12-31",null,null,null,null,null,null,null,null,null,null,null,null,null,null,null,null,null,null,null,null,null,null,null,null,null,null,null,null,null,null,null,null,null,null,null,null,null,null,null,null,null,null,null,null,null,87,"AL014","AL014000100","Guntersville Housing Authority","A-3879","026505052","0409","06/30"]
[88,"AL122","Childersburg Housing Authority","A-2966","626252829","0409","2011-09-30",null,null,null,null,null,null,null,null,null,null,null,null,null,null,null,null,null,null,null,null,null,null,null,null,null,null,null,null,null,null,null,null,null,null,null,null,null,null,null,null,null,null,null,null,null,88,"AL014","AL014000200","Guntersville Housing Authority","A-3879","026505052","0409","06/30"]
[89,"AL123","Housing Authority of the City of Headland, Al","A-3005","001853159","0409","2011-12-31",null,null,null,null,null,null,null,null,null,null,null,null,null,null,null,null,null,null,null,null,null,null,null,null,null,null,null,null,null,null,null,null,null,null,null,null,null,null,null,null,null,null,null,null,null,89,"AL014","AL014000300","Guntersville Housing Authority","A-3879","026505052","0409","06/30"]
[90,"AL124","HA Midland City","A2964","800783425","0409","2011-12-31",null,null,null,null,null,null,null,null,null,null,null,null,null,null,null,null,null,null,null,null,null,null,null,null,null,null,null,null,null,null,null,null,null,null,null,null,null,null,null,null,null,null,null,null,null,90,"AL047","AL047000001","The Housing Authority of the City of Huntsville","A-3885","144588811","0409","03/31"]
[91,"AL125","HA Bessemer","A-3878","001872027","0409","2011-06-30",null,null,null,null,null,null,null,null,null,null,null,null,null,null,null,null,null,null,null,null,null,null,null,null,null,null,null,null,null,null,null,null,null,null,null,null,null,null,null,null,null,null,null,null,null,91,"AL047","AL047000002","The Housing Authority of the City of Huntsville","A-3885","144588811","0409","03/31"]
[92,"AL126","Brundidge Housing Authority","A2316","001978790","0409","2011-12-31",null,null,null,null,null,null,null,null,null,null,null,null,null,null,null,null,null,null,null,null,null,null,null,null,null,null,null,null,null,null,null,null,null,null,null,null,null,null,null,null,null,null,null,null,null,92,"AL047","AL047000003","The Housing Authority of the City of Huntsville","A-3885","144588811","0409","03/31"]
[93,"AL127","HA Andalusia","A-3030","001786474","0409","2011-06-30",null,null,null,null,null,null,null,null,null,null,null,null,null,null,null,null,null,null,null,null,null,null,null,null,null,null,null,null,null,null,null,null,null,null,null,null,null,null,null,null,null,null,null,null,null,93,"AL047","AL047000004","The Housing Authority of the City of Huntsville","A-3885","144588811","0409","03/31"]
[94,"AL128","HA Samson","A3040","948801535","0409","2011-12-31",null,null,null,null,null,null,null,null,null,null,null,null,null,null,null,null,null,null,null,null,null,null,null,null,null,null,null,null,null,null,null,null,null,null,null,null,null,null,null,null,null,null,null,null,null,94,"AL047","AL047000006","The Housing Authority of the City of Huntsville","A-3885","144588811","0409","03/31"]
[95,"AL129","Walker County Housing Authority","A-3011","618153431","0409","2011-03-31",null,null,null,null,null,null,null,null,null,null,null,null,null,null,null,null,null,null,null,null,null,null,null,null,null,null,null,null,null,null,null,null,null,null,null,null,null,null,null,null,null,null,null,null,null,95,"AL047","AL047000007","The Housing Authority of the City of Huntsville","A-3885","144588811","0409","03/31"]
[96,"AL131","Housing Authority of the City of Prattville, Al","A-3004","827457938","0409","2011-06-30",null,null,null,null,null,null,null,null,null,null,null,null,null,null,null,null,null,null,null,null,null,null,null,null,null,null,null,null,null,null,null,null,null,null,null,null,null,null,null,null,null,null,null,null,null,96,"AL047","AL047000008","The Housing Authority of the City of Huntsville","A-3885","144588811","0409","03/31"]
[97,"AL132","Housing Authority of the City of Goodwater","A3036","965285711","0409","2011-06-30",null,null,null,null,null,null,null,null,null,null,null,null,null,null,null,null,null,null,null,null,null,null,null,null,null,null,null,null,null,null,null,null,null,null,null,null,null,null,null,null,null,null,null,null,null,97,"AL047","AL047000010","The Housing Authority of the City of Huntsville","A-3885","144588811","0409","03/31"]
[98,"AL133","Housing Authority of the Town of Hobson City","A-3003","098852825","0409","2011-12-31",null,null,null,null,null,null,null,null,null,null,null,null,null,null,null,null,null,null,null,null,null,null,null,null,null,null,null,null,null,null,null,null,null,null,null,null,null,null,null,null,null,null,null,null,null,98,"AL047","AL047000011","The Housing Authority of the City of Huntsville","A-3885","144588811","0409","03/31"]
[99,"AL134","Housing Authority of the Town of Blountsville, Al","A-3478","001724731","0409","2011-09-30",null,null,null,null,null,null,null,null,null,null,null,null,null,null,null,null,null,null,null,null,null,null,null,null,null,null,null,null,null,null,null,null,null,null,null,null,null,null,null,null,null,null,null,null,null,99,"AL047","AL047000014","The Housing Authority of the City of Huntsville","A-3885","144588811","0409","03/31"]
[100,"AL135","Housing Authority of the Town of Valley Head, Al","A-4012","137133356","0409","2011-03-31",null,null,null,null,null,null,null,null,null,null,null,null,null,null,null,null,null,null,null,null,null,null,null,null,null,null,null,null,null,null,null,null,null,null,null,null,null,null,null,null,null,null,null,null,null,100,"AL047","AL047000016","The Housing Authority of the City of Huntsville","A-3885","144588811","0409","03/31"]
[101,"AL136","Housing Authority of the Town of Ashland","A-23875","028120629","0409","2011-09-30",null,null,null,null,null,null,null,null,null,null,null,null,null,null,null,null,null,null,null,null,null,null,null,null,null,null,null,null,null,null,null,null,null,null,null,null,null,null,null,null,null,null,null,null,null,101,"AL047","AL047000018","The Housing Authority of the City of Huntsville","A-3885","144588811","0409","03/31"]
[102,"AL137","Housing Authority of the City of Fayette","A-4014","012288754","0409","2011-09-30",null,null,null,null,null,null,null,null,null,null,null,null,null,null,null,null,null,null,null,null,null,null,null,null,null,null,null,null,null,null,null,null,null,null,null,null,null,null,null,null,null,null,null,null,null,102,"AL047","AL047000019","The Housing Authority of the City of Huntsville","A-3885","144588811","0409","03/31"]
[103,"AL138","Gordo Housing Authority","A-4018","001977800","0409","2011-12-31",null,null,null,null,null,null,null,null,null,null,null,null,null,null,null,null,null,null,null,null,null,null,null,null,null,null,null,null,null,null,null,null,null,null,null,null,null,null,null,null,null,null,null,null,null,103,"AL047","AL047000051","The Housing Authority of the City of Huntsville","A-3885","144588811","0409","03/31"]
[104,"AL139","HA Jacksonville","A-4107","968403006","0409","2011-06-30",null,null,null,null,null,null,null,null,null,null,null,null,null,null,null,null,null,null,null,null,null,null,null,null,null,null,null,null,null,null,null,null,null,null,null,null,null,null,null,null,null,null,null,null,null,104,"AL047","AL047000052","The Housing Authority of the City of Huntsville","A-3885","144588811","0409","03/31"]
[105,"AL140","Housing Authority of the City of Centre, Al","A-2960","144947129","0409","2011-06-30",null,null,null,null,null,null,null,null,null,null,null,null,null,null,null,null,null,null,null,null,null,null,null,null,null,null,null,null,null,null,null,null,null,null,null,null,null,null,null,null,null,null,null,null,null,105,"AL048","AL048000001","Housing Authority of the City of Decatur","A-3814","144584356","0409","06/30"]
[106,"AL141","Housing Authority of the Town of Kennedy","A-4107","145787557","0409","2011-06-30",null,null,null,null,null,null,null,null,null,null,null,null,null,null,null,null,null,null,null,null,null,null,null,null,null,null,null,null,null,null,null,null,null,null,null,null,null,null,null,null,null,null,null,null,null,106,"AL048","AL048000003","Housing Authority of the City of Decatur","A-3814","144584356","0409","06/30"]
[107,"AL142","Housing Authority of the City of Newton","A-2970","789308280","0409","2011-12-31",null,null,null,null,null,null,null,null,null,null,null,null,null,null,null,null,null,null,null,null,null,null,null,null,null,null,null,null,null,null,null,null,null,null,null,null,null,null,null,null,null,null,null,null,null,107,"AL048","AL048000009","Housing Authority of the City of Decatur","A-3814","144584356","0409","06/30"]
[108,"AL143","Housing Authority of the Town of Slocomb","A-3009","136956591","0409","2011-12-31",null,null,null,null,null,null,null,null,null,null,null,null,null,null,null,null,null,null,null,null,null,null,null,null,null,null,null,null,null,null,null,null,null,null,null,null,null,null,null,null,null,null,null,null,null,108,"AL049","AL049000001","Greater Gadsden Housing Authority","A-4013","004515144","0409","06/30"]
[109,"AL144","HA Ashford","A-2955","009567715","0409","2011-03-31",null,null,null,null,null,null,null,null,null,null,null,null,null,null,null,null,null,null,null,null,null,null,null,null,null,null,null,null,null,null,null,null,null,null,null,null,null,null,null,null,null,null,null,null,null,109,"AL049","AL049000002","Greater Gadsden Housing Authority","A-4013","004515144","0409","06/30"]
[110,"AL145","Housing Authority of the City of Brantley","A2956","001792993","0409","2011-12-31",null,null,null,null,null,null,null,null,null,null,null,null,null,null,null,null,null,null,null,null,null,null,null,null,null,null,null,null,null,null,null,null,null,null,null,null,null,null,null,null,null,null,null,null,null,110,"AL049","AL049000003","Greater Gadsden Housing Authority","A-4013","004515144","0409","06/30"]
[111,"AL146","Housing Authority of the City of Eutaw","A-2963","001833870","0409","2011-09-30",null,null,null,null,null,null,null,null,null,null,null,null,null,null,null,null,null,null,null,null,null,null,null,null,null,null,null,null,null,null,null,null,null,null,null,null,null,null,null,null,null,null,null,null,null,111,"AL049","AL049000004","Greater Gadsden Housing Authority","A-4013","004515144","0409","06/30"]
[112,"AL147","Housing Authority of the City of Bridgeport","A-3045","601261931","0409","2011-06-30",null,null,null,null,null,null,null,null,null,null,null,null,null,null,null,null,null,null,null,null,null,null,null,null,null,null,null,null,null,null,null,null,null,null,null,null,null,null,null,null,null,null,null,null,null,112,"AL049","AL049000005","Greater Gadsden Housing Authority","A-4013","004515144","0409","06/30"]
[113,"AL149","Housing Authority of the Town of New Brockton","A4101","799925511","0409","2011-12-31",null,null,null,null,null,null,null,null,null,null,null,null,null,null,null,null,null,null,null,null,null,null,null,null,null,null,null,null,null,null,null,null,null,null,null,null,null,null,null,null,null,null,null,null,null,113,"AL049","AL049000006","Greater Gadsden Housing Authority","A-4013","004515144","0409","06/30"]
[114,"AL150","Housing Authority of the City of Clanton","A-3016","618153175","0409","2011-06-30",null,null,null,null,null,null,null,null,null,null,null,null,null,null,null,null,null,null,null,null,null,null,null,null,null,null,null,null,null,null,null,null,null,null,null,null,null,null,null,null,null,null,null,null,null,114,"AL049","AL049000008","Greater Gadsden Housing Authority","A-4013","004515144","0409","06/30"]
[115,"AL151","Housing Authority of the City of Brent","A-4015","964859243","0409","2011-03-31",null,null,null,null,null,null,null,null,null,null,null,null,null,null,null,null,null,null,null,null,null,null,null,null,null,null,null,null,null,null,null,null,null,null,null,null,null,null,null,null,null,null,null,null,null,115,"AL050","AL050000001","HA Auburn","A-2423","016066250","0409","06/30"]
[116,"AL152","HA Northport","A-2965","874745222","0409","2011-06-30",null,null,null,null,null,null,null,null,null,null,null,null,null,null,null,null,null,null,null,null,null,null,null,null,null,null,null,null,null,null,null,null,null,null,null,null,null,null,null,null,null,null,null,null,null,116,"AL050","AL050000002","HA Auburn","A-2423","016066250","0409","06/30"]
[117,"AL153","Housing Authority of the Town of Parrish","A-1224","002063477","0409","2011-12-31",null,null,null,null,null,null,null,null,null,null,null,null,null,null,null,null,null,null,null,null,null,null,null,null,null,null,null,null,null,null,null,null,null,null,null,null,null,null,null,null,null,null,null,null,null,117,"AL051","AL051000001","Housing Authority of Red Bay","A-3805","618155626","0409","12/31"]
[118,"AL154","HA Atmore","A-2958","602323248","0409","2011-06-30",null,null,null,null,null,null,null,null,null,null,null,null,null,null,null,null,null,null,null,null,null,null,null,null,null,null,null,null,null,null,null,null,null,null,null,null,null,null,null,null,null,null,null,null,null,118,"AL052","AL052000001","HA Cullman","A-2311","616925053","0409","09/30"]
[119,"AL155","Housing Authority of the City of Greenville","A-3021","153591888","0409","2011-09-30",null,null,null,null,null,null,null,null,null,null,null,null,null,null,null,null,null,null,null,null,null,null,null,null,null,null,null,null,null,null,null,null,null,null,null,null,null,null,null,null,null,null,null,null,null,119,"AL052","AL052000004","HA Cullman","A-2311","616925053","0409","09/30"]
[120,"AL156","Housing Authority of the City of Brewton","A3044","001815323","0409","2011-12-31",null,null,null,null,null,null,null,null,null,null,null,null,null,null,null,null,null,null,null,null,null,null,null,null,null,null,null,null,null,null,null,null,null,null,null,null,null,null,null,null,null,null,null,null,null,120,"AL053","AL053000020","Housing Authority of Hamilton, Alabama","A-3477","059880633","0409","12/31"]
[121,"AL157","Housing Authority of the City of Greensboro","A2404","197128580","0409","2011-12-31",null,null,null,null,null,null,null,null,null,null,null,null,null,null,null,null,null,null,null,null,null,null,null,null,null,null,null,null,null,null,null,null,null,null,null,null,null,null,null,null,null,null,null,null,null,121,"AL053","AL053000030","Housing Authority of Hamilton, Alabama","A-3477","059880633","0409","12/31"]
[122,"AL158","Housing Authority of the Town of Clayton","A-3039","876792219","0409","2011-12-31",null,null,null,null,null,null,null,null,null,null,null,null,null,null,null,null,null,null,null,null,null,null,null,null,null,null,null,null,null,null,null,null,null,null,null,null,null,null,null,null,null,null,null,null,null,122,"AL054","AL054000001","Florence H/A","A-2410","078975109","0409","09/30"]
[123,"AL159","Housing Authority of the City of Lafayette","A-1061","169147808","0409","2011-06-30",null,null,null,null,null,null,null,null,null,null,null,null,null,null,null,null,null,null,null,null,null,null,null,null,null,null,null,null,null,null,null,null,null,null,null,null,null,null,null,null,null,null,null,null,null,123,"AL054","AL054000002","Florence H/A","A-2410","078975109","0409","09/30"]
[124,"AL160","Tuskegee Housing Authority","A-2413","079122487","0409","2011-09-30",null,null,null,null,null,null,null,null,null,null,null,null,null,null,null,null,null,null,null,null,null,null,null,null,null,null,null,null,null,null,null,null,null,null,null,null,null,null,null,null,null,null,null,null,null,124,"AL054","AL054000003","Florence H/A","A-2410","078975109","0409","09/30"]
[125,"AL161","Housing Authority of the City of Marion, Al","A-3809","964471593","0409","2011-03-31",null,null,null,null,null,null,null,null,null,null,null,null,null,null,null,null,null,null,null,null,null,null,null,null,null,null,null,null,null,null,null,null,null,null,null,null,null,null,null,null,null,null,null,null,null,125,"AL054","AL054000004","Florence H/A","A-2410","078975109","0409","09/30"]
[126,"AL164","HA Bay Minette","A-3876","194508586","0409","2011-06-30",null,null,null,null,null,null,null,null,null,null,null,null,null,null,null,null,null,null,null,null,null,null,null,null,null,null,null,null,null,null,null,null,null,null,null,null,null,null,null,null,null,null,null,null,null,126,"AL055","AL055000001","HA Cordova","A-2967","002059947","0409","09/30"]
[127,"AL165","HA Foley","0","016560585","0409","2011-12-31",null,null,null,null,null,null,null,null,null,null,null,null,null,null,null,null,null,null,null,null,null,null,null,null,null,null,null,null,null,null,null,null,null,null,null,null,null,null,null,null,null,null,null,null,null,127,"AL056","AL056000001","Haleyville Housing Authority","A-3831","040656225","0409","03/31"]
[128,"AL166","Housing Authority of the City of Chickasaw","A-3803","118038181","0409","2011-06-30",null,null,null,null,null,null,null,null,null,null,null,null,null,null,null,null,null,null,null,null,null,null,null,null,null,null,null,null,null,null,null,null,null,null,null,null,null,null,null,null,null,null,null,null,null,128,"AL056","AL056000002","Haleyville Housing Authority","A-3831","040656225","0409","03/31"]
[129,"AL167","Stevenson Housing Authority","A-2086","001863174","0409","2011-06-30",null,null,null,null,null,null,null,null,null,null,null,null,null,null,null,null,null,null,null,null,null,null,null,null,null,null,null,null,null,null,null,null,null,null,null,null,null,null,null,null,null,null,null,null,null,129,"AL057","AL057000021","Sylacauga Housing Authority","A-3795","081392383","0409","06/30"]
[130,"AL168","Rainsville Housing Authority","A-3027","144946972","0409","2011-06-30",null,null,null,null,null,null,null,null,null,null,null,null,null,null,null,null,null,null,null,null,null,null,null,null,null,null,null,null,null,null,null,null,null,null,null,null,null,null,null,null,null,null,null,null,null,130,"AL057","AL057000022","Sylacauga Housing Authority","A-3795","081392383","0409","06/30"]
[131,"AL169","The Housing Authority of the City of Prichard","A-3038","111773730","0409","2011-06-30",null,null,null,null,null,null,null,null,null,null,null,null,null,null,null,null,null,null,null,null,null,null,null,null,null,null,null,null,null,null,null,null,null,null,null,null,null,null,null,null,null,null,null,null,null,131,"AL057","AL057000023","Sylacauga Housing Authority","A-3795","081392383","0409","06/30"]
[132,"AL171","Uniontown Housing Authority","A3067","014226174","0409","2011-12-31",null,null,null,null,null,null,null,null,null,null,null,null,null,null,null,null,null,null,null,null,null,null,null,null,null,null,null,null,null,null,null,null,null,null,null,null,null,null,null,null,null,null,null,null,null,132,"AL058","AL058000001","Winfield Housing Authority","A-4262","169140506","0409","12/31"]
[133,"AL172","HA Tallassee","A-1526","001812122","0409","2011-06-30",null,null,null,null,null,null,null,null,null,null,null,null,null,null,null,null,null,null,null,null,null,null,null,null,null,null,null,null,null,null,null,null,null,null,null,null,null,null,null,null,null,null,null,null,null,133,"AL058","AL058000002","Winfield Housing Authority","A-4262","169140506","0409","12/31"]
[134,"AL173","HA Monroeville","A-2401","014273502","0409","2011-06-30",null,null,null,null,null,null,null,null,null,null,null,null,null,null,null,null,null,null,null,null,null,null,null,null,null,null,null,null,null,null,null,null,null,null,null,null,null,null,null,null,null,null,null,null,null,134,"AL059","AL059000010","Housing Authority of the City of Tuscumbia","A-2315","139721406","0409","03/31"]
[135,"AL174","Housing Authority of the City of Alexander City","A-3871","002049393","0409","2011-09-30",null,null,null,null,null,null,null,null,null,null,null,null,null,null,null,null,null,null,null,null,null,null,null,null,null,null,null,null,null,null,null,null,null,null,null,null,null,null,null,null,null,null,null,null,null,135,"AL060","AL060000010","HA Russellville","A-3033","168003390","0409","06/30"]
[136,"AL175","Housing Authority of the City of Livingston","A-2401","002030005","0409","2011-06-30",null,null,null,null,null,null,null,null,null,null,null,null,null,null,null,null,null,null,null,null,null,null,null,null,null,null,null,null,null,null,null,null,null,null,null,null,null,null,null,null,null,null,null,null,null,136,"AL061","AL061000011","HA Opelika","A-3884","084371111","0409","06/30"]
[137,"AL176","Sumiton Housing Authority","A-3010","612096529","0409","2011-03-31",null,null,null,null,null,null,null,null,null,null,null,null,null,null,null,null,null,null,null,null,null,null,null,null,null,null,null,null,null,null,null,null,null,null,null,null,null,null,null,null,null,null,null,null,null,137,"AL061","AL061000012","HA Opelika","A-3884","084371111","0409","06/30"]
[138,"AL177","HA Troy","A-2322","199672379","0409","2011-06-30",null,null,null,null,null,null,null,null,null,null,null,null,null,null,null,null,null,null,null,null,null,null,null,null,null,null,null,null,null,null,null,null,null,null,null,null,null,null,null,null,null,null,null,null,null,138,"AL061","AL061000013","HA Opelika","A-3884","084371111","0409","06/30"]
[139,"AL178","Housing Authority of the City of Dadeville","A-3014","002045011","0409","2011-06-30",null,null,null,null,null,null,null,null,null,null,null,null,null,null,null,null,null,null,null,null,null,null,null,null,null,null,null,null,null,null,null,null,null,null,null,null,null,null,null,null,null,null,null,null,null,139,"AL062","AL062000001","Housing Authority of the City of Lanett, Al","A-2411","603885229","0409","09/30"]
[140,"AL179","Housing Authority of the City of Daleville","A-2961","958902454","0409","2011-12-31",null,null,null,null,null,null,null,null,null,null,null,null,null,null,null,null,null,null,null,null,null,null,null,null,null,null,null,null,null,null,null,null,null,null,null,null,null,null,null,null,null,null,null,null,null,140,"AL062","AL062000002","Housing Authority of the City of Lanett, Al","A-2411","603885229","0409","09/30"]
[141,"AL181","Evergreen Housing Authority","A-3021","195047618","0409","2011-09-30",null,null,null,null,null,null,null,null,null,null,null,null,null,null,null,null,null,null,null,null,null,null,null,null,null,null,null,null,null,null,null,null,null,null,null,null,null,null,null,null,null,null,null,null,null,141,"AL063","AL063000001","H A Oneonta","A-3791","004446464","0409","12/31"]
[142,"AL182","Triana Housing Authority","A-2040","876888868","0409","2011-06-30",null,null,null,null,null,null,null,null,null,null,null,null,null,null,null,null,null,null,null,null,null,null,null,null,null,null,null,null,null,null,null,null,null,null,null,null,null,null,null,null,null,null,null,null,null,142,"AL064","AL064000001","Housing Authority of the City of Carbon Hill","A-3014","363653023","0409","12/31"]
[143,"AL187","Regional HA of Lawrence, Cullman & Morgan Counties","A-3792","965450620","0409","2011-06-30",null,null,null,null,null,null,null,null,null,null,null,null,null,null,null,null,null,null,null,null,null,null,null,null,null,null,null,null,null,null,null,null,null,null,null,null,null,null,null,null,null,null,null,null,null,143,"AL065","AL065000001","Housing Authority of the City of Roanoke, Al","A-4263","049208739","0409","06/30"]
[144,"AL189","Top of Alabama Regional Housing Authority","A-3476","148481336","0409","2011-12-31",null,null,null,null,null,null,null,null,null,null,null,null,null,null,null,null,null,null,null,null,null,null,null,null,null,null,null,null,null,null,null,null,null,null,null,null,null,null,null,null,null,null,null,null,null,144,"AL066","AL066000001","Housing Authority of Reform","A-2950","834544855","0409","03/31"]
[145,"AL190","Housing Authority of Greene County, Al","A2129","627191398","0409","2011-12-31",null,null,null,null,null,null,null,null,null,null,null,null,null,null,null,null,null,null,null,null,null,null,null,null,null,null,null,null,null,null,null,null,null,null,null,null,null,null,null,null,null,null,null,null,null,145,"AL067","AL067000001","HOUSING AUTHORITY OF THE CITY OF ATHENS, AL","A-2424","001892843","0409","12/31"]
[146,"AL192","South Central Alabama Regional HA","A-3035","083743583","0409","2011-03-31",null,null,null,null,null,null,null,null,null,null,null,null,null,null,null,null,null,null,null,null,null,null,null,null,null,null,null,null,null,null,null,null,null,null,null,null,null,null,null,null,null,null,null,null,null,146,{"$f":"LEFT(BC147,5)","v":"AL068"},"AL068000001","Sheffield Housing Authority","A-4261","079127932","0409","03/31"]
[147,"AL193","Housing Authority of the Town of Fort Deposit","A-3060","969181536","0409","2011-03-31",null,null,null,null,null,null,null,null,null,null,null,null,null,null,null,null,null,null,null,null,null,null,null,null,null,null,null,null,null,null,null,null,null,null,null,null,null,null,null,null,null,null,null,null,null,147,{"$f":"LEFT(BC148,5)","v":"AL068"},"AL068000002","Sheffield Housing Authority","A-4261","079127932","0409","03/31"]
[148,"AL199","Housing Authority of the City of Valley","A-3898","003410193","0409","2011-06-30",null,null,null,null,null,null,null,null,null,null,null,null,null,null,null,null,null,null,null,null,null,null,null,null,null,null,null,null,null,null,null,null,null,null,null,null,null,null,null,null,null,null,null,null,null,148,{"$f":"LEFT(BC149,5)","v":"AL068"},"AL068000003","Sheffield Housing Authority","A-4261","079127932","0409","03/31"]
[149,"AL202","Mobile County Housing Authority","A4268","964864979","0409","2011-12-31",null,null,null,null,null,null,null,null,null,null,null,null,null,null,null,null,null,null,null,null,null,null,null,null,null,null,null,null,null,null,null,null,null,null,null,null,null,null,null,null,null,null,null,null,null,149,"AL069","AL069000001","HA Leeds","A-2945","107979379","0409","06/30"]
[150,"AR002","North Little Rock Housing Authority","FW7108","782035174","0637","2011-06-30",null,null,null,null,null,null,null,null,null,null,null,null,null,null,null,null,null,null,null,null,null,null,null,null,null,null,null,null,null,null,null,null,null,null,null,null,null,null,null,null,null,null,null,null,null,150,"AL070","AL070000001","City of Union Springs Housing Authority","A-3801","129646878","0409","03/31"]
[151,"AR003","The Housing Authority of the City of Fort Smi","FW7027","138735209","0637","2011-09-30",null,null,null,null,null,null,null,null,null,null,null,null,null,null,null,null,null,null,null,null,null,null,null,null,null,null,null,null,null,null,null,null,null,null,null,null,null,null,null,null,null,null,null,null,null,151,"AL071","AL071000001","Housing Authority of Guin, Alabama","A-2941","001915628","0409","06/30"]
[152,"AR004","Housing Authority of the City of Little Rock","FW-7045","082586058","0637","2011-12-31",null,null,null,null,null,null,null,null,null,null,null,null,null,null,null,null,null,null,null,null,null,null,null,null,null,null,null,null,null,null,null,null,null,null,null,null,null,null,null,null,null,null,null,null,null,152,"AL072","AL072000001","HA Columbiana","A-3814","094472347","0409","09/30"]
[153,"AR005","Blytheville Housing Authority","FW7077","956583850","0637","2011-09-30",null,null,null,null,null,null,null,null,null,null,null,null,null,null,null,null,null,null,null,null,null,null,null,null,null,null,null,null,null,null,null,null,null,null,null,null,null,null,null,null,null,null,null,null,null,153,"AL073","AL073000111","Ozark Housing Authority","A-3887","800130791","0409","03/31"]
[154,"AR006","Housing Authority of the City of Conway","FW-7039","003940863","0637","2011-09-30",null,null,null,null,null,null,null,null,null,null,null,null,null,null,null,null,null,null,null,null,null,null,null,null,null,null,null,null,null,null,null,null,null,null,null,null,null,null,null,null,null,null,null,null,null,154,"AL073","AL073000222","Ozark Housing Authority","A-3887","800130791","0409","03/31"]
[155,"AR010","NW Regional Housing Authority","FW7521","050051317","0637","2011-12-31",null,null,null,null,null,null,null,null,null,null,null,null,null,null,null,null,null,null,null,null,null,null,null,null,null,null,null,null,null,null,null,null,null,null,null,null,null,null,null,null,null,null,null,null,null,155,"AL073","AL073000333","Ozark Housing Authority","A-3887","800130791","0409","03/31"]
[156,"AR012","Arkadelphia Housing Authority","FW-7101","003465192","0637","2011-06-30",null,null,null,null,null,null,null,null,null,null,null,null,null,null,null,null,null,null,null,null,null,null,null,null,null,null,null,null,null,null,null,null,null,null,null,null,null,null,null,null,null,null,null,null,null,156,"AL074","AL074000010","Housing Authority of Boston","A-3817","017710802","0409","06/30"]
[157,"AR015","Housing Authority of the City of Texarkana","FW7048","069738201","0637","2011-03-31",null,null,null,null,null,null,null,null,null,null,null,null,null,null,null,null,null,null,null,null,null,null,null,null,null,null,null,null,null,null,null,null,null,null,null,null,null,null,null,null,null,null,null,null,null,157,"AL075","AL075000010","Boaz Housing Authority","A-3800","001928571","0409","06/30"]
[158,"AR016","CAMDEN HOUSING AUTHORITY","FW-7029","142496582","0637","2011-09-30",null,null,null,null,null,null,null,null,null,null,null,null,null,null,null,null,null,null,null,null,null,null,null,null,null,null,null,null,null,null,null,null,null,null,null,null,null,null,null,null,null,null,null,null,null,158,"AL075","AL075000020","Boaz Housing Authority","A-3800","001928571","0409","06/30"]
[159,"AR017","Pine Bluff Housing Authority","FW7101","948545108","0637","2011-03-31",null,null,null,null,null,null,null,null,null,null,null,null,null,null,null,null,null,null,null,null,null,null,null,null,null,null,null,null,null,null,null,null,null,null,null,null,null,null,null,null,null,null,null,null,null,159,"AL075","AL075000030","Boaz Housing Authority","A-3800","001928571","0409","06/30"]
[160,"AR018","Housing Authority of the City of Magnolia","FW7043","137314089","0637","2011-12-31",null,null,null,null,null,null,null,null,null,null,null,null,null,null,null,null,null,null,null,null,null,null,null,null,null,null,null,null,null,null,null,null,null,null,null,null,null,null,null,null,null,null,null,null,null,160,"AL075","AL075000040","Boaz Housing Authority","A-3800","001928571","0409","06/30"]
[161,"AR020","Little River County Housing Authority","FW7034","139032838","0637","2011-06-30",null,null,null,null,null,null,null,null,null,null,null,null,null,null,null,null,null,null,null,null,null,null,null,null,null,null,null,null,null,null,null,null,null,null,null,null,null,null,null,null,null,null,null,null,null,161,"AL076","AL076000001","Hackleburg Housing Authority","A-3029","168001980","0409","03/31"]
[162,"AR021","Housing Authority of the City of Osceola","FW7201","027309392","0637","2011-09-30",null,null,null,null,null,null,null,null,null,null,null,null,null,null,null,null,null,null,null,null,null,null,null,null,null,null,null,null,null,null,null,null,null,null,null,null,null,null,null,null,null,null,null,null,null,162,"AL077","AL077000001","HA Tuscaloosa","A-3521","002052207","0409","03/31"]
[163,"AR022","Housing Authority of the County of Sevier","FW7093","838926496","0637","2011-06-30",null,null,null,null,null,null,null,null,null,null,null,null,null,null,null,null,null,null,null,null,null,null,null,null,null,null,null,null,null,null,null,null,null,null,null,null,null,null,null,null,null,null,null,null,null,163,"AL077","AL077000002","HA Tuscaloosa","A-3521","002052207","0409","03/31"]
[164,"AR023","Housing Authority of the County of Poinsett","FW7103","004392490","0637","2011-06-30",null,null,null,null,null,null,null,null,null,null,null,null,null,null,null,null,null,null,null,null,null,null,null,null,null,null,null,null,null,null,null,null,null,null,null,null,null,null,null,null,null,null,null,null,null,164,"AL077","AL077000005","HA Tuscaloosa","A-3521","002052207","0409","03/31"]
[165,"AR024","West Memphis Housing Authority","FW7169","067710285","0637","2011-06-30",null,null,null,null,null,null,null,null,null,null,null,null,null,null,null,null,null,null,null,null,null,null,null,null,null,null,null,null,null,null,null,null,null,null,null,null,null,null,null,null,null,null,null,null,null,165,"AL077","AL077000006","HA Tuscaloosa","A-3521","002052207","0409","03/31"]
[166,"AR025","Housing Authority of the County of Howard","FW-7141","140321097","0637","2011-06-30",null,null,null,null,null,null,null,null,null,null,null,null,null,null,null,null,null,null,null,null,null,null,null,null,null,null,null,null,null,null,null,null,null,null,null,null,null,null,null,null,null,null,null,null,null,166,"AL077","AL077000008","HA Tuscaloosa","A-3521","002052207","0409","03/31"]
[167,"AR026","Housing Authority of the City of Morrilton","FW7047","056263783","0637","2011-06-30",null,null,null,null,null,null,null,null,null,null,null,null,null,null,null,null,null,null,null,null,null,null,null,null,null,null,null,null,null,null,null,null,null,null,null,null,null,null,null,null,null,null,null,null,null,167,"AL077","AL077000009","HA Tuscaloosa","A-3521","002052207","0409","03/31"]
[168,"AR027","Housing Authority of the City of Marianna","FW7097","048477772","0637","2011-03-31",null,null,null,null,null,null,null,null,null,null,null,null,null,null,null,null,null,null,null,null,null,null,null,null,null,null,null,null,null,null,null,null,null,null,null,null,null,null,null,null,null,null,null,null,null,168,"AL077","AL077000010","HA Tuscaloosa","A-3521","002052207","0409","03/31"]
[169,"AR028","Housing Authority of the City of Newport","FW7101","143490865","0637","2011-06-30",null,null,null,null,null,null,null,null,null,null,null,null,null,null,null,null,null,null,null,null,null,null,null,null,null,null,null,null,null,null,null,null,null,null,null,null,null,null,null,null,null,null,null,null,null,169,"AL077","AL077000011","HA Tuscaloosa","A-3521","002052207","0409","03/31"]
[170,"AR029","Housing Authority of the City of Van Buren","FW7051","003909736","0637","2011-06-30",null,null,null,null,null,null,null,null,null,null,null,null,null,null,null,null,null,null,null,null,null,null,null,null,null,null,null,null,null,null,null,null,null,null,null,null,null,null,null,null,null,null,null,null,null,170,"AL078","AL078000001","Housing Authority of the Town of Berry","A3031","013066662","0409","06/30"]
[171,"AR031","Hot Springs Housing Authority","FW-7088","135904287","0637","2011-06-30",null,null,null,null,null,null,null,null,null,null,null,null,null,null,null,null,null,null,null,null,null,null,null,null,null,null,null,null,null,null,null,null,null,null,null,null,null,null,null,null,null,null,null,null,null,171,"AL079","AL079000001","Housing Authority of the Town of Montevallo","A-3019","145407016","0409","06/30"]
[172,"AR032","Housing Authority of the City of Paris","FW7170","017750089","0637","2011-06-30",null,null,null,null,null,null,null,null,null,null,null,null,null,null,null,null,null,null,null,null,null,null,null,null,null,null,null,null,null,null,null,null,null,null,null,null,null,null,null,null,null,null,null,null,null,172,"AL080","AL080000001","Housing Authority of the City of Moulton, Al","A-2953","618155352","0409","12/31"]
[173,"AR034","Trumann Housing Authority","FW7098","073534745","0637","2011-12-31",null,null,null,null,null,null,null,null,null,null,null,null,null,null,null,null,null,null,null,null,null,null,null,null,null,null,null,null,null,null,null,null,null,null,null,null,null,null,null,null,null,null,null,null,null,173,"AL081","AL081000001","Bear Creek Housing Authority","A-3022","137463217","0409","03/31"]
[174,"AR035","Searcy Housing Authority","FW7167","962943879","0637","2011-12-31",null,null,null,null,null,null,null,null,null,null,null,null,null,null,null,null,null,null,null,null,null,null,null,null,null,null,null,null,null,null,null,null,null,null,null,null,null,null,null,null,null,null,null,null,null,174,"AL082","AL082000050","Crossville Housing Auhtority","A-2430","138252726","0409","06/30"]
[175,"AR037","Housing Authority of the City of Prescott","FW7211","603895996","0637","2011-03-31",null,null,null,null,null,null,null,null,null,null,null,null,null,null,null,null,null,null,null,null,null,null,null,null,null,null,null,null,null,null,null,null,null,null,null,null,null,null,null,null,null,null,null,null,null,175,"AL083","AL083000001","Collinsville Housing Authority","A-3899","030055441","0409","12/31"]
[176,"AR038","Housing Authority of the City of Booneville","FW7216","143832868","0637","2011-12-31",null,null,null,null,null,null,null,null,null,null,null,null,null,null,null,null,null,null,null,null,null,null,null,null,null,null,null,null,null,null,null,null,null,null,null,null,null,null,null,null,null,null,null,null,null,176,"AL084","AL084000010","Housing Authority of the City of Vernon, Al","A-2951","796452266","0409","12/31"]
[177,"AR039","Wynne Housing Authority","FW7068","963576954","0637","2011-03-31",null,null,null,null,null,null,null,null,null,null,null,null,null,null,null,null,null,null,null,null,null,null,null,null,null,null,null,null,null,null,null,null,null,null,null,null,null,null,null,null,null,null,null,null,null,177,"AL085","AL085000001","Housing Authority of the Town of Calera","A-2425","145406851","0409","06/30"]
[178,"AR040","Housing Authority of the City of Des Arc","FW-7071","158340950","0637","2011-06-30",null,null,null,null,null,null,null,null,null,null,null,null,null,null,null,null,null,null,null,null,null,null,null,null,null,null,null,null,null,null,null,null,null,null,null,null,null,null,null,null,null,null,null,null,null,178,"AL086","AL086000001","Jefferson County Housing Authority","A-2954","101705270","0409","12/31"]
[179,"AR041","Lonoke County Housing Authority","FW7101","004209490","0637","2011-06-30",null,null,null,null,null,null,null,null,null,null,null,null,null,null,null,null,null,null,null,null,null,null,null,null,null,null,null,null,null,null,null,null,null,null,null,null,null,null,null,null,null,null,null,null,null,179,"AL086","AL086000002","Jefferson County Housing Authority","A-2954","101705270","0409","12/31"]
[180,"AR042","Star City Housing Authority","FW7065","100673316","0637","2011-06-30",null,null,null,null,null,null,null,null,null,null,null,null,null,null,null,null,null,null,null,null,null,null,null,null,null,null,null,null,null,null,null,null,null,null,null,null,null,null,null,null,null,null,null,null,null,180,"AL086","AL086000003","Jefferson County Housing Authority","A-2954","101705270","0409","12/31"]
[181,"AR043","Housing Authority of the City of Dumas","FW-7028","963455522","0637","2011-12-31",null,null,null,null,null,null,null,null,null,null,null,null,null,null,null,null,null,null,null,null,null,null,null,null,null,null,null,null,null,null,null,null,null,null,null,null,null,null,null,null,null,null,null,null,null,181,"AL086","AL086000004","Jefferson County Housing Authority","A-2954","101705270","0409","12/31"]
[182,"AR044","Housing Authority of the City of Waldron","FW7089","603896705","0637","2011-06-30",null,null,null,null,null,null,null,null,null,null,null,null,null,null,null,null,null,null,null,null,null,null,null,null,null,null,null,null,null,null,null,null,null,null,null,null,null,null,null,null,null,null,null,null,null,182,"AL087","AL087000001","Housing Authority of the City of Hartselle","A-3793","616925509","0409","06/30"]
[183,"AR045","Pike County Housing Authority","FW7083","004371696","0637","2011-03-31",null,null,null,null,null,null,null,null,null,null,null,null,null,null,null,null,null,null,null,null,null,null,null,null,null,null,null,null,null,null,null,null,null,null,null,null,null,null,null,null,null,null,null,null,null,183,"AL088","AL088000001","Housing Authority of the City of Luverne, Al","A-3819","961168978","0409","12/31"]
[184,"AR046","HOUSING AUTHORITY OF THE CITY OF AMITY","FW-7104","131622123","0637","2011-03-31",null,null,null,null,null,null,null,null,null,null,null,null,null,null,null,null,null,null,null,null,null,null,null,null,null,null,null,null,null,null,null,null,null,null,null,null,null,null,null,null,null,null,null,null,null,184,"AL089","AL089000001","Vincent Housing Authority","A-2416","139439807","0409","09/30"]
[185,"AR047","Housing Authority of the City of Hoxie","FW7074","959996612","0637","2011-06-30",null,null,null,null,null,null,null,null,null,null,null,null,null,null,null,null,null,null,null,null,null,null,null,null,null,null,null,null,null,null,null,null,null,null,null,null,null,null,null,null,null,null,null,null,null,185,"AL090","AL090000001","Phil Campbell Housing Authority","A-3013","137464264","0409","06/30"]
[186,"AR048","Housing Authority of the City of Dewitt","FW172","788622744","0637","2011-03-31",null,null,null,null,null,null,null,null,null,null,null,null,null,null,null,null,null,null,null,null,null,null,null,null,null,null,null,null,null,null,null,null,null,null,null,null,null,null,null,null,null,null,null,null,null,186,"AL091","AL091001003","HA Arab","A-3023","001938521","0409","09/30"]
[187,"AR049","Housing Authority of the City of Gurdon","FW7219","616929656","0637","2011-09-30",null,null,null,null,null,null,null,null,null,null,null,null,null,null,null,null,null,null,null,null,null,null,null,null,null,null,null,null,null,null,null,null,null,null,null,null,null,null,null,null,null,null,null,null,null,187,"AL093","AL093000001","Housing Authority of the Town of Hanceville","A-4003","827211335","0409","06/30"]
[188,"AR050","Housing Authority of the City of Helena","FW-7078","131055720","0637","2011-12-31",null,null,null,null,null,null,null,null,null,null,null,null,null,null,null,null,null,null,null,null,null,null,null,null,null,null,null,null,null,null,null,null,null,null,null,null,null,null,null,null,null,null,null,null,null,188,"AL093","AL093000004","Housing Authority of the Town of Hanceville","A-4003","827211335","0409","06/30"]
[189,"AR051","Housing Authority of the City of Clarksville","FW7191","616929477","0637","2011-06-30",null,null,null,null,null,null,null,null,null,null,null,null,null,null,null,null,null,null,null,null,null,null,null,null,null,null,null,null,null,null,null,null,null,null,null,null,null,null,null,null,null,null,null,null,null,189,"AL094","AL094000001","Housing Authority of the City of Georgiana","A-3024","800987380","0409","03/31"]
[190,"AR052","Clarendon Housing Authority","FW7064","876689684","0637","2011-06-30",null,null,null,null,null,null,null,null,null,null,null,null,null,null,null,null,null,null,null,null,null,null,null,null,null,null,null,null,null,null,null,null,null,null,null,null,null,null,null,null,null,null,null,null,null,190,"AL095","AL095000010","HA Millport","A-2947","102075520","0409","12/31"]
[191,"AR053","Housing Authority of the City of McGehee","FW995","962553731","0637","2011-09-30",null,null,null,null,null,null,null,null,null,null,null,null,null,null,null,null,null,null,null,null,null,null,null,null,null,null,null,null,null,null,null,null,null,null,null,null,null,null,null,null,null,null,null,null,null,191,"AL096","AL096000001","Housing Authority of the City of Heflin","A-3457","053948787","0409","09/30"]
[192,"AR054","Housing Authority of the City of Wilson","FW7035","619354421","0637","2011-03-31",null,null,null,null,null,null,null,null,null,null,null,null,null,null,null,null,null,null,null,null,null,null,null,null,null,null,null,null,null,null,null,null,null,null,null,null,null,null,null,null,null,null,null,null,null,192,"AL098","AL098000001","Housing Authority of the City of Aliceville","A-4001","013116376","0409","06/30"]
[193,"AR055","Housing Authority of the City of Dardanelle","FW-7192","004918173","0637","2011-12-31",null,null,null,null,null,null,null,null,null,null,null,null,null,null,null,null,null,null,null,null,null,null,null,null,null,null,null,null,null,null,null,null,null,null,null,null,null,null,null,null,null,null,null,null,null,193,"AL099","AL099000001","HA Scottsboro","A-3889","001863083","0409","12/31"]
[194,"AR057","Housing Authority of the City of Imboden","FW7053","807217380","0637","2011-06-30",null,null,null,null,null,null,null,null,null,null,null,null,null,null,null,null,null,null,null,null,null,null,null,null,null,null,null,null,null,null,null,null,null,null,null,null,null,null,null,null,null,null,null,null,null,194,"AL099","AL099000002","HA Scottsboro","A-3889","001863083","0409","12/31"]
[195,"AR058","Housing Authority of the County of Arkansas","FW-7204","131632361","0637","2011-03-31",null,null,null,null,null,null,null,null,null,null,null,null,null,null,null,null,null,null,null,null,null,null,null,null,null,null,null,null,null,null,null,null,null,null,null,null,null,null,null,null,null,null,null,null,null,195,"AL100","AL100000001","Housing Authority of the City of Columbia","A-3025","139397454","0409","03/31"]
[196,"AR059","Housing Authority of the City of Brinkley","FW-7106","004322665","0637","2011-06-30",null,null,null,null,null,null,null,null,null,null,null,null,null,null,null,null,null,null,null,null,null,null,null,null,null,null,null,null,null,null,null,null,null,null,null,null,null,null,null,null,null,null,null,null,null,196,"AL101","AL101000001","Abbeville Housing Authority","A-2427","011852953","0409","12/31"]
[197,"AR060","Housing Authority of the City of West Helena","FW7054","800992380","0637","2011-12-31",null,null,null,null,null,null,null,null,null,null,null,null,null,null,null,null,null,null,null,null,null,null,null,null,null,null,null,null,null,null,null,null,null,null,null,null,null,null,null,null,null,null,null,null,null,197,"AL102","AL102000001","Altoona Housing Authority","A-3874","138395194","0409","12/31"]
[198,"AR061","Housing Authority of the City of Hughes","FW7101","004559795","0637","2011-12-31",null,null,null,null,null,null,null,null,null,null,null,null,null,null,null,null,null,null,null,null,null,null,null,null,null,null,null,null,null,null,null,null,null,null,null,null,null,null,null,null,null,null,null,null,null,198,"AL103","AL103000001","Housing Authority of the City of Hartford","A-2402","617690904","0409","09/30"]
[199,"AR063","Housing Authority of the City of Pocahontas","FW7076","191602119","0637","2011-06-30",null,null,null,null,null,null,null,null,null,null,null,null,null,null,null,null,null,null,null,null,null,null,null,null,null,null,null,null,null,null,null,null,null,null,null,null,null,null,null,null,null,null,null,null,null,199,"AL104","AL104000001","Cottonwood Housing Authority","A-3816","800987059","0409","06/30"]
[200,"AR064","Housing Authority of the City of Earle","FW-7100","044821924","0637","2011-12-31",null,null,null,null,null,null,null,null,null,null,null,null,null,null,null,null,null,null,null,null,null,null,null,null,null,null,null,null,null,null,null,null,null,null,null,null,null,null,null,null,null,null,null,null,null,200,"AL105","AL105000001","Housing Authority of the City of Talladega, Al","A-3300","137469065","0409","12/31"]
[201,"AR065","Housing Authority of the City of Stephens","FW7208","136946329","0637","2011-12-31",null,null,null,null,null,null,null,null,null,null,null,null,null,null,null,null,null,null,null,null,null,null,null,null,null,null,null,null,null,null,null,null,null,null,null,null,null,null,null,null,null,null,null,null,null,201,"AL105","AL105000002","Housing Authority of the City of Talladega, Al","A-3300","137469065","0409","12/31"]
[202,"AR066","Russellville Housing Authority","FW7193","004623890","0637","2011-06-30",null,null,null,null,null,null,null,null,null,null,null,null,null,null,null,null,null,null,null,null,null,null,null,null,null,null,null,null,null,null,null,null,null,null,null,null,null,null,null,null,null,null,null,null,null,202,"AL105","AL105000003","Housing Authority of the City of Talladega, Al","A-3300","137469065","0409","12/31"]
[203,"AR068","Hope Housing Authority","FW-7019","017722062","0637","2011-06-30",null,null,null,null,null,null,null,null,null,null,null,null,null,null,null,null,null,null,null,null,null,null,null,null,null,null,null,null,null,null,null,null,null,null,null,null,null,null,null,null,null,null,null,null,null,203,"AL106","AL106000001","Pell City Housing Authority","A-2949","020296203","0409","09/30"]
[204,"AR069","Housing Authority of the City of Rector","FW7072","003474830","0637","2011-06-30",null,null,null,null,null,null,null,null,null,null,null,null,null,null,null,null,null,null,null,null,null,null,null,null,null,null,null,null,null,null,null,null,null,null,null,null,null,null,null,null,null,null,null,null,null,204,"AL107","AL107000001","HA Elba","A-4501","126296748","0409","06/30"]
[205,"AR070","Housing Authority of the City of Monette","FW7023","087388612","0637","2011-12-31",null,null,null,null,null,null,null,null,null,null,null,null,null,null,null,null,null,null,null,null,null,null,null,null,null,null,null,null,null,null,null,null,null,null,null,null,null,null,null,null,null,null,null,null,null,205,"AL108","AL108000101","Ragland Housing Authority","A-2959","017712444","0409","06/30"]
[206,"AR071","Housing Authority of the City of Batesville","FW7058","188677504","0637","2011-09-30",null,null,null,null,null,null,null,null,null,null,null,null,null,null,null,null,null,null,null,null,null,null,null,null,null,null,null,null,null,null,null,null,null,null,null,null,null,null,null,null,null,null,null,null,null,206,"AL109","AL109000001","Housing Authority of the City of Demopolis, Al","A3474","040653388","0409","12/31"]
[207,"AR072","Housing Authority of the City of Parkin","FW1455","799347781","0637","2011-03-31",null,null,null,null,null,null,null,null,null,null,null,null,null,null,null,null,null,null,null,null,null,null,null,null,null,null,null,null,null,null,null,null,null,null,null,null,null,null,null,null,null,null,null,null,null,207,"AL110","AL110000001","HA Piedmont","A-3820","001734763","0409","06/30"]
[208,"AR073","Housing Authority of the City of Sparkman","FW7080","142559736","0637","2011-09-30",null,null,null,null,null,null,null,null,null,null,null,null,null,null,null,null,null,null,null,null,null,null,null,null,null,null,null,null,null,null,null,null,null,null,null,null,null,null,null,null,null,null,null,null,null,208,"AL111","AL111000001","Housing Authority of the City of Florala","A-2313","001788835","0409","12/31"]
[209,"AR074","Housing Authority of the City of Salem","FW1032","616930079","0637","2011-12-31",null,null,null,null,null,null,null,null,null,null,null,null,null,null,null,null,null,null,null,null,null,null,null,null,null,null,null,null,null,null,null,null,null,null,null,null,null,null,null,null,null,null,null,null,null,209,"AL112","AL112000001","HA Opp","A-3067","001789916","0409","06/30"]
[210,"AR075","Housing Authority of the City of Leachville","FW7091","958877193","0637","2011-09-30",null,null,null,null,null,null,null,null,null,null,null,null,null,null,null,null,null,null,null,null,null,null,null,null,null,null,null,null,null,null,null,null,null,null,null,null,null,null,null,null,null,null,null,null,null,210,"AL114","AL114000001","Lineville Housing Authority","A-2414","801761857","0409","09/30"]
[211,"AR076","Housing Authority of the City of Mount Ida","FW7096","020949843","0637","2011-09-30",null,null,null,null,null,null,null,null,null,null,null,null,null,null,null,null,null,null,null,null,null,null,null,null,null,null,null,null,null,null,null,null,null,null,null,null,null,null,null,null,null,null,null,null,null,211,"AL114","AL114000002","Lineville Housing Authority","A-2414","801761857","0409","09/30"]
[212,"AR078","Housing Authority of the City of Dell","FW-7206","004294898","0637","2011-12-31",null,null,null,null,null,null,null,null,null,null,null,null,null,null,null,null,null,null,null,null,null,null,null,null,null,null,null,null,null,null,null,null,null,null,null,null,null,null,null,null,null,null,null,null,null,212,"AL115","AL115000001","Enterprise Housing Authority","A2401","440066137","0409","12/31"]
[213,"AR079","Housing Authority of the City of Luxora","FW7052","848717120","0637","2011-03-31",null,null,null,null,null,null,null,null,null,null,null,null,null,null,null,null,null,null,null,null,null,null,null,null,null,null,null,null,null,null,null,null,null,null,null,null,null,null,null,null,null,null,null,null,null,213,"AL116","AL116000001","York Housing Authority","A-2324","012288812","0409","03/31"]
[214,"AR080","Housing Authority of the City of Manila","FW7095","066150228","0637","2011-09-30",null,null,null,null,null,null,null,null,null,null,null,null,null,null,null,null,null,null,null,null,null,null,null,null,null,null,null,null,null,null,null,null,null,null,null,null,null,null,null,null,null,null,null,null,null,214,"AL117","AL117000001","Washington County Housing Authority","A-3008","002064475","0409","09/30"]
[215,"AR081","Housing Authority of the City of Carthage","FW-7061","137397944","0637","2011-03-31",null,null,null,null,null,null,null,null,null,null,null,null,null,null,null,null,null,null,null,null,null,null,null,null,null,null,null,null,null,null,null,null,null,null,null,null,null,null,null,null,null,null,null,null,null,215,"AL118","AL118000001","Eufaula Housing Authority","A3813","965284508","0409","12/31"]
[216,"AR082","Warren Housing Authority","FW7130","963575733","0637","2011-12-31",null,null,null,null,null,null,null,null,null,null,null,null,null,null,null,null,null,null,null,null,null,null,null,null,null,null,null,null,null,null,null,null,null,null,null,null,null,null,null,null,null,null,null,null,null,216,"AL118","AL118000002","Eufaula Housing Authority","A3813","965284508","0409","12/31"]
[217,"AR083","Housing Authority of the City of Gould","FW-7086","137819210","0637","2011-03-31",null,null,null,null,null,null,null,null,null,null,null,null,null,null,null,null,null,null,null,null,null,null,null,null,null,null,null,null,null,null,null,null,null,null,null,null,null,null,null,null,null,null,null,null,null,217,"AL119","AL119000001","Housing Authority of the City of Sulligent, Al","A-2969","001878057","0409","06/30"]
[218,"AR084","Housing Authority of the City of Bald Knob","FW7070","102047974","0637","2011-06-30",null,null,null,null,null,null,null,null,null,null,null,null,null,null,null,null,null,null,null,null,null,null,null,null,null,null,null,null,null,null,null,null,null,null,null,null,null,null,null,null,null,null,null,null,null,218,"AL120","AL120000001","Housing Authority of the City of Linden","A2312","144541062","0409","06/30"]
[219,"AR085","Housing Authority of the City of Dover","FW7203","969136902","0637","2011-09-30",null,null,null,null,null,null,null,null,null,null,null,null,null,null,null,null,null,null,null,null,null,null,null,null,null,null,null,null,null,null,null,null,null,null,null,null,null,null,null,null,null,null,null,null,null,219,"AL121","AL121000001","Albertville Housing Authority","A-3900","617667183","0409","12/31"]
[220,"AR086","Housing Authority of the City of Mammoth Spring","FW7062","134505283","0637","2011-03-31",null,null,null,null,null,null,null,null,null,null,null,null,null,null,null,null,null,null,null,null,null,null,null,null,null,null,null,null,null,null,null,null,null,null,null,null,null,null,null,null,null,null,null,null,null,220,"AL122","AL122000001","Childersburg Housing Authority","A-2966","626252829","0409","09/30"]
[221,"AR087","Housing Authority of the City of Crossett","FW7046","949865455","0637","2011-09-30",null,null,null,null,null,null,null,null,null,null,null,null,null,null,null,null,null,null,null,null,null,null,null,null,null,null,null,null,null,null,null,null,null,null,null,null,null,null,null,null,null,null,null,null,null,221,"AL123","AL123000001","Housing Authority of the City of Headland, Al","A-3005","001853159","0409","12/31"]
[222,"AR088","Housing Authority of the City of Lake City","FW7179","057907651","0637","2011-09-30",null,null,null,null,null,null,null,null,null,null,null,null,null,null,null,null,null,null,null,null,null,null,null,null,null,null,null,null,null,null,null,null,null,null,null,null,null,null,null,null,null,null,null,null,null,222,"AL124","AL124000001","HA Midland City","A2964","800783425","0409","12/31"]
[223,"AR089","Housing Authority of the City of Newark","FW2710","137682147","0637","2011-12-31",null,null,null,null,null,null,null,null,null,null,null,null,null,null,null,null,null,null,null,null,null,null,null,null,null,null,null,null,null,null,null,null,null,null,null,null,null,null,null,null,null,null,null,null,null,223,"AL125","AL125000001","HA Bessemer","A-3878","001872027","0409","06/30"]
[224,"AR090","Housing Authority of the City of Judsonia","FW7079","958724882","0637","2011-09-30",null,null,null,null,null,null,null,null,null,null,null,null,null,null,null,null,null,null,null,null,null,null,null,null,null,null,null,null,null,null,null,null,null,null,null,null,null,null,null,null,null,null,null,null,null,224,"AL125","AL125000002","HA Bessemer","A-3878","001872027","0409","06/30"]
[225,"AR091","Housing Authority of the City of Ola","FW7075","932945470","0637","2011-03-31",null,null,null,null,null,null,null,null,null,null,null,null,null,null,null,null,null,null,null,null,null,null,null,null,null,null,null,null,null,null,null,null,null,null,null,null,null,null,null,null,null,null,null,null,null,225,"AL125","AL125000003","HA Bessemer","A-3878","001872027","0409","06/30"]
[226,"AR092","Housing Authority of the City of Caraway","FW-202","968985176","0637","2011-09-30",null,null,null,null,null,null,null,null,null,null,null,null,null,null,null,null,null,null,null,null,null,null,null,null,null,null,null,null,null,null,null,null,null,null,null,null,null,null,null,null,null,null,null,null,null,226,"AL125","AL125000004","HA Bessemer","A-3878","001872027","0409","06/30"]
[227,"AR093","Housing Authority of the City of Hickory Ridge","FW-7074","956065106","0637","2011-06-30",null,null,null,null,null,null,null,null,null,null,null,null,null,null,null,null,null,null,null,null,null,null,null,null,null,null,null,null,null,null,null,null,null,null,null,null,null,null,null,null,null,null,null,null,null,227,"AL125","AL125000005","HA Bessemer","A-3878","001872027","0409","06/30"]
[228,"AR094","Housing Authority of the City of Malvern","FW7102","107752834","0637","2011-09-30",null,null,null,null,null,null,null,null,null,null,null,null,null,null,null,null,null,null,null,null,null,null,null,null,null,null,null,null,null,null,null,null,null,null,null,null,null,null,null,null,null,null,null,null,null,228,"AL125","AL125000006","HA Bessemer","A-3878","001872027","0409","06/30"]
[229,"AR095","Housing Authority of the City of Decatur","FW958","137870395","0637","2011-09-30",null,null,null,null,null,null,null,null,null,null,null,null,null,null,null,null,null,null,null,null,null,null,null,null,null,null,null,null,null,null,null,null,null,null,null,null,null,null,null,null,null,null,null,null,null,229,"AL125","AL125000007","HA Bessemer","A-3878","001872027","0409","06/30"]
[230,"AR096","Housing Authority of the City of Alma","FW-7069","034753319","0637","2011-03-31",null,null,null,null,null,null,null,null,null,null,null,null,null,null,null,null,null,null,null,null,null,null,null,null,null,null,null,null,null,null,null,null,null,null,null,null,null,null,null,null,null,null,null,null,null,230,"AL126","AL126000001","Brundidge Housing Authority","A2316","001978790","0409","12/31"]
[231,"AR097","Housing Authority of the City of Fayetteville","FW7031","809775059","0637","2011-09-30",null,null,null,null,null,null,null,null,null,null,null,null,null,null,null,null,null,null,null,null,null,null,null,null,null,null,null,null,null,null,null,null,null,null,null,null,null,null,null,null,null,null,null,null,null,231,"AL127","AL127000001","HA Andalusia","A-3030","001786474","0409","06/30"]
[232,"AR098","Housing Authority of the City of McRae","FW7059","137055880","0637","2011-03-31",null,null,null,null,null,null,null,null,null,null,null,null,null,null,null,null,null,null,null,null,null,null,null,null,null,null,null,null,null,null,null,null,null,null,null,null,null,null,null,null,null,null,null,null,null,232,"AL128","AL128000001","HA Samson","A3040","948801535","0409","12/31"]
[233,"AR099","Housing Authority of the City of Forrest City","FW7049","960193845","0637","2011-09-30",null,null,null,null,null,null,null,null,null,null,null,null,null,null,null,null,null,null,null,null,null,null,null,null,null,null,null,null,null,null,null,null,null,null,null,null,null,null,null,null,null,null,null,null,null,233,"AL129","AL129000001","Walker County Housing Authority","A-3011","618153431","0409","03/31"]
[234,"AR101","Housing Authority of the City of Ozark","FW7028","003951001","0637","2011-06-30",null,null,null,null,null,null,null,null,null,null,null,null,null,null,null,null,null,null,null,null,null,null,null,null,null,null,null,null,null,null,null,null,null,null,null,null,null,null,null,null,null,null,null,null,null,234,"AL131","AL131000001","Housing Authority of the City of Prattville, Al","A-3004","827457938","0409","06/30"]
[235,"AR102","Housing Authority of the City of Coal Hill","FW-7039","690711098","0637","2011-09-30",null,null,null,null,null,null,null,null,null,null,null,null,null,null,null,null,null,null,null,null,null,null,null,null,null,null,null,null,null,null,null,null,null,null,null,null,null,null,null,null,null,null,null,null,null,235,"AL132","AL132000001","Housing Authority of the City of Goodwater","A3036","965285711","0409","06/30"]
[236,"AR103","Housing Authority of the City of Melbourne","FW7063","136950487","0637","2011-03-31",null,null,null,null,null,null,null,null,null,null,null,null,null,null,null,null,null,null,null,null,null,null,null,null,null,null,null,null,null,null,null,null,null,null,null,null,null,null,null,null,null,null,null,null,null,236,"AL133","AL133000001","Housing Authority of the Town of Hobson City","A-3003","098852825","0409","12/31"]
[237,"AR104","Springdale Housing Authority","FW7220","605498682","0637","2011-09-30",null,null,null,null,null,null,null,null,null,null,null,null,null,null,null,null,null,null,null,null,null,null,null,null,null,null,null,null,null,null,null,null,null,null,null,null,null,null,null,null,null,null,null,null,null,237,"AL134","AL134000001","Housing Authority of the Town of Blountsville, Al","A-3478","001724731","0409","09/30"]
[238,"AR106","Housing Authority of the City of Beebe","FW7216","004918116","0637","2011-06-30",null,null,null,null,null,null,null,null,null,null,null,null,null,null,null,null,null,null,null,null,null,null,null,null,null,null,null,null,null,null,null,null,null,null,null,null,null,null,null,null,null,null,null,null,null,238,"AL135","AL135000001","Housing Authority of the Town of Valley Head, Al","A-4012","137133356","0409","03/31"]
[239,"AR111","Housing Authority of the City of Rison","FW7221","030055599","0637","2011-09-30",null,null,null,null,null,null,null,null,null,null,null,null,null,null,null,null,null,null,null,null,null,null,null,null,null,null,null,null,null,null,null,null,null,null,null,null,null,null,null,null,null,null,null,null,null,239,"AL136","AL136000001","Housing Authority of the Town of Ashland","A-23875","028120629","0409","09/30"]
[240,"AR112","Housing Authority of the City of Marmaduke","FW7222","159240832","0637","2011-09-30",null,null,null,null,null,null,null,null,null,null,null,null,null,null,null,null,null,null,null,null,null,null,null,null,null,null,null,null,null,null,null,null,null,null,null,null,null,null,null,null,null,null,null,null,null,240,"AL137","AL137014014","Housing Authority of the City of Fayette","A-4014","012288754","0409","09/30"]
[241,"AR113","Housing Authority of the City of Heber Springs","FW7066","783988983","0637","2011-09-30",null,null,null,null,null,null,null,null,null,null,null,null,null,null,null,null,null,null,null,null,null,null,null,null,null,null,null,null,null,null,null,null,null,null,null,null,null,null,null,null,null,null,null,null,null,241,"AL138","AL138000001","Gordo Housing Authority","A-4018","001977800","0409","12/31"]
[242,"AR117","Polk County Housing Authority","FW7014","103656427","0637","2011-09-30",null,null,null,null,null,null,null,null,null,null,null,null,null,null,null,null,null,null,null,null,null,null,null,null,null,null,null,null,null,null,null,null,null,null,null,null,null,null,null,null,null,null,null,null,null,242,"AL139","AL139000001","HA Jacksonville","A-4107","968403006","0409","06/30"]
[243,"AR118","Housing Authority of the City of McCrory","FW1470","125156617","0637","2011-09-30",null,null,null,null,null,null,null,null,null,null,null,null,null,null,null,null,null,null,null,null,null,null,null,null,null,null,null,null,null,null,null,null,null,null,null,null,null,null,null,null,null,null,null,null,null,243,"AL140","AL140000001","Housing Authority of the City of Centre, Al","A-2960","144947129","0409","06/30"]
[244,"AR121","Paragould Housing Authority","FW7033","086931375","0637","2011-03-31",null,null,null,null,null,null,null,null,null,null,null,null,null,null,null,null,null,null,null,null,null,null,null,null,null,null,null,null,null,null,null,null,null,null,null,null,null,null,null,null,null,null,null,null,null,244,"AL141","AL141000001","Housing Authority of the Town of Kennedy","A-4107","145787557","0409","06/30"]
[245,"AR122","Housing Authority of the City of Yellville","FW7017","073294352","0637","2011-03-31",null,null,null,null,null,null,null,null,null,null,null,null,null,null,null,null,null,null,null,null,null,null,null,null,null,null,null,null,null,null,null,null,null,null,null,null,null,null,null,null,null,null,null,null,null,245,"AL142","AL142000102","Housing Authority of the City of Newton","A-2970","789308280","0409","12/31"]
[246,"AR123","Housing Authority of the City of Augusta","FW7013","969220136","0637","2011-09-30",null,null,null,null,null,null,null,null,null,null,null,null,null,null,null,null,null,null,null,null,null,null,null,null,null,null,null,null,null,null,null,null,null,null,null,null,null,null,null,null,null,null,null,null,null,246,"AL143","AL143000001","Housing Authority of the Town of Slocomb","A-3009","136956591","0409","12/31"]
[247,"AR131","Jonesboro Urban Renewal HA","FW-7205","011641388","0637","2011-03-31",null,null,null,null,null,null,null,null,null,null,null,null,null,null,null,null,null,null,null,null,null,null,null,null,null,null,null,null,null,null,null,null,null,null,null,null,null,null,null,null,null,null,null,null,null,247,"AL144","AL144000001","HA Ashford","A-2955","009567715","0409","03/31"]
[248,"AR141","Housing Authority of the City of Atkins","FW-7081","017720330","0637","2011-09-30",null,null,null,null,null,null,null,null,null,null,null,null,null,null,null,null,null,null,null,null,null,null,null,null,null,null,null,null,null,null,null,null,null,null,null,null,null,null,null,null,null,null,null,null,null,248,"AL145","AL145000001","Housing Authority of the City of Brantley","A2956","001792993","0409","12/31"]
[249,"AR146","Housing Authority of the City of Kensett","FW7075","957508021","0637","2011-09-30",null,null,null,null,null,null,null,null,null,null,null,null,null,null,null,null,null,null,null,null,null,null,null,null,null,null,null,null,null,null,null,null,null,null,null,null,null,null,null,null,null,null,null,null,null,249,"AL146","AL146000001","Housing Authority of the City of Eutaw","A-2963","001833870","0409","09/30"]
[250,"AR148","Housing Authority of the City of England","FW7050","801113853","0637","2011-09-30",null,null,null,null,null,null,null,null,null,null,null,null,null,null,null,null,null,null,null,null,null,null,null,null,null,null,null,null,null,null,null,null,null,null,null,null,null,null,null,null,null,null,null,null,null,250,"AL147","AL147000001","Housing Authority of the City of Bridgeport","A-3045","069442957","0409","06/30"]
[251,"AR170","Jacksonville Housing Authority","FW7225","556955995","0637","2011-06-30",null,null,null,null,null,null,null,null,null,null,null,null,null,null,null,null,null,null,null,null,null,null,null,null,null,null,null,null,null,null,null,null,null,null,null,null,null,null,null,null,null,null,null,null,null,251,"AL149","AL149000001","Housing Authority of the Town of New Brockton","A4101","799925511","0409","12/31"]
[252,"AR171","Housing Authority of the City of Greenwood","FW7214","139441146","0637","2011-03-31",null,null,null,null,null,null,null,null,null,null,null,null,null,null,null,null,null,null,null,null,null,null,null,null,null,null,null,null,null,null,null,null,null,null,null,null,null,null,null,null,null,null,null,null,null,252,"AL150","AL150000010","Housing Authority of the City of Clanton","A-3016","618153175","0409","06/30"]
[253,"AR172","Housing Authority of the City of Cotton Plant","FW7041","847814977","0637","2011-09-30",null,null,null,null,null,null,null,null,null,null,null,null,null,null,null,null,null,null,null,null,null,null,null,null,null,null,null,null,null,null,null,null,null,null,null,null,null,null,null,null,null,null,null,null,null,253,"AL151","AL151000001","Housing Authority of the City of Brent","A-4015","964859243","0409","03/31"]
[254,"AR175","Housing Authority of the City of Benton, Ar","FW7223","112907530","0637","2011-03-31",null,null,null,null,null,null,null,null,null,null,null,null,null,null,null,null,null,null,null,null,null,null,null,null,null,null,null,null,null,null,null,null,null,null,null,null,null,null,null,null,null,null,null,null,null,254,"AL152","AL152000001","HA Northport","A-2965","874745222","0409","06/30"]
[255,"AR197","White River Regional Housing Authority","FW7217","003995297","0637","2011-06-30",null,null,null,null,null,null,null,null,null,null,null,null,null,null,null,null,null,null,null,null,null,null,null,null,null,null,null,null,null,null,null,null,null,null,null,null,null,null,null,null,null,null,null,null,null,255,"AL152","AL152000002","HA Northport","A-2965","874745222","0409","06/30"]
[256,"AZ001","City of Phoenix Housing Department","SF222","625297239","0920","2011-06-30",null,null,null,null,null,null,null,null,null,null,null,null,null,null,null,null,null,null,null,null,null,null,null,null,null,null,null,null,null,null,null,null,null,null,null,null,null,null,null,null,null,null,null,null,null,256,"AL153","AL153000001","Housing Authority of the Town of Parrish","A-1224","002063477","0409","12/31"]
[257,"AZ003","City of Glendale Housing Authority","SF446","077523579","0920","2011-06-30",null,null,null,null,null,null,null,null,null,null,null,null,null,null,null,null,null,null,null,null,null,null,null,null,null,null,null,null,null,null,null,null,null,null,null,null,null,null,null,null,null,null,null,null,null,257,"AL154","AL154000001","HA Atmore","A-2958","602323248","0409","06/30"]
[258,"AZ004","Community Services Department of Tucson","SF-225","072450869","0920","2011-06-30",null,null,null,null,null,null,null,null,null,null,null,null,null,null,null,null,null,null,null,null,null,null,null,null,null,null,null,null,null,null,null,null,null,null,null,null,null,null,null,null,null,null,null,null,null,258,"AL155","AL155000001","Housing Authority of the City of Greenville","A-3021","153592000","0409","09/30"]
[259,"AZ006","Flagstaff Housing Authority","SF165","039546122","0920","2011-06-30",null,null,null,null,null,null,null,null,null,null,null,null,null,null,null,null,null,null,null,null,null,null,null,null,null,null,null,null,null,null,null,null,null,null,null,null,null,null,null,null,null,null,null,null,null,259,"AL156","AL156000002","Housing Authority of the City of Brewton","A3044","001815323","0409","12/31"]
[260,"AZ008","Winslow Public Housing Authority","SF131","792342834","0920","2011-06-30",null,null,null,null,null,null,null,null,null,null,null,null,null,null,null,null,null,null,null,null,null,null,null,null,null,null,null,null,null,null,null,null,null,null,null,null,null,null,null,null,null,null,null,null,null,260,"AL157","AL157000013","Housing Authority of the City of Greensboro","A2404","197128580","0409","12/31"]
[261,"AZ009","Housing Authority of Maricopa County","SF-220","124257895","0920","2011-06-30",null,null,null,null,null,null,null,null,null,null,null,null,null,null,null,null,null,null,null,null,null,null,null,null,null,null,null,null,null,null,null,null,null,null,null,null,null,null,null,null,null,null,null,null,null,261,"AL158","AL158000001","Housing Authority of the Town of Clayton","A-3039","876792219","0409","12/31"]
[262,"AZ010","Pinal County Housing Authority","SF202","074447095","0920","2011-06-30",null,null,null,null,null,null,null,null,null,null,null,null,null,null,null,null,null,null,null,null,null,null,null,null,null,null,null,null,null,null,null,null,null,null,null,null,null,null,null,null,null,null,null,null,null,262,"AL159","AL159000003","Housing Authority of the City of Lafayette","A-1061","169147808","0409","06/30"]
[263,"AZ013","Yuma County Housing Department","SF-1784","148806938","0920","2011-06-30",null,null,null,null,null,null,null,null,null,null,null,null,null,null,null,null,null,null,null,null,null,null,null,null,null,null,null,null,null,null,null,null,null,null,null,null,null,null,null,null,null,null,null,null,null,263,"AL160","AL160000001","Tuskegee Housing Authority","A-2413","079122487","0409","09/30"]
[264,"AZ021","Eloy Housing Authority","SF-266","046285946","0920","2011-06-30",null,null,null,null,null,null,null,null,null,null,null,null,null,null,null,null,null,null,null,null,null,null,null,null,null,null,null,null,null,null,null,null,null,null,null,null,null,null,null,null,null,null,null,null,null,264,"AL160","AL160000002","Tuskegee Housing Authority","A-2413","079122487","0409","09/30"]
[265,"AZ023","Nogales Housing Authority","SF-275","039690420","0920","2011-03-31",null,null,null,null,null,null,null,null,null,null,null,null,null,null,null,null,null,null,null,null,null,null,null,null,null,null,null,null,null,null,null,null,null,null,null,null,null,null,null,null,null,null,null,null,null,265,"AL161","AL161000012","Housing Authority of the City of Marion, Al","A-3809","964471593","0409","03/31"]
[266,"AZ025","South Tucson Housing Authority","SF343","093995335","0920","2011-06-30",null,null,null,null,null,null,null,null,null,null,null,null,null,null,null,null,null,null,null,null,null,null,null,null,null,null,null,null,null,null,null,null,null,null,null,null,null,null,null,null,null,null,null,null,null,266,"AL164","AL164000001","HA Bay Minette","A-3876","194508586","0409","06/30"]
[267,"AZ028","Chandler Housing & Redevelopment Division","SF-440","077524981","0920","2011-06-30",null,null,null,null,null,null,null,null,null,null,null,null,null,null,null,null,null,null,null,null,null,null,null,null,null,null,null,null,null,null,null,null,null,null,null,null,null,null,null,null,null,null,null,null,null,267,"AL165","AL165000001","HA Foley","A-3262","016560585","0409","12/31"]
[268,"AZ035","Yuma City Housing Authority","SF-564","148907710","0920","2011-06-30",null,null,null,null,null,null,null,null,null,null,null,null,null,null,null,null,null,null,null,null,null,null,null,null,null,null,null,null,null,null,null,null,null,null,null,null,null,null,null,null,null,null,null,null,null,268,"AL166","AL166000002","Housing Authority of the City of Chickasaw","A-3803","118038181","0409","06/30"]
[269,"AZ038","Peoria Housing Authority","SF-569","149109795","0920","2011-06-30",null,null,null,null,null,null,null,null,null,null,null,null,null,null,null,null,null,null,null,null,null,null,null,null,null,null,null,null,null,null,null,null,null,null,null,null,null,null,null,null,null,null,null,null,null,269,"AL167","AL167000010","Stevenson Housing Authority","A-2086","001863174","0409","06/30"]
[270,"AZ041","Williams Housing Authority","SF-424","025688297","0920","2011-06-30",null,null,null,null,null,null,null,null,null,null,null,null,null,null,null,null,null,null,null,null,null,null,null,null,null,null,null,null,null,null,null,null,null,null,null,null,null,null,null,null,null,null,null,null,null,270,"AL168","AL168000001","Rainsville Housing Authority","A-3027","144946972","0409","06/30"]
[271,"CA001","San Francisco Housing Authority","SF-255","078780200","0901","2011-09-30",null,null,null,null,null,null,null,null,null,null,null,null,null,null,null,null,null,null,null,null,null,null,null,null,null,null,null,null,null,null,null,null,null,null,null,null,null,null,null,null,null,null,null,null,null,271,"AL169","AL169000001","The Housing Authority of the City of Prichard","A-3038","111773730","0409","06/30"]
[272,"CA002","Housing Authority of the County of Los Angeles","SF450","063080022","0916","2011-06-30",null,null,null,null,null,null,null,null,null,null,null,null,null,null,null,null,null,null,null,null,null,null,null,null,null,null,null,null,null,null,null,null,null,null,null,null,null,null,null,null,null,null,null,null,null,272,"AL169","AL169000002","The Housing Authority of the City of Prichard","A-3038","111773730","0409","06/30"]
[273,"CA003","Oakland Housing Authority","SF-235","076534100","0901","2011-06-30",null,null,null,null,null,null,null,null,null,null,null,null,null,null,null,null,null,null,null,null,null,null,null,null,null,null,null,null,null,null,null,null,null,null,null,null,null,null,null,null,null,null,null,null,null,273,"AL169","AL169000003","The Housing Authority of the City of Prichard","A-3038","111773730","0409","06/30"]
[274,"CA004","Housing Authority of the City of Los Angeles","SF-345","077233732","0916","2011-12-31",null,null,null,null,null,null,null,null,null,null,null,null,null,null,null,null,null,null,null,null,null,null,null,null,null,null,null,null,null,null,null,null,null,null,null,null,null,null,null,null,null,null,null,null,null,274,"AL169","AL169000007","The Housing Authority of the City of Prichard","A-3038","111773730","0409","06/30"]
[275,"CA005","City of Sacramento Housing Authority","SF-391","137351016","0930","2011-12-31",null,null,null,null,null,null,null,null,null,null,null,null,null,null,null,null,null,null,null,null,null,null,null,null,null,null,null,null,null,null,null,null,null,null,null,null,null,null,null,null,null,null,null,null,null,275,"AL171","AL171012346","Uniontown Housing Authority","A3067","014226174","0409","12/31"]
[276,"CA006","Housing Authority City of Fresno","SF-170","071870877","0901","2011-12-31",null,null,null,null,null,null,null,null,null,null,null,null,null,null,null,null,null,null,null,null,null,null,null,null,null,null,null,null,null,null,null,null,null,null,null,null,null,null,null,null,null,null,null,null,null,276,"AL172","AL172000001","HA Tallassee","A-1526","001812122","0409","06/30"]
[277,"CA007","County of Sacramento Housing Authority","SF-175","137351164","0930","2011-12-31",null,null,null,null,null,null,null,null,null,null,null,null,null,null,null,null,null,null,null,null,null,null,null,null,null,null,null,null,null,null,null,null,null,null,null,null,null,null,null,null,null,null,null,null,null,277,"AL173","AL173000001","HA Monroeville","A-2401","014273502","0409","06/30"]
[278,"CA008","Housing Authority of the County of Kern","SF-172","077979128","0916","2011-06-30",null,null,null,null,null,null,null,null,null,null,null,null,null,null,null,null,null,null,null,null,null,null,null,null,null,null,null,null,null,null,null,null,null,null,null,null,null,null,null,null,null,null,null,null,null,278,"AL174","AL174000001","Housing Authority of the City of Alexander City","A-3871","002049393","0409","09/30"]
[279,"CA009","Housing Authority of the City of Upland","SF449","008088742","0916","2011-03-31",null,null,null,null,null,null,null,null,null,null,null,null,null,null,null,null,null,null,null,null,null,null,null,null,null,null,null,null,null,null,null,null,null,null,null,null,null,null,null,null,null,null,null,null,null,279,"AL174","AL174000002","Housing Authority of the City of Alexander City","A-3871","002049393","0409","09/30"]
[280,"CA010","City of Richmond Housing Authority","SF-428","016549081","0901","2011-06-30",null,null,null,null,null,null,null,null,null,null,null,null,null,null,null,null,null,null,null,null,null,null,null,null,null,null,null,null,null,null,null,null,null,null,null,null,null,null,null,null,null,null,null,null,null,280,"AL175","AL175000001","Housing Authority of the City of Livingston","A-2401","002030005","0409","06/30"]
[281,"CA011","County of Contra Costa Housing Authority","SF-182","048376600","0901","2011-03-31",null,null,null,null,null,null,null,null,null,null,null,null,null,null,null,null,null,null,null,null,null,null,null,null,null,null,null,null,null,null,null,null,null,null,null,null,null,null,null,null,null,null,null,null,null,281,"AL176","AL176000001","Sumiton Housing Authority","A-3010","612096529","0409","03/31"]
[282,"CA014","County of San Mateo Housing Authority","SF-476","947054649","0901","2011-06-30",null,null,null,null,null,null,null,null,null,null,null,null,null,null,null,null,null,null,null,null,null,null,null,null,null,null,null,null,null,null,null,null,null,null,null,null,null,null,null,null,null,null,null,null,null,282,"AL177","AL177000001","HA Troy","A-2322","199672379","0409","06/30"]
[283,"CA015","City of South San Francisco Housing Authority","SF-429","118131000","0901","2011-03-31",null,null,null,null,null,null,null,null,null,null,null,null,null,null,null,null,null,null,null,null,null,null,null,null,null,null,null,null,null,null,null,null,null,null,null,null,null,null,null,null,null,null,null,null,null,283,"AL177","AL177000002","HA Troy","A-2322","199672379","0409","06/30"]
[284,"CA017","Housing Authority of the City of Riverbank","SF-373","099954679","0901","2011-06-30",null,null,null,null,null,null,null,null,null,null,null,null,null,null,null,null,null,null,null,null,null,null,null,null,null,null,null,null,null,null,null,null,null,null,null,null,null,null,null,null,null,null,null,null,null,284,"AL177","AL177000003","HA Troy","A-2322","199672379","0409","06/30"]
[285,"CA019","Housing Authority of the County of San Bernardino","SF-205","118390368","0916","2011-09-30",null,null,null,null,null,null,null,null,null,null,null,null,null,null,null,null,null,null,null,null,null,null,null,null,null,null,null,null,null,null,null,null,null,null,null,null,null,null,null,null,null,null,null,null,null,285,"AL178","AL178000001","Housing Authority of the City of Dadeville","A-3014","002045011","0409","06/30"]
[286,"CA021","Housing Authority of the County of Santa Barbara","SF-218","040348872","0916","2011-12-31",null,null,null,null,null,null,null,null,null,null,null,null,null,null,null,null,null,null,null,null,null,null,null,null,null,null,null,null,null,null,null,null,null,null,null,null,null,null,null,null,null,null,null,null,null,286,"AL179","AL179000001","Housing Authority of the City of Daleville","A-2961","958902454","0409","12/31"]
[287,"CA022","Housing Authority of the City of Needles","SF-59","026979976","0916","2011-06-30",null,null,null,null,null,null,null,null,null,null,null,null,null,null,null,null,null,null,null,null,null,null,null,null,null,null,null,null,null,null,null,null,null,null,null,null,null,null,null,null,null,null,null,null,null,287,"AL181","AL181000001","Evergreen Housing Authority","A-3021","195047618","0409","09/30"]
[288,"CA023","County of Merced Housing Authority","SF-192","043238971","0901","2011-09-30",null,null,null,null,null,null,null,null,null,null,null,null,null,null,null,null,null,null,null,null,null,null,null,null,null,null,null,null,null,null,null,null,null,null,null,null,null,null,null,null,null,null,null,null,null,288,"AL182","AL182000013","Triana Housing Authority","A-2040","876888868","0409","06/30"]
[289,"CA024","County of San Joaquin Housing Auth.","SF-147","086161312","0930","2011-09-30",null,null,null,null,null,null,null,null,null,null,null,null,null,null,null,null,null,null,null,null,null,null,null,null,null,null,null,null,null,null,null,null,null,null,null,null,null,null,null,null,null,null,null,null,null,289,"AL187","AL187000002","Regional HA of Lawrence, Cullman & Morgan Counties","A-3792","965450620","0409","06/30"]
[290,"CA025","City of Eureka Hsg Auth","SF-216","004972720","0901","2011-12-31",null,null,null,null,null,null,null,null,null,null,null,null,null,null,null,null,null,null,null,null,null,null,null,null,null,null,null,null,null,null,null,null,null,null,null,null,null,null,null,null,null,null,null,null,null,290,"AL189","AL189000001","Top of Alabama Regional Housing Authority","A-3476","148481336","0409","12/31"]
[291,"CA026","County of Stanislaus Housing Auth","SF-212","084523300","0901","2011-09-30",null,null,null,null,null,null,null,null,null,null,null,null,null,null,null,null,null,null,null,null,null,null,null,null,null,null,null,null,null,null,null,null,null,null,null,null,null,null,null,null,null,null,null,null,null,291,"AL189","AL189000002","Top of Alabama Regional Housing Authority","A-3476","148481336","0409","12/31"]
[292,"CA027","Housing Authority of the County of Riverside","SF-68","055022305","0916","2011-06-30",null,null,null,null,null,null,null,null,null,null,null,null,null,null,null,null,null,null,null,null,null,null,null,null,null,null,null,null,null,null,null,null,null,null,null,null,null,null,null,null,null,null,null,null,null,292,"AL190","AL190000001","Housing Authority of Greene County, Al","A2129","627191398","0409","12/31"]
[293,"CA028","Housing Authority of Fresno County","SF199","071870877","0901","2011-12-31",null,null,null,null,null,null,null,null,null,null,null,null,null,null,null,null,null,null,null,null,null,null,null,null,null,null,null,null,null,null,null,null,null,null,null,null,null,null,null,null,null,null,null,null,null,293,"AL192","AL192000001","South Central Alabama Regional HA","A-3035","083743583","0409","03/31"]
[294,"CA030","Tulare County Housing Authority",0,"021770110","0000","2011-06-30",null,null,null,null,null,null,null,null,null,null,null,null,null,null,null,null,null,null,null,null,null,null,null,null,null,null,null,null,null,null,null,null,null,null,null,null,null,null,null,null,null,null,null,null,null,294,"AL192","AL192000002","South Central Alabama Regional HA","A-3035","083743583","0409","03/31"]
[295,"CA031","Housing Authority of the City of Oxnard","SF-195","186544318","0916","2011-06-30",null,null,null,null,null,null,null,null,null,null,null,null,null,null,null,null,null,null,null,null,null,null,null,null,null,null,null,null,null,null,null,null,null,null,null,null,null,null,null,null,null,null,null,null,null,295,"AL192","AL192000003","South Central Alabama Regional HA","A-3035","083743583","0409","03/31"]
[296,"CA032","Housing Authority of the City of Port Hueneme","SF254","157675430","0916","2011-06-30",null,null,null,null,null,null,null,null,null,null,null,null,null,null,null,null,null,null,null,null,null,null,null,null,null,null,null,null,null,null,null,null,null,null,null,null,null,null,null,null,null,null,null,null,null,296,"AL193","AL193000001","Housing Authority of the Town of Fort Deposit","A-3060","969181536","0409","03/31"]
[297,"CA033","County of Monterey Hsg Auth","SF-208","131615775","0901","2011-06-30",null,null,null,null,null,null,null,null,null,null,null,null,null,null,null,null,null,null,null,null,null,null,null,null,null,null,null,null,null,null,null,null,null,null,null,null,null,null,null,null,null,null,null,null,null,297,"AL199","AL199000001","Housing Authority of the City of Valley","A-3898","003410193","0409","06/30"]
[298,"CA035","Housing Authority of the City of San Buenaventura","SF-194","005561816","0916","2011-09-30",null,null,null,null,null,null,null,null,null,null,null,null,null,null,null,null,null,null,null,null,null,null,null,null,null,null,null,null,null,null,null,null,null,null,null,null,null,null,null,null,null,null,null,null,null,298,"AL202","AL202000001","Mobile County Housing Authority","A4268","964864979","0409","12/31"]
[299,"CA039","Housing Authority of the City of Calexico","SF223","932866531","0916","2011-06-30",null,null,null,null,null,null,null,null,null,null,null,null,null,null,null,null,null,null,null,null,null,null,null,null,null,null,null,null,null,null,null,null,null,null,null,null,null,null,null,null,null,null,null,null,null,299,"AR002","AR002000001","North Little Rock Housing Authority","FW7108","782035174","0637","06/30"]
[300,"CA041","City of Benicia Hsg Auth","SF-421","009564330","0901","2011-03-31",null,null,null,null,null,null,null,null,null,null,null,null,null,null,null,null,null,null,null,null,null,null,null,null,null,null,null,null,null,null,null,null,null,null,null,null,null,null,null,null,null,null,null,null,null,300,"AR002","AR002000002","North Little Rock Housing Authority","FW7108","782035174","0637","06/30"]
[301,"CA043","County of Butte Hsg Auth","SF-171","131300873","0930","2011-09-30",null,null,null,null,null,null,null,null,null,null,null,null,null,null,null,null,null,null,null,null,null,null,null,null,null,null,null,null,null,null,null,null,null,null,null,null,null,null,null,null,null,null,null,null,null,301,"AR002","AR002000003","North Little Rock Housing Authority","FW7108","782035174","0637","06/30"]
[302,"CA044","Yolo County Hsg Authority","SF-418","142550677","0930","2011-06-30",null,null,null,null,null,null,null,null,null,null,null,null,null,null,null,null,null,null,null,null,null,null,null,null,null,null,null,null,null,null,null,null,null,null,null,null,null,null,null,null,null,null,null,null,null,302,"AR002","AR002000004","North Little Rock Housing Authority","FW7108","782035174","0637","06/30"]
[303,"CA046","City of Wasco Housing Authority","SF 62","021059779","0916","2011-06-30",null,null,null,null,null,null,null,null,null,null,null,null,null,null,null,null,null,null,null,null,null,null,null,null,null,null,null,null,null,null,null,null,null,null,null,null,null,null,null,null,null,null,null,null,null,303,"AR002","AR002000005","North Little Rock Housing Authority","FW7108","782035174","0637","06/30"]
[304,"CA048","Consolidated Area Housing Authority","SF-211","621882174","0930","2011-03-31",null,null,null,null,null,null,null,null,null,null,null,null,null,null,null,null,null,null,null,null,null,null,null,null,null,null,null,null,null,null,null,null,null,null,null,null,null,null,null,null,null,null,null,null,null,304,"AR002","AR002000006","North Little Rock Housing Authority","FW7108","782035174","0637","06/30"]
[305,"CA050","HOUSING AUTHORITY OF THE CITY OF PASO ROBLES","SF 495","106835122","0916","2011-06-30",null,null,null,null,null,null,null,null,null,null,null,null,null,null,null,null,null,null,null,null,null,null,null,null,null,null,null,null,null,null,null,null,null,null,null,null,null,null,null,null,null,null,null,null,null,305,"AR002","AR002000007","North Little Rock Housing Authority","FW7108","782035174","0637","06/30"]
[306,"CA052","Housing Authority of County of Marin","SF-258","037871852","0901","2011-12-31",null,null,null,null,null,null,null,null,null,null,null,null,null,null,null,null,null,null,null,null,null,null,null,null,null,null,null,null,null,null,null,null,null,null,null,null,null,null,null,null,null,null,null,null,null,306,"AR003","AR003000001","The Housing Authority of the City of Fort Smi","FW7027","138735209","0637","09/30"]
[307,"CA053","Kings County Housing Auth","SF-215","000499264","0901","2011-06-30",null,null,null,null,null,null,null,null,null,null,null,null,null,null,null,null,null,null,null,null,null,null,null,null,null,null,null,null,null,null,null,null,null,null,null,null,null,null,null,null,null,null,null,null,null,307,"AR003","AR003000003","The Housing Authority of the City of Fort Smi","FW7027","138735209","0637","09/30"]
[308,"CA058","City of Berkeley Housing Authority","SF-300","104083000","0901","2011-06-30",null,null,null,null,null,null,null,null,null,null,null,null,null,null,null,null,null,null,null,null,null,null,null,null,null,null,null,null,null,null,null,null,null,null,null,null,null,null,null,null,null,null,null,null,null,308,"AR004","AR004000001","Housing Authority of the City of Little Rock","FW-7045","082586058","0637","12/31"]
[309,"CA059","Housing Authority of the County Santa Clara","SF-1533","178926697","0901","2011-06-30",null,null,null,null,null,null,null,null,null,null,null,null,null,null,null,null,null,null,null,null,null,null,null,null,null,null,null,null,null,null,null,null,null,null,null,null,null,null,null,null,null,null,null,null,null,309,"AR004","AR004000003","Housing Authority of the City of Little Rock","FW-7045","082586058","0637","12/31"]
[310,"CA063","SAN DIEGO HOUSING COMMISSION","SF562","041481276","0916","2011-06-30",null,null,null,null,null,null,null,null,null,null,null,null,null,null,null,null,null,null,null,null,null,null,null,null,null,null,null,null,null,null,null,null,null,null,null,null,null,null,null,null,null,null,null,null,null,310,"AR004","AR004000005","Housing Authority of the City of Little Rock","FW-7045","082586058","0637","12/31"]
[311,"CA064","Housing Authority of the City of San Luis Obispo","SF-351","120975529","0916","2011-09-30",null,null,null,null,null,null,null,null,null,null,null,null,null,null,null,null,null,null,null,null,null,null,null,null,null,null,null,null,null,null,null,null,null,null,null,null,null,null,null,null,null,null,null,null,null,311,"AR004","AR004000009","Housing Authority of the City of Little Rock","FW-7045","082586058","0637","12/31"]
[312,"CA067","Alameda County Hsg Auth","SF-1879","089188353","0901","2011-06-30",null,null,null,null,null,null,null,null,null,null,null,null,null,null,null,null,null,null,null,null,null,null,null,null,null,null,null,null,null,null,null,null,null,null,null,null,null,null,null,null,null,null,null,null,null,312,"AR004","AR004000010","Housing Authority of the City of Little Rock","FW-7045","082586058","0637","12/31"]
[313,"CA069","The Housing Authority of the City of Madera","SF-410","122658000","0901","2011-06-30",null,null,null,null,null,null,null,null,null,null,null,null,null,null,null,null,null,null,null,null,null,null,null,null,null,null,null,null,null,null,null,null,null,null,null,null,null,null,null,null,null,null,null,null,null,313,"AR004","AR004000011","Housing Authority of the City of Little Rock","FW-7045","082586058","0637","12/31"]
[314,"CA070","County of Plumas Housing Authority","SF-1722","139610047","0930","2011-06-30",null,null,null,null,null,null,null,null,null,null,null,null,null,null,null,null,null,null,null,null,null,null,null,null,null,null,null,null,null,null,null,null,null,null,null,null,null,null,null,null,null,null,null,null,null,314,"AR004","AR004000018","Housing Authority of the City of Little Rock","FW-7045","082586058","0637","12/31"]
[315,"CA072","Santa Cruz County Hsg Auth","SF-1621","010923928","0901","2011-06-30",null,null,null,null,null,null,null,null,null,null,null,null,null,null,null,null,null,null,null,null,null,null,null,null,null,null,null,null,null,null,null,null,null,null,null,null,null,null,null,null,null,null,null,null,null,315,"AR004","AR004000020","Housing Authority of the City of Little Rock","FW-7045","082586058","0637","12/31"]
[316,"CA074","Hsg Auth of the City of Livermore","SF-414","073955429","0901","2011-06-30",null,null,null,null,null,null,null,null,null,null,null,null,null,null,null,null,null,null,null,null,null,null,null,null,null,null,null,null,null,null,null,null,null,null,null,null,null,null,null,null,null,null,null,null,null,316,"AR005","AR005000001","Blytheville Housing Authority","FW7077","956583850","0637","09/30"]
[317,"CA076","Housing Authority of the City of Santa Barbara","CA076","094444064","0000","2011-03-31",null,null,null,null,null,null,null,null,null,null,null,null,null,null,null,null,null,null,null,null,null,null,null,null,null,null,null,null,null,null,null,null,null,null,null,null,null,null,null,null,null,null,null,null,null,317,"AR006","AR006000001","Housing Authority of the City of Conway","FW-7039","003940863","0637","09/30"]
[318,"CA081","Housing Authority of the City of Pleasanton","SF-426","136284648","0901","2011-06-30",null,null,null,null,null,null,null,null,null,null,null,null,null,null,null,null,null,null,null,null,null,null,null,null,null,null,null,null,null,null,null,null,null,null,null,null,null,null,null,null,null,null,null,null,null,318,"AR010","AR010000001","NW Regional Housing Authority","FW7521","050051317","0637","12/31"]
[319,"CA092","Housing Authority of the County of Ventura","SF-568","108880337","0916","2011-06-30",null,null,null,null,null,null,null,null,null,null,null,null,null,null,null,null,null,null,null,null,null,null,null,null,null,null,null,null,null,null,null,null,null,null,null,null,null,null,null,null,null,null,null,null,null,319,"AR012","AR012000001","Arkadelphia Housing Authority","FW-7101","003465192","0637","06/30"]
[320,"CA108","Housing Authority of the County of San Diego","SF573","948336466","0916","2011-06-30",null,null,null,null,null,null,null,null,null,null,null,null,null,null,null,null,null,null,null,null,null,null,null,null,null,null,null,null,null,null,null,null,null,null,null,null,null,null,null,null,null,null,null,null,null,320,"AR015","AR015000001","Housing Authority of the City of Texarkana","FW7048","069738201","0637","03/31"]
[321,"CA139","Housing Authority of the City of Lomita","SF585","142890222","0916","2011-06-30",null,null,null,null,null,null,null,null,null,null,null,null,null,null,null,null,null,null,null,null,null,null,null,null,null,null,null,null,null,null,null,null,null,null,null,null,null,null,null,null,null,null,null,null,null,321,"AR015","AR015000004","Housing Authority of the City of Texarkana","FW7048","069738201","0637","03/31"]
[322,"CA142","Dublin Housing Authority","SF-1879","627203912","0901","2011-06-30",null,null,null,null,null,null,null,null,null,null,null,null,null,null,null,null,null,null,null,null,null,null,null,null,null,null,null,null,null,null,null,null,null,null,null,null,null,null,null,null,null,null,null,null,null,322,"AR016","AR016000001","CAMDEN HOUSING AUTHORITY","FW-7029","142496582","0637","09/30"]
[323,"CA143","Imperial Valley Housing Authority","SF-1882","198786795","0916","2011-06-30",null,null,null,null,null,null,null,null,null,null,null,null,null,null,null,null,null,null,null,null,null,null,null,null,null,null,null,null,null,null,null,null,null,null,null,null,null,null,null,null,null,null,null,null,null,323,"AR016","AR016000003","CAMDEN HOUSING AUTHORITY","FW-7029","142496582","0637","09/30"]
[324,"CO001","Housing Authority of the City And County of Denver","FW 1166","039141353","0801","2011-12-31",null,null,null,null,null,null,null,null,null,null,null,null,null,null,null,null,null,null,null,null,null,null,null,null,null,null,null,null,null,null,null,null,null,null,null,null,null,null,null,null,null,null,null,null,null,324,"AR017","AR017000001","Pine Bluff Housing Authority","FW7101","948545108","0637","03/31"]
[325,"CO002","Housing Authority of the City of Pueblo","FW 1189","040708752","0801","2011-03-31",null,null,null,null,null,null,null,null,null,null,null,null,null,null,null,null,null,null,null,null,null,null,null,null,null,null,null,null,null,null,null,null,null,null,null,null,null,null,null,null,null,null,null,null,null,325,"AR018","AR018000001","Housing Authority of the City of Magnolia","FW7043","137314089","0637","12/31"]
[326,"CO003","Housing Authority of the City of Walsenburg","FW 521","171629467","0801","2011-03-31",null,null,null,null,null,null,null,null,null,null,null,null,null,null,null,null,null,null,null,null,null,null,null,null,null,null,null,null,null,null,null,null,null,null,null,null,null,null,null,null,null,null,null,null,null,326,"AR020","AR020000001","Little River County Housing Authority","FW7034","139032838","0637","06/30"]
[327,"CO004","Housing Authority of the City of Alamosa","FW 511","948213566","0801","2011-03-31",null,null,null,null,null,null,null,null,null,null,null,null,null,null,null,null,null,null,null,null,null,null,null,null,null,null,null,null,null,null,null,null,null,null,null,null,null,null,null,null,null,null,null,null,null,327,"AR021","AR021000001","Housing Authority of the City of Osceola","FW7201","027309392","0637","09/30"]
[328,"CO005","Trinidad Housing Authority","FW 1204","037538493","0801","2011-03-31",null,null,null,null,null,null,null,null,null,null,null,null,null,null,null,null,null,null,null,null,null,null,null,null,null,null,null,null,null,null,null,null,null,null,null,null,null,null,null,null,null,null,null,null,null,328,"AR022","AR022000001","Housing Authority of the County of Sevier","FW7093","838926496","0637","06/30"]
[329,"CO006","Housing Authority of the City of Lamar","DEN 2174","791919517","0801","2011-12-31",null,null,null,null,null,null,null,null,null,null,null,null,null,null,null,null,null,null,null,null,null,null,null,null,null,null,null,null,null,null,null,null,null,null,null,null,null,null,null,null,null,null,null,null,null,329,"AR023","AR023000001","Housing Authority of the County of Poinsett","FW7103","004392490","0637","06/30"]
[330,"CO007","Housing Authority of the Town of Holly","FW 801","137569823","0801","2011-12-31",null,null,null,null,null,null,null,null,null,null,null,null,null,null,null,null,null,null,null,null,null,null,null,null,null,null,null,null,null,null,null,null,null,null,null,null,null,null,null,null,null,null,null,null,null,330,"AR024","AR024000001","West Memphis Housing Authority","FW7169","067710285","0637","06/30"]
[331,"CO008","Housing Authority of Antonito","FW799","792365397","0801","2011-12-31",null,null,null,null,null,null,null,null,null,null,null,null,null,null,null,null,null,null,null,null,null,null,null,null,null,null,null,null,null,null,null,null,null,null,null,null,null,null,null,null,null,null,null,null,null,331,"AR025","AR025000001","Housing Authority of the County of Howard","FW-7141","140321097","0637","06/30"]
[332,"CO009","Housing Authority of the Town of Yuma","FW 749","102569642","0801","2011-12-31",null,null,null,null,null,null,null,null,null,null,null,null,null,null,null,null,null,null,null,null,null,null,null,null,null,null,null,null,null,null,null,null,null,null,null,null,null,null,null,null,null,null,null,null,null,332,"AR026","AR026000001","Housing Authority of the City of Morrilton","FW7047","056263783","0637","06/30"]
[333,"CO011","Fort Morgan Housing Authority","FW 847","149211161","0801","2011-12-31",null,null,null,null,null,null,null,null,null,null,null,null,null,null,null,null,null,null,null,null,null,null,null,null,null,null,null,null,null,null,null,null,null,null,null,null,null,null,null,null,null,null,null,null,null,333,"AR027","AR027000001","Housing Authority of the City of Marianna","FW7097","048477772","0637","03/31"]
[334,"CO012","Housing Authority of the Town of Limon","FW 865","938779000","0801","2011-12-31",null,null,null,null,null,null,null,null,null,null,null,null,null,null,null,null,null,null,null,null,null,null,null,null,null,null,null,null,null,null,null,null,null,null,null,null,null,null,null,null,null,null,null,null,null,334,"AR028","AR028000001","Housing Authority of the City of Newport","FW7101","143490865","0637","06/30"]
[335,"CO013","Housing Authority of the City of Salida","DEN 973","042234869","0801","2011-12-31",null,null,null,null,null,null,null,null,null,null,null,null,null,null,null,null,null,null,null,null,null,null,null,null,null,null,null,null,null,null,null,null,null,null,null,null,null,null,null,null,null,null,null,null,null,335,"AR029","AR029000001","Housing Authority of the City of Van Buren","FW7051","003909736","0637","06/30"]
[336,"CO014","Wellington Housing Authority","DEN 1236","018197681","0801","2011-12-31",null,null,null,null,null,null,null,null,null,null,null,null,null,null,null,null,null,null,null,null,null,null,null,null,null,null,null,null,null,null,null,null,null,null,null,null,null,null,null,null,null,null,null,null,null,336,"AR031","AR031000001","Hot Springs Housing Authority","FW-7088","135904287","0637","06/30"]
[337,"CO015","Housing Authority of the Town of Aguilar","FW 1368","005443465","0801","2011-12-31",null,null,null,null,null,null,null,null,null,null,null,null,null,null,null,null,null,null,null,null,null,null,null,null,null,null,null,null,null,null,null,null,null,null,null,null,null,null,null,null,null,null,null,null,null,337,"AR031","AR031000002","Hot Springs Housing Authority","FW-7088","135904287","0637","06/30"]
[338,"CO016","Boulder Housing Partners","DEN 514","608595096","0801","2011-12-31",null,null,null,null,null,null,null,null,null,null,null,null,null,null,null,null,null,null,null,null,null,null,null,null,null,null,null,null,null,null,null,null,null,null,null,null,null,null,null,null,null,null,null,null,null,338,"AR032","AR032000001","Housing Authority of the City of Paris","FW7170","017750089","0637","06/30"]
[339,"CO017","Housing Authority of the Town of Haxtun","FW 1282","131624855","0801","2011-03-31",null,null,null,null,null,null,null,null,null,null,null,null,null,null,null,null,null,null,null,null,null,null,null,null,null,null,null,null,null,null,null,null,null,null,null,null,null,null,null,null,null,null,null,null,null,339,"AR034","AR034000001","Trumann Housing Authority","FW7098","073534745","0637","12/31"]
[340,"CO018","Housing Authority of the Town of Kersey","FW 1366","613232842","0801","2011-03-31",null,null,null,null,null,null,null,null,null,null,null,null,null,null,null,null,null,null,null,null,null,null,null,null,null,null,null,null,null,null,null,null,null,null,null,null,null,null,null,null,null,null,null,null,null,340,"AR035","AR035000001","Searcy Housing Authority","FW7167","962943879","0637","12/31"]
[341,"CO019","Housing Authority of the City of Brighton","DEN 056","017624847","0801","2011-12-31",null,null,null,null,null,null,null,null,null,null,null,null,null,null,null,null,null,null,null,null,null,null,null,null,null,null,null,null,null,null,null,null,null,null,null,null,null,null,null,null,null,null,null,null,null,341,"AR037","AR037000001","Housing Authority of the City of Prescott","FW7211","603895996","0637","03/31"]
[342,"CO020","Housing Authority of the Town of Keenesburg","DEN 039","149313116","0801","2011-12-31",null,null,null,null,null,null,null,null,null,null,null,null,null,null,null,null,null,null,null,null,null,null,null,null,null,null,null,null,null,null,null,null,null,null,null,null,null,null,null,null,null,null,null,null,null,342,"AR038","AR038000001","Housing Authority of the City of Booneville","FW7216","143832868","0637","12/31"]
[343,"CO021","Julesburg Housing Authority","DEN 050","169561883","0801","2011-12-31",null,null,null,null,null,null,null,null,null,null,null,null,null,null,null,null,null,null,null,null,null,null,null,null,null,null,null,null,null,null,null,null,null,null,null,null,null,null,null,null,null,null,null,null,null,343,"AR039","AR039000001","Wynne Housing Authority","FW7068","963576954","0637","03/31"]
[344,"CO022","Housing Authority of the City of Wray","DEN 091","835646068","0801","2011-03-31",null,null,null,null,null,null,null,null,null,null,null,null,null,null,null,null,null,null,null,null,null,null,null,null,null,null,null,null,null,null,null,null,null,null,null,null,null,null,null,null,null,null,null,null,null,344,"AR040","AR040000001","Housing Authority of the City of Des Arc","FW-7071","158340950","0637","06/30"]
[345,"CO023","Holyoke Housing Authority","DEN 298","826976946","0801","2011-12-31",null,null,null,null,null,null,null,null,null,null,null,null,null,null,null,null,null,null,null,null,null,null,null,null,null,null,null,null,null,null,null,null,null,null,null,null,null,null,null,null,null,null,null,null,null,345,"AR041","AR041000001","Lonoke County Housing Authority","FW7101","004209490","0637","06/30"]
[346,"CO025","Housing Authority of the City of Sterling","DEN 296","114678548","0801","2011-03-31",null,null,null,null,null,null,null,null,null,null,null,null,null,null,null,null,null,null,null,null,null,null,null,null,null,null,null,null,null,null,null,null,null,null,null,null,null,null,null,null,null,null,null,null,null,346,"AR042","AR042000001","Star City Housing Authority","FW7065","100673316","0637","06/30"]
[347,"CO026","Housing Authority for the Town of Cheyenne Wells","DEN 195","835645000","0801","2011-03-31",null,null,null,null,null,null,null,null,null,null,null,null,null,null,null,null,null,null,null,null,null,null,null,null,null,null,null,null,null,null,null,null,null,null,null,null,null,null,null,null,null,null,null,null,null,347,"AR043","AR043000001","Housing Authority of the City of Dumas","FW-7028","963455522","0637","12/31"]
[348,"CO028","Housing Authority of the City of Colorado Springs","DEN 297","801608506","0801","2011-12-31",null,null,null,null,null,null,null,null,null,null,null,null,null,null,null,null,null,null,null,null,null,null,null,null,null,null,null,null,null,null,null,null,null,null,null,null,null,null,null,null,null,null,null,null,null,348,"AR044","AR044000001","Housing Authority of the City of Waldron","FW7089","603896705","0637","06/30"]
[349,"CO029","Housing Authority of the City of Fort Lupton","DEN 300","796496529","0801","2011-12-31",null,null,null,null,null,null,null,null,null,null,null,null,null,null,null,null,null,null,null,null,null,null,null,null,null,null,null,null,null,null,null,null,null,null,null,null,null,null,null,null,null,null,null,null,null,349,"AR045","AR045000001","Pike County Housing Authority","FW7083","004371696","0637","03/31"]
[350,"CO030","Burlington Housing Authority","DEN-355","612346635","0801","2011-06-30",null,null,null,null,null,null,null,null,null,null,null,null,null,null,null,null,null,null,null,null,null,null,null,null,null,null,null,null,null,null,null,null,null,null,null,null,null,null,null,null,null,null,null,null,null,350,"AR046","AR046000001","HOUSING AUTHORITY OF THE CITY OF AMITY","FW-7104","131622123","0637","03/31"]
[351,"CO031","La Junta Housing Authority","DEN 267","081961922","0801","2011-03-31",null,null,null,null,null,null,null,null,null,null,null,null,null,null,null,null,null,null,null,null,null,null,null,null,null,null,null,null,null,null,null,null,null,null,null,null,null,null,null,null,null,null,null,null,null,351,"AR047","AR047000001","Housing Authority of the City of Hoxie","FW7074","959996612","0637","06/30"]
[352,"CO034","Loveland Housing Authority","DEN 547","149319998","0801","2011-06-30",null,null,null,null,null,null,null,null,null,null,null,null,null,null,null,null,null,null,null,null,null,null,null,null,null,null,null,null,null,null,null,null,null,null,null,null,null,null,null,null,null,null,null,null,null,352,"AR048","AR048000001","Housing Authority of the City of Dewitt","FW172","788622744","0637","03/31"]
[353,"CO035","Housing Authority of the City of Greeley","DEN 295","149370678","0801","2011-12-31",null,null,null,null,null,null,null,null,null,null,null,null,null,null,null,null,null,null,null,null,null,null,null,null,null,null,null,null,null,null,null,null,null,null,null,null,null,null,null,null,null,null,null,null,null,353,"AR049","AR049000001","Housing Authority of the City of Gurdon","FW7219","616929656","0637","09/30"]
[354,"CO036","Littleton Housing Authority","DEN-524","018778113","0801","2011-09-30",null,null,null,null,null,null,null,null,null,null,null,null,null,null,null,null,null,null,null,null,null,null,null,null,null,null,null,null,null,null,null,null,null,null,null,null,null,null,null,null,null,null,null,null,null,354,"AR050","AR050000001","Housing Authority of the City of Helena","FW-7078","131055720","0637","12/31"]
[355,"CO037","Costilla County Housing Authority","DEN 584","039779020","0801","2011-09-30",null,null,null,null,null,null,null,null,null,null,null,null,null,null,null,null,null,null,null,null,null,null,null,null,null,null,null,null,null,null,null,null,null,null,null,null,null,null,null,null,null,null,null,null,null,355,"AR050","AR050000002","Housing Authority of the City of Helena","FW-7078","131055720","0637","12/31"]
[356,"CO038","Conejos County Housing Authority","DEN 660","149215667","0801","2011-03-31",null,null,null,null,null,null,null,null,null,null,null,null,null,null,null,null,null,null,null,null,null,null,null,null,null,null,null,null,null,null,null,null,null,null,null,null,null,null,null,null,null,null,null,null,null,356,"AR050","AR050000003","Housing Authority of the City of Helena","FW-7078","131055720","0637","12/31"]
[357,"CO040","Delta Housing Authority","DEN 527","363014440","0801","2011-12-31",null,null,null,null,null,null,null,null,null,null,null,null,null,null,null,null,null,null,null,null,null,null,null,null,null,null,null,null,null,null,null,null,null,null,null,null,null,null,null,null,null,null,null,null,null,357,"AR051","AR051000001","Housing Authority of the City of Clarksville","FW7191","103041641","0637","06/30"]
[358,"CO041","Fort Collins Housing Authority","DEN 2017","182045914","0801","2011-12-31",null,null,null,null,null,null,null,null,null,null,null,null,null,null,null,null,null,null,null,null,null,null,null,null,null,null,null,null,null,null,null,null,null,null,null,null,null,null,null,null,null,null,null,null,null,358,"AR052","AR052000001","Clarendon Housing Authority","FW7064","876689684","0637","06/30"]
[359,"CO043","Center Housing Authority","DEN 525","145015496","0801","2011-06-30",null,null,null,null,null,null,null,null,null,null,null,null,null,null,null,null,null,null,null,null,null,null,null,null,null,null,null,null,null,null,null,null,null,null,null,null,null,null,null,null,null,null,null,null,null,359,"AR053","AR053000001","Housing Authority of the City of McGehee","FW995","962553731","0637","09/30"]
[360,"CO044","Housing Authority of the City of Brush","DEN 2254","137466053","0801","2011-12-31",null,null,null,null,null,null,null,null,null,null,null,null,null,null,null,null,null,null,null,null,null,null,null,null,null,null,null,null,null,null,null,null,null,null,null,null,null,null,null,null,null,null,null,null,null,360,"AR054","AR054000001","Housing Authority of the City of Wilson","FW7035","619354421","0637","03/31"]
[361,"CO048","Englewood Housing Authority","DEN 2375","187040605","0801","2011-12-31",null,null,null,null,null,null,null,null,null,null,null,null,null,null,null,null,null,null,null,null,null,null,null,null,null,null,null,null,null,null,null,null,null,null,null,null,null,null,null,null,null,null,null,null,null,361,"AR055","AR055000001","Housing Authority of the City of Dardanelle","FW-7192","004918173","0637","12/31"]
[362,"CO049","Lakewood Housing Authority","DEN02","138616789","0801","2011-12-31",null,null,null,null,null,null,null,null,null,null,null,null,null,null,null,null,null,null,null,null,null,null,null,null,null,null,null,null,null,null,null,null,null,null,null,null,null,null,null,null,null,null,null,null,null,362,"AR057","AR057000001","Housing Authority of the City of Imboden","FW7053","807217380","0637","06/30"]
[363,"CO052","Aurora Housing Authority","DEN 800","024700189","0801","2011-12-31",null,null,null,null,null,null,null,null,null,null,null,null,null,null,null,null,null,null,null,null,null,null,null,null,null,null,null,null,null,null,null,null,null,null,null,null,null,null,null,null,null,null,null,null,null,363,"AR058","AR058000001","Housing Authority of the County of Arkansas","FW-7204","131632361","0637","03/31"]
[364,"CO058","Adams County Housing Authority","DEN2508","025143066","0801","2011-12-31",null,null,null,null,null,null,null,null,null,null,null,null,null,null,null,null,null,null,null,null,null,null,null,null,null,null,null,null,null,null,null,null,null,null,null,null,null,null,null,null,null,null,null,null,null,364,"AR059","AR059000001","Housing Authority of the City of Brinkley","FW-7106","004322665","0637","06/30"]
[365,"CO059","Louisville Housing Authority","DEN 2332","847839313","0801","2011-12-31",null,null,null,null,null,null,null,null,null,null,null,null,null,null,null,null,null,null,null,null,null,null,null,null,null,null,null,null,null,null,null,null,null,null,null,null,null,null,null,null,null,null,null,null,null,365,"AR060","AR060000001","Housing Authority of the City of West Helena","FW7054","800992380","0637","12/31"]
[366,"CO071","Housing Authority of the City of Fountain","DEN 2319","959691098","0801","2011-12-31",null,null,null,null,null,null,null,null,null,null,null,null,null,null,null,null,null,null,null,null,null,null,null,null,null,null,null,null,null,null,null,null,null,null,null,null,null,null,null,null,null,null,null,null,null,366,"AR061","AR061000001","Housing Authority of the City of Hughes","FW7101","004559795","0637","12/31"]
[367,"CO079","Housing Authority of the County of Montezuma","DEN 2312","149264000","0801","2011-12-31",null,null,null,null,null,null,null,null,null,null,null,null,null,null,null,null,null,null,null,null,null,null,null,null,null,null,null,null,null,null,null,null,null,null,null,null,null,null,null,null,null,null,null,null,null,367,"AR063","AR063000062","Housing Authority of the City of Pocahontas","FW7076","191602119","0637","06/30"]
[368,"CT001","Housing Authority of the City of Bridgeport","NY 387","089625100","0126","2011-09-30",null,null,null,null,null,null,null,null,null,null,null,null,null,null,null,null,null,null,null,null,null,null,null,null,null,null,null,null,null,null,null,null,null,null,null,null,null,null,null,null,null,null,null,null,null,368,"AR064","AR064000003","Housing Authority of the City of Earle","FW-7100","044821924","0637","12/31"]
[369,"CT002","Housing Authority of the City of Norwalk","NY355","082670597","0126","2011-03-31",null,null,null,null,null,null,null,null,null,null,null,null,null,null,null,null,null,null,null,null,null,null,null,null,null,null,null,null,null,null,null,null,null,null,null,null,null,null,null,null,null,null,null,null,null,369,"AR065","AR065000001","Housing Authority of the City of Stephens","FW7208","136946329","0637","12/31"]
[370,"CT003","Housing Authority of the City of Hartford","NY385","146662606","0126","2011-12-31",null,null,null,null,null,null,null,null,null,null,null,null,null,null,null,null,null,null,null,null,null,null,null,null,null,null,null,null,null,null,null,null,null,null,null,null,null,null,null,null,null,null,null,null,null,370,"AR066","AR066000001","Russellville Housing Authority","FW7193","004623890","0637","06/30"]
[371,"CT004","Housing Authority of the City of New Haven","NY414","039623500","0126","2011-09-30",null,null,null,null,null,null,null,null,null,null,null,null,null,null,null,null,null,null,null,null,null,null,null,null,null,null,null,null,null,null,null,null,null,null,null,null,null,null,null,null,null,null,null,null,null,371,"AR068","AR068000001","Hope Housing Authority","FW-7019","017722062","0637","06/30"]
[372,"CT005","Housing Authority of the City of New Britain","NY-341","144928678","0126","2011-12-31",null,null,null,null,null,null,null,null,null,null,null,null,null,null,null,null,null,null,null,null,null,null,null,null,null,null,null,null,null,null,null,null,null,null,null,null,null,null,null,null,null,null,null,null,null,372,"AR069","AR069000001","Housing Authority of the City of Rector","FW7072","003474830","0637","06/30"]
[373,"CT006","Waterbury Housing Authority","B-92","137781000","0126","2011-06-30",null,null,null,null,null,null,null,null,null,null,null,null,null,null,null,null,null,null,null,null,null,null,null,null,null,null,null,null,null,null,null,null,null,null,null,null,null,null,null,null,null,null,null,null,null,373,"AR070","AR070000001","Housing Authority of the City of Monette","FW7023","087388612","0637","12/31"]
[374,"CT007","Stamford Housing Authority","NY-378","086642915","0126","2011-06-30",null,null,null,null,null,null,null,null,null,null,null,null,null,null,null,null,null,null,null,null,null,null,null,null,null,null,null,null,null,null,null,null,null,null,null,null,null,null,null,null,null,null,null,null,null,374,"AR071","AR071000001","Housing Authority of the City of Batesville","FW7058","794968875","0637","09/30"]
[375,"CT009","Middletown Housing Authority","NY582","095535084","0126","2011-03-31",null,null,null,null,null,null,null,null,null,null,null,null,null,null,null,null,null,null,null,null,null,null,null,null,null,null,null,null,null,null,null,null,null,null,null,null,null,null,null,null,null,null,null,null,null,375,"AR072","AR072000001","Housing Authority of the City of Parkin","FW1455","799347781","0637","03/31"]
[376,"CT010","Willimantic Housing Authority","NY-460","095535563","0126","2011-06-30",null,null,null,null,null,null,null,null,null,null,null,null,null,null,null,null,null,null,null,null,null,null,null,null,null,null,null,null,null,null,null,null,null,null,null,null,null,null,null,null,null,null,null,null,null,376,"AR073","AR073000001","Housing Authority of the City of Sparkman","FW7080","142559736","0637","09/30"]
[377,"CT011","Housing Authority of the City of Meriden","NY-314","081306466","0126","2011-09-30",null,null,null,null,null,null,null,null,null,null,null,null,null,null,null,null,null,null,null,null,null,null,null,null,null,null,null,null,null,null,null,null,null,null,null,null,null,null,null,null,null,null,null,null,null,377,"AR074","AR074000001","Housing Authority of the City of Salem","FW1032","616930079","0637","12/31"]
[378,"CT013","East Hartford Housing Authority","NY392","118338094","0126","2011-09-30",null,null,null,null,null,null,null,null,null,null,null,null,null,null,null,null,null,null,null,null,null,null,null,null,null,null,null,null,null,null,null,null,null,null,null,null,null,null,null,null,null,null,null,null,null,378,"AR075","AR075000001","Housing Authority of the City of Leachville","FW7091","958877193","0637","09/30"]
[379,"CT015","Housing Authority of the City of Ansonia","NY-365","082669100","0126","2011-12-31",null,null,null,null,null,null,null,null,null,null,null,null,null,null,null,null,null,null,null,null,null,null,null,null,null,null,null,null,null,null,null,null,null,null,null,null,null,null,null,null,null,null,null,null,null,379,"AR076","AR076000001","Housing Authority of the City of Mount Ida","FW7096","020949843","0637","09/30"]
[380,"CT018","Norwich Housing Authority","NY417","122199318","0126","2011-03-31",null,null,null,null,null,null,null,null,null,null,null,null,null,null,null,null,null,null,null,null,null,null,null,null,null,null,null,null,null,null,null,null,null,null,null,null,null,null,null,null,null,null,null,null,null,380,"AR078","AR078000001","Housing Authority of the City of Dell","FW-7206","004294898","0637","12/31"]
[381,"CT019","Greenwich Housing Authority","NY-369","072129500","0126","2011-12-31",null,null,null,null,null,null,null,null,null,null,null,null,null,null,null,null,null,null,null,null,null,null,null,null,null,null,null,null,null,null,null,null,null,null,null,null,null,null,null,null,null,null,null,null,null,381,"AR079","AR079000001","Housing Authority of the City of Luxora","FW7052","848717120","0637","03/31"]
[382,"CT020","Housing Authority of the City of Danbury","NY428","023030810","0126","2011-12-31",null,null,null,null,null,null,null,null,null,null,null,null,null,null,null,null,null,null,null,null,null,null,null,null,null,null,null,null,null,null,null,null,null,null,null,null,null,null,null,null,null,null,null,null,null,382,"AR080","AR080000001","Housing Authority of the City of Manila","FW7095","066150228","0637","09/30"]
[383,"CT022","New London Housing Authority","NY464","122200561","0126","2011-12-31",null,null,null,null,null,null,null,null,null,null,null,null,null,null,null,null,null,null,null,null,null,null,null,null,null,null,null,null,null,null,null,null,null,null,null,null,null,null,null,null,null,null,null,null,null,383,"AR081","AR081000001","Housing Authority of the City of Carthage","FW-7061","137397944","0637","03/31"]
[384,"CT023","Bristol Housing Authority","NY 423","081306680","0126","2011-06-30",null,null,null,null,null,null,null,null,null,null,null,null,null,null,null,null,null,null,null,null,null,null,null,null,null,null,null,null,null,null,null,null,null,null,null,null,null,null,null,null,null,null,null,null,null,384,"AR082","AR082000001","Warren Housing Authority","FW7130","963575733","0637","12/31"]
[385,"CT024","Putnam Housing Authority","NY 350","962825105","0126","2011-06-30",null,null,null,null,null,null,null,null,null,null,null,null,null,null,null,null,null,null,null,null,null,null,null,null,null,null,null,null,null,null,null,null,null,null,null,null,null,null,null,null,null,null,null,null,null,385,"AR083","AR083000001","Housing Authority of the City of Gould","FW-7086","137819210","0637","03/31"]
[386,"CT025","Winchester Housing Authority","NY 343","131007338","0126","2011-06-30",null,null,null,null,null,null,null,null,null,null,null,null,null,null,null,null,null,null,null,null,null,null,null,null,null,null,null,null,null,null,null,null,null,null,null,null,null,null,null,null,null,null,null,null,null,386,"AR084","AR084000001","Housing Authority of the City of Bald Knob","FW7070","102047974","0637","06/30"]
[387,"CT026","Manchester Housing Authority","NY-452","955327760","0126","2011-09-30",null,null,null,null,null,null,null,null,null,null,null,null,null,null,null,null,null,null,null,null,null,null,null,null,null,null,null,null,null,null,null,null,null,null,null,null,null,null,null,null,null,null,null,null,null,387,"AR085","AR085000001","Housing Authority of the City of Dover","FW7203","969136902","0637","09/30"]
[388,"CT027","Housing Authority of the Town of Stratford","NY429","037510062","0126","2011-12-31",null,null,null,null,null,null,null,null,null,null,null,null,null,null,null,null,null,null,null,null,null,null,null,null,null,null,null,null,null,null,null,null,null,null,null,null,null,null,null,null,null,null,null,null,null,388,"AR086","AR086000001","Housing Authority of the City of Mammoth Spring","FW7062","0","0637","03/31"]
[389,"CT028","Vernon Housing Authority","NY 406","095538146","0126","2011-12-31",null,null,null,null,null,null,null,null,null,null,null,null,null,null,null,null,null,null,null,null,null,null,null,null,null,null,null,null,null,null,null,null,null,null,null,null,null,null,null,null,null,null,null,null,null,389,"AR087","AR087000001","Housing Authority of the City of Crossett","FW7046","949865455","0637","09/30"]
[390,"CT029","West Haven Housing Authority","NY462","097213144","0126","2011-03-31",null,null,null,null,null,null,null,null,null,null,null,null,null,null,null,null,null,null,null,null,null,null,null,null,null,null,null,null,null,null,null,null,null,null,null,null,null,null,null,null,null,null,null,null,null,390,"AR088","AR088000001","Housing Authority of the City of Lake City","FW7179","057907651","0637","09/30"]
[391,"CT030","Milford Redevelopment & Housing Partnership","NY 463","098179245","0126","2011-03-31",null,null,null,null,null,null,null,null,null,null,null,null,null,null,null,null,null,null,null,null,null,null,null,null,null,null,null,null,null,null,null,null,null,null,null,null,null,null,null,null,null,null,null,null,null,391,"AR089","AR089000001","Housing Authority of the City of Newark","FW2710","137682147","0637","12/31"]
[392,"CT031","Torrington Housing Authority","NY 560","063083800","0126","2011-12-31",null,null,null,null,null,null,null,null,null,null,null,null,null,null,null,null,null,null,null,null,null,null,null,null,null,null,null,null,null,null,null,null,null,null,null,null,null,null,null,null,null,null,null,null,null,392,"AR090","AR090000001","Housing Authority of the City of Judsonia","FW7079","958724882","0637","09/30"]
[393,"CT032","Windsor Locks Housing Authority","B-2002","625842661","0126","2011-06-30",null,null,null,null,null,null,null,null,null,null,null,null,null,null,null,null,null,null,null,null,null,null,null,null,null,null,null,null,null,null,null,null,null,null,null,null,null,null,null,null,null,null,null,null,null,393,"AR091","AR091000001","Housing Authority of the City of Ola","FW7075","932945470","0637","03/31"]
[394,"CT035","Housing Authority of the Town of Seymour","NY 572","072124241","0126","2011-12-31",null,null,null,null,null,null,null,null,null,null,null,null,null,null,null,null,null,null,null,null,null,null,null,null,null,null,null,null,null,null,null,null,null,null,null,null,null,null,null,null,null,null,null,null,null,394,"AR092","AR092000001","Housing Authority of the City of Caraway","FW-202","968985176","0637","09/30"]
[395,"CT036","Portland Housing Authority","B-2004","103963385","0126","2011-03-31",null,null,null,null,null,null,null,null,null,null,null,null,null,null,null,null,null,null,null,null,null,null,null,null,null,null,null,null,null,null,null,null,null,null,null,null,null,null,null,null,null,null,null,null,null,395,"AR093","AR093000001","Housing Authority of the City of Hickory Ridge","FW-7074","956065106","0637","06/30"]
[396,"CT040","Housing Authority of the Town of Glastonbury","B-2068","095530192","0126","2011-06-30",null,null,null,null,null,null,null,null,null,null,null,null,null,null,null,null,null,null,null,null,null,null,null,null,null,null,null,null,null,null,null,null,null,null,null,null,null,null,null,null,null,null,null,null,null,396,"AR094","AR094000001","Housing Authority of the City of Malvern","FW7102","107752834","0637","09/30"]
[397,"CT047","Naugatuck Housing Authority","NY 503","097213805","0126","2011-12-31",null,null,null,null,null,null,null,null,null,null,null,null,null,null,null,null,null,null,null,null,null,null,null,null,null,null,null,null,null,null,null,null,null,null,null,null,null,null,null,null,null,null,null,null,null,397,"AR095","AR095000001","Housing Authority of the City of Decatur","FW958","137870395","0637","09/30"]
[398,"CT054","New Canaan Housing Authority","B2078","012219913","0000","2011-12-31",null,null,null,null,null,null,null,null,null,null,null,null,null,null,null,null,null,null,null,null,null,null,null,null,null,null,null,null,null,null,null,null,null,null,null,null,null,null,null,null,null,null,null,null,null,398,"AR096","AR096000001","Housing Authority of the City of Alma","FW-7069","034753319","0637","03/31"]
[399,"CT056","Bloomfield Housing Authority","B-2050","143176076","0126","2011-06-30",null,null,null,null,null,null,null,null,null,null,null,null,null,null,null,null,null,null,null,null,null,null,null,null,null,null,null,null,null,null,null,null,null,null,null,null,null,null,null,null,null,null,null,null,null,399,"AR097","AR097000001","Housing Authority of the City of Fayetteville","FW7031","809775059","0637","09/30"]
[400,"CT066","Brooklyn Housing Authority","B-2084","873162000","0126","2011-09-30",null,null,null,null,null,null,null,null,null,null,null,null,null,null,null,null,null,null,null,null,null,null,null,null,null,null,null,null,null,null,null,null,null,null,null,null,null,null,null,null,null,null,null,null,null,400,"AR098","AR098000001","Housing Authority of the City of McRae","FW7059","137055880","0637","03/31"]
[401,"DC001","D.C Housing Authority","W-76","138841726","0339","2011-09-30",null,null,null,null,null,null,null,null,null,null,null,null,null,null,null,null,null,null,null,null,null,null,null,null,null,null,null,null,null,null,null,null,null,null,null,null,null,null,null,null,null,null,null,null,null,401,"AR099","AR099000001","Housing Authority of the City of Forrest City","FW7049","960193845","0637","09/30"]
[402,"DE001","Wilmington Housing Authority","P-160","046558834","0301","2011-03-31",null,null,null,null,null,null,null,null,null,null,null,null,null,null,null,null,null,null,null,null,null,null,null,null,null,null,null,null,null,null,null,null,null,null,null,null,null,null,null,null,null,null,null,null,null,402,"AR099","AR099000002","Housing Authority of the City of Forrest City","FW7049","960193845","0637","09/30"]
[403,"DE002","DOVER HOUSING AUTHORITY","P-150","083237354","0301","2011-12-31",null,null,null,null,null,null,null,null,null,null,null,null,null,null,null,null,null,null,null,null,null,null,null,null,null,null,null,null,null,null,null,null,null,null,null,null,null,null,null,null,null,null,null,null,null,403,"AR101","AR101000001","Housing Authority of the City of Ozark","FW7028","003951001","0637","06/30"]
[404,"DE003","Newark Housing Authority","P-102","038014718","0301","2011-03-31",null,null,null,null,null,null,null,null,null,null,null,null,null,null,null,null,null,null,null,null,null,null,null,null,null,null,null,null,null,null,null,null,null,null,null,null,null,null,null,null,null,null,null,null,null,404,"AR102","AR102000001","Housing Authority of the City of Coal Hill","FW-7039","690711098","0637","09/30"]
[405,"DE004","Delaware State Housing Authority","P-4520","611186909","0301","2011-06-30",null,null,null,null,null,null,null,null,null,null,null,null,null,null,null,null,null,null,null,null,null,null,null,null,null,null,null,null,null,null,null,null,null,null,null,null,null,null,null,null,null,null,null,null,null,405,"AR103","AR103000123","Housing Authority of the City of Melbourne","FW7063","136950487","0637","03/31"]
[406,"FL001","Jacksonville Housing Authority","A-4242","933298937","0429","2011-09-30",null,null,null,null,null,null,null,null,null,null,null,null,null,null,null,null,null,null,null,null,null,null,null,null,null,null,null,null,null,null,null,null,null,null,null,null,null,null,null,null,null,null,null,null,null,406,"AR104","AR104000001","Springdale Housing Authority","FW7220","605498682","0637","09/30"]
[407,"FL002","Housing Authority of the City of St. Petersburg","A-4218","158909762","0414","2011-12-31",null,null,null,null,null,null,null,null,null,null,null,null,null,null,null,null,null,null,null,null,null,null,null,null,null,null,null,null,null,null,null,null,null,null,null,null,null,null,null,null,null,null,null,null,null,407,"AR106","AR106000001","Housing Authority of the City of Beebe","FW7216","004918116","0637","06/30"]
[408,"FL003","Tampa Housing Authority","A-4325","025637356","0414","2011-03-31",null,null,null,null,null,null,null,null,null,null,null,null,null,null,null,null,null,null,null,null,null,null,null,null,null,null,null,null,null,null,null,null,null,null,null,null,null,null,null,null,null,null,null,null,null,408,"AR111","AR111000001","Housing Authority of the City of Rison","FW7221","030055599","0637","09/30"]
[409,"FL004","Orlando Housing Authority","A-4129","101819712","0429","2011-03-31",null,null,null,null,null,null,null,null,null,null,null,null,null,null,null,null,null,null,null,null,null,null,null,null,null,null,null,null,null,null,null,null,null,null,null,null,null,null,null,null,null,null,null,null,null,409,"AR112","AR112000001","Housing Authority of the City of Marmaduke","FW7222","159240832","0637","09/30"]
[410,"FL005","Miami Dade Housing Agency","A-4252","136721177","0414","2011-09-30",null,null,null,null,null,null,null,null,null,null,null,null,null,null,null,null,null,null,null,null,null,null,null,null,null,null,null,null,null,null,null,null,null,null,null,null,null,null,null,null,null,null,null,null,null,410,"AR113","AR113000001","Housing Authority of the City of Heber Springs","FW7066","783988983","0637","09/30"]
[411,"FL006","Area Housing Commission","A-2977","147056477","0429","2011-03-31",null,null,null,null,null,null,null,null,null,null,null,null,null,null,null,null,null,null,null,null,null,null,null,null,null,null,null,null,null,null,null,null,null,null,null,null,null,null,null,null,null,null,null,null,null,411,"AR117","AR117000017","Polk County Housing Authority","FW7014","103656427","0637","09/30"]
[412,"FL007","Housing Authority of City of Daytona Beach","A-4254","040214249","0429","2011-06-30",null,null,null,null,null,null,null,null,null,null,null,null,null,null,null,null,null,null,null,null,null,null,null,null,null,null,null,null,null,null,null,null,null,null,null,null,null,null,null,null,null,null,null,null,null,412,"AR118","AR118000001","Housing Authority of the City of McCrory","FW1470","125156617","0637","09/30"]
[413,"FL008","Housing Authority of the City of Sarasota","A-4034","781975065","0414","2011-03-31",null,null,null,null,null,null,null,null,null,null,null,null,null,null,null,null,null,null,null,null,null,null,null,null,null,null,null,null,null,null,null,null,null,null,null,null,null,null,null,null,null,null,null,null,null,413,"AR121","AR121000001","Paragould Housing Authority","FW7033","086931375","0637","03/31"]
[414,"FL009","West Palm Beach Housing Authority","A-3625","177614559","0414","2011-03-31",null,null,null,null,null,null,null,null,null,null,null,null,null,null,null,null,null,null,null,null,null,null,null,null,null,null,null,null,null,null,null,null,null,null,null,null,null,null,null,null,null,null,null,null,null,414,"AR122","AR122000001","Housing Authority of the City of Yellville","FW7017","073294352","0637","03/31"]
[415,"FL010","Housing Authority of the City of Fort Lauderdale","A-4250","039262183","0414","2011-12-31",null,null,null,null,null,null,null,null,null,null,null,null,null,null,null,null,null,null,null,null,null,null,null,null,null,null,null,null,null,null,null,null,null,null,null,null,null,null,null,null,null,null,null,null,null,415,"AR123","AR123000001","Housing Authority of the City of Augusta","FW7013","969220136","0637","09/30"]
[416,"FL011","Housing Authority of the City of Lakeland","A-4227","060238086","0414","2011-12-31",null,null,null,null,null,null,null,null,null,null,null,null,null,null,null,null,null,null,null,null,null,null,null,null,null,null,null,null,null,null,null,null,null,null,null,null,null,null,null,null,null,null,null,null,null,416,"AR131","AR131000001","Jonesboro Urban Renewal HA","FW-7205","011641388","0637","03/31"]
[417,"FL012","HOUSING AUTHORITY OF AVON PARK","A-4136","089281661","0414","2011-12-31",null,null,null,null,null,null,null,null,null,null,null,null,null,null,null,null,null,null,null,null,null,null,null,null,null,null,null,null,null,null,null,null,null,null,null,null,null,null,null,null,null,null,null,null,null,417,"AR141","AR141000001","Housing Authority of the City of Atkins","FW-7081","017720330","0637","09/30"]
[418,"FL013","Housing Authority of the City of Key West","A-4223","831107180","0414","2011-12-31",null,null,null,null,null,null,null,null,null,null,null,null,null,null,null,null,null,null,null,null,null,null,null,null,null,null,null,null,null,null,null,null,null,null,null,null,null,null,null,null,null,null,null,null,null,418,"AR146","AR146000001","Housing Authority of the City of Kensett","FW7075","957508021","0637","09/30"]
[419,"FL015","Northwest Florida Regional Housing Authority","A-4257","138123612","0429","2011-12-31",null,null,null,null,null,null,null,null,null,null,null,null,null,null,null,null,null,null,null,null,null,null,null,null,null,null,null,null,null,null,null,null,null,null,null,null,null,null,null,null,null,null,null,null,null,419,"AR148","AR148000001","Housing Authority of the City of England","FW7050","801113853","0637","09/30"]
[420,"FL016","The Housing Authority of the City of Sanford, Florida","A-3308","084727700","0429","2011-06-30",null,null,null,null,null,null,null,null,null,null,null,null,null,null,null,null,null,null,null,null,null,null,null,null,null,null,null,null,null,null,null,null,null,null,null,null,null,null,null,null,null,null,null,null,null,420,"AR170","AR170000001","Jacksonville Housing Authority","FW7225","556955995","0637","06/30"]
[421,"FL017","Housing Authority of the City of Miami Beach","A-2218","072247349","0414","2011-06-30",null,null,null,null,null,null,null,null,null,null,null,null,null,null,null,null,null,null,null,null,null,null,null,null,null,null,null,null,null,null,null,null,null,null,null,null,null,null,null,null,null,null,null,null,null,421,"AR171","AR171000001","Housing Authority of the City of Greenwood","FW7214","139441146","0637","03/31"]
[422,"FL018","Panama City Housing Authority","A4236","101824480","0429","2011-09-30",null,null,null,null,null,null,null,null,null,null,null,null,null,null,null,null,null,null,null,null,null,null,null,null,null,null,null,null,null,null,null,null,null,null,null,null,null,null,null,null,null,null,null,null,null,422,"AR172","AR172000001","Housing Authority of the City of Cotton Plant","FW7041","847814977","0637","09/30"]
[423,"FL019","Housing Authority of the City of Cocoa","A-4128","038499422","0414","2011-06-30",null,null,null,null,null,null,null,null,null,null,null,null,null,null,null,null,null,null,null,null,null,null,null,null,null,null,null,null,null,null,null,null,null,null,null,null,null,null,null,null,null,null,null,null,null,423,"AR175","AR175000001","Housing Authority of the City of Benton, Ar","FW7223","112907530","0637","03/31"]
[424,"FL020","Housing Authority of Brevard County","A-4133","107211059","0414","2011-03-31",null,null,null,null,null,null,null,null,null,null,null,null,null,null,null,null,null,null,null,null,null,null,null,null,null,null,null,null,null,null,null,null,null,null,null,null,null,null,null,null,null,null,null,null,null,424,"AR197","AR197000001","White River Regional Housing Authority","FW7217","003995297","0637","06/30"]
[425,"FL021","Pahokee Housing Authority","A-2987","964864854","0414","2011-06-30",null,null,null,null,null,null,null,null,null,null,null,null,null,null,null,null,null,null,null,null,null,null,null,null,null,null,null,null,null,null,null,null,null,null,null,null,null,null,null,null,null,null,null,null,null,425,"AZ001","AZ001000002","City of Phoenix Housing Department","SF222","625297239","0920","06/30"]
[426,"FL022","Housing Authority of New Smyrna Beach","A-4121","965285745","0429","2011-03-31",null,null,null,null,null,null,null,null,null,null,null,null,null,null,null,null,null,null,null,null,null,null,null,null,null,null,null,null,null,null,null,null,null,null,null,null,null,null,null,null,null,null,null,null,null,426,"AZ001","AZ001000003","City of Phoenix Housing Department","SF222","625297239","0920","06/30"]
[427,"FL023","Housing Authority of the City of Bradenton","A-2976","032415580","0414","2011-03-31",null,null,null,null,null,null,null,null,null,null,null,null,null,null,null,null,null,null,null,null,null,null,null,null,null,null,null,null,null,null,null,null,null,null,null,null,null,null,null,null,null,null,null,null,null,427,"AZ001","AZ001000004","City of Phoenix Housing Department","SF222","625297239","0920","06/30"]
[428,"FL024","Ormond Beach Housing Authority","A-4021","017747507","0429","2011-09-30",null,null,null,null,null,null,null,null,null,null,null,null,null,null,null,null,null,null,null,null,null,null,null,null,null,null,null,null,null,null,null,null,null,null,null,null,null,null,null,null,null,null,null,null,null,428,"AZ001","AZ001000005","City of Phoenix Housing Department","SF222","625297239","0920","06/30"]
[429,"FL025","Housing Authority of the City of Titusville","A-4258","033310629","0414","2011-03-31",null,null,null,null,null,null,null,null,null,null,null,null,null,null,null,null,null,null,null,null,null,null,null,null,null,null,null,null,null,null,null,null,null,null,null,null,null,null,null,null,null,null,null,null,null,429,"AZ001","AZ001000006","City of Phoenix Housing Department","SF222","625297239","0920","06/30"]
[430,"FL026","Housing Authority of Bartow","A-2999","026064998","0414","2011-03-31",null,null,null,null,null,null,null,null,null,null,null,null,null,null,null,null,null,null,null,null,null,null,null,null,null,null,null,null,null,null,null,null,null,null,null,null,null,null,null,null,null,null,null,null,null,430,"AZ001","AZ001000007","City of Phoenix Housing Department","SF222","625297239","0920","06/30"]
[431,"FL027","Housing Authority of the City of Live Oak","A-4224","063486626","0429","2011-03-31",null,null,null,null,null,null,null,null,null,null,null,null,null,null,null,null,null,null,null,null,null,null,null,null,null,null,null,null,null,null,null,null,null,null,null,null,null,null,null,null,null,null,null,null,null,431,"AZ001","AZ001000008","City of Phoenix Housing Department","SF222","625297239","0920","06/30"]
[432,"FL030","Housing Authority of the County of Flagler","A-2998","025503889","0429","2011-06-30",null,null,null,null,null,null,null,null,null,null,null,null,null,null,null,null,null,null,null,null,null,null,null,null,null,null,null,null,null,null,null,null,null,null,null,null,null,null,null,null,null,null,null,null,null,432,"AZ001","AZ001000016","City of Phoenix Housing Department","SF222","625297239","0920","06/30"]
[433,"FL031","Housing Authority of the City of Marianna","A-2344","042239074","0429","2011-06-30",null,null,null,null,null,null,null,null,null,null,null,null,null,null,null,null,null,null,null,null,null,null,null,null,null,null,null,null,null,null,null,null,null,null,null,null,null,null,null,null,null,null,null,null,null,433,"AZ001","AZ001000017","City of Phoenix Housing Department","SF222","625297239","0920","06/30"]
[434,"FL032","Ocala Housing Authority","A-2981","192265549","0429","2011-09-30",null,null,null,null,null,null,null,null,null,null,null,null,null,null,null,null,null,null,null,null,null,null,null,null,null,null,null,null,null,null,null,null,null,null,null,null,null,null,null,null,null,null,null,null,null,434,"AZ001","AZ001000018","City of Phoenix Housing Department","SF222","625297239","0920","06/30"]
[435,"FL033","Seminole County Housing Authority","A-4239","035313738","0429","2011-12-31",null,null,null,null,null,null,null,null,null,null,null,null,null,null,null,null,null,null,null,null,null,null,null,null,null,null,null,null,null,null,null,null,null,null,null,null,null,null,null,null,null,null,null,null,null,435,"AZ001","AZ001000019","City of Phoenix Housing Department","SF222","625297239","0920","06/30"]
[436,"FL034","Plant City Housing Authority","A-2523","017750378","0414","2011-12-31",null,null,null,null,null,null,null,null,null,null,null,null,null,null,null,null,null,null,null,null,null,null,null,null,null,null,null,null,null,null,null,null,null,null,null,null,null,null,null,null,null,null,null,null,null,436,"AZ001","AZ001000020","City of Phoenix Housing Department","SF222","625297239","0920","06/30"]
[437,"FL035","Housing Authority of Springfield","A2530","025283920","0429","2011-12-31",null,null,null,null,null,null,null,null,null,null,null,null,null,null,null,null,null,null,null,null,null,null,null,null,null,null,null,null,null,null,null,null,null,null,null,null,null,null,null,null,null,null,null,null,null,437,"AZ003","AZ003000001","City of Glendale Housing Authority","SF446","077523579","0920","06/30"]
[438,"FL036","Housing Authority of the City of Apalachicola","A2985","613692714","0429","2011-03-31",null,null,null,null,null,null,null,null,null,null,null,null,null,null,null,null,null,null,null,null,null,null,null,null,null,null,null,null,null,null,null,null,null,null,null,null,null,null,null,null,null,null,null,null,null,438,"AZ004","AZ004000048","Community Services Department of Tucson","SF-225","072450869","0920","06/30"]
[439,"FL037","Housing Authority of City of Fernandina Beach","A-2345","025917055","0429","2011-12-31",null,null,null,null,null,null,null,null,null,null,null,null,null,null,null,null,null,null,null,null,null,null,null,null,null,null,null,null,null,null,null,null,null,null,null,null,null,null,null,null,null,null,null,null,null,439,"AZ004","AZ004000050","Community Services Department of Tucson","SF-225","072450869","0920","06/30"]
[440,"FL038","Chipley Housing Authority","A-4126","026277525","0429","2011-06-30",null,null,null,null,null,null,null,null,null,null,null,null,null,null,null,null,null,null,null,null,null,null,null,null,null,null,null,null,null,null,null,null,null,null,null,null,null,null,null,null,null,null,null,null,null,440,"AZ004","AZ004000051","Community Services Department of Tucson","SF-225","072450869","0920","06/30"]
[441,"FL039","Defuniak Springs Housing Authority","A-4137","026268250","0429","2011-06-30",null,null,null,null,null,null,null,null,null,null,null,null,null,null,null,null,null,null,null,null,null,null,null,null,null,null,null,null,null,null,null,null,null,null,null,null,null,null,null,null,null,null,null,null,null,441,"AZ004","AZ004000065","Community Services Department of Tucson","SF-225","072450869","0920","06/30"]
[442,"FL040","Housing Authority of the City of Eustis","A-2544","025711599","0429","2011-03-31",null,null,null,null,null,null,null,null,null,null,null,null,null,null,null,null,null,null,null,null,null,null,null,null,null,null,null,null,null,null,null,null,null,null,null,null,null,null,null,null,null,null,null,null,null,442,"AZ004","AZ004006040","Community Services Department of Tucson","SF-225","072450869","0920","06/30"]
[443,"FL041","Housing Authority of the City of Fort Pierce","A-4030","114138571","0414","2011-06-30",null,null,null,null,null,null,null,null,null,null,null,null,null,null,null,null,null,null,null,null,null,null,null,null,null,null,null,null,null,null,null,null,null,null,null,null,null,null,null,null,null,null,null,null,null,443,"AZ004","AZ004100115","Community Services Department of Tucson","SF-225","072450869","0920","06/30"]
[444,"FL042","Union County Housing Authority","A-2984","096277074","0429","2011-03-31",null,null,null,null,null,null,null,null,null,null,null,null,null,null,null,null,null,null,null,null,null,null,null,null,null,null,null,null,null,null,null,null,null,null,null,null,null,null,null,null,null,null,null,null,null,444,"AZ004","AZ004300110","Community Services Department of Tucson","SF-225","072450869","0920","06/30"]
[445,"FL045","Housing Authority of the City of Stuart","A-3208","964072284","0414","2011-03-31",null,null,null,null,null,null,null,null,null,null,null,null,null,null,null,null,null,null,null,null,null,null,null,null,null,null,null,null,null,null,null,null,null,null,null,null,null,null,null,null,null,null,null,null,null,445,"AZ004","AZ004400111","Community Services Department of Tucson","SF-225","072450869","0920","06/30"]
[446,"FL046","Crestview Housing Authority","A-4033","025925264","0429","2011-12-31",null,null,null,null,null,null,null,null,null,null,null,null,null,null,null,null,null,null,null,null,null,null,null,null,null,null,null,null,null,null,null,null,null,null,null,null,null,null,null,null,null,null,null,null,null,446,"AZ004","AZ004500112","Community Services Department of Tucson","SF-225","072450869","0920","06/30"]
[447,"FL047","Housing Authority of the Ctiy of Fort Myers","A-4215","141872718","0414","2011-03-31",null,null,null,null,null,null,null,null,null,null,null,null,null,null,null,null,null,null,null,null,null,null,null,null,null,null,null,null,null,null,null,null,null,null,null,null,null,null,null,null,null,null,null,null,null,447,"AZ004","AZ004600113","Community Services Department of Tucson","SF-225","072450869","0920","06/30"]
[448,"FL049","Levy County Housing Authority","A-2522","025790932","0429","2011-03-31",null,null,null,null,null,null,null,null,null,null,null,null,null,null,null,null,null,null,null,null,null,null,null,null,null,null,null,null,null,null,null,null,null,null,null,null,null,null,null,null,null,null,null,null,null,448,"AZ006","AZ006000001","Flagstaff Housing Authority","SF165","039546122","0920","06/30"]
[449,"FL050","Suwannee County Housing Authority","A-2986","138388033","0429","2011-03-31",null,null,null,null,null,null,null,null,null,null,null,null,null,null,null,null,null,null,null,null,null,null,null,null,null,null,null,null,null,null,null,null,null,null,null,null,null,null,null,null,null,null,null,null,null,449,"AZ006","AZ006000002","Flagstaff Housing Authority","SF165","039546122","0920","06/30"]
[450,"FL051","Gilchrist County Housing Authority","A-1281","138387885","0429","2011-12-31",null,null,null,null,null,null,null,null,null,null,null,null,null,null,null,null,null,null,null,null,null,null,null,null,null,null,null,null,null,null,null,null,null,null,null,null,null,null,null,null,null,null,null,null,null,450,"AZ008","AZ008000001","Winslow Public Housing Authority","SF131","792342834","0920","06/30"]
[451,"FL052","Niceville Housing Authority","A-4037","085714863","0429","2011-09-30",null,null,null,null,null,null,null,null,null,null,null,null,null,null,null,null,null,null,null,null,null,null,null,null,null,null,null,null,null,null,null,null,null,null,null,null,null,null,null,null,null,null,null,null,null,451,"AZ009","AZ009000001","Housing Authority of Maricopa County","SF-220","124257895","0920","06/30"]
[452,"FL053","Milton Housing Authority","A-4285","098304991","0429","2011-03-31",null,null,null,null,null,null,null,null,null,null,null,null,null,null,null,null,null,null,null,null,null,null,null,null,null,null,null,null,null,null,null,null,null,null,null,null,null,null,null,null,null,null,null,null,null,452,"AZ009","AZ009000002","Housing Authority of Maricopa County","SF-220","124257895","0920","06/30"]
[453,"FL054","Housing Authority of the City of Mulberry","A-2527","618033588","0414","2011-03-31",null,null,null,null,null,null,null,null,null,null,null,null,null,null,null,null,null,null,null,null,null,null,null,null,null,null,null,null,null,null,null,null,null,null,null,null,null,null,null,null,null,null,null,null,null,453,"AZ009","AZ009000003","Housing Authority of Maricopa County","SF-220","124257895","0920","06/30"]
[454,"FL055","Housing Authority of the City of Arcadia","A-2529","055467606","0414","2011-06-30",null,null,null,null,null,null,null,null,null,null,null,null,null,null,null,null,null,null,null,null,null,null,null,null,null,null,null,null,null,null,null,null,null,null,null,null,null,null,null,null,null,null,null,null,null,454,"AZ009","AZ009000004","Housing Authority of Maricopa County","SF-220","124257895","0920","06/30"]
[455,"FL056","Melbourne Housing Authority","A-4290","156114027","0414","2011-03-31",null,null,null,null,null,null,null,null,null,null,null,null,null,null,null,null,null,null,null,null,null,null,null,null,null,null,null,null,null,null,null,null,null,null,null,null,null,null,null,null,null,null,null,null,null,455,"AZ009","AZ009000005","Housing Authority of Maricopa County","SF-220","124257895","0920","06/30"]
[456,"FL057","Palatka Housing Authority","A-2526","010518603","0429","2011-03-31",null,null,null,null,null,null,null,null,null,null,null,null,null,null,null,null,null,null,null,null,null,null,null,null,null,null,null,null,null,null,null,null,null,null,null,null,null,null,null,null,null,null,null,null,null,456,"AZ009","AZ009000006","Housing Authority of Maricopa County","SF-220","124257895","0920","06/30"]
[457,"FL058","Tarpon Springs Housing Authority","A-4291","150486876","0414","2011-03-31",null,null,null,null,null,null,null,null,null,null,null,null,null,null,null,null,null,null,null,null,null,null,null,null,null,null,null,null,null,null,null,null,null,null,null,null,null,null,null,null,null,null,null,null,null,457,"AZ009","AZ009000007","Housing Authority of Maricopa County","SF-220","124257895","0920","06/30"]
[458,"FL060","Punta Gorda Housing Authority","A-4237","025392383","0414","2011-03-31",null,null,null,null,null,null,null,null,null,null,null,null,null,null,null,null,null,null,null,null,null,null,null,null,null,null,null,null,null,null,null,null,null,null,null,null,null,null,null,null,null,null,null,null,null,458,"AZ009","AZ009000008","Housing Authority of Maricopa County","SF-220","124257895","0920","06/30"]
[459,"FL061","Dunedin Housing Authority",null,null,"0414","2011-06-30",null,null,null,null,null,null,null,null,null,null,null,null,null,null,null,null,null,null,null,null,null,null,null,null,null,null,null,null,null,null,null,null,null,null,null,null,null,null,null,null,null,null,null,null,null,459,"AZ009","AZ009000009","Housing Authority of Maricopa County","SF-220","124257895","0920","06/30"]
[460,"FL062","Pinellas County Housing Authority","A-4218","787400886","0414","2011-12-31",null,null,null,null,null,null,null,null,null,null,null,null,null,null,null,null,null,null,null,null,null,null,null,null,null,null,null,null,null,null,null,null,null,null,null,null,null,null,null,null,null,null,null,null,null,460,"AZ009","AZ009000010","Housing Authority of Maricopa County","SF-220","124257895","0920","06/30"]
[461,"FL063","Gainesville Housing Authority","A-3327","000378232","0429","2011-03-31",null,null,null,null,null,null,null,null,null,null,null,null,null,null,null,null,null,null,null,null,null,null,null,null,null,null,null,null,null,null,null,null,null,null,null,null,null,null,null,null,null,null,null,null,null,461,{"$f":"LEFT(BC462,5)","v":"AZ009"},"AZ009000013","Housing Authority of Maricopa County","SF-220","124257895","0920","06/30"]
[462,"FL064","Venice Housing Authority","A-2546","009295577","0414","2011-03-31",null,null,null,null,null,null,null,null,null,null,null,null,null,null,null,null,null,null,null,null,null,null,null,null,null,null,null,null,null,null,null,null,null,null,null,null,null,null,null,null,null,null,null,null,null,462,"AZ010","AZ010000001","Pinal County Housing Authority","SF202","074447095","0920","06/30"]
[463,"FL065","Macclenny Housing Authority","A-2974","038490116","0429","2011-06-30",null,null,null,null,null,null,null,null,null,null,null,null,null,null,null,null,null,null,null,null,null,null,null,null,null,null,null,null,null,null,null,null,null,null,null,null,null,null,null,null,null,null,null,null,null,463,"AZ013","AZ013000001","Yuma County Housing Department","SF-1784","148806938","0920","06/30"]
[464,"FL066","Hialeah Housing Authority","A-4220","098528920","0414","2011-12-31",null,null,null,null,null,null,null,null,null,null,null,null,null,null,null,null,null,null,null,null,null,null,null,null,null,null,null,null,null,null,null,null,null,null,null,null,null,null,null,null,null,null,null,null,null,464,"AZ021","AZ021000001","Eloy Housing Authority","SF-266","046285946","0920","06/30"]
[465,"FL069","Fort Walton Beach Housing Authority","A-2336","025937800","0429","2011-06-30",null,null,null,null,null,null,null,null,null,null,null,null,null,null,null,null,null,null,null,null,null,null,null,null,null,null,null,null,null,null,null,null,null,null,null,null,null,null,null,null,null,null,null,null,null,465,"AZ023","AZ023000001","Nogales Housing Authority","SF-275","039690420","0920","03/31"]
[466,"FL070","Alachua County Housing Authority","A-4122","027067651","0429","2011-12-31",null,null,null,null,null,null,null,null,null,null,null,null,null,null,null,null,null,null,null,null,null,null,null,null,null,null,null,null,null,null,null,null,null,null,null,null,null,null,null,null,null,null,null,null,null,466,"AZ025","AZ025000001","South Tucson Housing Authority","SF343","093995335","0920","06/30"]
[467,"FL071","Lake Wales Housing Authority","A-2978","787643410","0414","2011-06-30",null,null,null,null,null,null,null,null,null,null,null,null,null,null,null,null,null,null,null,null,null,null,null,null,null,null,null,null,null,null,null,null,null,null,null,null,null,null,null,null,null,null,null,null,null,467,"AZ025","AZ025000002","South Tucson Housing Authority","SF343","093995335","0920","06/30"]
[468,"FL072","DeLand HA","A-4138",null,"0429","2011-06-30",null,null,null,null,null,null,null,null,null,null,null,null,null,null,null,null,null,null,null,null,null,null,null,null,null,null,null,null,null,null,null,null,null,null,null,null,null,null,null,null,null,null,null,null,null,468,"AZ028","AZ028000001","Chandler Housing & Redevelopment Division","SF-440","077524981","0920","06/30"]
[469,"FL073","Tallahassee Housing Authority","A-4243","025781766","0429","2011-06-30",null,null,null,null,null,null,null,null,null,null,null,null,null,null,null,null,null,null,null,null,null,null,null,null,null,null,null,null,null,null,null,null,null,null,null,null,null,null,null,null,null,null,null,null,null,469,"AZ028","AZ028000002","Chandler Housing & Redevelopment Division","SF-440","077524981","0920","06/30"]
[470,"FL074","Brooksville Housing Authority","A-4130","073202129","0429","2011-12-31",null,null,null,null,null,null,null,null,null,null,null,null,null,null,null,null,null,null,null,null,null,null,null,null,null,null,null,null,null,null,null,null,null,null,null,null,null,null,null,null,null,null,null,null,null,470,"AZ035","AZ035000001","Yuma City Housing Authority","SF-564","148907710","0920","06/30"]
[471,"FL075","Clearwater Housing Authority","A-4125","010511764","0414","2011-03-31",null,null,null,null,null,null,null,null,null,null,null,null,null,null,null,null,null,null,null,null,null,null,null,null,null,null,null,null,null,null,null,null,null,null,null,null,null,null,null,null,null,null,null,null,null,471,"AZ038","AZ038000001","Peoria Housing Authority","SF-569","149109795","0920","06/30"]
[472,"FL079","Broward County Housing Authority","A-4123","080191700","0414","2011-09-30",null,null,null,null,null,null,null,null,null,null,null,null,null,null,null,null,null,null,null,null,null,null,null,null,null,null,null,null,null,null,null,null,null,null,null,null,null,null,null,null,null,null,null,null,null,472,"AZ041","AZ041000001","Williams Housing Authority","SF-424","025688297","0920","06/30"]
[473,"FL080","Palm Beach County Housing Authority","A-3192","096580014","0414","2011-09-30",null,null,null,null,null,null,null,null,null,null,null,null,null,null,null,null,null,null,null,null,null,null,null,null,null,null,null,null,null,null,null,null,null,null,null,null,null,null,null,null,null,null,null,null,null,473,"CA001","CA001000954","San Francisco Housing Authority","SF-255","078780200","0901","09/30"]
[474,"FL081","Housing Authority of the City of Deerfield Beach","A-3398","063600428","0414","2011-09-30",null,null,null,null,null,null,null,null,null,null,null,null,null,null,null,null,null,null,null,null,null,null,null,null,null,null,null,null,null,null,null,null,null,null,null,null,null,null,null,null,null,null,null,null,null,474,"CA001","CA001000957","San Francisco Housing Authority","SF-255","078780200","0901","09/30"]
[475,"FL082","Housing Authority of Winter Park","A-2333","025971500","0429","2011-09-30",null,null,null,null,null,null,null,null,null,null,null,null,null,null,null,null,null,null,null,null,null,null,null,null,null,null,null,null,null,null,null,null,null,null,null,null,null,null,null,null,null,null,null,null,null,475,"CA001","CA001000960","San Francisco Housing Authority","SF-255","078780200","0901","09/30"]
[476,"FL104","Pasco County Housing Authority","A-3418","199077926","0429","2011-09-30",null,null,null,null,null,null,null,null,null,null,null,null,null,null,null,null,null,null,null,null,null,null,null,null,null,null,null,null,null,null,null,null,null,null,null,null,null,null,null,null,null,null,null,null,null,476,"CA001","CA001000961","San Francisco Housing Authority","SF-255","078780200","0901","09/30"]
[477,"FL105","Manatee County Housing Authority","A-4260","620086546","0414","2011-09-30",null,null,null,null,null,null,null,null,null,null,null,null,null,null,null,null,null,null,null,null,null,null,null,null,null,null,null,null,null,null,null,null,null,null,null,null,null,null,null,null,null,null,null,null,null,477,"CA001","CA001000962","San Francisco Housing Authority","SF-255","078780200","0901","09/30"]
[478,"FL116","Dania Beach Housing Authority","A-4299","603960311","0414","2011-09-30",null,null,null,null,null,null,null,null,null,null,null,null,null,null,null,null,null,null,null,null,null,null,null,null,null,null,null,null,null,null,null,null,null,null,null,null,null,null,null,null,null,null,null,null,null,478,"CA001","CA001000963","San Francisco Housing Authority","SF-255","078780200","0901","09/30"]
[479,"FL119","HA Boca Raton","A-4134","191813471","0414","2011-09-30",null,null,null,null,null,null,null,null,null,null,null,null,null,null,null,null,null,null,null,null,null,null,null,null,null,null,null,null,null,null,null,null,null,null,null,null,null,null,null,null,null,null,null,null,null,479,"CA001","CA001000964","San Francisco Housing Authority","SF-255","078780200","0901","09/30"]
[480,"FL125","Columbia County Housing Authority","A-4127","013065367","0429","2011-09-30",null,null,null,null,null,null,null,null,null,null,null,null,null,null,null,null,null,null,null,null,null,null,null,null,null,null,null,null,null,null,null,null,null,null,null,null,null,null,null,null,null,null,null,null,null,480,"CA001","CA001000965","San Francisco Housing Authority","SF-255","078780200","0901","09/30"]
[481,"FL128","HA LEE COUNTY","A-4229","616879755","0414","2011-09-30",null,null,null,null,null,null,null,null,null,null,null,null,null,null,null,null,null,null,null,null,null,null,null,null,null,null,null,null,null,null,null,null,null,null,null,null,null,null,null,null,null,null,null,null,null,481,"CA002","CA002000001","Housing Authority of the County of Los Angeles","SF450","063080022","0916","06/30"]
[482,"FL136","HA Hollywood","A-3626","102661233","0414","2011-12-31",null,null,null,null,null,null,null,null,null,null,null,null,null,null,null,null,null,null,null,null,null,null,null,null,null,null,null,null,null,null,null,null,null,null,null,null,null,null,null,null,null,null,null,null,null,482,"CA002","CA002000002","Housing Authority of the County of Los Angeles","SF450","063080022","0916","06/30"]
[483,"FL139","Winter Haven Housing Authority","A-4036","055552368","0414","2011-09-30",null,null,null,null,null,null,null,null,null,null,null,null,null,null,null,null,null,null,null,null,null,null,null,null,null,null,null,null,null,null,null,null,null,null,null,null,null,null,null,null,null,null,null,null,null,483,"CA002","CA002000003","Housing Authority of the County of Los Angeles","SF450","063080022","0916","06/30"]
[484,"FL144","Monroe County Housing Authority","A-4401","130756179","0414","2011-12-31",null,null,null,null,null,null,null,null,null,null,null,null,null,null,null,null,null,null,null,null,null,null,null,null,null,null,null,null,null,null,null,null,null,null,null,null,null,null,null,null,null,null,null,null,null,484,"CA002","CA002000004","Housing Authority of the County of Los Angeles","SF450","063080022","0916","06/30"]
[485,"GA001","Housing Authority of the City of Augusta","A-2278","069214369","0401","2011-03-31",null,null,null,null,null,null,null,null,null,null,null,null,null,null,null,null,null,null,null,null,null,null,null,null,null,null,null,null,null,null,null,null,null,null,null,null,null,null,null,null,null,null,null,null,null,485,"CA002","CA002000005","Housing Authority of the County of Los Angeles","SF450","063080022","0916","06/30"]
[486,"GA002","Housing Authority of Savannah","A-2372","030045025","0401","2011-03-31",null,null,null,null,null,null,null,null,null,null,null,null,null,null,null,null,null,null,null,null,null,null,null,null,null,null,null,null,null,null,null,null,null,null,null,null,null,null,null,null,null,null,null,null,null,486,"CA002","CA002000006","Housing Authority of the County of Los Angeles","SF450","063080022","0916","06/30"]
[487,"GA003","Housing Authority of the City of Athens","A-3702","072486046","0401","2011-06-30",null,null,null,null,null,null,null,null,null,null,null,null,null,null,null,null,null,null,null,null,null,null,null,null,null,null,null,null,null,null,null,null,null,null,null,null,null,null,null,null,null,null,null,null,null,487,"CA002","CA002000007","Housing Authority of the County of Los Angeles","SF450","063080022","0916","06/30"]
[488,"GA004","Housing Authority of the City of Columbus","A-2384","028033322","0401","2011-06-30",null,null,null,null,null,null,null,null,null,null,null,null,null,null,null,null,null,null,null,null,null,null,null,null,null,null,null,null,null,null,null,null,null,null,null,null,null,null,null,null,null,null,null,null,null,488,"CA002","CA002000008","Housing Authority of the County of Los Angeles","SF450","063080022","0916","06/30"]
[489,"GA006","Housing Authority of the City of Atlanta Georgia","A-3107","069189850","0401","2011-06-30",null,null,null,null,null,null,null,null,null,null,null,null,null,null,null,null,null,null,null,null,null,null,null,null,null,null,null,null,null,null,null,null,null,null,null,null,null,null,null,null,null,null,null,null,null,489,"CA003","CA003000101","Oakland Housing Authority","SF-235","076534100","0901","06/30"]
[490,"GA007","Housing Authority of the City of Macon","A-3701","781693023","0401","2011-12-31",null,null,null,null,null,null,null,null,null,null,null,null,null,null,null,null,null,null,null,null,null,null,null,null,null,null,null,null,null,null,null,null,null,null,null,null,null,null,null,null,null,null,null,null,null,490,"CA003","CA003000102","Oakland Housing Authority","SF-235","076534100","0901","06/30"]
[491,"GA009","Housing Authority of the City of Brunswick","A2279","195815477","0401","2011-06-30",null,null,null,null,null,null,null,null,null,null,null,null,null,null,null,null,null,null,null,null,null,null,null,null,null,null,null,null,null,null,null,null,null,null,null,null,null,null,null,null,null,null,null,null,null,491,"CA003","CA003000103","Oakland Housing Authority","SF-235","076534100","0901","06/30"]
[492,"GA010","Housing Authority of the City of Marietta","A-3484","879921567","0401","2011-12-31",null,null,null,null,null,null,null,null,null,null,null,null,null,null,null,null,null,null,null,null,null,null,null,null,null,null,null,null,null,null,null,null,null,null,null,null,null,null,null,null,null,null,null,null,null,492,"CA003","CA003000104","Oakland Housing Authority","SF-235","076534100","0901","06/30"]
[493,"GA011","Housing Authority of the City Decatur, GA","A-2380","095803144","0401","2011-12-31",null,null,null,null,null,null,null,null,null,null,null,null,null,null,null,null,null,null,null,null,null,null,null,null,null,null,null,null,null,null,null,null,null,null,null,null,null,null,null,null,null,null,null,null,null,493,"CA003","CA003000105","Oakland Housing Authority","SF-235","076534100","0901","06/30"]
[494,"GA023","Housing Authority of the City of Albany","A-2393","962595138","0401","2011-09-30",null,null,null,null,null,null,null,null,null,null,null,null,null,null,null,null,null,null,null,null,null,null,null,null,null,null,null,null,null,null,null,null,null,null,null,null,null,null,null,null,null,null,null,null,null,494,"CA003","CA003000106","Oakland Housing Authority","SF-235","076534100","0901","06/30"]
[495,"GA024","Housing Authority of the City of Thomasville","A-3727","0","0401","2011-09-30",null,null,null,null,null,null,null,null,null,null,null,null,null,null,null,null,null,null,null,null,null,null,null,null,null,null,null,null,null,null,null,null,null,null,null,null,null,null,null,null,null,null,null,null,null,495,"CA003","CA003000107","Oakland Housing Authority","SF-235","076534100","0901","06/30"]
[496,"GA025","Housing Authority of the City of Cedartown","A-2285","073465080","0401","2011-09-30",null,null,null,null,null,null,null,null,null,null,null,null,null,null,null,null,null,null,null,null,null,null,null,null,null,null,null,null,null,null,null,null,null,null,null,null,null,null,null,null,null,null,null,null,null,496,"CA003","CA003000108","Oakland Housing Authority","SF-235","076534100","0901","06/30"]
[497,"GA026","Housing Authority of the City of Lagrange","A-3120","059971176","0401","2011-03-31",null,null,null,null,null,null,null,null,null,null,null,null,null,null,null,null,null,null,null,null,null,null,null,null,null,null,null,null,null,null,null,null,null,null,null,null,null,null,null,null,null,null,null,null,null,497,"CA003","CA003000109","Oakland Housing Authority","SF-235","076534100","0901","06/30"]
[498,"GA028","Housing Authority of the City of Waycross","A-2822","038231937","0401","2011-03-31",null,null,null,null,null,null,null,null,null,null,null,null,null,null,null,null,null,null,null,null,null,null,null,null,null,null,null,null,null,null,null,null,null,null,null,null,null,null,null,null,null,null,null,null,null,498,"CA003","CA003000110","Oakland Housing Authority","SF-235","076534100","0901","06/30"]
[499,"GA059","Housing Authority of the City of Gainesville","A-3901","867172405","0401","2011-09-30",null,null,null,null,null,null,null,null,null,null,null,null,null,null,null,null,null,null,null,null,null,null,null,null,null,null,null,null,null,null,null,null,null,null,null,null,null,null,null,null,null,null,null,null,null,499,"CA003","CA003000111","Oakland Housing Authority","SF-235","076534100","0901","06/30"]
[514,"GA076","Housing Authority of the City of Douglas","A2277","803400175","0401","2011-03-31",null,null,null,null,null,null,null,null,null,null,null,null,null,null,null,null,null,null,null,null,null,null,null,null,null,null,null,null,null,null,null,null,null,null,null,null,null,null,null,null,null,null,null,null,null,514,"CA004","CA004000403","Housing Authority of the City of Los Angeles","SF-345","077233732","0916","12/31"]
[520,"GA084","Housing Authority of the City of McRae","A-2751","849254938","0401","2011-06-30",null,null,null,null,null,null,null,null,null,null,null,null,null,null,null,null,null,null,null,null,null,null,null,null,null,null,null,null,null,null,null,null,null,null,null,null,null,null,null,null,null,null,null,null,null,520,"CA004","CA004000416","Housing Authority of the City of Los Angeles","SF-345","077233732","0916","12/31"]
[549,"GA114","Housing Authority of the City of Blakely","A2748","786043984","0401","2011-03-31",null,null,null,null,null,null,null,null,null,null,null,null,null,null,null,null,null,null,null,null,null,null,null,null,null,null,null,null,null,null,null,null,null,null,null,null,null,null,null,null,null,null,null,null,null,549,"CA008","CA008000104","Housing Authority of the County of Kern","SF-172","077979128","0916","06/30"]
[565,"GA132","Housing Authority of the City of Statesboro","A2832","191466184","0401","2011-03-31",null,null,null,null,null,null,null,null,null,null,null,null,null,null,null,null,null,null,null,null,null,null,null,null,null,null,null,null,null,null,null,null,null,null,null,null,null,null,null,null,null,null,null,null,null,565,"CA010","CA010000004","City of Richmond Housing Authority","SF-428","016549081","0901","06/30"]
[594,"GA171","Housing Authority of the City of Loganville","A-2754","136957318","0401","2011-06-30",null,null,null,null,null,null,null,null,null,null,null,null,null,null,null,null,null,null,null,null,null,null,null,null,null,null,null,null,null,null,null,null,null,null,null,null,null,null,null,null,null,null,null,null,null,594,"CA023","CA023000002","County of Merced Housing Authority","SF-192","043238971","0901","09/30"]
[604,"GA182","Housing Authority of the City of McDonough","A-1525","782620132","0401","2011-12-31",null,null,null,null,null,null,null,null,null,null,null,null,null,null,null,null,null,null,null,null,null,null,null,null,null,null,null,null,null,null,null,null,null,null,null,null,null,null,null,null,null,null,null,null,null,604,"CA026","CA026000004","County of Stanislaus Housing Auth","SF-212","084523300","0901","09/30"]
[629,"GA207","Housing Authority of the City of Bowdon","A-887","965919798","0401","2011-12-31",null,null,null,null,null,null,null,null,null,null,null,null,null,null,null,null,null,null,null,null,null,null,null,null,null,null,null,null,null,null,null,null,null,null,null,null,null,null,null,null,null,null,null,null,null,629,"CA033","CA033000105","County of Monterey Hsg Auth","SF-208","131615775","0901","06/30"]
[643,"GA226","Housing Authority of the City of Cuthbert","A-2733","009576526","0401","2011-12-31",null,null,null,null,null,null,null,null,null,null,null,null,null,null,null,null,null,null,null,null,null,null,null,null,null,null,null,null,null,null,null,null,null,null,null,null,null,null,null,null,null,null,null,null,null,643,"CA039","CA039000002","Housing Authority of the City of Calexico","SF223","932866531","0916","06/30"]
[655,"GA246","Housing Authority of the City of Fort Oglethorpe","A-3905","957795253","0401","2011-03-31",null,null,null,null,null,null,null,null,null,null,null,null,null,null,null,null,null,null,null,null,null,null,null,null,null,null,null,null,null,null,null,null,null,null,null,null,null,null,null,null,null,null,null,null,null,655,"CA052","CA052000002","Housing Authority of County of Marin","SF-258","037871900","0901","12/31"]
[688,"IA020","Des Moines Municipal Housing Agency","KC-9158","073498909","0705","2011-06-30",null,null,null,null,null,null,null,null,null,null,null,null,null,null,null,null,null,null,null,null,null,null,null,null,null,null,null,null,null,null,null,null,null,null,null,null,null,null,null,null,null,null,null,null,null,688,"CA092","CA092000003","Housing Authority of the County of Ventura","SF-568","108880337","0916","06/30"]
[694,"IA027","Low Rent Housing Agency of Leon","KC-3018","091385526","0705","2011-09-30",null,null,null,null,null,null,null,null,null,null,null,null,null,null,null,null,null,null,null,null,null,null,null,null,null,null,null,null,null,null,null,null,null,null,null,null,null,null,null,null,null,null,null,null,null,694,"CA092","CA092000016","Housing Authority of the County of Ventura","SF-568","108880337","0916","06/30"]
[713,"IA119","Low Rent Housing Agency of Knoxville","KC-9098","113070150","0705","2011-03-31",null,null,null,null,null,null,null,null,null,null,null,null,null,null,null,null,null,null,null,null,null,null,null,null,null,null,null,null,null,null,null,null,null,null,null,null,null,null,null,null,null,null,null,null,null,713,"CO001","CO001000021","Housing Authority of the City And County of Denver","FW 1166","039141353","0801","12/31"]
[739,"IL014","Housing Authority for Lasalle County","C-932","092577691","0501","2011-06-30",null,null,null,null,null,null,null,null,null,null,null,null,null,null,null,null,null,null,null,null,null,null,null,null,null,null,null,null,null,null,null,null,null,null,null,null,null,null,null,null,null,null,null,null,null,739,"CO014","CO014000001","Wellington Housing Authority","DEN 1236","018197681","0801","12/31"]
[758,"IL038","Housing Authority of Christian County, Illinois","C-956","021162300","0501","2011-09-30",null,null,null,null,null,null,null,null,null,null,null,null,null,null,null,null,null,null,null,null,null,null,null,null,null,null,null,null,null,null,null,null,null,null,null,null,null,null,null,null,null,null,null,null,null,758,"CO031","CO031000001","La Junta Housing Authority","DEN 267","081961922","0801","03/31"]
[782,"IL063","Housing Authority of Johnson County","C-1045","619369478","0501","2011-03-31",null,null,null,null,null,null,null,null,null,null,null,null,null,null,null,null,null,null,null,null,null,null,null,null,null,null,null,null,null,null,null,null,null,null,null,null,null,null,null,null,null,null,null,null,null,782,"CT001","CT001000009","Housing Authority of the City of Bridgeport","NY 387","089625057","0126","09/30"]
[803,"IL087","Housing Authority of the County of Shelby, Il.","C-1030","053906793","0501","2011-06-30",null,null,null,null,null,null,null,null,null,null,null,null,null,null,null,null,null,null,null,null,null,null,null,null,null,null,null,null,null,null,null,null,null,null,null,null,null,null,null,null,null,null,null,null,null,803,"CT004","CT004000004","Housing Authority of the City of New Haven","NY414","039623500","0126","09/30"]
[827,"IN002","Vincennes Housing Authority","C-2006","049876527","0536","2011-06-30",null,null,null,null,null,null,null,null,null,null,null,null,null,null,null,null,null,null,null,null,null,null,null,null,null,null,null,null,null,null,null,null,null,null,null,null,null,null,null,null,null,null,null,null,null,827,"CT004","CT004000030","Housing Authority of the City of New Haven","NY414","039623500","0126","09/30"]
[848,"IN026","Housing Authority of the City of Elkhart","C-749","102346210","0536","2011-03-31",null,null,null,null,null,null,null,null,null,null,null,null,null,null,null,null,null,null,null,null,null,null,null,null,null,null,null,null,null,null,null,null,null,null,null,null,null,null,null,null,null,null,null,null,null,848,"CT013","CT013000200","East Hartford Housing Authority","NY392","118338094","0126","09/30"]
[867,"IN091","Housing Authority of the City of Peru","C-2076","130232267","0536","2011-12-31",null,null,null,null,null,null,null,null,null,null,null,null,null,null,null,null,null,null,null,null,null,null,null,null,null,null,null,null,null,null,null,null,null,null,null,null,null,null,null,null,null,null,null,null,null,867,"CT027","CT027000100","Housing Authority of the Town of Stratford","NY429","037510062","0126","12/31"]
[876,"KS009","Bonner Springs Housing Authority","FW1240","024095408","0701","2011-12-31",null,null,null,null,null,null,null,null,null,null,null,null,null,null,null,null,null,null,null,null,null,null,null,null,null,null,null,null,null,null,null,null,null,null,null,null,null,null,null,null,null,null,null,null,null,876,"CT030","CT030000005","Milford Redevelopment & Housing Partnership","NY 463","098179245","0126","03/31"]
[893,"KS027","Russell Housing Authority","KC-1016","797619181","0701","2011-09-30",null,null,null,null,null,null,null,null,null,null,null,null,null,null,null,null,null,null,null,null,null,null,null,null,null,null,null,null,null,null,null,null,null,null,null,null,null,null,null,null,null,null,null,null,null,893,"DC001","DC001001113","D.C Housing Authority","W-76","138841726","0339","09/30"]
[921,"KS059","Moundridge Housing Authority","KC1001","129725904","0701","2011-12-31",null,null,null,null,null,null,null,null,null,null,null,null,null,null,null,null,null,null,null,null,null,null,null,null,null,null,null,null,null,null,null,null,null,null,null,null,null,null,null,null,null,null,null,null,null,921,"DC001","DC001003090","D.C Housing Authority","W-76","138841726","0339","09/30"]
[938,"KS080","Housing Authority of the City of Hoxie","KC-1041","143683733","0701","2011-06-30",null,null,null,null,null,null,null,null,null,null,null,null,null,null,null,null,null,null,null,null,null,null,null,null,null,null,null,null,null,null,null,null,null,null,null,null,null,null,null,null,null,null,null,null,null,938,{"$f":"LEFT(BC939,5)","v":"DC001"},"DC001005220","D.C Housing Authority","W-76","138841726","0339","09/30"]
[950,"KS113","Cawker City Housing Authority","KS-1135","834663510","0701","2011-12-31",null,null,null,null,null,null,null,null,null,null,null,null,null,null,null,null,null,null,null,null,null,null,null,null,null,null,null,null,null,null,null,null,null,null,null,null,null,null,null,null,null,null,null,null,null,950,"DE001","DE001000015","Wilmington Housing Authority","P-160","046558834","0301","03/31"]
[983,"KY024","Housing Authority of Hazard","A-2703","065171894","0436","2011-09-30",null,null,null,null,null,null,null,null,null,null,null,null,null,null,null,null,null,null,null,null,null,null,null,null,null,null,null,null,null,null,null,null,null,null,null,null,null,null,null,null,null,null,null,null,null,983,"FL003","FL003000017","Tampa Housing Authority","A-4325","025637356","0414","03/31"]
[1002,"KY043","Housing Authority of Fulton","A3228","042290000","0436","2011-03-31",null,null,null,null,null,null,null,null,null,null,null,null,null,null,null,null,null,null,null,null,null,null,null,null,null,null,null,null,null,null,null,null,null,null,null,null,null,null,null,null,null,null,null,null,null,1002,"FL004","FL004000014","Orlando Housing Authority","A-4129","101819712","0429","03/31"]
[1019,"KY061","Housing Authority of Georgetown","A-2092","103542213","0436","2011-09-30",null,null,null,null,null,null,null,null,null,null,null,null,null,null,null,null,null,null,null,null,null,null,null,null,null,null,null,null,null,null,null,null,null,null,null,null,null,null,null,null,null,null,null,null,null,1019,"FL006","FL006000002","Area Housing Commission","A-2977","147056477","0429","03/31"]
[1028,"KY071","Housing Authority of Bardstown","A4206","611758000","0436","2011-12-31",null,null,null,null,null,null,null,null,null,null,null,null,null,null,null,null,null,null,null,null,null,null,null,null,null,null,null,null,null,null,null,null,null,null,null,null,null,null,null,null,null,null,null,null,null,1028,"FL008","FL008000001","Housing Authority of the City of Sarasota","A-4034","781975065","0414","03/31"]
[1044,"KY090","Housing Authority of Berea","A-3749","603922048","0436","2011-03-31",null,null,null,null,null,null,null,null,null,null,null,null,null,null,null,null,null,null,null,null,null,null,null,null,null,null,null,null,null,null,null,null,null,null,null,null,null,null,null,null,null,null,null,null,null,1044,"FL011","FL011000002","Housing Authority of the City of Lakeland","A-4227","060238086","0414","12/31"]
[1073,"LA012","Housing Authority of the City of Kenner","FW-2167","173850249","0648","2011-06-30",null,null,null,null,null,null,null,null,null,null,null,null,null,null,null,null,null,null,null,null,null,null,null,null,null,null,null,null,null,null,null,null,null,null,null,null,null,null,null,null,null,null,null,null,null,1073,"FL023","FL023034208","Housing Authority of the City of Bradenton","A-2976","032415580","0414","03/31"]
[1089,"LA037","Housing Authority of the City of Minden","FW-2026","879448991","0648","2011-06-30",null,null,null,null,null,null,null,null,null,null,null,null,null,null,null,null,null,null,null,null,null,null,null,null,null,null,null,null,null,null,null,null,null,null,null,null,null,null,null,null,null,null,null,null,null,1089,"FL039","FL039000001","Defuniak Springs Housing Authority","A-4137","026268250","0429","06/30"]
[1112,"LA067","Housing Authority of the Parish of St. Landry","FW-921","060839834","0648","2011-06-30",null,null,null,null,null,null,null,null,null,null,null,null,null,null,null,null,null,null,null,null,null,null,null,null,null,null,null,null,null,null,null,null,null,null,null,null,null,null,null,null,null,null,null,null,null,1112,"FL057","FL057000012","Palatka Housing Authority","A-2526","010518603","0429","03/31"]
[1137,"LA098","Housing Authority of Gibsland","FW-2003","964864995","0648","2011-09-30",null,null,null,null,null,null,null,null,null,null,null,null,null,null,null,null,null,null,null,null,null,null,null,null,null,null,null,null,null,null,null,null,null,null,null,null,null,null,null,null,null,null,null,null,null,1137,"FL070","FL070000001","Alachua County Housing Authority","A-4122","027067651","0429","12/31"]
[1158,"LA127","Housing Authority of the Town of East Hodge","FW-2019","944218153","0648","2011-03-31",null,null,null,null,null,null,null,null,null,null,null,null,null,null,null,null,null,null,null,null,null,null,null,null,null,null,null,null,null,null,null,null,null,null,null,null,null,null,null,null,null,null,null,null,null,1158,"FL082","FL082000001","Housing Authority of Winter Park","A-2333","025971500","0429","09/30"]
[1176,"MA012","Worcester Housing Authority","NY353","085610756","0101","2011-03-31",null,null,null,null,null,null,null,null,null,null,null,null,null,null,null,null,null,null,null,null,null,null,null,null,null,null,null,null,null,null,null,null,null,null,null,null,null,null,null,null,null,null,null,null,null,1176,"GA001","GA001000060","Housing Authority of the City of Augusta","A-2278","069214369","0401","03/31"]
[1183,"MA020","Quincy Housing Authority","NY532","084649193","0101","2011-06-30",null,null,null,null,null,null,null,null,null,null,null,null,null,null,null,null,null,null,null,null,null,null,null,null,null,null,null,null,null,null,null,null,null,null,null,null,null,null,null,null,null,null,null,null,null,1183,"GA001","GA001000120","Housing Authority of the City of Augusta","A-2278","069214369","0401","03/31"]
[1202,"MA044","Beverly Housing Authority","B 1030","086534492","0101","2011-03-31",null,null,null,null,null,null,null,null,null,null,null,null,null,null,null,null,null,null,null,null,null,null,null,null,null,null,null,null,null,null,null,null,null,null,null,null,null,null,null,null,null,null,null,null,null,1202,"GA003","GA003000008","Housing Authority of the City of Athens","A-3702","072486046","0401","06/30"]
[1227,"MA132","Groveland Housing Authority","B-1642","627176000","0101","2011-06-30",null,null,null,null,null,null,null,null,null,null,null,null,null,null,null,null,null,null,null,null,null,null,null,null,null,null,null,null,null,null,null,null,null,null,null,null,null,null,null,null,null,null,null,null,null,1227,"GA006","GA006000241","Housing Authority of the City of Atlanta Georgia","A-3107","069189850","0401","06/30"]
[1252,"MD018","Housing Commisson of Anne Arundel County","P222","042363288","0306","2011-06-30",null,null,null,null,null,null,null,null,null,null,null,null,null,null,null,null,null,null,null,null,null,null,null,null,null,null,null,null,null,null,null,null,null,null,null,null,null,null,null,null,null,null,null,null,null,1252,"GA006","GA006000773","Housing Authority of the City of Atlanta Georgia","A-3107","069189850","0401","06/30"]
[1266,"ME007","Auburn Housing Authority","NY 514","093635746","0136","2011-03-31",null,null,null,null,null,null,null,null,null,null,null,null,null,null,null,null,null,null,null,null,null,null,null,null,null,null,null,null,null,null,null,null,null,null,null,null,null,null,null,null,null,null,null,null,null,1266,"GA006","GA006000920","Housing Authority of the City of Atlanta Georgia","A-3107","069189850","0401","06/30"]
[1277,"ME024","Mount Desert Housing Authority","B 3034","613253467","0136","2011-09-30",null,null,null,null,null,null,null,null,null,null,null,null,null,null,null,null,null,null,null,null,null,null,null,null,null,null,null,null,null,null,null,null,null,null,null,null,null,null,null,null,null,null,null,null,null,1277,{"$f":"LEFT(BC1278,5)","v":"GA006"},"GA006001040","Housing Authority of the City of Atlanta Georgia","A-3107","069189850","0401","06/30"]
[1311,"MI035","Battle Creek Housing Commission","C-3030","060183068","0533","2011-09-30",null,null,null,null,null,null,null,null,null,null,null,null,null,null,null,null,null,null,null,null,null,null,null,null,null,null,null,null,null,null,null,null,null,null,null,null,null,null,null,null,null,null,null,null,null,1311,"GA028","GA028000002","Housing Authority of the City of Waycross","A-2822","038231937","0401","03/31"]
[1322,"MI047","Grayling Housing Commission","C-3008","081949096","0533","2011-03-31",null,null,null,null,null,null,null,null,null,null,null,null,null,null,null,null,null,null,null,null,null,null,null,null,null,null,null,null,null,null,null,null,null,null,null,null,null,null,null,null,null,null,null,null,null,1322,"GA062","GA062000003","Housing Authority of the City of Americus","A-2120","609553391","0401","09/30"]
[1337,"MI063","Hancock Housing Commission","C-3046","605734284","0533","2011-12-31",null,null,null,null,null,null,null,null,null,null,null,null,null,null,null,null,null,null,null,null,null,null,null,null,null,null,null,null,null,null,null,null,null,null,null,null,null,null,null,null,null,null,null,null,null,1337,"GA069","GA069000400","Housing Authority of the City of Dublin","A-2291","784208027","0401","06/30"]
[1356,"MI088","Paw Paw Housing Commission","C-3003","797147931","0533","2011-12-31",null,null,null,null,null,null,null,null,null,null,null,null,null,null,null,null,null,null,null,null,null,null,null,null,null,null,null,null,null,null,null,null,null,null,null,null,null,null,null,null,null,null,null,null,null,1356,"GA086","GA086000001","Housing Authority of the City of Waynesboro","A-2123","073465445","0401","06/30"]
[1391,"MI178","Schoolcraft County Housing Commission","C-8068","874957046","0533","2011-03-31",null,null,null,null,null,null,null,null,null,null,null,null,null,null,null,null,null,null,null,null,null,null,null,null,null,null,null,null,null,null,null,null,null,null,null,null,null,null,null,null,null,null,null,null,null,1391,"GA112","GA112000001","Housing Authority of the City of Doerun","A1431","073465197","0401","03/31"]
[1401,"MI194","Bath Charter Township Housing Commission","C-8092","139603315","0533","2011-12-31",null,null,null,null,null,null,null,null,null,null,null,null,null,null,null,null,null,null,null,null,null,null,null,null,null,null,null,null,null,null,null,null,null,null,null,null,null,null,null,null,null,null,null,null,null,1401,"GA119","GA119000001","Housing Authority of the City of Calhoun","A-3103","007627763","0401","03/31"]
[1420,"MN023","HRA of International Falls, Minnesota","C-4046","076496900","0546","2011-06-30",null,null,null,null,null,null,null,null,null,null,null,null,null,null,null,null,null,null,null,null,null,null,null,null,null,null,null,null,null,null,null,null,null,null,null,null,null,null,null,null,null,null,null,null,null,1420,"GA138","GA138000001","Housing Authority of the City of Lakeland","A3492","138118125","0401","12/31"]
[1446,"MN051","HRA In And for the City of Willmar, Minnesota","C-4128","602063182","0546","2011-06-30",null,null,null,null,null,null,null,null,null,null,null,null,null,null,null,null,null,null,null,null,null,null,null,null,null,null,null,null,null,null,null,null,null,null,null,null,null,null,null,null,null,null,null,null,null,1446,"GA170","GA170000003","Housing Authority of the City of Lafayette","A-3143","017917761","0401","12/31"]
[1465,"MN071","HRA of Red Lake Falls, Minnesota","C-903","804036317","0546","2011-03-31",null,null,null,null,null,null,null,null,null,null,null,null,null,null,null,null,null,null,null,null,null,null,null,null,null,null,null,null,null,null,null,null,null,null,null,null,null,null,null,null,null,null,null,null,null,1465,"GA186","GA186000005","Housing Authority of the City of Abbeville","A3117","128327918","0401","06/30"]
[1472,"MN078","HRA of Hopkins, Minnesota","C-942","138120089","0546","2011-03-31",null,null,null,null,null,null,null,null,null,null,null,null,null,null,null,null,null,null,null,null,null,null,null,null,null,null,null,null,null,null,null,null,null,null,null,null,null,null,null,null,null,null,null,null,null,1472,"GA193","GA193000001","Housing Authority of the City of Madison","A-2378","965286000","0401","06/30"]
[1491,"MN103","HRA of Hutchinson, Minnesota","C-4004","196892004","0546","2011-12-31",null,null,null,null,null,null,null,null,null,null,null,null,null,null,null,null,null,null,null,null,null,null,null,null,null,null,null,null,null,null,null,null,null,null,null,null,null,null,null,null,null,null,null,null,null,1491,"GA211","GA211000001","Housing Authority of the City of Lincolnton","A-4065","627215759","0401","09/30"]
[1514,"MN183","Housing & Redevelopment Authority of Lincoln","C-4127","845584838","0546","2011-06-30",null,null,null,null,null,null,null,null,null,null,null,null,null,null,null,null,null,null,null,null,null,null,null,null,null,null,null,null,null,null,null,null,null,null,null,null,null,null,null,null,null,null,null,null,null,1514,"GA243","GA243000001","Housing Authority of the City of Byron","A1542","872807375","0401","06/30"]
[1536,"MO013","Housing Authority of the City of Poplar Bluff","KC 71-002","164335218","0736","2011-03-31",null,null,null,null,null,null,null,null,null,null,null,null,null,null,null,null,null,null,null,null,null,null,null,null,null,null,null,null,null,null,null,null,null,null,null,null,null,null,null,null,null,null,null,null,null,1536,"GA283","GA283000200","Consolidated Housing Authority of Talbot Co","A-5009","113168000","0401","09/30"]
[1559,"MO037","Housing Authority of the City of West Plains","KC5290","827541186","0736","2011-12-31",null,null,null,null,null,null,null,null,null,null,null,null,null,null,null,null,null,null,null,null,null,null,null,null,null,null,null,null,null,null,null,null,null,null,null,null,null,null,null,null,null,null,null,null,null,1559,"HI001","HI001000039","Hawaii Public Housing Authority","SF-181","847845351","0908","06/30"]
[1581,"MO060","Housing Authority of the City of Mountain Grove","KC5074","874961246","0736","2011-09-30",null,null,null,null,null,null,null,null,null,null,null,null,null,null,null,null,null,null,null,null,null,null,null,null,null,null,null,null,null,null,null,null,null,null,null,null,null,null,null,null,null,null,null,null,null,1581,"IA013","IA013320013","Low Rent Housing Agency of Waverly","C-709","839624814","0705","12/31"]
[1600,"MO079","Lebanon Housing Authority","KC1034","603802307","0701","2011-12-31",null,null,null,null,null,null,null,null,null,null,null,null,null,null,null,null,null,null,null,null,null,null,null,null,null,null,null,null,null,null,null,null,null,null,null,null,null,null,null,null,null,null,null,null,null,1600,"IA028","IA028000001","Low Rent Housing Agency of Bancroft","KC-3002","138255083","0705","12/31"]
[1608,"MO110","Higginsville Housing Authority","KC-10143","616081592","0701","2011-09-30",null,null,null,null,null,null,null,null,null,null,null,null,null,null,null,null,null,null,null,null,null,null,null,null,null,null,null,null,null,null,null,null,null,null,null,null,null,null,null,null,null,null,null,null,null,1608,"IA045","IA045000001","Davenport Housing Commission","KC-9148","020156857","0705","06/30"]
[1626,"MO209","Housing Authority of the City of Cabool","KC1580","829993534","0736","2011-09-30",null,null,null,null,null,null,null,null,null,null,null,null,null,null,null,null,null,null,null,null,null,null,null,null,null,null,null,null,null,null,null,null,null,null,null,null,null,null,null,null,null,null,null,null,null,1626,"ID010","ID010000001","Housing Authority of the City of Buhl","SF-273","960714000","1016","12/31"]
[1653,"MS068","The Housing Authority of the City of Waynesboro","A-2694","170334452","0426","2011-06-30",null,null,null,null,null,null,null,null,null,null,null,null,null,null,null,null,null,null,null,null,null,null,null,null,null,null,null,null,null,null,null,null,null,null,null,null,null,null,null,null,null,null,null,null,null,1653,"IL004","IL004000004","SPRINGFIELD HOUSING AUTHORITY","C915","098744915","0501","12/31"]
[1665,"MS083","The Housing Authority of the City of Amory","A-2513","957320559","0426","2011-03-31",null,null,null,null,null,null,null,null,null,null,null,null,null,null,null,null,null,null,null,null,null,null,null,null,null,null,null,null,null,null,null,null,null,null,null,null,null,null,null,null,null,null,null,null,null,1665,"IL007","IL007000002","Alexander County Housing Authority","C-1033","113894869","0501","09/30"]
[1698,"NC006","Housing Authority of the City of High Point","A-4060","037184145","0419","2011-12-31",null,null,null,null,null,null,null,null,null,null,null,null,null,null,null,null,null,null,null,null,null,null,null,null,null,null,null,null,null,null,null,null,null,null,null,null,null,null,null,null,null,null,null,null,null,1698,"IL020","IL020004141","Moline Housing Authority","C-979","031291110","0501","03/31"]
[1710,"NC018","Housing Authority of the Town of Laurinburg","A-4164","055136295","0419","2011-06-30",null,null,null,null,null,null,null,null,null,null,null,null,null,null,null,null,null,null,null,null,null,null,null,null,null,null,null,null,null,null,null,null,null,null,null,null,null,null,null,null,null,null,null,null,null,1710,"IL024","IL024000002","Housing Authority of Joliet","C-1021","082952888","0501","06/30"]
[1735,"NC046","Town of Chapel Hill Department of Housing","A-3963","075563783","0419","2011-06-30",null,null,null,null,null,null,null,null,null,null,null,null,null,null,null,null,null,null,null,null,null,null,null,null,null,null,null,null,null,null,null,null,null,null,null,null,null,null,null,null,null,null,null,null,null,1735,"IL025","IL025000024","Housing Authority of the County of Cook","C-978","000396420","0501","03/31"]
[1747,"NC058","Mars Hill Housing Authority","A-3270","839823718","0419","2011-06-30",null,null,null,null,null,null,null,null,null,null,null,null,null,null,null,null,null,null,null,null,null,null,null,null,null,null,null,null,null,null,null,null,null,null,null,null,null,null,null,null,null,null,null,null,null,1747,"IL029","IL029000001","Housing Authority of the City of Freeport","C-1012","161400000","0501","03/31"]
[1774,"NC087","Mid-East Regional Housing Authority","A-3962","051942233","0419","2011-09-30",null,null,null,null,null,null,null,null,null,null,null,null,null,null,null,null,null,null,null,null,null,null,null,null,null,null,null,null,null,null,null,null,null,null,null,null,null,null,null,null,null,null,null,null,null,1774,"IL039","IL039000005","Kankakee County Housing Authority","C-1009","084312347","0501","06/30"]
[1792,"ND001","Housing Authority of Cass County","C-534","053745097","0801","2011-12-31",null,null,null,null,null,null,null,null,null,null,null,null,null,null,null,null,null,null,null,null,null,null,null,null,null,null,null,null,null,null,null,null,null,null,null,null,null,null,null,null,null,null,null,null,null,1792,"IL050","IL050000003","Housing Authority of the County of Williamson","C-0946","199965282","0501","12/31"]
[1819,"NE016","Benkelman Housing Authority","C-652","829042910","0726","2011-03-31",null,null,null,null,null,null,null,null,null,null,null,null,null,null,null,null,null,null,null,null,null,null,null,null,null,null,null,null,null,null,null,null,null,null,null,null,null,null,null,null,null,null,null,null,null,1819,"IL061","IL061000001","Housing Authority of the County of Franklin","C-964","093758902","0501","12/31"]
[1838,"NE035","Ainsworth Housing Authority","C-4012","185262193","0726","2011-09-30",null,null,null,null,null,null,null,null,null,null,null,null,null,null,null,null,null,null,null,null,null,null,null,null,null,null,null,null,null,null,null,null,null,null,null,null,null,null,null,null,null,null,null,null,null,1838,"IL076","IL076000002","Housing Authority of the County of McDonough","C-1024","362631827","0501","09/30"]
[1841,"NE038","Henderson Housing Authority","C-457","042361621","0726","2011-12-31",null,null,null,null,null,null,null,null,null,null,null,null,null,null,null,null,null,null,null,null,null,null,null,null,null,null,null,null,null,null,null,null,null,null,null,null,null,null,null,null,null,null,null,null,null,1841,"IL079","IL079000001","Morgan County Housing Authority","C-1037","045435377","0501","06/30"]
[1864,"NE073","Emerson Housing Authority","C544","796143501","0726","2011-03-31",null,null,null,null,null,null,null,null,null,null,null,null,null,null,null,null,null,null,null,null,null,null,null,null,null,null,null,null,null,null,null,null,null,null,null,null,null,null,null,null,null,null,null,null,null,1864,"IL090","IL090000001","Aurora Housing Authority Ofthe City of Aurora","C-1016","067990861","0501","03/31"]
[1886,"NE101","Cairo Housing Authority","C-757","180274599","0726","2011-12-31",null,null,null,null,null,null,null,null,null,null,null,null,null,null,null,null,null,null,null,null,null,null,null,null,null,null,null,null,null,null,null,null,null,null,null,null,null,null,null,null,null,null,null,null,null,1886,"IL120","IL120000001","Housing Authority of Edgar County","C-1094","097312979","0501","06/30"]
[1909,"NH005","Concord Housing Authority","NY440","081256500","0136","2011-09-30",null,null,null,null,null,null,null,null,null,null,null,null,null,null,null,null,null,null,null,null,null,null,null,null,null,null,null,null,null,null,null,null,null,null,null,null,null,null,null,null,null,null,null,null,null,1909,"IN009","IN009000003","Housing Authority of the City of Richmond","C-853","948128000","0536","06/30"]
[1935,"NJ017","Summit Housing Authority","NY-205","782088900","0239","2011-12-31",null,null,null,null,null,null,null,null,null,null,null,null,null,null,null,null,null,null,null,null,null,null,null,null,null,null,null,null,null,null,null,null,null,null,null,null,null,null,null,null,null,null,null,null,null,1935,"IN016","IN016000025","Housing Authority of the City of Evansville","C-985","160856852","0536","12/31"]
[1954,"NJ039","Plainfield Housing Authority","NY-338","042796805","0239","2011-12-31",null,null,null,null,null,null,null,null,null,null,null,null,null,null,null,null,null,null,null,null,null,null,null,null,null,null,null,null,null,null,null,null,null,null,null,null,null,null,null,null,null,null,null,null,null,1954,"IN021","IN021000004","Housing Authority of the City of Terre Haute","C-976","050349430","0536","09/30"]
[1973,"NJ059","Pleasantville Housing Authority","P-233","042433792","0239","2011-03-31",null,null,null,null,null,null,null,null,null,null,null,null,null,null,null,null,null,null,null,null,null,null,null,null,null,null,null,null,null,null,null,null,null,null,null,null,null,null,null,null,null,null,null,null,null,1973,"IN029","IN029000004","Housing Authority of the City of East Chicago","C-651","000462030","0536","12/31"]
[1980,"NJ066","Housing Authority City of Linden","NY-519","042426143","0239","2011-09-30",null,null,null,null,null,null,null,null,null,null,null,null,null,null,null,null,null,null,null,null,null,null,null,null,null,null,null,null,null,null,null,null,null,null,null,null,null,null,null,null,null,null,null,null,null,1980,"IN036","IN036000001","Housing Authority of the City of Kendallville","C-2000","074302167","0536","12/31"]
[1999,"NJ218","Gloucester City Housing Authority","NY-1007","166471557","0239","2011-06-30",null,null,null,null,null,null,null,null,null,null,null,null,null,null,null,null,null,null,null,null,null,null,null,null,null,null,null,null,null,null,null,null,null,null,null,null,null,null,null,null,null,null,null,null,null,1999,"KS001","KS001000007","Kansas City, KS Housing Authority","KC-1073","073024119","0701","03/31"]
[2029,"NM054","Housing Authority of the Village of Pecos","FW5166","142673131","0602","2011-06-30",null,null,null,null,null,null,null,null,null,null,null,null,null,null,null,null,null,null,null,null,null,null,null,null,null,null,null,null,null,null,null,null,null,null,null,null,null,null,null,null,null,null,null,null,null,2029,"KS010","KS010000001","Seneca Housing Authority","FW-1001","044213908","0701","03/31"]
[2044,"NY003","The Municipal Hsng Authority City Yonkers","NY 348","038243119","0201","2011-06-30",null,null,null,null,null,null,null,null,null,null,null,null,null,null,null,null,null,null,null,null,null,null,null,null,null,null,null,null,null,null,null,null,null,null,null,null,null,null,null,null,null,null,null,null,null,2044,"KS026","KS026000001","Luray Housing Authority","FW-1259","111287066","0701","03/31"]
[2054,"NY015","Mechanicville Housing Authority","NY356","167874163","0206","2011-09-30",null,null,null,null,null,null,null,null,null,null,null,null,null,null,null,null,null,null,null,null,null,null,null,null,null,null,null,null,null,null,null,null,null,null,null,null,null,null,null,null,null,null,null,null,null,2054,"KS037","KS037000400","Wellington Housing Authority","FW1193","051098820","0701","12/31"]
[2083,"NY051","Housing Authority of Newburgh","NY489","042340229","0201","2011-03-31",null,null,null,null,null,null,null,null,null,null,null,null,null,null,null,null,null,null,null,null,null,null,null,null,null,null,null,null,null,null,null,null,null,null,null,null,null,null,null,null,null,null,null,null,null,2083,"KS069","KS069000001","Neodesha Housing Authority","KC1018","792492068","0701","03/31"]
[2108,"NY084","Town of Ramapo Housing Authority","NY 615","175126820","0201","2011-12-31",null,null,null,null,null,null,null,null,null,null,null,null,null,null,null,null,null,null,null,null,null,null,null,null,null,null,null,null,null,null,null,null,null,null,null,null,null,null,null,null,null,null,null,null,null,2108,"KS141","KS141000001","Mankato Housing Authority","KC-1156","023806057","0701","06/30"]
[2123,"NY400","Kenmore Municipal Housing Authority","NY900","877022863","0206","2011-06-30",null,null,null,null,null,null,null,null,null,null,null,null,null,null,null,null,null,null,null,null,null,null,null,null,null,null,null,null,null,null,null,null,null,null,null,null,null,null,null,null,null,null,null,null,null,2123,"KY001","KY001000018","LOUISVILLE METRO HOUSING AUTHORITY","A-4192","557425642","0436","06/30"]
[2134,"OH009","Zanesville Metropolitan Housing Authority","C-971","037523776","0516","2011-06-30",null,null,null,null,null,null,null,null,null,null,null,null,null,null,null,null,null,null,null,null,null,null,null,null,null,null,null,null,null,null,null,null,null,null,null,null,null,null,null,null,null,null,null,null,null,2134,"KY001","KY001000050","LOUISVILLE METRO HOUSING AUTHORITY","A-4192","557425642","0436","06/30"]
[2168,"OH060","Pike Metropolitan Housing Authority","C-5096","084432434","0516","2011-12-31",null,null,null,null,null,null,null,null,null,null,null,null,null,null,null,null,null,null,null,null,null,null,null,null,null,null,null,null,null,null,null,null,null,null,null,null,null,null,null,null,null,null,null,null,null,2168,"KY011","KY011000003","Housing Authority of Hopkinsville","A-2588","102129913","0436","06/30"]
[2173,"OH069","Noble Metropolitan Housing Authority","C-5105","138251108","0516","2011-03-31",null,null,null,null,null,null,null,null,null,null,null,null,null,null,null,null,null,null,null,null,null,null,null,null,null,null,null,null,null,null,null,null,null,null,null,null,null,null,null,null,null,null,null,null,null,2173,"KY014","KY014000101","Housing Authority of Danville","A4326","930992102","0436","03/31"]
[2198,"OK025","Housing Authority of the Town of Antlers","FW968","047198023","0656","2011-06-30",null,null,null,null,null,null,null,null,null,null,null,null,null,null,null,null,null,null,null,null,null,null,null,null,null,null,null,null,null,null,null,null,null,null,null,null,null,null,null,null,null,null,null,null,null,2198,"KY026","KY026000002","Housing Authority of Glasgow","A4363","780232419","0436","12/31"]
[2217,"OK048","Housing Authority of the City of Holdenville","FW1207","826368128","0656","2011-06-30",null,null,null,null,null,null,null,null,null,null,null,null,null,null,null,null,null,null,null,null,null,null,null,null,null,null,null,null,null,null,null,null,null,null,null,null,null,null,null,null,null,null,null,null,null,2217,"KY044","KY044000001","Housing Authority of Whitesburg","A-2627","042351804","0436","03/31"]
[2237,"OK073","Housing Authority of the City of Tulsa","FW1182","070033105","0656","2011-06-30",null,null,null,null,null,null,null,null,null,null,null,null,null,null,null,null,null,null,null,null,null,null,null,null,null,null,null,null,null,null,null,null,null,null,null,null,null,null,null,null,null,null,null,null,null,2237,"KY063","KY063000001","Housing Authority of Bowling Green","A4332","801326067","0436","09/30"]
[2262,"OK118","Housing Authority of the Town of Fort Gibson","FW-3083","557170610","0656","2011-12-31",null,null,null,null,null,null,null,null,null,null,null,null,null,null,null,null,null,null,null,null,null,null,null,null,null,null,null,null,null,null,null,null,null,null,null,null,null,null,null,null,null,null,null,null,null,2262,"KY090","KY090000001","Housing Authority of Berea","A-3749","603922048","0436","03/31"]
[2282,"OR002","Housing Authority of Portland","SF-160","083643098","0000","2011-03-31",null,null,null,null,null,null,null,null,null,null,null,null,null,null,null,null,null,null,null,null,null,null,null,null,null,null,null,null,null,null,null,null,null,null,null,null,null,null,null,null,null,null,null,null,null,2282,"KY170","KY170000001","Housing Authority of Todd County","A3740","174152876","0436","09/30"]
[2287,"OR008","Housing Authority & Urban Renewal Agency of Polk County","SF-217","185257482","1016","2011-09-30",null,null,null,null,null,null,null,null,null,null,null,null,null,null,null,null,null,null,null,null,null,null,null,null,null,null,null,null,null,null,null,null,null,null,null,null,null,null,null,null,null,null,null,null,null,2287,"LA001","LA001005106","HOUSING AUTHORITY OF NEW ORLEANS","FW-1190","010401495","0648","09/30"]
[2308,"PA012","Montgomery County Housing Authority","W-82","051285211","0301","2011-12-31",null,null,null,null,null,null,null,null,null,null,null,null,null,null,null,null,null,null,null,null,null,null,null,null,null,null,null,null,null,null,null,null,null,null,null,null,null,null,null,null,null,null,null,null,null,2308,"LA002","LA002002300","Housing Authority of the City of Shreveport","FW-923","079786349","0648","09/30"]
[2327,"PA031","Altoona Housing Authority","P-145","086675000","0328","2011-06-30",null,null,null,null,null,null,null,null,null,null,null,null,null,null,null,null,null,null,null,null,null,null,null,null,null,null,null,null,null,null,null,null,null,null,null,null,null,null,null,null,null,null,null,null,null,2327,"LA006","LA006000009","Housing Authority of Monroe","FW-2006","102598257","0648","06/30"]
[2356,"PA060","Housing Auth of the County of Northumberland","P-209","031394547","0301","2011-03-31",null,null,null,null,null,null,null,null,null,null,null,null,null,null,null,null,null,null,null,null,null,null,null,null,null,null,null,null,null,null,null,null,null,null,null,null,null,null,null,null,null,null,null,null,null,2356,"LA033","LA033801801","Housing Authority of Oakdale","FW-719","087720074","0648","09/30"]
[2372,"PA083","Columbia County Housing Authority","P-4523","021971002","0301","2011-12-31",null,null,null,null,null,null,null,null,null,null,null,null,null,null,null,null,null,null,null,null,null,null,null,null,null,null,null,null,null,null,null,null,null,null,null,null,null,null,null,null,null,null,null,null,null,2372,"LA046","LA046071543","Housing Authority of the Town of Vinton","FW-588","555742484","0648","06/30"]
[2401,"RI024","East Greenwich Housing Authority","B1176","835805953","0143","2011-06-30",null,null,null,null,null,null,null,null,null,null,null,null,null,null,null,null,null,null,null,null,null,null,null,null,null,null,null,null,null,null,null,null,null,null,null,null,null,null,null,null,null,null,null,null,null,2401,"LA082","LA082273853","Housing Authority of the Town of Merryville","FW-1266","876998147","0648","12/31"]
[2417,"SC018","Housing Authority of Lake City","A-3958","930254818","0416","2011-06-30",null,null,null,null,null,null,null,null,null,null,null,null,null,null,null,null,null,null,null,null,null,null,null,null,null,null,null,null,null,null,null,null,null,null,null,null,null,null,null,null,null,null,null,null,null,2417,"LA098","LA098000001","Housing Authority of Gibsland","FW-2003","964864995","0648","09/30"]
[2430,"SC031","Housing Authority of Cheraw","A-4096","944682921","0416","2011-09-30",null,null,null,null,null,null,null,null,null,null,null,null,null,null,null,null,null,null,null,null,null,null,null,null,null,null,null,null,null,null,null,null,null,null,null,null,null,null,null,null,null,null,null,null,null,2430,"LA115","LA115000010","Housing Authority of the City of Natchitoches","FW2009","884282714","0648","03/31"]
[2443,"SC059","Marlboro Co Hsg & Redev Authority","A-3698","967578527","0416","2011-09-30",null,null,null,null,null,null,null,null,null,null,null,null,null,null,null,null,null,null,null,null,null,null,null,null,null,null,null,null,null,null,null,null,null,null,null,null,null,null,null,null,null,null,null,null,null,2443,"LA142","LA142000001","Housing Authority of Jena","FW-2065","874842461","0648","06/30"]
[2462,"SD025","Lemmon Housing & Redevelopment Commission","DEN 569","612475000","0801","2011-09-30",null,null,null,null,null,null,null,null,null,null,null,null,null,null,null,null,null,null,null,null,null,null,null,null,null,null,null,null,null,null,null,null,null,null,null,null,null,null,null,null,null,null,null,null,null,2462,"MA002","MA002000158","Boston Housing Authority","NY361","110712671","0101","03/31"]
[2499,"TN029","Gallatin Housing Authority","A 3084","626045504","0443","2011-12-31",null,null,null,null,null,null,null,null,null,null,null,null,null,null,null,null,null,null,null,null,null,null,null,null,null,null,null,null,null,null,null,null,null,null,null,null,null,null,null,null,null,null,null,null,null,2499,"MA002","MA002000298","Boston Housing Authority","NY361","110712671","0101","03/31"]
[2507,"TN037","South Pittsburg Housing Authority","A-2555","138387001","0437","2011-06-30",null,null,null,null,null,null,null,null,null,null,null,null,null,null,null,null,null,null,null,null,null,null,null,null,null,null,null,null,null,null,null,null,null,null,null,null,null,null,null,null,null,null,null,null,null,2507,"MA002","MA002002119","Boston Housing Authority","NY361","110712671","0101","03/31"]
[2524,"TN054","Cleveland Housing Authority","A-3762","023105800","0437","2011-06-30",null,null,null,null,null,null,null,null,null,null,null,null,null,null,null,null,null,null,null,null,null,null,null,null,null,null,null,null,null,null,null,null,null,null,null,null,null,null,null,null,null,null,null,null,null,2524,"MA006","MA006000005","Fall River Housing Authority","NY340","780967709","0101","03/31"]
[2552,"TN090","Lafayette Housing Authority","A-2779","032890188","0443","2011-09-30",null,null,null,null,null,null,null,null,null,null,null,null,null,null,null,null,null,null,null,null,null,null,null,null,null,null,null,null,null,null,null,null,null,null,null,null,null,null,null,null,null,null,null,null,null,2552,"MA012","MA012000017","Worcester Housing Authority","NY353","085610756","0101","03/31"]
[2571,"TX018","Housing Authority of Lubbock","FW5449","121247779","0601","2011-09-30",null,null,null,null,null,null,null,null,null,null,null,null,null,null,null,null,null,null,null,null,null,null,null,null,null,null,null,null,null,null,null,null,null,null,null,null,null,null,null,null,null,null,null,null,null,2571,"MA022","MA022000005","Malden Housing Authority","NY 468","021000757","0101","09/30"]
[2593,"TX041","Housing Authority of Olney","FW5048","618099907","0601","2011-09-30",null,null,null,null,null,null,null,null,null,null,null,null,null,null,null,null,null,null,null,null,null,null,null,null,null,null,null,null,null,null,null,null,null,null,null,null,null,null,null,null,null,null,null,null,null,2593,"MA035","MA035000007","Springfield Housing Authority","NY-360","048805238","0101","03/31"]
[2597,"TX045","Housing Authority of Canyon","FW5268","045987385","0601","2011-09-30",null,null,null,null,null,null,null,null,null,null,null,null,null,null,null,null,null,null,null,null,null,null,null,null,null,null,null,null,null,null,null,null,null,null,null,null,null,null,null,null,null,null,null,null,null,2597,"MA041","MA041000010","Shrewsbury Housing Authority","NY586","070611500","0101","03/31"]
[2618,"TX068","Housing Authority of Overton","FW5431","0","0601","2011-03-31",null,null,null,null,null,null,null,null,null,null,null,null,null,null,null,null,null,null,null,null,null,null,null,null,null,null,null,null,null,null,null,null,null,null,null,null,null,null,null,null,null,null,null,null,null,2618,"MA109","MA109000001","Norwood Housing Authority","B-1628","021720727","0101","09/30"]
[2642,"TX093","Housing Authority of Honey Grove","FW5834","011584005","0601","2011-03-31",null,null,null,null,null,null,null,null,null,null,null,null,null,null,null,null,null,null,null,null,null,null,null,null,null,null,null,null,null,null,null,null,null,null,null,null,null,null,null,null,null,null,null,null,null,2642,"MD003","MD003000003","Frederick Housing Authority","W-67","042362850","0306","03/31"]
[2663,"TX117","Housing Authority of Deport","FW5187","005681770","0601","2011-09-30",null,null,null,null,null,null,null,null,null,null,null,null,null,null,null,null,null,null,null,null,null,null,null,null,null,null,null,null,null,null,null,null,null,null,null,null,null,null,null,null,null,null,null,null,null,2663,"MD006","MD006000002","Hagerstown Housing Authority","P-201","198538878","0306","09/30"]
[2681,"TX147","Kenedy Housing Authority","FW-4043","030729321","0659","2011-12-31",null,null,null,null,null,null,null,null,null,null,null,null,null,null,null,null,null,null,null,null,null,null,null,null,null,null,null,null,null,null,null,null,null,null,null,null,null,null,null,null,null,null,null,null,null,2681,"MD014","MD014000002","Wicomico County Housing Authority","P-174","144994308","0306","12/31"]
[2706,"TX177","DONNA HOUSING AUTHORITY","FW-538","931654396","0659","2011-09-30",null,null,null,null,null,null,null,null,null,null,null,null,null,null,null,null,null,null,null,null,null,null,null,null,null,null,null,null,null,null,null,null,null,null,null,null,null,null,null,null,null,null,null,null,null,2706,"ME003","ME003000003","Portland Housing Authority","NY 478","093626885","0136","06/30"]
[2732,"TX207","Housing Authority of the City of Clarksville","FW113","171583474","0601","2011-09-30",null,null,null,null,null,null,null,null,null,null,null,null,null,null,null,null,null,null,null,null,null,null,null,null,null,null,null,null,null,null,null,null,null,null,null,null,null,null,null,null,null,null,null,null,null,2732,"MI001","MI001000004","Detroit Housing Commission","C-3020","118271910","0528","06/30"]
[2745,"TX220","Housing Authority of Windom","FW0733","131631561","0601","2011-03-31",null,null,null,null,null,null,null,null,null,null,null,null,null,null,null,null,null,null,null,null,null,null,null,null,null,null,null,null,null,null,null,null,null,null,null,null,null,null,null,null,null,null,null,null,null,2745,"MI001","MI001000018","Detroit Housing Commission","C-3020","118271910","0528","06/30"]
[2757,"TX232","Housing Authority of Beckville","FW5112","001206080","0601","2011-09-30",null,null,null,null,null,null,null,null,null,null,null,null,null,null,null,null,null,null,null,null,null,null,null,null,null,null,null,null,null,null,null,null,null,null,null,null,null,null,null,null,null,null,null,null,null,2757,"MI003","MI003000002","Dearborn Housing Commission","C-3042","149284536","0528","09/30"]
[2790,"TX270","Housing Authority of Robert Lee","204","967720533","0601","2011-09-30",null,null,null,null,null,null,null,null,null,null,null,null,null,null,null,null,null,null,null,null,null,null,null,null,null,null,null,null,null,null,null,null,null,null,null,null,null,null,null,null,null,null,null,null,null,2790,"MI018","MI018000001","Ironwood Housing Commission","C-3060","609542881","0533","06/30"]
[2796,"TX276","Housing Authority of Meridian","FW1475","792549057","0601","2011-09-30",null,null,null,null,null,null,null,null,null,null,null,null,null,null,null,null,null,null,null,null,null,null,null,null,null,null,null,null,null,null,null,null,null,null,null,null,null,null,null,null,null,null,null,null,null,2796,"MI024","MI024000001","Bay City Housing Commission","C-3017","792501199","0528","09/30"]
[2826,"TX310","Housing Authority of Avery","FW1336","004757621","0601","2011-03-31",null,null,null,null,null,null,null,null,null,null,null,null,null,null,null,null,null,null,null,null,null,null,null,null,null,null,null,null,null,null,null,null,null,null,null,null,null,null,null,null,null,null,null,null,null,2826,"MI041","MI041000001","Big Rapids Housing Commission","C-3022","079296190","0533","03/31"]
[2835,"TX322","Round Rock Housing Authority","FW-4027","005228064","0659","2011-06-30",null,null,null,null,null,null,null,null,null,null,null,null,null,null,null,null,null,null,null,null,null,null,null,null,null,null,null,null,null,null,null,null,null,null,null,null,null,null,null,null,null,null,null,null,null,2835,"MI050","MI050000001","Baldwin Housing Commission","C-3093","968857953","0533","09/30"]
[2851,"TX341","Housing Authority of Tatum","FW5933","849010640","0601","2011-06-30",null,null,null,null,null,null,null,null,null,null,null,null,null,null,null,null,null,null,null,null,null,null,null,null,null,null,null,null,null,null,null,null,null,null,null,null,null,null,null,null,null,null,null,null,null,2851,"MI058","MI058009999","Lansing Housing Commission","C-3007","130575207","0533","06/30"]
[2880,"TX406","Housing Authority of the City of Huntsville","FW-5130","042332382","0624","2011-09-30",null,null,null,null,null,null,null,null,null,null,null,null,null,null,null,null,null,null,null,null,null,null,null,null,null,null,null,null,null,null,null,null,null,null,null,null,null,null,null,null,null,null,null,null,null,2880,"MI088","MI088000001","Paw Paw Housing Commission","C-3003","797147931","0533","12/31"]
[2900,"TX539","Housing Authority of Blossom","FW5930","931638050","0601","2011-06-30",null,null,null,null,null,null,null,null,null,null,null,null,null,null,null,null,null,null,null,null,null,null,null,null,null,null,null,null,null,null,null,null,null,null,null,null,null,null,null,null,null,null,null,null,null,2900,"MI115","MI115000001","Wyoming Housing Commission","C-3094","609346044","0533","03/31"]
[2925,"VA010","Danville Redevelopment & Housing Authority","P-5533","010059673","0336","2011-09-30",null,null,null,null,null,null,null,null,null,null,null,null,null,null,null,null,null,null,null,null,null,null,null,null,null,null,null,null,null,null,null,null,null,null,null,null,null,null,null,null,null,null,null,null,null,2925,"MI192","MI192000001","Hermansville Housing Commission","C-8083","831087572","0533","03/31"]
[2944,"VA032","Abingdon Redevelopment And Housing Authority","P-5553","188674329","0336","2011-03-31",null,null,null,null,null,null,null,null,null,null,null,null,null,null,null,null,null,null,null,null,null,null,null,null,null,null,null,null,null,null,null,null,null,null,null,null,null,null,null,null,null,null,null,null,null,2944,"MN002","MN002000009","Minneapolis PHA In And for the City of Mineapolis","C-953","190804419","0546","09/30"]
[2965,"WA012","HA City of Kennewick","SF-70","021824651","1001","2011-06-30",null,null,null,null,null,null,null,null,null,null,null,null,null,null,null,null,null,null,null,null,null,null,null,null,null,null,null,null,null,null,null,null,null,null,null,null,null,null,null,null,null,null,null,null,null,2965,"MN010","MN010000001","HRA of the City of South St Paul, Minnesota","C-4018","026914374","0546","12/31"]
[2970,"WA020","HA City of Kelso","SF-198","095004586","1001","2011-03-31",null,null,null,null,null,null,null,null,null,null,null,null,null,null,null,null,null,null,null,null,null,null,null,null,null,null,null,null,null,null,null,null,null,null,null,null,null,null,null,null,null,null,null,null,null,2970,"MN018","MN018000001","HRA of Wadena, Minnesota","C-550","189547581","0546","06/30"]
[2994,"WI018","Plymouth Housing Authority","C-542","014802011","0539","2011-06-30",null,null,null,null,null,null,null,null,null,null,null,null,null,null,null,null,null,null,null,null,null,null,null,null,null,null,null,null,null,null,null,null,null,null,null,null,null,null,null,null,null,null,null,null,null,2994,"MN040","MN040000001","HRA of Tracy, Minnesota","C-716","193116183","0546","12/31"]
[3015,"WI044","Oconto Housing Authority","C-691","053494597","0539","2011-06-30",null,null,null,null,null,null,null,null,null,null,null,null,null,null,null,null,null,null,null,null,null,null,null,null,null,null,null,null,null,null,null,null,null,null,null,null,null,null,null,null,null,null,null,null,null,3015,"MN063","MN063000001","Mankato EDA","C-4119","054392878","0546","12/31"]
[3039,"WI072","Clintonville Housing Authority","C-874","106639529","0539","2011-09-30",null,null,null,null,null,null,null,null,null,null,null,null,null,null,null,null,null,null,null,null,null,null,null,null,null,null,null,null,null,null,null,null,null,null,null,null,null,null,null,null,null,null,null,null,null,3039,"MN088","MN088000001","HRA of Long Prairie, Minnesota","C-4023","883173569","0546","03/31"]
[3060,"WI139","Shawano County Housing Authority","C-6004","627194780","0539","2011-12-31",null,null,null,null,null,null,null,null,null,null,null,null,null,null,null,null,null,null,null,null,null,null,null,null,null,null,null,null,null,null,null,null,null,null,null,null,null,null,null,null,null,null,null,null,null,3060,"MN147","MN147000001","Dakota County CDA","C-4113","963108121","0546","06/30"]
[3079,"WV001","Charleston-Kanawha Housing Authority","P-159","107334195","0315","2011-03-31",null,null,null,null,null,null,null,null,null,null,null,null,null,null,null,null,null,null,null,null,null,null,null,null,null,null,null,null,null,null,null,null,null,null,null,null,null,null,null,null,null,null,null,null,null,3079,"MN188","MN188000001","Cass County HRA","C-4147","965084007","0546","12/31"]
[3088,"WV011","Housing Authority of the City of Moundsville","P-147","048392898","0315","2011-12-31",null,null,null,null,null,null,null,null,null,null,null,null,null,null,null,null,null,null,null,null,null,null,null,null,null,null,null,null,null,null,null,null,null,null,null,null,null,null,null,null,null,null,null,null,null,3088,"MO001","MO001000001","Housing Authority of the City of St. Louis","KC5109","076966431","0736","09/30"]
[3105,"WV037","Housing Authority of Mingo County","P-1558","135965270","0315","2011-12-31",null,null,null,null,null,null,null,null,null,null,null,null,null,null,null,null,null,null,null,null,null,null,null,null,null,null,null,null,null,null,null,null,null,null,null,null,null,null,null,null,null,null,null,null,null,3105,"MO001","MO001000046","Housing Authority of the City of St. Louis","KC5109","076966431","0736","09/30"]
[null,null,null,null,null,null,null,null,null,null,null,null,null,null,null,null,null,null,null,null,null,null,null,null,null,null,null,null,null,null,null,null,null,null,null,null,null,null,null,null,null,null,null,null,null,null,null,null,null,null,null,null,3133,"MO002","MO002000738","Housing Authority of Kansas City, Missouri","KC10472","073035461","0701","12/31"]
[null,null,null,null,null,null,null,null,null,null,null,null,null,null,null,null,null,null,null,null,null,null,null,null,null,null,null,null,null,null,null,null,null,null,null,null,null,null,null,null,null,null,null,null,null,null,null,null,null,null,null,null,3144,"MO007","MO007000004","Housing Authority of the City of Columbia, MO","KC5072","081630592","0736","09/30"]
[14,"AK001","AK001000280",null,null,null,null,null,null,null,null,null,null,null,null,null,null,null,null,null,null,null,null,null,null,null,null,null,null,null,null,null,null,null,null,null,null,null,null,null,null,null,null,null,null,null,null,null,null,null,null,null,3169,"MO027","MO027000001","Housing Authority of the City of Cardwell","FW821","003985640","0736","12/31"]
[27,"AL001","AL001000021",null,null,null,null,null,null,null,null,null,null,null,null,null,null,null,null,null,null,null,null,null,null,null,null,null,null,null,null,null,null,null,null,null,null,null,null,null,null,null,null,null,null,null,null,null,null,null,null,null,3182,"MO038","MO038000001","Osceola Housing Authority","FW-2205","012509717","0701","06/30"]
[59,"AL006","AL006000002",null,null,null,null,null,null,null,null,null,null,null,null,null,null,null,null,null,null,null,null,null,null,null,null,null,null,null,null,null,null,null,null,null,null,null,null,null,null,null,null,null,null,null,null,null,null,null,null,null,3214,"MO065","MO065000001","Chillicothe Housing Authority","FW-1245","029623469","0701","06/30"]
[72,"AL007","AL007000050",null,null,null,null,null,null,null,null,null,null,null,null,null,null,null,null,null,null,null,null,null,null,null,null,null,null,null,null,null,null,null,null,null,null,null,null,null,null,null,null,null,null,null,null,null,null,null,null,null,3227,"MO078","MO078000001","Housing Authority of the City of Cameron","KC-1013","108596909","0701","06/30"]
[98,"AL047","AL047000016",null,null,null,null,null,null,null,null,null,null,null,null,null,null,null,null,null,null,null,null,null,null,null,null,null,null,null,null,null,null,null,null,null,null,null,null,null,null,null,null,null,null,null,null,null,null,null,null,null,3253,"MO191","MO191000001","Housing Authority of the City of Sainte Genevieve","KC5285","957628605","0736","06/30"]
[117,"AL051","AL051000001",null,null,null,null,null,null,null,null,null,null,null,null,null,null,null,null,null,null,null,null,null,null,null,null,null,null,null,null,null,null,null,null,null,null,null,null,null,null,null,null,null,null,null,null,null,null,null,null,null,3272,"MS004","MS004000018","The Housing Authority of the City of Meridian","A-2504","107978124","0426","03/31"]
[124,"AL054","AL054000003",null,null,null,null,null,null,null,null,null,null,null,null,null,null,null,null,null,null,null,null,null,null,null,null,null,null,null,null,null,null,null,null,null,null,null,null,null,null,null,null,null,null,null,null,null,null,null,null,null,3279,"MS005","MS005000005","The Housing Authority of the City of Biloxi","A-2201","107195000","0426","12/31"]
[149,"AL068","AL068000003",null,null,null,null,null,null,null,null,null,null,null,null,null,null,null,null,null,null,null,null,null,null,null,null,null,null,null,null,null,null,null,null,null,null,null,null,null,null,null,null,null,null,null,null,null,null,null,null,null,3304,"MS040","MS040000003","Mississippi Regional Housing Authority No. VIII","A-2502","037254992","0426","12/31"]
[166,"AL077","AL077000008",null,null,null,null,null,null,null,null,null,null,null,null,null,null,null,null,null,null,null,null,null,null,null,null,null,null,null,null,null,null,null,null,null,null,null,null,null,null,null,null,null,null,null,null,null,null,null,null,null,3321,"MS060","MS060000030","The Housing Authority of the City of Brookhaven","A-2193","157475559","0426","09/30"]
[188,"AL091","AL091001003",null,null,null,null,null,null,null,null,null,null,null,null,null,null,null,null,null,null,null,null,null,null,null,null,null,null,null,null,null,null,null,null,null,null,null,null,null,null,null,null,null,null,null,null,null,null,null,null,null,3343,"MS077","MS077000003","The Housing Authority of the City of Tupelo","A-2492","199693904","0426","12/31"]
[211,"AL114","AL114000001",null,null,null,null,null,null,null,null,null,null,null,null,null,null,null,null,null,null,null,null,null,null,null,null,null,null,null,null,null,null,null,null,null,null,null,null,null,null,null,null,null,null,null,null,null,null,null,null,null,3366,"MS107","MS107000200","The Housing Authority of the City of Greenwood","A-3529","112602743","0426","03/31"]
[233,"AL128","AL128000001",null,null,null,null,null,null,null,null,null,null,null,null,null,null,null,null,null,null,null,null,null,null,null,null,null,null,null,null,null,null,null,null,null,null,null,null,null,null,null,null,null,null,null,null,null,null,null,null,null,3388,"MT006","MT006000001","Richland County Housing Authority","SF-56","182914556","0801","03/31"]
[240,"AL136","AL136000001",null,null,null,null,null,null,null,null,null,null,null,null,null,null,null,null,null,null,null,null,null,null,null,null,null,null,null,null,null,null,null,null,null,null,null,null,null,null,null,null,null,null,null,null,null,null,null,null,null,3395,"NC001","NC001000001","Housing Authority of the City of Wilmington","A-4312","177064342","0419","03/31"]
[259,"AL154","AL154000001",null,null,null,null,null,null,null,null,null,null,null,null,null,null,null,null,null,null,null,null,null,null,null,null,null,null,null,null,null,null,null,null,null,null,null,null,null,null,null,null,null,null,null,null,null,null,null,null,null,3414,"NC002","NC002000025","Housing Authority of the City of Raleigh","A-4313","075563007","0419","03/31"]
[278,"AL169","AL169000009",null,null,null,null,null,null,null,null,null,null,null,null,null,null,null,null,null,null,null,null,null,null,null,null,null,null,null,null,null,null,null,null,null,null,null,null,null,null,null,null,null,null,null,null,null,null,null,null,null,3433,"NC003","NC003000030","HOUSING AUTHORITY OF THE CITY OF CHARLOTTE","A-4156","074523176","0419","03/31"]
[305,"AR002","AR002000003",null,null,null,null,null,null,null,null,null,null,null,null,null,null,null,null,null,null,null,null,null,null,null,null,null,null,null,null,null,null,null,null,null,null,null,null,null,null,null,null,null,null,null,null,null,null,null,null,null,3460,"NC006","NC006000003","Housing Authority of the City of High Point","A-4060","037184145","0419","12/31"]
[323,"AR004","AR004000027",null,null,null,null,null,null,null,null,null,null,null,null,null,null,null,null,null,null,null,null,null,null,null,null,null,null,null,null,null,null,null,null,null,null,null,null,null,null,null,null,null,null,null,null,null,null,null,null,null,3478,"NC009","NC009000002","Fayetteville Metropolitan Housing Authority","A-4052","097599963","0419","09/30"]
[354,"AR043","AR043000001",null,null,null,null,null,null,null,null,null,null,null,null,null,null,null,null,null,null,null,null,null,null,null,null,null,null,null,null,null,null,null,null,null,null,null,null,null,null,null,null,null,null,null,null,null,null,null,null,null,3509,"NC011","NC011032105","Housing Authority of the City of Greensboro","A-4314","071571517","0419","06/30"]
[368,"AR055","AR055000001",null,null,null,null,null,null,null,null,null,null,null,null,null,null,null,null,null,null,null,null,null,null,null,null,null,null,null,null,null,null,null,null,null,null,null,null,null,null,null,null,null,null,null,null,null,null,null,null,null,3523,"NC012","NC012000031","Housing Authority of the City of Winston-Salem","A-4044","060316908","0419","09/30"]
[387,"AR078","AR078000001",null,null,null,null,null,null,null,null,null,null,null,null,null,null,null,null,null,null,null,null,null,null,null,null,null,null,null,null,null,null,null,null,null,null,null,null,null,null,null,null,null,null,null,null,null,null,null,null,null,3542,"NC013","NC013000016","The Housing Authority of the City of Durham","A-4165","040031031","0419","12/31"]
[403,"AR094","AR094000001",null,null,null,null,null,null,null,null,null,null,null,null,null,null,null,null,null,null,null,null,null,null,null,null,null,null,null,null,null,null,null,null,null,null,null,null,null,null,null,null,null,null,null,null,null,null,null,null,null,3558,{"$f":"LEFT(BC3559,5)","v":"NC016"},"NC016000010","Housing Authority of the City of Salisbury","A-4043","049656205","0419","06/30"]
[413,"AR104","AR104000001",null,null,null,null,null,null,null,null,null,null,null,null,null,null,null,null,null,null,null,null,null,null,null,null,null,null,null,null,null,null,null,null,null,null,null,null,null,null,null,null,null,null,null,null,null,null,null,null,null,3568,"NC021","NC021000002","Housing Authority of the County of Wake","A-3992","042361241","0419","06/30"]
[448,"AZ004","AZ004000065",null,null,null,null,null,null,null,null,null,null,null,null,null,null,null,null,null,null,null,null,null,null,null,null,null,null,null,null,null,null,null,null,null,null,null,null,null,null,null,null,null,null,null,null,null,null,null,null,null,3603,"NC045","NC045000010","Hot Springs Housing Authority","A-3969","137435082","0419","06/30"]
[458,"AZ008","AZ008000001",null,null,null,null,null,null,null,null,null,null,null,null,null,null,null,null,null,null,null,null,null,null,null,null,null,null,null,null,null,null,null,null,null,null,null,null,null,null,null,null,null,null,null,null,null,null,null,null,null,3613,"NC052","NC052000001","Southern Pines Housing Authority","A-4161","027104520","0419","12/31"]
[473,"AZ023","AZ023000001",null,null,null,null,null,null,null,null,null,null,null,null,null,null,null,null,null,null,null,null,null,null,null,null,null,null,null,null,null,null,null,null,null,null,null,null,null,null,null,null,null,null,null,null,null,null,null,null,null,3628,"NC064","NC064000001","Kings Mountain Housing Authority","A-4055","147177914","0419","09/30"]
[497,"CA001","CA001000974",null,null,null,null,null,null,null,null,null,null,null,null,null,null,null,null,null,null,null,null,null,null,null,null,null,null,null,null,null,null,null,null,null,null,null,null,null,null,null,null,null,null,null,null,null,null,null,null,null,3652,"NC082","NC082000001","Ayden Housing Authority","A-3568","196012397","0419","03/31"]
[522,"CA003","CA003000103",null,null,null,null,null,null,null,null,null,null,null,null,null,null,null,null,null,null,null,null,null,null,null,null,null,null,null,null,null,null,null,null,null,null,null,null,null,null,null,null,null,null,null,null,null,null,null,null,null,3677,"NC169","NC169000050","Princeville Housing Authority","A-4302","901960299","0419","12/31"]
[542,"CA004","CA004000227",null,null,null,null,null,null,null,null,null,null,null,null,null,null,null,null,null,null,null,null,null,null,null,null,null,null,null,null,null,null,null,null,null,null,null,null,null,null,null,null,null,null,null,null,null,null,null,null,null,3697,"ND021","ND021000004","Burleigh County Housing Authority","DEN-085","078667656","0801","12/31"]
[567,"CA006","CA006000001",null,null,null,null,null,null,null,null,null,null,null,null,null,null,null,null,null,null,null,null,null,null,null,null,null,null,null,null,null,null,null,null,null,null,null,null,null,null,null,null,null,null,null,null,null,null,null,null,null,3722,"NE001","NE001000020","Omaha Housing Authority","C-434","072922500","0726","12/31"]
[587,"CA008","CA008000107",null,null,null,null,null,null,null,null,null,null,null,null,null,null,null,null,null,null,null,null,null,null,null,null,null,null,null,null,null,null,null,null,null,null,null,null,null,null,null,null,null,null,null,null,null,null,null,null,null,3742,"NE012","NE012000001","Nebraska City Housing Authority","C-415","780524237","0726","03/31"]
[606,"CA011","CA011200000",null,null,null,null,null,null,null,null,null,null,null,null,null,null,null,null,null,null,null,null,null,null,null,null,null,null,null,null,null,null,null,null,null,null,null,null,null,null,null,null,null,null,null,null,null,null,null,null,null,3761,"NE032","NE032000001","Verdigre Housing Authority","C-450","024081064","0726","03/31"]
[612,"CA011","CA011800000",null,null,null,null,null,null,null,null,null,null,null,null,null,null,null,null,null,null,null,null,null,null,null,null,null,null,null,null,null,null,null,null,null,null,null,null,null,null,null,null,null,null,null,null,null,null,null,null,null,3767,"NE038","NE038000001","Henderson Housing Authority","C-457","042361621","0726","12/31"]
[636,"CA025","CA025000001",null,null,null,null,null,null,null,null,null,null,null,null,null,null,null,null,null,null,null,null,null,null,null,null,null,null,null,null,null,null,null,null,null,null,null,null,null,null,null,null,null,null,null,null,null,null,null,null,null,3791,"NE074","NE074000001","Plattsmouth Housing Authority","C-569","042362728","0726","06/30"]
[651,"CA028","CA028000007",null,null,null,null,null,null,null,null,null,null,null,null,null,null,null,null,null,null,null,null,null,null,null,null,null,null,null,null,null,null,null,null,null,null,null,null,null,null,null,null,null,null,null,null,null,null,null,null,null,3806,"NE095","NE095000001","Falls City Housing Authority","C-711","156223989","0726","06/30"]
[681,"CA039","CA039000002",null,null,null,null,null,null,null,null,null,null,null,null,null,null,null,null,null,null,null,null,null,null,null,null,null,null,null,null,null,null,null,null,null,null,null,null,null,null,null,null,null,null,null,null,null,null,null,null,null,3836,"NH001","NH001000005","Manchester Housing Authority","B3043","158558866","0136","09/30"]
[696,"CA058","CA058000002",null,null,null,null,null,null,null,null,null,null,null,null,null,null,null,null,null,null,null,null,null,null,null,null,null,null,null,null,null,null,null,null,null,null,null,null,null,null,null,null,null,null,null,null,null,null,null,null,null,3851,"NH005","NH005000001","Concord Housing Authority","NY440","081256500","0136","09/30"]
[706,"CA074","CA074000001",null,null,null,null,null,null,null,null,null,null,null,null,null,null,null,null,null,null,null,null,null,null,null,null,null,null,null,null,null,null,null,null,null,null,null,null,null,null,null,null,null,null,null,null,null,null,null,null,null,3861,"NH014","NH014000001","Exeter Housing Authority","B3141","118081371","0136","09/30"]
[741,"CO001","CO001000062",null,null,null,null,null,null,null,null,null,null,null,null,null,null,null,null,null,null,null,null,null,null,null,null,null,null,null,null,null,null,null,null,null,null,null,null,null,null,null,null,null,null,null,null,null,null,null,null,null,3896,"NJ003","NJ003000004","Elizabeth Housing Authority","NY-403","044054700","0239","06/30"]
[760,"CO013","CO013000001",null,null,null,null,null,null,null,null,null,null,null,null,null,null,null,null,null,null,null,null,null,null,null,null,null,null,null,null,null,null,null,null,null,null,null,null,null,null,null,null,null,null,null,null,null,null,null,null,null,3915,"NJ007","NJ007000005","Asbury Park Housing Authority","NY400","084046119","0239","03/31"]
[775,"CO028","CO028000002",null,null,null,null,null,null,null,null,null,null,null,null,null,null,null,null,null,null,null,null,null,null,null,null,null,null,null,null,null,null,null,null,null,null,null,null,null,null,null,null,null,null,null,null,null,null,null,null,null,3930,"NJ009","NJ009000006","Jersey City Housing Authority","NY-415","085663680","0239","03/31"]
[786,"CO041","CO041000001",null,null,null,null,null,null,null,null,null,null,null,null,null,null,null,null,null,null,null,null,null,null,null,null,null,null,null,null,null,null,null,null,null,null,null,null,null,null,null,null,null,null,null,null,null,null,null,null,null,3941,"NJ009","NJ009000018","Jersey City Housing Authority","NY-415","085663680","0239","03/31"]
[804,"CT001","CT001000044",null,null,null,null,null,null,null,null,null,null,null,null,null,null,null,null,null,null,null,null,null,null,null,null,null,null,null,null,null,null,null,null,null,null,null,null,null,null,null,null,null,null,null,null,null,null,null,null,null,3959,"NJ012","NJ012000003","Bayonne Housing Authority","NY-367","173472374","0239","06/30"]
[831,"CT004","CT004000026",null,null,null,null,null,null,null,null,null,null,null,null,null,null,null,null,null,null,null,null,null,null,null,null,null,null,null,null,null,null,null,null,null,null,null,null,null,null,null,null,null,null,null,null,null,null,null,null,null,3986,"NJ023","NJ023000001","Morristown Housing Authority","NY-198","876314000","0239","09/30"]
[849,"CT007","CT007000004",null,null,null,null,null,null,null,null,null,null,null,null,null,null,null,null,null,null,null,null,null,null,null,null,null,null,null,null,null,null,null,null,null,null,null,null,null,null,null,null,null,null,null,null,null,null,null,null,null,4004,"NJ033","NJ033000002","Woodbridge Housing Authority","NY-408","119214000","0239","09/30"]
[876,"CT025","CT025000010",null,null,null,null,null,null,null,null,null,null,null,null,null,null,null,null,null,null,null,null,null,null,null,null,null,null,null,null,null,null,null,null,null,null,null,null,null,null,null,null,null,null,null,null,null,null,null,null,null,4031,"NJ047","NJ047000002","Carteret Housing Authority","NY411","947328126","0239","12/31"]
[895,"CT031","CT031000002",null,null,null,null,null,null,null,null,null,null,null,null,null,null,null,null,null,null,null,null,null,null,null,null,null,null,null,null,null,null,null,null,null,null,null,null,null,null,null,null,null,null,null,null,null,null,null,null,null,4050,"NJ059","NJ059000005","Pleasantville Housing Authority","P-233","042433792","0239","03/31"]
[898,"CT031","CT031000005",null,null,null,null,null,null,null,null,null,null,null,null,null,null,null,null,null,null,null,null,null,null,null,null,null,null,null,null,null,null,null,null,null,null,null,null,null,null,null,null,null,null,null,null,null,null,null,null,null,4053,"NJ061","NJ061000001","Millville Housing Authority","NY 494","020060513","0239","09/30"]
[921,"DC001","DC001001460",null,null,null,null,null,null,null,null,null,null,null,null,null,null,null,null,null,null,null,null,null,null,null,null,null,null,null,null,null,null,null,null,null,null,null,null,null,null,null,null,null,null,null,null,null,null,null,null,null,4076,"NJ071","NJ071000001","Fort Lee Housing Authority","NY-1008","617973540","0239","12/31"]
[943,"DC001","DC001003850",null,null,null,null,null,null,null,null,null,null,null,null,null,null,null,null,null,null,null,null,null,null,null,null,null,null,null,null,null,null,null,null,null,null,null,null,null,null,null,null,null,null,null,null,null,null,null,null,null,4098,"NM001","NM001000002","City of Albuquerque Housing Division","FW-5117","960782522","0602","06/30"]
[966,"DE001","DE001000019",null,null,null,null,null,null,null,null,null,null,null,null,null,null,null,null,null,null,null,null,null,null,null,null,null,null,null,null,null,null,null,null,null,null,null,null,null,null,null,null,null,null,null,null,null,null,null,null,null,4121,"NM026","NM026000001","Housing Authority of the Village of Maxwell","FW-5165","110744344","0602","06/30"]
[985,"FL001","FL001000036",null,null,null,null,null,null,null,null,null,null,null,null,null,null,null,null,null,null,null,null,null,null,null,null,null,null,null,null,null,null,null,null,null,null,null,null,null,null,null,null,null,null,null,null,null,null,null,null,null,4140,"NM067","NM067000001","Region V Housing Authority","FW-5942","116253865","0602","06/30"]
[1012,"FL004","FL004000006",null,null,null,null,null,null,null,null,null,null,null,null,null,null,null,null,null,null,null,null,null,null,null,null,null,null,null,null,null,null,null,null,null,null,null,null,null,null,null,null,null,null,null,null,null,null,null,null,null,4167,"NV013","NV013000002","County of Clark Housing Authority","SF-411","158674000","0901","06/30"]
[1030,"FL005","FL005000011",null,null,null,null,null,null,null,null,null,null,null,null,null,null,null,null,null,null,null,null,null,null,null,null,null,null,null,null,null,null,null,null,null,null,null,null,null,null,null,null,null,null,null,null,null,null,null,null,null,4185,"NY002","NY002000012","Buffalo Municipal Housing Authority","NY381","067491639","0206","06/30"]
[1037,"FL005","FL005000822",null,null,null,null,null,null,null,null,null,null,null,null,null,null,null,null,null,null,null,null,null,null,null,null,null,null,null,null,null,null,null,null,null,null,null,null,null,null,null,null,null,null,null,null,null,null,null,null,null,4192,"NY002","NY002000031","Buffalo Municipal Housing Authority","NY381","067491639","0206","06/30"]
[1069,"FL007","FL007000017",null,null,null,null,null,null,null,null,null,null,null,null,null,null,null,null,null,null,null,null,null,null,null,null,null,null,null,null,null,null,null,null,null,null,null,null,null,null,null,null,null,null,null,null,null,null,null,null,null,4224,"NY005","NY005000380","New York City Housing Authority","NY005","001672062","0201","12/31"]
[1082,"FL010","FL010000103",null,null,null,null,null,null,null,null,null,null,null,null,null,null,null,null,null,null,null,null,null,null,null,null,null,null,null,null,null,null,null,null,null,null,null,null,null,null,null,null,null,null,null,null,null,null,null,null,null,4237,"NY005","NY005000650","New York City Housing Authority","NY005","001672062","0201","12/31"]
[1095,"FL015","FL015000002",null,null,null,null,null,null,null,null,null,null,null,null,null,null,null,null,null,null,null,null,null,null,null,null,null,null,null,null,null,null,null,null,null,null,null,null,null,null,null,null,null,null,null,null,null,null,null,null,null,4250,"NY005","NY005001180","New York City Housing Authority","NY005","001672062","0201","12/31"]
[1120,"FL025","FL025000001",null,null,null,null,null,null,null,null,null,null,null,null,null,null,null,null,null,null,null,null,null,null,null,null,null,null,null,null,null,null,null,null,null,null,null,null,null,null,null,null,null,null,null,null,null,null,null,null,null,4275,"NY005","NY005010390","New York City Housing Authority","NY005","001672062","0201","12/31"]
[1131,"FL037","FL037000001",null,null,null,null,null,null,null,null,null,null,null,null,null,null,null,null,null,null,null,null,null,null,null,null,null,null,null,null,null,null,null,null,null,null,null,null,null,null,null,null,null,null,null,null,null,null,null,null,null,4286,"NY005","NY005010740","New York City Housing Authority","NY005","001672062","0201","12/31"]
[1159,"FL057","FL057000012",null,null,null,null,null,null,null,null,null,null,null,null,null,null,null,null,null,null,null,null,null,null,null,null,null,null,null,null,null,null,null,null,null,null,null,null,null,null,null,null,null,null,null,null,null,null,null,null,null,4314,"NY005","NY005011630","New York City Housing Authority","NY005","001672062","0201","12/31"]
[1176,"FL066","FL066000010",null,null,null,null,null,null,null,null,null,null,null,null,null,null,null,null,null,null,null,null,null,null,null,null,null,null,null,null,null,null,null,null,null,null,null,null,null,null,null,null,null,null,null,null,null,null,null,null,null,4331,"NY005","NY005012430","New York City Housing Authority","NY005","001672062","0201","12/31"]
[1204,"FL104","FL104000002",null,null,null,null,null,null,null,null,null,null,null,null,null,null,null,null,null,null,null,null,null,null,null,null,null,null,null,null,null,null,null,null,null,null,null,null,null,null,null,null,null,null,null,null,null,null,null,null,null,4359,"NY009","NY009000004","Albany Housing Authority","NY359","020662367","0206","06/30"]
[{"$f":"+A4376+1","v":1221},"GA001","GA001000072",null,null,null,null,null,null,null,null,null,null,null,null,null,null,null,null,null,null,null,null,null,null,null,null,null,null,null,null,null,null,null,null,null,null,null,null,null,null,null,null,null,null,null,null,null,null,null,null,null,4376,"NY012","NY012200004","Troy Housing Authority","NY389","086956372","0206","12/31"]
[1230,"GA002","GA002000001",null,null,null,null,null,null,null,null,null,null,null,null,null,null,null,null,null,null,null,null,null,null,null,null,null,null,null,null,null,null,null,null,null,null,null,null,null,null,null,null,null,null,null,null,null,null,null,null,null,4385,"NY015","NY015000002","Mechanicville Housing Authority","NY356","167874163","0206","09/30"]
[1249,"GA003","GA003000011",null,null,null,null,null,null,null,null,null,null,null,null,null,null,null,null,null,null,null,null,null,null,null,null,null,null,null,null,null,null,null,null,null,null,null,null,null,null,null,null,null,null,null,null,null,null,null,null,null,4404,"NY023","NY023000004","Freeport Housing Authority","NY377","060336000","0201","12/31"]
[1270,"GA006","GA006000240",null,null,null,null,null,null,null,null,null,null,null,null,null,null,null,null,null,null,null,null,null,null,null,null,null,null,null,null,null,null,null,null,null,null,null,null,null,null,null,null,null,null,null,null,null,null,null,null,null,4425,"NY039","NY039000002","Ogdensburg Housing Authority","NY446","095580049","0206","03/31"]
[1294,"GA006","GA006000772",null,null,null,null,null,null,null,null,null,null,null,null,null,null,null,null,null,null,null,null,null,null,null,null,null,null,null,null,null,null,null,null,null,null,null,null,null,null,null,null,null,null,null,null,null,null,null,null,null,4449,"NY042","NY042000003","White Plains Housing Authority","NY449","030485692","0201","03/31"]
[1319,"GA006","GA006001030",null,null,null,null,null,null,null,null,null,null,null,null,null,null,null,null,null,null,null,null,null,null,null,null,null,null,null,null,null,null,null,null,null,null,null,null,null,null,null,null,null,null,null,null,null,null,null,null,null,4474,"NY051","NY051000002","Housing Authority of Newburgh","NY489","042340229","0201","03/31"]
[1339,"GA010","GA010000002",null,null,null,null,null,null,null,null,null,null,null,null,null,null,null,null,null,null,null,null,null,null,null,null,null,null,null,null,null,null,null,null,null,null,null,null,null,null,null,null,null,null,null,null,null,null,null,null,null,4494,"NY063","NY063000001","Dunkirk Housing Authority","NY524","199234964","0206","06/30"]
[1358,"GA028","GA028000001",null,null,null,null,null,null,null,null,null,null,null,null,null,null,null,null,null,null,null,null,null,null,null,null,null,null,null,null,null,null,null,null,null,null,null,null,null,null,null,null,null,null,null,null,null,null,null,null,null,4513,"NY082","NY082000001","Peekskill Housing Authority","NY611","098488562","0201","03/31"]
[1364,"GA060","GA060000002",null,null,null,null,null,null,null,null,null,null,null,null,null,null,null,null,null,null,null,null,null,null,null,null,null,null,null,null,null,null,null,null,null,null,null,null,null,null,null,null,null,null,null,null,null,null,null,null,null,4519,"NY087","NY087000001","Harrietstown Housing Authority","NY641","042340682","0206","12/31"]
[1384,"GA069","GA069000300",null,null,null,null,null,null,null,null,null,null,null,null,null,null,null,null,null,null,null,null,null,null,null,null,null,null,null,null,null,null,null,null,null,null,null,null,null,null,null,null,null,null,null,null,null,null,null,null,null,4539,"NY400","NY400000001","Kenmore Municipal Housing Authority","NY900","877022863","0206","06/30"]
[{"$f":"+A4568+1","v":1413},"GA095","GA095000001",null,null,null,null,null,null,null,null,null,null,null,null,null,null,null,null,null,null,null,null,null,null,null,null,null,null,null,null,null,null,null,null,null,null,null,null,null,null,null,null,null,null,null,null,null,null,null,null,null,4568,"OH001","OH001000199","Columbus Metropolitan Housing Authority","C-5006","061757811","0516","12/31"]
[1429,"GA103","GA103000001",null,null,null,null,null,null,null,null,null,null,null,null,null,null,null,null,null,null,null,null,null,null,null,null,null,null,null,null,null,null,null,null,null,null,null,null,null,null,null,null,null,null,null,null,null,null,null,null,null,4584,"OH003","OH003000908","CUYAHOGA METROPOLITAN HOUSING AUTHORITY","C-5003","077748028","0512","12/31"]
[1458,"GA130","GA130000001",null,null,null,null,null,null,null,null,null,null,null,null,null,null,null,null,null,null,null,null,null,null,null,null,null,null,null,null,null,null,null,null,null,null,null,null,null,null,null,null,null,null,null,null,null,null,null,null,null,4613,"OH004","OH004000302","Cincinnati Metropolitan Housing Authority","C-984","072882319","0510","06/30"]
[1468,"GA138","GA138000001",null,null,null,null,null,null,null,null,null,null,null,null,null,null,null,null,null,null,null,null,null,null,null,null,null,null,null,null,null,null,null,null,null,null,null,null,null,null,null,null,null,null,null,null,null,null,null,null,null,4623,"OH005","OH005000003","Dayton Metropolitan Housing Authority","C-926","746895830","0510","06/30"]
[1493,"GA170","GA170000002",null,null,null,null,null,null,null,null,null,null,null,null,null,null,null,null,null,null,null,null,null,null,null,null,null,null,null,null,null,null,null,null,null,null,null,null,null,null,null,null,null,null,null,null,null,null,null,null,null,4648,"OH007","OH007000009","AKRON METROPOLITAN HOUSING AUTHORITY","C-959","074533704","0512","06/30"]
[1507,"GA183","GA183000002",null,null,null,null,null,null,null,null,null,null,null,null,null,null,null,null,null,null,null,null,null,null,null,null,null,null,null,null,null,null,null,null,null,null,null,null,null,null,null,null,null,null,null,null,null,null,null,null,null,4662,"OH007","OH007000034","AKRON METROPOLITAN HOUSING AUTHORITY","C-959","074533704","0512","06/30"]
[1538,"GA210","GA210000001",null,null,null,null,null,null,null,null,null,null,null,null,null,null,null,null,null,null,null,null,null,null,null,null,null,null,null,null,null,null,null,null,null,null,null,null,null,null,null,null,null,null,null,null,null,null,null,null,null,4693,"OH015","OH015000052","Butler Metropolitan Housing Authority","C-383","097928113","0510","06/30"]
[1552,"GA232","GA232000001",null,null,null,null,null,null,null,null,null,null,null,null,null,null,null,null,null,null,null,null,null,null,null,null,null,null,null,null,null,null,null,null,null,null,null,null,null,null,null,null,null,null,null,null,null,null,null,null,null,4707,"OH018","OH018000420","Stark Metropolitan Housing Authority","C-838","010831279","0512","03/31"]
[1577,"GA280","GA280000002",null,null,null,null,null,null,null,null,null,null,null,null,null,null,null,null,null,null,null,null,null,null,null,null,null,null,null,null,null,null,null,null,null,null,null,null,null,null,null,null,null,null,null,null,null,null,null,null,null,4732,"OH022","OH022000181","Greene Metropolitan Housing Authority","C-5007","037504818","0510","03/31"]
[1583,"GA282","GA282000001",null,null,null,null,null,null,null,null,null,null,null,null,null,null,null,null,null,null,null,null,null,null,null,null,null,null,null,null,null,null,null,null,null,null,null,null,null,null,null,null,null,null,null,null,null,null,null,null,null,4738,"OH024","OH024000030","Chillicothe Metropolitan Housing Authority","C-524","089424600","0516","09/30"]
[1601,{"$f":"LEFT(C4757,5)","v":"GA285"},"GA285900009",null,null,null,null,null,null,null,null,null,null,null,null,null,null,null,null,null,null,null,null,null,null,null,null,null,null,null,null,null,null,null,null,null,null,null,null,null,null,null,null,null,null,null,null,null,null,null,null,null,4756,"OH034","OH034000001","Perry County Metropolitan Housing Authority","C-5012","081282279","0516","12/31"]
[1628,"IA005","IA005000001",null,null,null,null,null,null,null,null,null,null,null,null,null,null,null,null,null,null,null,null,null,null,null,null,null,null,null,null,null,null,null,null,null,null,null,null,null,null,null,null,null,null,null,null,null,null,null,null,null,4783,"OH073","OH073000001","Parma Public Housing Agency","C-5507","138822585","0512","12/31"]
[1646,"IA020","IA020000006",null,null,null,null,null,null,null,null,null,null,null,null,null,null,null,null,null,null,null,null,null,null,null,null,null,null,null,null,null,null,null,null,null,null,null,null,null,null,null,null,null,null,null,null,null,null,null,null,null,4801,"OK006","OK006000001","Housing Authority of the City of Broken Bow","FW1298","046408662","0656","06/30"]
[1667,"IA079","IA079000001",null,null,null,null,null,null,null,null,null,null,null,null,null,null,null,null,null,null,null,null,null,null,null,null,null,null,null,null,null,null,null,null,null,null,null,null,null,null,null,null,null,null,null,null,null,null,null,null,null,4822,"OK029","OK029000001","Housing Authority of the City of Wilburton","FW1174","139434695","0656","03/31"]
[1691,"IL001","IL001000005",null,null,null,null,null,null,null,null,null,null,null,null,null,null,null,null,null,null,null,null,null,null,null,null,null,null,null,null,null,null,null,null,null,null,null,null,null,null,null,null,null,null,null,null,null,null,null,null,null,4846,"OK062","OK062000001","Housing Authority of the City of McAlester","FW3108","115356842","0656","06/30"]
[1712,"IL005","IL005000001",null,null,null,null,null,null,null,null,null,null,null,null,null,null,null,null,null,null,null,null,null,null,null,null,null,null,null,null,null,null,null,null,null,null,null,null,null,null,null,null,null,null,null,null,null,null,null,null,null,4867,"OK073","OK073000012","Housing Authority of the City of Tulsa","FW1182","070033105","0656","06/30"]
[1731,"IL010","IL010000012",null,null,null,null,null,null,null,null,null,null,null,null,null,null,null,null,null,null,null,null,null,null,null,null,null,null,null,null,null,null,null,null,null,null,null,null,null,null,null,null,null,null,null,null,null,null,null,null,null,4886,"OK088","OK088000001","Housing Authority of the Town of Talihina","FW3059","826180101","0656","06/30"]
[1740,"IL012","IL012000024",null,null,null,null,null,null,null,null,null,null,null,null,null,null,null,null,null,null,null,null,null,null,null,null,null,null,null,null,null,null,null,null,null,null,null,null,null,null,null,null,null,null,null,null,null,null,null,null,null,4895,"OK101","OK101000001","Housing Authority of the City of Boswell","FW3090","143333107","0656","06/30"]
[1757,"IL020","IL020000825",null,null,null,null,null,null,null,null,null,null,null,null,null,null,null,null,null,null,null,null,null,null,null,null,null,null,null,null,null,null,null,null,null,null,null,null,null,null,null,null,null,null,null,null,null,null,null,null,null,4912,"OK134","OK134000001","Housing Authority of the Caddo Electric Cooperativ","FW-3079","138567495","0656","12/31"]
[1785,"IL025","IL025000012",null,null,null,null,null,null,null,null,null,null,null,null,null,null,null,null,null,null,null,null,null,null,null,null,null,null,null,null,null,null,null,null,null,null,null,null,null,null,null,null,null,null,null,null,null,null,null,null,null,4940,"OR008","OR008810001","Housing Authority & Urban Renewal Agency of Polk County","SF-217","185257482","1016","09/30"]
[1802,"IL026","IL026000002",null,null,null,null,null,null,null,null,null,null,null,null,null,null,null,null,null,null,null,null,null,null,null,null,null,null,null,null,null,null,null,null,null,null,null,null,null,null,null,null,null,null,null,null,null,null,null,null,null,4957,"OR032","OR032000001","Northeast Oregon Housing Authority","S-103","785579871","1016","03/31"]
[1814,"IL030","IL030000032",null,null,null,null,null,null,null,null,null,null,null,null,null,null,null,null,null,null,null,null,null,null,null,null,null,null,null,null,null,null,null,null,null,null,null,null,null,null,null,null,null,null,null,null,null,null,null,null,null,4969,"PA004","PA004000100","Allentown Housing Authority","P-225","079162947","0301","06/30"]
[1847,"IL050","IL050000001",null,null,null,null,null,null,null,null,null,null,null,null,null,null,null,null,null,null,null,null,null,null,null,null,null,null,null,null,null,null,null,null,null,null,null,null,null,null,null,null,null,null,null,null,null,null,null,null,null,5002,"PA006","PA006000801","Allegheny County Housing Authority","P-1503","086205846","0328","09/30"]
[1866,"IL056","IL056000003",null,null,null,null,null,null,null,null,null,null,null,null,null,null,null,null,null,null,null,null,null,null,null,null,null,null,null,null,null,null,null,null,null,null,null,null,null,null,null,null,null,null,null,null,null,null,null,null,null,5021,"PA007","PA007000018","Chester Housing Authority","P-139","016456733","0301","06/30"]
[1883,"IL065","IL065000001",null,null,null,null,null,null,null,null,null,null,null,null,null,null,null,null,null,null,null,null,null,null,null,null,null,null,null,null,null,null,null,null,null,null,null,null,null,null,null,null,null,null,null,null,null,null,null,null,null,5038,"PA011","PA011000001","Bethlehem Housing Authority","Z-123","080878192","0301","03/31"]
[1892,"IL073","IL073000001",null,null,null,null,null,null,null,null,null,null,null,null,null,null,null,null,null,null,null,null,null,null,null,null,null,null,null,null,null,null,null,null,null,null,null,null,null,null,null,null,null,null,null,null,null,null,null,null,null,5047,"PA013","PA013000001","Housing Authority of the City of Erie","P-137","092265453","0328","03/31"]
[1908,"IL084","IL084000001",null,null,null,null,null,null,null,null,null,null,null,null,null,null,null,null,null,null,null,null,null,null,null,null,null,null,null,null,null,null,null,null,null,null,null,null,null,null,null,null,null,null,null,null,null,null,null,null,null,5063,"PA015","PA015000001","Fayette County Housing Authority","W-57","010460327","0328","06/30"]
[1937,"IL103","IL103000001",null,null,null,null,null,null,null,null,null,null,null,null,null,null,null,null,null,null,null,null,null,null,null,null,null,null,null,null,null,null,null,null,null,null,null,null,null,null,null,null,null,null,null,null,null,null,null,null,null,5092,"PA018","PA018000016","Westmoreland County Hsg Authority","W-72","086208089","0328","09/30"]
[1956,"IN003","IN003000007",null,null,null,null,null,null,null,null,null,null,null,null,null,null,null,null,null,null,null,null,null,null,null,null,null,null,null,null,null,null,null,null,null,null,null,null,null,null,null,null,null,null,null,null,null,null,null,null,null,5111,"PA022","PA022000002","Housing Authority of the City of York","W-45","009230848","0301","09/30"]
[1977,"IN011","IN011000004",null,null,null,null,null,null,null,null,null,null,null,null,null,null,null,null,null,null,null,null,null,null,null,null,null,null,null,null,null,null,null,null,null,null,null,null,null,null,null,null,null,null,null,null,null,null,null,null,null,5132,"PA026","PA026000005","Housing Auth Co of Lawrence","W-71","082964651","0328","12/31"]
[2001,"IN017","IN017000005",null,null,null,null,null,null,null,null,null,null,null,null,null,null,null,null,null,null,null,null,null,null,null,null,null,null,null,null,null,null,null,null,null,null,null,null,null,null,null,null,null,null,null,null,null,null,null,null,null,5156,"PA035","PA035000006","Housing Authority of the County of Dauphin","P-127","038428959","0301","06/30"]
[2022,"IN023","IN023100000",null,null,null,null,null,null,null,null,null,null,null,null,null,null,null,null,null,null,null,null,null,null,null,null,null,null,null,null,null,null,null,null,null,null,null,null,null,null,null,null,null,null,null,null,null,null,null,null,null,5177,"PA040","PA040000003","The Housing Authority of Clinton County","P-115","038425179","0301","12/31"]
[2027,"IN026","IN026000001",null,null,null,null,null,null,null,null,null,null,null,null,null,null,null,null,null,null,null,null,null,null,null,null,null,null,null,null,null,null,null,null,null,null,null,null,null,null,null,null,null,null,null,null,null,null,null,null,null,5182,"PA041","PA041000005","The Housing Auth of the County of Mifflin","P-140","053558789","0301","12/31"]
[2047,"IN041","IN041000002",null,null,null,null,null,null,null,null,null,null,null,null,null,null,null,null,null,null,null,null,null,null,null,null,null,null,null,null,null,null,null,null,null,null,null,null,null,null,null,null,null,null,null,null,null,null,null,null,null,5202,"PA047","PA047000005","Wilkes Barre Housing Authority","P-129","043011055","0301","12/31"]
[2066,"KS001","KS001000013",null,null,null,null,null,null,null,null,null,null,null,null,null,null,null,null,null,null,null,null,null,null,null,null,null,null,null,null,null,null,null,null,null,null,null,null,null,null,null,null,null,null,null,null,null,null,null,null,null,5221,"PA054","PA054000002","Elk County Housing Authority","P-209","145188558","0328","09/30"]
[2091,"KS008","KS008000001",null,null,null,null,null,null,null,null,null,null,null,null,null,null,null,null,null,null,null,null,null,null,null,null,null,null,null,null,null,null,null,null,null,null,null,null,null,null,null,null,null,null,null,null,null,null,null,null,null,5246,"PA071","PA071000002","Housing Authority of the County of Berks","P-4518","786018028","0301","03/31"]
[2116,"KS033","KS033000001",null,null,null,null,null,null,null,null,null,null,null,null,null,null,null,null,null,null,null,null,null,null,null,null,null,null,null,null,null,null,null,null,null,null,null,null,null,null,null,null,null,null,null,null,null,null,null,null,null,5271,"RI001","RI001000007","Housing Authority Providence","B-1080","122760000","0143","06/30"]
[2130,"KS050","KS050000001",null,null,null,null,null,null,null,null,null,null,null,null,null,null,null,null,null,null,null,null,null,null,null,null,null,null,null,null,null,null,null,null,null,null,null,null,null,null,null,null,null,null,null,null,null,null,null,null,null,5285,"RI003","RI003000005","Woonsocket Housing Authority","NY393","095970554","0143","12/31"]
[2141,"KS062","KS062000001",null,null,null,null,null,null,null,null,null,null,null,null,null,null,null,null,null,null,null,null,null,null,null,null,null,null,null,null,null,null,null,null,null,null,null,null,null,null,null,null,null,null,null,null,null,null,null,null,null,5296,"RI005","RI005000007","The Housing Authority of the City of Newport","NY - 374","042176996","0143","03/31"]
[2175,"KS147","KS147000001",null,null,null,null,null,null,null,null,null,null,null,null,null,null,null,null,null,null,null,null,null,null,null,null,null,null,null,null,null,null,null,null,null,null,null,null,null,null,null,null,null,null,null,null,null,null,null,null,null,5330,"RQ005","RQ005001001","Puerto Rico Public Housing Administration","ACCPR-43","142540090","0446","06/30"]
[2186,"KY001","KY001000017",null,null,null,null,null,null,null,null,null,null,null,null,null,null,null,null,null,null,null,null,null,null,null,null,null,null,null,null,null,null,null,null,null,null,null,null,null,null,null,null,null,null,null,null,null,null,null,null,null,5341,"RQ005","RQ005001012","Puerto Rico Public Housing Administration","ACCPR-43","142540090","0446","06/30"]
[2201,"KY002","KY002000001",null,null,null,null,null,null,null,null,null,null,null,null,null,null,null,null,null,null,null,null,null,null,null,null,null,null,null,null,null,null,null,null,null,null,null,null,null,null,null,null,null,null,null,null,null,null,null,null,null,5356,"RQ005","RQ005002008","Puerto Rico Public Housing Administration","ACCPR-43","142540090","0446","06/30"]
[2220,"KY004","KY004000012",null,null,null,null,null,null,null,null,null,null,null,null,null,null,null,null,null,null,null,null,null,null,null,null,null,null,null,null,null,null,null,null,null,null,null,null,null,null,null,null,null,null,null,null,null,null,null,null,null,5375,"RQ005","RQ005002027","Puerto Rico Public Housing Administration","ACCPR-43","142540090","0446","06/30"]
[2255,"KY018","KY018000002",null,null,null,null,null,null,null,null,null,null,null,null,null,null,null,null,null,null,null,null,null,null,null,null,null,null,null,null,null,null,null,null,null,null,null,null,null,null,null,null,null,null,null,null,null,null,null,null,null,5410,"RQ005","RQ005004002","Puerto Rico Public Housing Administration","ACCPR-43","142540090","0446","06/30"]
[2265,"KY024","KY024000002",null,null,null,null,null,null,null,null,null,null,null,null,null,null,null,null,null,null,null,null,null,null,null,null,null,null,null,null,null,null,null,null,null,null,null,null,null,null,null,null,null,null,null,null,null,null,null,null,null,5420,"RQ005","RQ005004012","Puerto Rico Public Housing Administration","ACCPR-43","142540090","0446","06/30"]
[2280,"KY037","KY037000001",null,null,null,null,null,null,null,null,null,null,null,null,null,null,null,null,null,null,null,null,null,null,null,null,null,null,null,null,null,null,null,null,null,null,null,null,null,null,null,null,null,null,null,null,null,null,null,null,null,5435,"RQ005","RQ005005007","Puerto Rico Public Housing Administration","ACCPR-43","142540090","0446","06/30"]
[2310,"KY065","KY065000001",null,null,null,null,null,null,null,null,null,null,null,null,null,null,null,null,null,null,null,null,null,null,null,null,null,null,null,null,null,null,null,null,null,null,null,null,null,null,null,null,null,null,null,null,null,null,null,null,null,5465,"RQ005","RQ005006007","Puerto Rico Public Housing Administration","ACCPR-43","142540090","0446","06/30"]
[2329,"KY086","KY086000001",null,null,null,null,null,null,null,null,null,null,null,null,null,null,null,null,null,null,null,null,null,null,null,null,null,null,null,null,null,null,null,null,null,null,null,null,null,null,null,null,null,null,null,null,null,null,null,null,null,5484,"RQ005","RQ005006026","Puerto Rico Public Housing Administration","ACCPR-43","142540090","0446","06/30"]
[2349,"KY149","KY149000001",null,null,null,null,null,null,null,null,null,null,null,null,null,null,null,null,null,null,null,null,null,null,null,null,null,null,null,null,null,null,null,null,null,null,null,null,null,null,null,null,null,null,null,null,null,null,null,null,null,5504,"RQ005","RQ005007011","Puerto Rico Public Housing Administration","ACCPR-43","142540090","0446","06/30"]
[2355,"LA001","LA001002802",null,null,null,null,null,null,null,null,null,null,null,null,null,null,null,null,null,null,null,null,null,null,null,null,null,null,null,null,null,null,null,null,null,null,null,null,null,null,null,null,null,null,null,null,null,null,null,null,null,5510,"RQ005","RQ005008007","Puerto Rico Public Housing Administration","ACCPR-43","142540090","0446","06/30"]
[2378,"LA001","LA001067807",null,null,null,null,null,null,null,null,null,null,null,null,null,null,null,null,null,null,null,null,null,null,null,null,null,null,null,null,null,null,null,null,null,null,null,null,null,null,null,null,null,null,null,null,null,null,null,null,null,5533,"RQ005","RQ005009006","Puerto Rico Public Housing Administration","ACCPR-43","142540090","0446","06/30"]
[2400,"LA005","LA005000010",null,null,null,null,null,null,null,null,null,null,null,null,null,null,null,null,null,null,null,null,null,null,null,null,null,null,null,null,null,null,null,null,null,null,null,null,null,null,null,null,null,null,null,null,null,null,null,null,null,5555,"RQ005","RQ005009028","Puerto Rico Public Housing Administration","ACCPR-43","142540090","0446","06/30"]
[2423,"LA023","LA023000009",null,null,null,null,null,null,null,null,null,null,null,null,null,null,null,null,null,null,null,null,null,null,null,null,null,null,null,null,null,null,null,null,null,null,null,null,null,null,null,null,null,null,null,null,null,null,null,null,null,5578,"RQ005","RQ005010015","Puerto Rico Public Housing Administration","ACCPR-43","142540090","0446","06/30"]
[2445,"LA040","LA040000123",null,null,null,null,null,null,null,null,null,null,null,null,null,null,null,null,null,null,null,null,null,null,null,null,null,null,null,null,null,null,null,null,null,null,null,null,null,null,null,null,null,null,null,null,null,null,null,null,null,5600,"RQ005","RQ005010037","Puerto Rico Public Housing Administration","ACCPR-43","142540090","0446","06/30"]
[2464,"LA061","LA061000001",null,null,null,null,null,null,null,null,null,null,null,null,null,null,null,null,null,null,null,null,null,null,null,null,null,null,null,null,null,null,null,null,null,null,null,null,null,null,null,null,null,null,null,null,null,null,null,null,null,5619,"RQ005","RQ005010056","Puerto Rico Public Housing Administration","ACCPR-43","142540090","0446","06/30"]
[2472,"LA070","LA070000001",null,null,null,null,null,null,null,null,null,null,null,null,null,null,null,null,null,null,null,null,null,null,null,null,null,null,null,null,null,null,null,null,null,null,null,null,null,null,null,null,null,null,null,null,null,null,null,null,null,5627,"SC002","SC002000002","Housing Authority Of Columbia","A-4089","016832524","0416","06/30"]
[2509,"LA113","LA113000001",null,null,null,null,null,null,null,null,null,null,null,null,null,null,null,null,null,null,null,null,null,null,null,null,null,null,null,null,null,null,null,null,null,null,null,null,null,null,null,null,null,null,null,null,null,null,null,null,null,5664,"SC008","SC008000001","SC Regional Housing Authority No 1","A-4088","056360894","0416","12/31"]
[2517,"LA124","LA124000001",null,null,null,null,null,null,null,null,null,null,null,null,null,null,null,null,null,null,null,null,null,null,null,null,null,null,null,null,null,null,null,null,null,null,null,null,null,null,null,null,null,null,null,null,null,null,null,null,null,5672,"SC012","SC012000001","Housing Authority of Abbeville","A-4178","134840169","0416","09/30"]
[2548,"MA002","MA002000227",null,null,null,null,null,null,null,null,null,null,null,null,null,null,null,null,null,null,null,null,null,null,null,null,null,null,null,null,null,null,null,null,null,null,null,null,null,null,null,null,null,null,null,null,null,null,null,null,null,5703,"SC027","SC027000002","Housing Authority of Florence","A-3954","098251036","0416","09/30"]
[2554,"MA002","MA002000235",null,null,null,null,null,null,null,null,null,null,null,null,null,null,null,null,null,null,null,null,null,null,null,null,null,null,null,null,null,null,null,null,null,null,null,null,null,null,null,null,null,null,null,null,null,null,null,null,null,5709,"SC027","SC027000012","Housing Authority of Florence","A-3954","098251036","0416","09/30"]
[2586,"MA002","MA002002117",null,null,null,null,null,null,null,null,null,null,null,null,null,null,null,null,null,null,null,null,null,null,null,null,null,null,null,null,null,null,null,null,null,null,null,null,null,null,null,null,null,null,null,null,null,null,null,null,null,5741,"SC061","SC061000001","Housing Authority of the City of Cayce","A-3469","137513664","0416","06/30"]
[2599,"MA002","MA002002136",null,null,null,null,null,null,null,null,null,null,null,null,null,null,null,null,null,null,null,null,null,null,null,null,null,null,null,null,null,null,null,null,null,null,null,null,null,null,null,null,null,null,null,null,null,null,null,null,null,5754,"SD021","SD021000001","Wessington Springs Housing And Redevelopment Commission","C-872","058812801","0801","06/30"]
[2611,"MA006","MA006000001",null,null,null,null,null,null,null,null,null,null,null,null,null,null,null,null,null,null,null,null,null,null,null,null,null,null,null,null,null,null,null,null,null,null,null,null,null,null,null,null,null,null,null,null,null,null,null,null,null,5766,"SD045","SD045000011","Pennington County Housing And Redevelopment Commission","DEN-371","556909950","0801","03/31"]
[2638,"MA012","MA012000002",null,null,null,null,null,null,null,null,null,null,null,null,null,null,null,null,null,null,null,null,null,null,null,null,null,null,null,null,null,null,null,null,null,null,null,null,null,null,null,null,null,null,null,null,null,null,null,null,null,5793,"TN001","TN001000058","Memphis Housing Authority","A-3768","007046725","0443","06/30"]
[2656,"MA015","MA015000003",null,null,null,null,null,null,null,null,null,null,null,null,null,null,null,null,null,null,null,null,null,null,null,null,null,null,null,null,null,null,null,null,null,null,null,null,null,null,null,null,null,null,null,null,null,null,null,null,null,5811,"TN003","TN003000023","Knoxville's Community Development Corp.","A-4342","074914243","0437","06/30"]
[2683,"MA028","MA028000001",null,null,null,null,null,null,null,null,null,null,null,null,null,null,null,null,null,null,null,null,null,null,null,null,null,null,null,null,null,null,null,null,null,null,null,null,null,null,null,null,null,null,null,null,null,null,null,null,null,5838,"TN005","TN005000013","Metropolitan Development & Housing Agency","A-3777","072086507","0443","09/30"]
[2689,{"$f":"LEFT(C5845,5)","v":"MA032"},"MA032000001",null,null,null,null,null,null,null,null,null,null,null,null,null,null,null,null,null,null,null,null,null,null,null,null,null,null,null,null,null,null,null,null,null,null,null,null,null,null,null,null,null,null,null,null,null,null,null,null,null,5844,"TN007","TN007000040","Jackson Housing Authority","A-4146","083270249","0443","09/30"]
[2705,"MA040","MA040000001",null,null,null,null,null,null,null,null,null,null,null,null,null,null,null,null,null,null,null,null,null,null,null,null,null,null,null,null,null,null,null,null,null,null,null,null,null,null,null,null,null,null,null,null,null,null,null,null,null,5860,"TN012","TN012000008","Lafollette Housing Authority","A-3780","079022448","0437","09/30"]
[2728,"MA107","MA107000001",null,null,null,null,null,null,null,null,null,null,null,null,null,null,null,null,null,null,null,null,null,null,null,null,null,null,null,null,null,null,null,null,null,null,null,null,null,null,null,null,null,null,null,null,null,null,null,null,null,5883,"TN034","TN034000001","Jellico Housing Authority","A-1509","030664825","0437","06/30"]
[2750,"MD001","MD001000006",null,null,null,null,null,null,null,null,null,null,null,null,null,null,null,null,null,null,null,null,null,null,null,null,null,null,null,null,null,null,null,null,null,null,null,null,null,null,null,null,null,null,null,null,null,null,null,null,null,5905,"TN050","TN050000001","Bolivar Housing Authority","A1068","028365880","0443","06/30"]
[2773,"MD004","MD004511417",null,null,null,null,null,null,null,null,null,null,null,null,null,null,null,null,null,null,null,null,null,null,null,null,null,null,null,null,null,null,null,null,null,null,null,null,null,null,null,null,null,null,null,null,null,null,null,null,null,5928,"TN069","TN069000001","Martin Housing Authority","A3083","042202986","0443","09/30"]
[2799,"MD014","MD014000002",null,null,null,null,null,null,null,null,null,null,null,null,null,null,null,null,null,null,null,null,null,null,null,null,null,null,null,null,null,null,null,null,null,null,null,null,null,null,null,null,null,null,null,null,null,null,null,null,null,5954,"TX001","TX001000009","Austin Housing Authority","FW-4008","095111829","0659","03/31"]
[2818,"MD030","MD030000001",null,null,null,null,null,null,null,null,null,null,null,null,null,null,null,null,null,null,null,null,null,null,null,null,null,null,null,null,null,null,null,null,null,null,null,null,null,null,null,null,null,null,null,null,null,null,null,null,null,5973,"TX003","TX003000012","HOUSING AUTHORITY OF THE CITY OF EL PASO, TX","FW5277","059721324","0601","06/30"]
[2837,"ME018","ME018000001",null,null,null,null,null,null,null,null,null,null,null,null,null,null,null,null,null,null,null,null,null,null,null,null,null,null,null,null,null,null,null,null,null,null,null,null,null,null,null,null,null,null,null,null,null,null,null,null,null,5992,"TX004","TX004000020","Housing Authority of Fort Worth","FW5315","107045213","0601","12/31"]
[2844,"ME024","ME024000001",null,null,null,null,null,null,null,null,null,null,null,null,null,null,null,null,null,null,null,null,null,null,null,null,null,null,null,null,null,null,null,null,null,null,null,null,null,null,null,null,null,null,null,null,null,null,null,null,null,5999,"TX005","TX005000007","Houston Housing Authority","FW5103","074204496","0624","12/31"]
[2863,"MI001","MI001000019",null,null,null,null,null,null,null,null,null,null,null,null,null,null,null,null,null,null,null,null,null,null,null,null,null,null,null,null,null,null,null,null,null,null,null,null,null,null,null,null,null,null,null,null,null,null,null,null,null,6018,"TX006","TX006000008","San Antonio Housing Authority","FW-1427","025775458","0659","06/30"]
[2893,"MI009","MI009000003",null,null,null,null,null,null,null,null,null,null,null,null,null,null,null,null,null,null,null,null,null,null,null,null,null,null,null,null,null,null,null,null,null,null,null,null,null,null,null,null,null,null,null,null,null,null,null,null,null,6048,"TX006","TX006000150","San Antonio Housing Authority","FW-1427","025775458","0659","06/30"]
[2908,"MI013","MI013000001",null,null,null,null,null,null,null,null,null,null,null,null,null,null,null,null,null,null,null,null,null,null,null,null,null,null,null,null,null,null,null,null,null,null,null,null,null,null,null,null,null,null,null,null,null,null,null,null,null,6063,"TX008","TX008000009","Corpus Christi Housing Authority","FW-1256","078497104","0659","09/30"]
[2927,"MI027","MI027000004",null,null,null,null,null,null,null,null,null,null,null,null,null,null,null,null,null,null,null,null,null,null,null,null,null,null,null,null,null,null,null,null,null,null,null,null,null,null,null,null,null,null,null,null,null,null,null,null,null,6082,"TX010","TX010000002","Housing Authority of the City of Waco","FW5082","035552405","0601","09/30"]
[2938,"MI036","MI036000100",null,null,null,null,null,null,null,null,null,null,null,null,null,null,null,null,null,null,null,null,null,null,null,null,null,null,null,null,null,null,null,null,null,null,null,null,null,null,null,null,null,null,null,null,null,null,null,null,null,6093,"TX014","TX014000112","Housing Authority of Texarkana","FW7109","556616691","0601","12/31"]
[2972,"MI058","MI058000112",null,null,null,null,null,null,null,null,null,null,null,null,null,null,null,null,null,null,null,null,null,null,null,null,null,null,null,null,null,null,null,null,null,null,null,null,null,null,null,null,null,null,null,null,null,null,null,null,null,6127,"TX023","TX023000042","Housing Authority of the City of Beaumont","FW5838","106843436","0601","09/30"]
[2987,"MI073","MI073000004",null,null,null,null,null,null,null,null,null,null,null,null,null,null,null,null,null,null,null,null,null,null,null,null,null,null,null,null,null,null,null,null,null,null,null,null,null,null,null,null,null,null,null,null,null,null,null,null,null,6142,"TX032","TX032000001","Housing Authority of the City of Texas City","FW5321","042327507","0624","12/31"]
[2998,"MI083","MI083000001",null,null,null,null,null,null,null,null,null,null,null,null,null,null,null,null,null,null,null,null,null,null,null,null,null,null,null,null,null,null,null,null,null,null,null,null,null,null,null,null,null,null,null,null,null,null,null,null,null,6153,"TX038","TX038000001","Housing Authority of Bonham","FW5777","174678433","0601","03/31"]
[3032,"MI158","MI158000001",null,null,null,null,null,null,null,null,null,null,null,null,null,null,null,null,null,null,null,null,null,null,null,null,null,null,null,null,null,null,null,null,null,null,null,null,null,null,null,null,null,null,null,null,null,null,null,null,null,6187,"TX066","TX066000001","Electra Housing Authority","FW-5818","830800371","0601","06/30"]
[3037,"MI178","MI178000001",null,null,null,null,null,null,null,null,null,null,null,null,null,null,null,null,null,null,null,null,null,null,null,null,null,null,null,null,null,null,null,null,null,null,null,null,null,null,null,null,null,null,null,null,null,null,null,null,null,6192,"TX071","TX071000001","Housing Authority of Gilmer","FW5310","091683288","0601","06/30"]
[3062,"MN002","MN002000006",null,null,null,null,null,null,null,null,null,null,null,null,null,null,null,null,null,null,null,null,null,null,null,null,null,null,null,null,null,null,null,null,null,null,null,null,null,null,null,null,null,null,null,null,null,null,null,null,null,6217,"TX089","TX089000001","Housing Authority of Bells","FW5418","020283482","0601","03/31"]
[3081,"MN006","MN006000001",null,null,null,null,null,null,null,null,null,null,null,null,null,null,null,null,null,null,null,null,null,null,null,null,null,null,null,null,null,null,null,null,null,null,null,null,null,null,null,null,null,null,null,null,null,null,null,null,null,6236,"TX107","TX107000001","Housing Authority of Whitewright","FW0893","131631447","0601","03/31"]
[3107,"MN031","MN031000001",null,null,null,null,null,null,null,null,null,null,null,null,null,null,null,null,null,null,null,null,null,null,null,null,null,null,null,null,null,null,null,null,null,null,null,null,null,null,null,null,null,null,null,null,null,null,null,null,null,6262,"TX147","TX147000001","Kenedy Housing Authority","FW-4043","030729321","0659","12/31"]
[3126,"MN049","MN049000001",null,null,null,null,null,null,null,null,null,null,null,null,null,null,null,null,null,null,null,null,null,null,null,null,null,null,null,null,null,null,null,null,null,null,null,null,null,null,null,null,null,null,null,null,null,null,null,null,null,6281,"TX170","TX170000010","Housing Authority of Rising Star","FW5957","131438835","0601","03/31"]
[3146,"MN071","MN071000001",null,null,null,null,null,null,null,null,null,null,null,null,null,null,null,null,null,null,null,null,null,null,null,null,null,null,null,null,null,null,null,null,null,null,null,null,null,null,null,null,null,null,null,null,null,null,null,null,null,6301,"TX191","TX191000001","Taft Housing Authority","FW-4012","154749188","0659","12/31"]
[3151,"MN076","MN076000001",null,null,null,null,null,null,null,null,null,null,null,null,null,null,null,null,null,null,null,null,null,null,null,null,null,null,null,null,null,null,null,null,null,null,null,null,null,null,null,null,null,null,null,null,null,null,null,null,null,6306,"TX196","TX196000001","Housing Authority of Olton","FW898","033288010","0601","03/31"]
[3172,"MN100","MN100000001",null,null,null,null,null,null,null,null,null,null,null,null,null,null,null,null,null,null,null,null,null,null,null,null,null,null,null,null,null,null,null,null,null,null,null,null,null,null,null,null,null,null,null,null,null,null,null,null,null,6327,"TX218","TX218000001","Housing Authority of Whitney","FW5257","614063626","0601","09/30"]
[3191,"MN164","MN164000001",null,null,null,null,null,null,null,null,null,null,null,null,null,null,null,null,null,null,null,null,null,null,null,null,null,null,null,null,null,null,null,null,null,null,null,null,null,null,null,null,null,null,null,null,null,null,null,null,null,6346,"TX236","TX236000001","Poteet Housing Authority","FW-4020","617975222","0659","09/30"]
[3220,"MO001","MO001000028",null,null,null,null,null,null,null,null,null,null,null,null,null,null,null,null,null,null,null,null,null,null,null,null,null,null,null,null,null,null,null,null,null,null,null,null,null,null,null,null,null,null,null,null,null,null,null,null,null,6375,"TX267","TX267000001","Housing Authority of Grandfalls","FW1460","007538846","0601","03/31"]
[3236,"MO001","MO001000057",null,null,null,null,null,null,null,null,null,null,null,null,null,null,null,null,null,null,null,null,null,null,null,null,null,null,null,null,null,null,null,null,null,null,null,null,null,null,null,null,null,null,null,null,null,null,null,null,null,6391,"TX284","TX284000001","Housing Authority City of Alpine","FW946","612953083","0601","09/30"]
[3265,{"$f":"LEFT(C6421,5)","v":"MO004"},"MO004000003",null,null,null,null,null,null,null,null,null,null,null,null,null,null,null,null,null,null,null,null,null,null,null,null,null,null,null,null,null,null,null,null,null,null,null,null,null,null,null,null,null,null,null,null,null,null,null,null,null,6420,"TX320","TX320000001","Housing Authority of Pecos","FW5234","046842084","0601","12/31"]
[3281,"MO013","MO013000002",null,null,null,null,null,null,null,null,null,null,null,null,null,null,null,null,null,null,null,null,null,null,null,null,null,null,null,null,null,null,null,null,null,null,null,null,null,null,null,null,null,null,null,null,null,null,null,null,null,6436,"TX337","TX337000001","Housing Authority of Mount Vernon","FW5958","137887944","0601","09/30"]
[3300,"MO030","MO030000001",null,null,null,null,null,null,null,null,null,null,null,null,null,null,null,null,null,null,null,null,null,null,null,null,null,null,null,null,null,null,null,null,null,null,null,null,null,null,null,null,null,null,null,null,null,null,null,null,null,6455,"TX367","TX367000001","Kyle Housing Authority","FW-4038","102760049","0659","06/30"]
[3314,"MO041","MO041000001",null,null,null,null,null,null,null,null,null,null,null,null,null,null,null,null,null,null,null,null,null,null,null,null,null,null,null,null,null,null,null,null,null,null,null,null,null,null,null,null,null,null,null,null,null,null,null,null,null,6469,"TX408","TX408000001","Housing Authority of the City of Monahans","FW5882","021930490","0601","06/30"]
[3326,"MO053","MO053000001",null,null,null,null,null,null,null,null,null,null,null,null,null,null,null,null,null,null,null,null,null,null,null,null,null,null,null,null,null,null,null,null,null,null,null,null,null,null,null,null,null,null,null,null,null,null,null,null,null,6481,"TX492","TX492000001","Housing Authority of Jasper","FW5948","012792854","0624","12/31"]
[3359,"MO090","MO090000001",null,null,null,null,null,null,null,null,null,null,null,null,null,null,null,null,null,null,null,null,null,null,null,null,null,null,null,null,null,null,null,null,null,null,null,null,null,null,null,null,null,null,null,null,null,null,null,null,null,6514,"UT021","UT021000001","St. George Housing Authority","DEN 2418","129479882","0801","06/30"]
[3371,"MO138","MO138000001",null,null,null,null,null,null,null,null,null,null,null,null,null,null,null,null,null,null,null,null,null,null,null,null,null,null,null,null,null,null,null,null,null,null,null,null,null,null,null,null,null,null,null,null,null,null,null,null,null,6526,"VA002","VA002000005","Bristol Redevelopment & Housing Authority","P-152","049051402","0336","03/31"]
[3388,"MO223","MO223000001",null,null,null,null,null,null,null,null,null,null,null,null,null,null,null,null,null,null,null,null,null,null,null,null,null,null,null,null,null,null,null,null,null,null,null,null,null,null,null,null,null,null,null,null,null,null,null,null,null,6543,"VA005","VA005000001","Hopewell Redevelopment & Housing Authority","P-5510","083051128","0336","03/31"]
[3416,"MS006","MS006000011",null,null,null,null,null,null,null,null,null,null,null,null,null,null,null,null,null,null,null,null,null,null,null,null,null,null,null,null,null,null,null,null,null,null,null,null,null,null,null,null,null,null,null,null,null,null,null,null,null,6571,"VA007","VA007000006","Richmond Redevelopment & Housing Authority","P-200","066005877","0336","09/30"]
[3435,"MS040","MS040000004",null,null,null,null,null,null,null,null,null,null,null,null,null,null,null,null,null,null,null,null,null,null,null,null,null,null,null,null,null,null,null,null,null,null,null,null,null,null,null,null,null,null,null,null,null,null,null,null,null,6590,"VA011","VA011000208","Roanoke Redevelopment & Housing Authority","P5511","101722000","0336","09/30"]
[3457,{"$f":"LEFT(C6613,5)","v":"MS064"},"MS064000001",null,null,null,null,null,null,null,null,null,null,null,null,null,null,null,null,null,null,null,null,null,null,null,null,null,null,null,null,null,null,null,null,null,null,null,null,null,null,null,null,null,null,null,null,null,null,null,null,null,6612,"VA018","VA018183000","Franklin Redevelopment And Housing Authority","P-161","075470906","0336","06/30"]
[3480,"MS083","MS083000001",null,null,null,null,null,null,null,null,null,null,null,null,null,null,null,null,null,null,null,null,null,null,null,null,null,null,null,null,null,null,null,null,null,null,null,null,null,null,null,null,null,null,null,null,null,null,null,null,null,6635,"VA025","VA025000005","Suffolk Redevelopment And Housing Authority","P-5531","087343174","0336","06/30"]
[3482,"MS085","MS085000001",null,null,null,null,null,null,null,null,null,null,null,null,null,null,null,null,null,null,null,null,null,null,null,null,null,null,null,null,null,null,null,null,null,null,null,null,null,null,null,null,null,null,null,null,null,null,null,null,null,6637,"VA026","VA026000001","Williamsburg Redevelopment & Housing Auth.","P55-35","057908584","0336","09/30"]
[3506,"MS301","MS301000002",null,null,null,null,null,null,null,null,null,null,null,null,null,null,null,null,null,null,null,null,null,null,null,null,null,null,null,null,null,null,null,null,null,null,null,null,null,null,null,null,null,null,null,null,null,null,null,null,null,6661,"VT006","VT006000001","Winooski Housing Authority","NY 527","604033720","0136","03/31"]
[3525,"MT033","MT033000001",null,null,null,null,null,null,null,null,null,null,null,null,null,null,null,null,null,null,null,null,null,null,null,null,null,null,null,null,null,null,null,null,null,null,null,null,null,null,null,null,null,null,null,null,null,null,null,null,null,6680,"WA002","WA002000355","HA of King County","SF-173","020244976","1001","06/30"]
[3551,"NC002","NC002000039",null,null,null,null,null,null,null,null,null,null,null,null,null,null,null,null,null,null,null,null,null,null,null,null,null,null,null,null,null,null,null,null,null,null,null,null,null,null,null,null,null,null,null,null,null,null,null,null,null,6706,"WA005","WA005000007","HA City of Tacoma","SF-169","362472000","1001","06/30"]
[3570,"NC003","NC003000033",null,null,null,null,null,null,null,null,null,null,null,null,null,null,null,null,null,null,null,null,null,null,null,null,null,null,null,null,null,null,null,null,null,null,null,null,null,null,null,null,null,null,null,null,null,null,null,null,null,6725,"WA011","WA011000002","HA City of Renton","SF-187","039268917","1001","12/31"]
[3596,"NC005","NC005000001",null,null,null,null,null,null,null,null,null,null,null,null,null,null,null,null,null,null,null,null,null,null,null,null,null,null,null,null,null,null,null,null,null,null,null,null,null,null,null,null,null,null,null,null,null,null,null,null,null,6751,"WA054","WA054000001","HA of Pierce County","S-101","137201070","1001","12/31"]
[3609,"NC006","NC006000021",null,null,null,null,null,null,null,null,null,null,null,null,null,null,null,null,null,null,null,null,null,null,null,null,null,null,null,null,null,null,null,null,null,null,null,null,null,null,null,null,null,null,null,null,null,null,null,null,null,6764,"WI002","WI002000010","Housing Authority of the City of Milwaukee","C-6135","960623700","0539","12/31"]
[3621,"NC009","NC009000004",null,null,null,null,null,null,null,null,null,null,null,null,null,null,null,null,null,null,null,null,null,null,null,null,null,null,null,null,null,null,null,null,null,null,null,null,null,null,null,null,null,null,null,null,null,null,null,null,null,6776,"WI002","WI002000062","Housing Authority of the City of Milwaukee","C-6135","960623700","0539","12/31"]
[3654,"NC011","NC011031110",null,null,null,null,null,null,null,null,null,null,null,null,null,null,null,null,null,null,null,null,null,null,null,null,null,null,null,null,null,null,null,null,null,null,null,null,null,null,null,null,null,null,null,null,null,null,null,null,null,6809,"WI034","WI034000001","Algoma Housing Authority","C-644","053032611","0539","06/30"]
[3660,"NC011","NC011037130",null,null,null,null,null,null,null,null,null,null,null,null,null,null,null,null,null,null,null,null,null,null,null,null,null,null,null,null,null,null,null,null,null,null,null,null,null,null,null,null,null,null,null,null,null,null,null,null,null,6815,"WI041","WI041000001","Lake Mills Housing Authority","C-672","052803160","0539","06/30"]
[3690,"NC013","NC013000016",null,null,null,null,null,null,null,null,null,null,null,null,null,null,null,null,null,null,null,null,null,null,null,null,null,null,null,null,null,null,null,null,null,null,null,null,null,null,null,null,null,null,null,null,null,null,null,null,null,6845,"WI073","WI073000001","Osceola Housing Authority","C-884","959937871","0539","12/31"]
[3699,"NC015","NC015000200",null,null,null,null,null,null,null,null,null,null,null,null,null,null,null,null,null,null,null,null,null,null,null,null,null,null,null,null,null,null,null,null,null,null,null,null,null,null,null,null,null,null,null,null,null,null,null,null,null,6854,"WI090","WI090000001","Baraboo Community Development Authority","C-6146","360993372","0539","12/31"]
[3715,"NC020","NC020000001",null,null,null,null,null,null,null,null,null,null,null,null,null,null,null,null,null,null,null,null,null,null,null,null,null,null,null,null,null,null,null,null,null,null,null,null,null,null,null,null,null,null,null,null,null,null,null,null,null,6870,"WI166","WI166000166","Trempealeau County Housing Authority","C-6097","825132210","0539","12/31"]
[3744,"NC036","NC036000001",null,null,null,null,null,null,null,null,null,null,null,null,null,null,null,null,null,null,null,null,null,null,null,null,null,null,null,null,null,null,null,null,null,null,null,null,null,null,null,null,null,null,null,null,null,null,null,null,null,6899,"WV003","WV003000005","Housing Authority of the City of Wheeling","W-0068","049623788","0315","09/30"]
[3760,"NC052","NC052000001",null,null,null,null,null,null,null,null,null,null,null,null,null,null,null,null,null,null,null,null,null,null,null,null,null,null,null,null,null,null,null,null,null,null,null,null,null,null,null,null,null,null,null,null,null,null,null,null,null,6915,"WV009","WV009000001","Housing Authority of the City of Fairmont","#P-149","047859418","0315","12/31"]
[3789,"NC073","NC073000001",null,null,null,null,null,null,null,null,null,null,null,null,null,null,null,null,null,null,null,null,null,null,null,null,null,null,null,null,null,null,null,null,null,null,null,null,null,null,null,null,null,null,null,null,null,null,null,null,null,6944,{"$f":"LEFT(BC6945,5)","v":"WY004"},"WY004000001","Housing Authority of the City of Casper","DEN 2389","139885094","0801","03/31"]
[3808,"NC093","NC093000001"]
[3829,"ND003","ND003200601"]
[3834,"ND014","ND014000003"]
[3858,"NE001","NE001000009"]
[3879,"NE002","NE002000001"]
[3898,"NE021","NE021000001"]
[3923,"NE049","NE049000001"]
[3943,"NE078","NE078000001"]
[3952,"NE093","NE093000001"]
[3969,{"$f":"LEFT(C7125,5)","v":"NE111"},"NE111000001"]
[3997,"NH005","NH005000001"]
[4014,"NJ002","NJ002002008"]
[4033,{"$f":"LEFT(C7189,5)","v":"NJ002"},"NJ002003006"]
[4046,"NJ003","NJ003000009"]
[4078,"NJ009","NJ009000006"]
[4091,"NJ010","NJ010000001"]
[4117,"NJ014","NJ014000003"]
[4136,"NJ022","NJ022000001"]
[4143,"NJ024","NJ024000002"]
[4168,"NJ039","NJ039000001"]
[4185,"NJ049","NJ049000003"]
[4207,"NJ061","NJ061000006"]
[4230,"NJ077","NJ077000001"]
[4252,"NM003","NM003888888"]
[4271,"NM025","NM025000001"]
[4279,"NM035","NM035000001"]
[{"$f":"+A7452+1","v":4297},"NV001","NV001000106"]
[4324,"NV013","NV013000010"]
[4342,"NV018","NV018007001"]
[4373,"NY002","NY002000040"]
[4387,"NY005","NY005000050"]
[4406,"NY005","NY005000530"]
[4418,"NY005","NY005000780"]
[4451,"NY005","NY005010450"]
[4467,"NY005","NY005010860"]
[4477,"NY005","NY005011310"]
[4496,"NY005","NY005012020"]
[4516,"NY005","NY005013510"]
[4541,"NY008","NY008000001"]
[4561,"NY011","NY011000013"]
[4586,"NY020","NY020000001"]
[4606,"NY030","NY030000011"]
[4625,"NY041","NY041000222"]
[4631,"NY041","NY041000361"]
[4655,"NY046","NY046000007"]
[4676,"NY055","NY055000009"]
[4700,"NY077","NY077000001"]
[4715,"NY087","NY087000001"]
[4725,"NY093","NY093004001"]
[4760,"OH001","OH001000149"]
[4779,"OH003","OH003000907"]
[4794,"OH004","OH004000201"]
[4805,"OH004","OH004000212"]
[4839,"OH006","OH006000132"]
[4850,"OH007","OH007000015"]
[4869,"OH007","OH007000049"]
[4888,"OH012","OH012000003"]
[4914,"OH018","OH018000730"]
[4937,"OH024","OH024000020"]
[4940,"OH025","OH025000001"]
[4962,"OH040","OH040000001"]
[4985,"OK002","OK002002001"]
[5004,"OK010","OK010000001"]
[5031,"OK039","OK039000001"]
[5049,"OK063","OK063000001"]
[5056,"OK070","OK070000001"]
[5075,"OK073","OK073000029"]
[5101,"OK113","OK113000001"]
[5114,"OK137","OK137000001"]
[5139,"OR007","OR007160001"]
[5170,"PA004","PA004000500"]
[5178,"PA005","PA005000002"]
[5195,"PA006","PA006000601"]
[5223,"PA007","PA007000018"]
[5229,"PA008","PA008000004"]
[5264,"PA014","PA014000006"]
[5268,"PA014","PA014000012"]
[5289,"PA018","PA018000006"]
[5313,{"$f":"LEFT(C8469,5)","v":"PA020"},"PA020000018"]
[5338,"PA026","PA026000003"]
[5358,"PA034","PA034000400"]
[5377,{"$f":"LEFT(C8533,5)","v":"PA038"},"PA038000032"]
[5403,"PA046","PA046000013"]
[5422,"PA051","PA051000013"]
[5432,"PA056","PA056000002"]
[5448,"PA066","PA066000001"]
[5467,"PA089","PA089000001"]
[5497,"RI005","RI005000004"]
[5512,"RI008","RI008000001"]
[5526,"RI017","RI017000001"]
[5557,"RQ005","RQ005002002"]
[5571,"RQ005","RQ005002016"]
[5596,"RQ005","RQ005003008"]
[5602,"RQ005","RQ005003015"]
[5620,"RQ005","RQ005004005"]
[5647,"RQ005","RQ005005012"]
[5665,"RQ005","RQ005005030"]
[5686,"RQ005","RQ005006020"]
[5710,"RQ005","RQ005007009"]
[5731,"RQ005","RQ005008022"]
[5737,"RQ005","RQ005009002"]
[5759,"RQ005","RQ005009024"]
[5776,"RQ005","RQ005010006"]
[5804,"RQ005","RQ005010034"]
[5821,"RQ005","RQ005010051"]
[5840,"SC002","SC002000007"]
[5853,"SC003","SC003000100"]
[5885,"SC017","SC017000004"]
[{"$f":"+A9053+1","v":5898},"SC024","SC024000002"]
[5911,"SC027","SC027000003"]
[5947,"SC061","SC061000002"]
[5956,"SD017","SD017000001"]
[5975,"TN001","TN001000002"]
[5996,"TN001","TN001000059"]
[6020,"TN003","TN003000022"]
[6041,"TN004","TN004000033"]
[6046,"TN005","TN005000005"]
[6066,"TN007","TN007000140"]
[6085,"TN019","TN019000001"]
[6110,"TN040","TN040000001"]
[6135,"TN063","TN063000001"]
[6155,"TN090","TN090000003"]
[6180,"TX003","TX003000008"]
[6194,"TX003","TX003000022"]
[6200,"TX004","TX004000006"]
[6229,"TX006","TX006000004"]
[6239,"TX006","TX006000014"]
[6274,"TX008","TX008000001"]
[6284,"TX009","TX009000001"]
[6299,"TX009","TX009000016"]
[6329,"TX019","TX019000004"]
[6348,"TX026","TX026000001"]
[6368,"TX036","TX036000001"]
[6393,"TX056","TX056000001"]
[6397,"TX061","TX061000001"]
[6419,"TX074","TX074000001"]
[6438,"TX090","TX090000001"]
[6462,"TX115","TX115000001"]
[6483,"TX150","TX150000001"]
[6491,"TX160","TX160000001"]
[6528,"TX199","TX199000001"]
[6536,"TX209","TX209000001"]
[6554,"TX225","TX225000001"]
[6573,"TX244","TX244000001"]
[6605,"TX280","TX280100000"]
[6618,"TX296","TX296000001"]
[6630,"TX309","TX309000001"]
[6657,{"$f":"LEFT(C9813,5)","v":"TX341"},"TX341000001"]
[6675,"TX376","TX376000159"]
[6702,"TX509","TX509000002"]
[6708,"TX538","TX538000001"]
[6724,"UT007","UT007000001"]
[6747,"VA003","VA003000310"]
[6769,"VA006","VA006000008"]
[6792,"VA007","VA007000008"]
[6817,"VA013","VA013000001"]
[6838,"VA019","VA019000008"]
[6856,"VA030","VA030243541"]
[6863,"VQ001","VQ001000014"]
[6882,"WA001","WA001000001"]
[6912,"WA002","WA002000505"]
[6927,"WA005","WA005000006"]
[6946,"WA009","WA009000010"]
[6957,"WA018","WA018003000"]
[6991,"WI002","WI002000016"]
[7006,"WI002","WI002000091"]
[7017,"WI016","WI016000001"]
[7051,"WI056","WI056000001"]
[7055,"WI060","WI060000001"]
[7056,"WI061","WI061000001"]
[7057,"WI063","WI063000001"]
[7058,"WI064","WI064000001"]
[7059,"WI064","WI064000002"]
[7060,"WI064","WI064000003"]
[7061,"WI065","WI065000012"]
[7062,"WI066","WI066000001"]
[7063,"WI067","WI067000001"]
[7064,"WI068","WI068000001"]
[7065,"WI069","WI069000001"]
[7066,"WI070","WI070000001"]
[7067,"WI071","WI071000001"]
[7068,"WI072","WI072000001"]
[7069,"WI073","WI073000001"]
[7070,"WI074","WI074000010"]
[7071,"WI074","WI074000020"]
[7072,"WI075","WI075000001"]
[7073,"WI076","WI076000001"]
[7074,"WI077","WI077000001"]
[7075,"WI083","WI083000001"]
[7076,"WI085","WI085000002"]
[7077,"WI086","WI086000001"]
[7078,"WI090","WI090000001"]
[7079,"WI093","WI093000001"]
[7080,"WI096","WI096000001"]
[7081,"WI098","WI098000001"]
[7082,"WI102","WI102000001"]
[7083,"WI111","WI111000001"]
[7084,"WI113","WI113000002"]
[7085,"WI113","WI113000003"]
[7086,"WI113","WI113000005"]
[7087,"WI117","WI117000001"]
[7088,"WI118","WI118000001"]
[7089,"WI127","WI127000001"]
[7090,"WI129","WI129000001"]
[7091,"WI131","WI131000001"]
[7092,"WI131","WI131000002"]
[7093,"WI139","WI139000001"]
[7094,"WI142","WI142000001"]
[7095,"WI142","WI142000002"]
[7096,"WI158","WI158000001"]
[7097,"WI166","WI166000166"]
[7098,"WI183","WI183000001"]
[7099,"WI193","WI193000001"]
[7100,"WI204","WI204000001"]
[7101,"WI207","WI207000077"]
[7102,"WI213","WI213000001"]
[7103,"WI214","WI214000001"]
[7104,"WI221","WI221006139"]
[7105,{"$f":"LEFT(C10261,5)","v":"WI226"},"WI226000001"]
[7106,"WI231","WI231000001"]
[7107,"WI242","WI242000001"]
[7108,"WI246","WI246000001"]
[7109,"WI247","WI247002050"]
[7110,"WI249","WI249000001"]
[7111,"WI251","WI251000001"]
[7112,"WI253","WI253000001"]
[7113,"WV001","WV001000001"]
[{"$f":"+A10269+1","v":7114},"WV001","WV001000002"]
[7115,"WV001","WV001000003"]
[7116,"WV001","WV001000004"]
[7117,"WV001","WV001000005"]
[7118,"WV001","WV001000007"]
[7119,"WV001","WV001000008"]
[7120,"WV001","WV001000011"]
[7121,"WV001","WV001000023"]
[7122,"WV001","WV001000027"]
[7123,"WV001","WV001000028"]
[7124,"WV001","WV001000029"]
[7125,"WV001","WV001000030"]
[7126,"WV001","WV001000031"]
[7127,"WV001","WV001000032"]
[7128,"WV003","WV003000004"]
[7129,"WV003","WV003000005"]
[7130,"WV003","WV003000006"]
[7131,"WV003","WV003000007"]
[7132,"WV003","WV003000010"]
[7133,"WV003","WV003000013"]
[7134,"WV003","WV003000015"]
[7135,"WV003","WV003000017"]
[7136,"WV004","WV004000001"]
[7137,"WV004","WV004000002"]
[7138,"WV004","WV004000003"]
[7139,"WV004","WV004000004"]
[7140,"WV004","WV004000005"]
[7141,"WV005","WV005000001"]
[7142,"WV006","WV006000001"]
[7143,"WV007","WV007001001"]
[7144,"WV008","WV008000001"]
[7145,"WV009","WV009000001"]
[7146,"WV010","WV010000001"]
[7147,"WV011","WV011000001"]
[7148,"WV012","WV012000123"]
[7149,"WV013","WV013000003"]
[7150,"WV014","WV014000001"]
[7151,"WV015","WV015000001"]
[7152,"WV016","WV016000001"]
[7153,"WV017","WV017000001"]
[7154,"WV018","WV018000001"]
[7155,"WV020","WV020000010"]
[7156,"WV021","WV021000021"]
[7157,"WV022","WV022000001"]
[7158,"WV024","WV024000001"]
[7159,"WV026","WV026000001"]
[7160,"WV027","WV027000001"]
[7161,"WV027","WV027000002"]
[7162,"WV027","WV027000003"]
[7163,"WV028","WV028000001"]
[7164,"WV029","WV029000001"]
[7165,"WV035","WV035000001"]
[7166,"WV037","WV037000001"]
[7167,"WV039","WV039000001"]
[7168,"WV042","WV042000001"]
[7169,{"$f":"LEFT(C10325,5)","v":"WV044"},"WV044000001"]
[7170,"WY002","WY002000011"]
[7171,"WY002","WY002000022"]
[7172,"WY002","WY002000033"]
[7173,"WY003","WY003000001"]
[7174,"WY004","WY004000001"]
[7175,"WY005","WY005000001"]
[7176,"WY008","WY008000001"]
[7177,"WY010","WY010000001"]
[{"$f":"+A10333+1","v":7178},"WY013","WY013000001"]
[7179,"WY015","WY015000011"]

{"sheet":"52722 Flat Rate","index":4,"n_rows":63,"n_cols":12,"rows_kept":63,"cut":false,"hidden":true,"merged":[[52,1,52,4],[53,1,53,4],[54,0,54,11],[55,0,55,11],[48,0,48,11],[49,1,49,4],[50,1,50,4],[51,1,51,4],[45,0,45,9],[45,10,45,11],[46,1,46,4],[47,1,47,4],[41,1,41,4],[42,0,42,11],[43,1,43,4],[44,1,44,4],[37,1,37,4],[38,1,38,4],[39,0,39,11],[40,1,40,4],[33,1,33,4],[34,1,34,4],[35,1,35,4],[36,0,36,11],[29,0,29,11],[30,1,30,4],[31,0,31,11],[32,1,32,4],[25,10,25,11],[26,1,26,4],[27,1,27,4],[28,1,28,4],[22,1,22,4],[23,1,23,4],[24,1,24,4],[25,0,25,9],[18,1,18,4],[19,1,19,4],[20,0,20,11],[21,1,21,4],[14,1,14,4],[14,5,14,10],[16,1,16,4],[17,0,17,11],[11,9,12,9],[12,0,12,2],[12,3,12,5],[13,0,13,11],[11,0,11,2],[11,3,11,5],[11,6,11,8],[0,0,0,5],[1,0,1,5],[3,0,3,4],[4,0,4,11],[10,0,10,4],[6,0,6,11],[7,0,7,4],[7,5,7,6],[7,7,7,8],[7,9,8,9],[7,10,8,10],[7,11,8,11],[8,0,9,4],[8,5,8,6],[9,8,10,8]]}
["Operating Fund",null,null,null,null,null,null,null,"U.S. Department of Housing and"]
["Calculation of Utilities Expense Level",null,null,null,null,null,"Flat Rate",null,"Urban Development"]
["PHA-Owned Rental Housing",null,null,null,null,null,null,null,"Office of Public and Indian Housing"]
[]
["Public Reporting Burden for this collection of information is estimated to average .75 hours per response, including the time for reviewing instructions, searching existing data sources, gathering and maintaining data needed, and completing and reviewing the collection of information.  This agency may not collect this information, and you are not required to complete this form, unless it displays a currently valid OMB control number.  This information is required by Section 9(a) of the U.S. Housing Act of 1937, as amended, and by 24 CFR Part 990 HUD regulations.  HUD makes payments for the operation and maintenance of low-income housing projects to PHAs.  The Operating Fund determines the amount of operating subsidy to be paid to PHAs.  PHAs provide information on the Project Expense Level (PEL), Utilities Expense Level (UEL), Other Formula Expenses (Add-ons) and Formula Income - the major Operating Fund components.  HUD reviews the information to determine each PHA's Formula Amount and the funds to be obligated for the period to each PHA based on the appropriation by Congress.  HUD also uses the information as the basis for requesting annual appropriations from Congress.  Responses to the collection of information are required to obtain a benefit.  The information requested does not lend itself to confidentiality."]
[]
["Section 1 - General Information"]
["1. Name of Public Housing Agency:",null,null,null,null,"2. Funding Period: ",null,"3. Type of Submission:",null,"4. Unit Change Indicator:","5. Frozen Rolling Base:","6. Rate Reduction Incentive:"]
[{"$f":"HAName","v":""},null,null,null,null,{"$f":"+StudyYear","v":"07/1/2010 to 06/30/2011"}]
[null,null,null,null,null,null,null,"Original",null,{"$f":"IF(UnitChangeInd=0,\"\",UnitChangeInd)","v":""},false,{"$f":"IF(RRIYN=0,\"\",RRIYN)","v":""}]
[]
["7. ACC Number:",null,null,"8. Operating Fund Project Number:",null,null,"9. Fiscal Year End:",null,null,"10. ROFO Code\n(HUD Use Only):",null,"11. DUNS Number:"]
[{"$f":"ACC","v":""},null,null,{"$f":"IF(PPN=0,\"\",PPN)","v":""},null,null,null,{"$f":"+FYE","v":""},null,null,{"$f":"ROFO","v":""},{"$f":"DUNS","v":""}]
[]
["Line No.","Description",null,null,null,"Select Utility Types",null,null,null,null,null,"Total"]
[null,null,null,null,null,{"$f":"IF(+'GUI XREF'!AN16=0,\"\",+'GUI XREF'!AN16)","v":""},{"$f":"IF(+'GUI XREF'!AO16=0,\"\",+'GUI XREF'!AO16)","v":""},{"$f":"IF(+'GUI XREF'!AP16=0,\"\",+'GUI XREF'!AP16)","v":""},{"$f":"IF(+'GUI XREF'!AQ16=0,\"\",+'GUI XREF'!AQ16)","v":""},{"$f":"IF(+'GUI XREF'!AR16=0,\"\",+'GUI XREF'!AR16)","v":""},{"$f":"IF(+'GUI XREF'!AS16=0,\"\",+'GUI XREF'!AS16)","v":""}]
["A","B",null,null,null,"C","D","E","F","G","H","I"]
["Section 2 - Current consumption Level"]
["01","Actual Consumption (12-month period 7/1/2010 to 6/30/2011",null,null,null,{"$f":"IF(+'GUI XREF'!AN19=0,\"\",+'GUI XREF'!AN19)","v":"Flat Rate"},{"$f":"IF(+'GUI XREF'!AO19=0,\"\",+'GUI XREF'!AO19)","v":"Flat Rate"},{"$f":"IF(+'GUI XREF'!AP19=0,\"\",+'GUI XREF'!AP19)","v":"Flat Rate"},{"$f":"IF(+'GUI XREF'!AQ19=0,\"\",+'GUI XREF'!AQ19)","v":"Flat Rate"},{"$f":"IF(+'GUI XREF'!AR19=0,\"\",+'GUI XREF'!AR19)","v":"Flat Rate"},{"$f":"IF(+'GUI XREF'!AS19=0,\"\",+'GUI XREF'!AS19)","v":"Flat Rate"}]
["01a","Unit of consumption (e.g., gallons, kWh, therms)",null,null,null,{"$f":"IF(+'GUI XREF'!AN20=0,\"\",+'GUI XREF'!AN20)","v":"Flat Rate"},{"$f":"IF(+'GUI XREF'!AO20=0,\"\",+'GUI XREF'!AO20)","v":"Flat Rate"},{"$f":"IF(+'GUI XREF'!AP20=0,\"\",+'GUI XREF'!AP20)","v":"Flat Rate"},{"$f":"IF(+'GUI XREF'!AQ20=0,\"\",+'GUI XREF'!AQ20)","v":"Flat Rate"},{"$f":"IF(+'GUI XREF'!AR20=0,\"\",+'GUI XREF'!AR20)","v":"Flat Rate"},{"$f":"IF(+'GUI XREF'!AS20=0,\"\",+'GUI XREF'!AS20)","v":"Flat Rate"}]
["Section 3 - Rolling Base consumption Level"]
["02","Rolling base year 1 - actual consumption (12-month period 7/1/2009 to 6/30/2010)",null,null,null,{"$f":"IF(+'GUI XREF'!AN22=0,\"\",+'GUI XREF'!AN22)","v":"Flat Rate"},{"$f":"IF(+'GUI XREF'!AO22=0,\"\",+'GUI XREF'!AO22)","v":"Flat Rate"},{"$f":"IF(+'GUI XREF'!AP22=0,\"\",+'GUI XREF'!AP22)","v":"Flat Rate"},{"$f":"IF(+'GUI XREF'!AQ22=0,\"\",+'GUI XREF'!AQ22)","v":"Flat Rate"},{"$f":"IF(+'GUI XREF'!AR22=0,\"\",+'GUI XREF'!AR22)","v":"Flat Rate"},{"$f":"IF(+'GUI XREF'!AS22=0,\"\",+'GUI XREF'!AS22)","v":"Flat Rate"}]
["03","Rolling base year 2 - actual consumption (12-month period 7/1/2008 to 6/30/2009)",null,null,null,{"$f":"IF(+'GUI XREF'!AN23=0,\"\",+'GUI XREF'!AN23)","v":"Flat Rate"},{"$f":"IF(+'GUI XREF'!AO23=0,\"\",+'GUI XREF'!AO23)","v":"Flat Rate"},{"$f":"IF(+'GUI XREF'!AP23=0,\"\",+'GUI XREF'!AP23)","v":"Flat Rate"},{"$f":"IF(+'GUI XREF'!AQ23=0,\"\",+'GUI XREF'!AQ23)","v":"Flat Rate"},{"$f":"IF(+'GUI XREF'!AR23=0,\"\",+'GUI XREF'!AR23)","v":"Flat Rate"},{"$f":"IF(+'GUI XREF'!AS23=0,\"\",+'GUI XREF'!AS23)","v":"Flat Rate"}]
["04","Rolling base year 3 - actual consumption (12-month period 7/1/2007 to 6/30/2008)",null,null,null,{"$f":"IF(+'GUI XREF'!AN24=0,\"\",+'GUI XREF'!AN24)","v":"Flat Rate"},{"$f":"IF(+'GUI XREF'!AO24=0,\"\",+'GUI XREF'!AO24)","v":"Flat Rate"},{"$f":"IF(+'GUI XREF'!AP24=0,\"\",+'GUI XREF'!AP24)","v":"Flat Rate"},{"$f":"IF(+'GUI XREF'!AQ24=0,\"\",+'GUI XREF'!AQ24)","v":"Flat Rate"},{"$f":"IF(+'GUI XREF'!AR24=0,\"\",+'GUI XREF'!AR24)","v":"Flat Rate"},{"$f":"IF(+'GUI XREF'!AS24=0,\"\",+'GUI XREF'!AS24)","v":"Flat Rate"}]
["05","Total Consumption during 3-year Rolling Base period (Lines 02 + 03 + 04)",null,null,null,{"$f":"IF(+'GUI XREF'!AN25=0,\"\",+'GUI XREF'!AN25)","v":"Flat Rate"},{"$f":"IF(+'GUI XREF'!AO25=0,\"\",+'GUI XREF'!AO25)","v":"Flat Rate"},{"$f":"IF(+'GUI XREF'!AP25=0,\"\",+'GUI XREF'!AP25)","v":"Flat Rate"},{"$f":"IF(+'GUI XREF'!AQ25=0,\"\",+'GUI XREF'!AQ25)","v":"Flat Rate"},{"$f":"IF(+'GUI XREF'!AR25=0,\"\",+'GUI XREF'!AR25)","v":"Flat Rate"},{"$f":"IF(+'GUI XREF'!AS25=0,\"\",+'GUI XREF'!AS25)","v":"Flat Rate"}]
[null,null,null,null,null,null,null,null,null,null,{"$f":"CONCATENATE(\"Operating Fund Project Number\n\",PPN)","v":"Operating Fund Project Number\n"}]
["06","Average rolling base consumption (Line 05 ¸ 3)",null,null,null,{"$f":"IF(+'GUI XREF'!AN27=0,\"\",+'GUI XREF'!AN27)","v":"Flat Rate"},{"$f":"IF(+'GUI XREF'!AO27=0,\"\",+'GUI XREF'!AO27)","v":"Flat Rate"},{"$f":"IF(+'GUI XREF'!AP27=0,\"\",+'GUI XREF'!AP27)","v":"Flat Rate"},{"$f":"IF(+'GUI XREF'!AQ27=0,\"\",+'GUI XREF'!AQ27)","v":"Flat Rate"},{"$f":"IF(+'GUI XREF'!AR27=0,\"\",+'GUI XREF'!AR27)","v":"Flat Rate"},{"$f":"IF(+'GUI XREF'!AS27=0,\"\",+'GUI XREF'!AS27)","v":"Flat Rate"}]
["07","Actual consumption for new units",null,null,null,{"$f":"IF(+'GUI XREF'!AN28=0,\"\",+'GUI XREF'!AN28)","v":"Flat Rate"},{"$f":"IF(+'GUI XREF'!AO28=0,\"\",+'GUI XREF'!AO28)","v":"Flat Rate"},{"$f":"IF(+'GUI XREF'!AP28=0,\"\",+'GUI XREF'!AP28)","v":"Flat Rate"},{"$f":"IF(+'GUI XREF'!AQ28=0,\"\",+'GUI XREF'!AQ28)","v":"Flat Rate"},{"$f":"IF(+'GUI XREF'!AR28=0,\"\",+'GUI XREF'!AR28)","v":"Flat Rate"},{"$f":"IF(+'GUI XREF'!AS28=0,\"\",+'GUI XREF'!AS28)","v":"Flat Rate"}]
["08","Rolling Base Consumption (Line 06 + 07)",null,null,null,{"$f":"IF(+'GUI XREF'!AN29=0,\"\",+'GUI XREF'!AN29)","v":"Flat Rate"},{"$f":"IF(+'GUI XREF'!AO29=0,\"\",+'GUI XREF'!AO29)","v":"Flat Rate"},{"$f":"IF(+'GUI XREF'!AP29=0,\"\",+'GUI XREF'!AP29)","v":"Flat Rate"},{"$f":"IF(+'GUI XREF'!AQ29=0,\"\",+'GUI XREF'!AQ29)","v":"Flat Rate"},{"$f":"IF(+'GUI XREF'!AR29=0,\"\",+'GUI XREF'!AR29)","v":"Flat Rate"},{"$f":"IF(+'GUI XREF'!AS29=0,\"\",+'GUI XREF'!AS29)","v":"Flat Rate"}]
["Section 4 - Base Consumption"]
["09","Base Consumption (lesser of Line 01 or 08)",null,null,null,{"$f":"IF(+'GUI XREF'!AN31=0,\"\",+'GUI XREF'!AN31)","v":"Flat Rate"},{"$f":"IF(+'GUI XREF'!AO31=0,\"\",+'GUI XREF'!AO31)","v":"Flat Rate"},{"$f":"IF(+'GUI XREF'!AP31=0,\"\",+'GUI XREF'!AP31)","v":"Flat Rate"},{"$f":"IF(+'GUI XREF'!AQ31=0,\"\",+'GUI XREF'!AQ31)","v":"Flat Rate"},{"$f":"IF(+'GUI XREF'!AR31=0,\"\",+'GUI XREF'!AR31)","v":"Flat Rate"},{"$f":"IF(+'GUI XREF'!AS31=0,\"\",+'GUI XREF'!AS31)","v":"Flat Rate"}]
["Section 5 - Utility Consumption Incentive"]
["10","Actual consumption > rolling base (If Line 01 is greater than Line 08, enter the difference as positive; if not, enter 0)",null,null,null,{"$f":"IF(+'GUI XREF'!AN33=0,\"\",+'GUI XREF'!AN33)","v":"Flat Rate"},{"$f":"IF(+'GUI XREF'!AO33=0,\"\",+'GUI XREF'!AO33)","v":"Flat Rate"},{"$f":"IF(+'GUI XREF'!AP33=0,\"\",+'GUI XREF'!AP33)","v":"Flat Rate"},{"$f":"IF(+'GUI XREF'!AQ33=0,\"\",+'GUI XREF'!AQ33)","v":"Flat Rate"},{"$f":"IF(+'GUI XREF'!AR33=0,\"\",+'GUI XREF'!AR33)","v":"Flat Rate"},{"$f":"IF(+'GUI XREF'!AS33=0,\"\",+'GUI XREF'!AS33)","v":"Flat Rate"}]
["11","Actual consumption < rolling base (If Line 01 is less than Line 08, enter the difference as positive; if not, enter 0)",null,null,null,{"$f":"IF(+'GUI XREF'!AN34=0,\"\",+'GUI XREF'!AN34)","v":"Flat Rate"},{"$f":"IF(+'GUI XREF'!AO34=0,\"\",+'GUI XREF'!AO34)","v":"Flat Rate"},{"$f":"IF(+'GUI XREF'!AP34=0,\"\",+'GUI XREF'!AP34)","v":"Flat Rate"},{"$f":"IF(+'GUI XREF'!AQ34=0,\"\",+'GUI XREF'!AQ34)","v":"Flat Rate"},{"$f":"IF(+'GUI XREF'!AR34=0,\"\",+'GUI XREF'!AR34)","v":"Flat Rate"},{"$f":"IF(+'GUI XREF'!AS34=0,\"\",+'GUI XREF'!AS34)","v":"Flat Rate"}]
["12","75%/25% Split (Line 10 x 0.25)",null,null,null,{"$f":"IF(+'GUI XREF'!AN35=0,\"\",+'GUI XREF'!AN35)","v":"Flat Rate"},{"$f":"IF(+'GUI XREF'!AO35=0,\"\",+'GUI XREF'!AO35)","v":"Flat Rate"},{"$f":"IF(+'GUI XREF'!AP35=0,\"\",+'GUI XREF'!AP35)","v":"Flat Rate"},{"$f":"IF(+'GUI XREF'!AQ35=0,\"\",+'GUI XREF'!AQ35)","v":"Flat Rate"},{"$f":"IF(+'GUI XREF'!AR35=0,\"\",+'GUI XREF'!AR35)","v":"Flat Rate"},{"$f":"IF(+'GUI XREF'!AS35=0,\"\",+'GUI XREF'!AS35)","v":"Flat Rate"}]
["13","75%/25% Split (Line 11 x 0.75)",null,null,null,{"$f":"IF(+'GUI XREF'!AN36=0,\"\",+'GUI XREF'!AN36)","v":"Flat Rate"},{"$f":"IF(+'GUI XREF'!AO36=0,\"\",+'GUI XREF'!AO36)","v":"Flat Rate"},{"$f":"IF(+'GUI XREF'!AP36=0,\"\",+'GUI XREF'!AP36)","v":"Flat Rate"},{"$f":"IF(+'GUI XREF'!AQ36=0,\"\",+'GUI XREF'!AQ36)","v":"Flat Rate"},{"$f":"IF(+'GUI XREF'!AR36=0,\"\",+'GUI XREF'!AR36)","v":"Flat Rate"},{"$f":"IF(+'GUI XREF'!AS36=0,\"\",+'GUI XREF'!AS36)","v":"Flat Rate"}]
["Section 6 - Payable Consumption"]
[14,"Annualization of consumption for new units",null,null,null,{"$f":"IF(+'GUI XREF'!AN38=0,\"\",+'GUI XREF'!AN38)","v":"Flat Rate"},{"$f":"IF(+'GUI XREF'!AO38=0,\"\",+'GUI XREF'!AO38)","v":"Flat Rate"},{"$f":"IF(+'GUI XREF'!AP38=0,\"\",+'GUI XREF'!AP38)","v":"Flat Rate"},{"$f":"IF(+'GUI XREF'!AQ38=0,\"\",+'GUI XREF'!AQ38)","v":"Flat Rate"},{"$f":"IF(+'GUI XREF'!AR38=0,\"\",+'GUI XREF'!AR38)","v":"Flat Rate"},{"$f":"IF(+'GUI XREF'!AS38=0,\"\",+'GUI XREF'!AS38)","v":"Flat Rate"}]
[15,"Payable consumption (Sum of Line 09, Line 12, Line 13, and Line 14)",null,null,null,{"$f":"IF(+'GUI XREF'!AN39=0,\"\",+'GUI XREF'!AN39)","v":"Flat Rate"},{"$f":"IF(+'GUI XREF'!AO39=0,\"\",+'GUI XREF'!AO39)","v":"Flat Rate"},{"$f":"IF(+'GUI XREF'!AP39=0,\"\",+'GUI XREF'!AP39)","v":"Flat Rate"},{"$f":"IF(+'GUI XREF'!AQ39=0,\"\",+'GUI XREF'!AQ39)","v":"Flat Rate"},{"$f":"IF(+'GUI XREF'!AR39=0,\"\",+'GUI XREF'!AR39)","v":"Flat Rate"},{"$f":"IF(+'GUI XREF'!AS39=0,\"\",+'GUI XREF'!AS39)","v":"Flat Rate"}]
["Section 7 - Actual Utility Costs and Average Rate"]
[16,"Actual utility costs (12-month period 7/1/2010 to 6/30/2011)",null,null,null,{"$f":"IF(+'GUI XREF'!AN41=0,\"\",+'GUI XREF'!AN41)","v":""},{"$f":"IF(+'GUI XREF'!AO41=0,\"\",+'GUI XREF'!AO41)","v":""},{"$f":"IF(+'GUI XREF'!AP41=0,\"\",+'GUI XREF'!AP41)","v":""},{"$f":"IF(+'GUI XREF'!AQ41=0,\"\",+'GUI XREF'!AQ41)","v":""},{"$f":"IF(+'GUI XREF'!AR41=0,\"\",+'GUI XREF'!AR41)","v":""},{"$f":"IF(+'GUI XREF'!AS41=0,\"\",+'GUI XREF'!AS41)","v":""}]
[17,"Actual average utility rate (Line 16 ¸ Line 01)",null,null,null,{"$f":"IF(+'GUI XREF'!AN42=0,\"\",+'GUI XREF'!AN42)","v":"Flat Rate"},{"$f":"IF(+'GUI XREF'!AO42=0,\"\",+'GUI XREF'!AO42)","v":"Flat Rate"},{"$f":"IF(+'GUI XREF'!AP42=0,\"\",+'GUI XREF'!AP42)","v":"Flat Rate"},{"$f":"IF(+'GUI XREF'!AQ42=0,\"\",+'GUI XREF'!AQ42)","v":"Flat Rate"},{"$f":"IF(+'GUI XREF'!AR42=0,\"\",+'GUI XREF'!AR42)","v":"Flat Rate"},{"$f":"IF(+'GUI XREF'!AS42=0,\"\",+'GUI XREF'!AS42)","v":"Flat Rate"}]
["Section 8 - Base Utilities and Inflation/Deflation Factor"]
[18,"Base utilities expense level - whole dollars (Line 15 x Line 17)",null,null,null,{"$f":"IF(+'GUI XREF'!AN44=0,\"\",+'GUI XREF'!AN44)","v":""},{"$f":"IF(+'GUI XREF'!AO44=0,\"\",+'GUI XREF'!AO44)","v":""},{"$f":"IF(+'GUI XREF'!AP44=0,\"\",+'GUI XREF'!AP44)","v":""},{"$f":"IF(+'GUI XREF'!AQ44=0,\"\",+'GUI XREF'!AQ44)","v":""},{"$f":"IF(+'GUI XREF'!AR44=0,\"\",+'GUI XREF'!AR44)","v":""},{"$f":"IF(+'GUI XREF'!AS44=0,\"\",+'GUI XREF'!AS44)","v":""},{"$f":"SUM(F44:K44)","v":0}]
[19,"Surcharges for excess consumption of PHA-supplied utilities (12-month period 7/1/2010 to 6/30/2011) - whole dollars"]
[null,null,null,null,null,null,null,null,null,null,{"$f":"CONCATENATE(\"Operating Fund Project Number\n\",PPN)","v":"Operating Fund Project Number\n"}]
[20,"Base Utilities expense level minus surcharges (Line 18 minus Line 19)"]
[21,"Utilities inflation/deflation factor"]
["Section 9 - Calculation of Utilities Expense Level"]
[22,"Utilities expense level adjusted for inflation/deflation - whole dollars (Line 20 x Line 21)"]
[23,"Energy rate incentive"]
[24,"Utilities expense level - whole dollars (Line 22 + Line 23)"]
[25,"Eligible unit months (from the original form HUD-52723, Column B, Line 15 plus Line 17 minus Line 04)"]
[26,"Utilities Expense Level - PUM (Line 24 ¸ Line 25)"]
["Section 10 - Remarks (provide section, part, and line numbers)"]
[]
[]
[null,null,{"$f":"IF(+'GUI XREF'!AN12=\"\",\"\",+'GUI XREF'!AN12)","v":""}]
[null,null,{"$f":"IF(+'GUI XREF'!AO12=\"\",\"\",+'GUI XREF'!AO12)","v":""}]
[null,null,{"$f":"IF(+'GUI XREF'!AP12=\"\",\"\",+'GUI XREF'!AP12)","v":""}]
[null,null,{"$f":"IF(+'GUI XREF'!AQ12=\"\",\"\",+'GUI XREF'!AQ12)","v":""}]
[null,null,{"$f":"IF(+'GUI XREF'!AR12=\"\",\"\",+'GUI XREF'!AR12)","v":""}]
[null,null,{"$f":"IF(+'GUI XREF'!AS12=\"\",\"\",+'GUI XREF'!AS12)","v":""}]

{"sheet":"52722 Non-Frozen","index":5,"n_rows":63,"n_cols":12,"rows_kept":63,"cut":false,"hidden":true,"merged":[[52,1,52,4],[53,1,53,4],[54,0,54,11],[55,0,55,11],[48,0,48,11],[49,1,49,4],[50,1,50,4],[51,1,51,4],[45,0,45,9],[45,10,45,11],[46,1,46,4],[47,1,47,4],[41,1,41,4],[42,0,42,11],[43,1,43,4],[44,1,44,4],[37,1,37,4],[38,1,38,4],[39,0,39,11],[40,1,40,4],[33,1,33,4],[34,1,34,4],[35,1,35,4],[36,0,36,11],[29,0,29,11],[30,1,30,4],[31,0,31,11],[32,1,32,4],[25,10,25,11],[26,1,26,4],[27,1,27,4],[28,1,28,4],[22,1,22,4],[23,1,23,4],[24,1,24,4],[25,0,25,9],[18,1,18,4],[19,1,19,4],[20,0,20,11],[21,1,21,4],[14,1,14,4],[14,5,14,10],[16,1,16,4],[17,0,17,11],[11,9,12,9],[12,0,12,2],[12,3,12,5],[13,0,13,11],[11,0,11,2],[11,3,11,5],[11,6,11,8],[0,0,0,5],[1,0,1,5],[3,0,3,4],[4,0,4,11],[10,0,10,4],[6,0,6,11],[7,0,7,4],[7,5,7,6],[7,7,7,8],[7,9,8,9],[7,10,8,10],[7,11,8,11],[8,0,9,4],[8,5,8,6],[9,8,10,8]]}
["Operating Fund",null,null,null,null,null,null,null,"U.S. Department of Housing and"]
["Calculation of Utilities Expense Level",null,null,null,null,null,"Non-Frozen",null,"Urban Development"]
["PHA-Owned Rental Housing",null,null,null,null,null,null,null,"Office of Public and Indian Housing"]
[]
["Public Reporting Burden for this collection of information is estimated to average .75 hours per response, including the time for reviewing instructions, searching existing data sources, gathering and maintaining data needed, and completing and reviewing the collection of information.  This agency may not collect this information, and you are not required to complete this form, unless it displays a currently valid OMB control number.  This information is required by Section 9(a) of the U.S. Housing Act of 1937, as amended, and by 24 CFR Part 990 HUD regulations.  HUD makes payments for the operation and maintenance of low-income housing projects to PHAs.  The Operating Fund determines the amount of operating subsidy to be paid to PHAs.  PHAs provide information on the Project Expense Level (PEL), Utilities Expense Level (UEL), Other Formula Expenses (Add-ons) and Formula Income - the major Operating Fund components.  HUD reviews the information to determine each PHA's Formula Amount and the funds to be obligated for the period to each PHA based on the appropriation by Congress.  HUD also uses the information as the basis for requesting annual appropriations from Congress.  Responses to the collection of information are required to obtain a benefit.  The information requested does not lend itself to confidentiality."]
[]
["Section 1 - General Information"]
["1. Name of Public Housing Agency:",null,null,null,null,"2. Funding Period: ",null,"3. Type of Submission:",null,"4. Unit Change Indicator:","5. Frozen Rolling Base:","6. Rate Reduction Incentive:"]
[{"$f":"HAName","v":""},null,null,null,null,{"$f":"+StudyYear","v":"07/1/2010 to 06/30/2011"}]
[null,null,null,null,null,null,null,"Original",null,{"$f":"IF(UnitChangeInd=0,\"\",UnitChangeInd)","v":""},false,{"$f":"IF(RRIYN=0,\"\",RRIYN)","v":""}]
[]
["7. ACC Number:",null,null,"8. Operating Fund Project Number:",null,null,"9. Fiscal Year End:",null,null,"10. ROFO Code\n(HUD Use Only):",null,"11. DUNS Number:"]
[{"$f":"ACC","v":""},null,null,{"$f":"IF(PPN=0,\"\",PPN)","v":""},null,null,null,{"$f":"+FYE","v":""},null,null,{"$f":"ROFO","v":""},{"$f":"DUNS","v":""}]
[]
["Line No.","Description",null,null,null,"Select Utility Types",null,null,null,null,null,"Total"]
[null,null,null,null,null,{"$f":"IF(+'GUI XREF'!AB16=0,\"\",+'GUI XREF'!AB16)","v":""},{"$f":"IF(+'GUI XREF'!AC16=0,\"\",+'GUI XREF'!AC16)","v":""},{"$f":"IF(+'GUI XREF'!AD16=0,\"\",+'GUI XREF'!AD16)","v":""},{"$f":"IF(+'GUI XREF'!AE16=0,\"\",+'GUI XREF'!AE16)","v":""},{"$f":"IF(+'GUI XREF'!AF16=0,\"\",+'GUI XREF'!AF16)","v":""},{"$f":"IF(+'GUI XREF'!AG16=0,\"\",+'GUI XREF'!AG16)","v":""}]
["A","B",null,null,null,"C","D","E","F","G","H","I"]
["Section 2 - Current consumption Level"]
["01",{"$f":"+'52722 Flat Rate'!B19:E19","v":"Actual Consumption (12-month period 7/1/2010 to 6/30/2011"},null,null,null,{"$f":"IF(+'GUI XREF'!AB19=0,\"\",+'GUI XREF'!AB19)","v":""},{"$f":"IF(+'GUI XREF'!AC19=0,\"\",+'GUI XREF'!AC19)","v":""},{"$f":"IF(+'GUI XREF'!AD19=0,\"\",+'GUI XREF'!AD19)","v":""},{"$f":"IF(+'GUI XREF'!AE19=0,\"\",+'GUI XREF'!AE19)","v":""},{"$f":"IF(+'GUI XREF'!AF19=0,\"\",+'GUI XREF'!AF19)","v":""},{"$f":"IF(+'GUI XREF'!AG19=0,\"\",+'GUI XREF'!AG19)","v":""}]
["01a","Unit of consumption (e.g., gallons, kWh, therms)",null,null,null,{"$f":"IF(+'GUI XREF'!AB20=0,\"\",+'GUI XREF'!AB20)","v":""},{"$f":"IF(+'GUI XREF'!AC20=0,\"\",+'GUI XREF'!AC20)","v":""},{"$f":"IF(+'GUI XREF'!AD20=0,\"\",+'GUI XREF'!AD20)","v":""},{"$f":"IF(+'GUI XREF'!AE20=0,\"\",+'GUI XREF'!AE20)","v":""},{"$f":"IF(+'GUI XREF'!AF20=0,\"\",+'GUI XREF'!AF20)","v":""},{"$f":"IF(+'GUI XREF'!AG20=0,\"\",+'GUI XREF'!AG20)","v":""}]
["Section 3 - Rolling Base consumption Level"]
["02",{"$f":"+'52722 Flat Rate'!B22:E22","v":"Rolling base year 1 - actual consumption (12-month period 7/1/2009 to 6/30/2010)"},null,null,null,{"$f":"IF(+'GUI XREF'!AB22=0,\"\",+'GUI XREF'!AB22)","v":""},{"$f":"IF(+'GUI XREF'!AC22=0,\"\",+'GUI XREF'!AC22)","v":""},{"$f":"IF(+'GUI XREF'!AD22=0,\"\",+'GUI XREF'!AD22)","v":""},{"$f":"IF(+'GUI XREF'!AE22=0,\"\",+'GUI XREF'!AE22)","v":""},{"$f":"IF(+'GUI XREF'!AF22=0,\"\",+'GUI XREF'!AF22)","v":""},{"$f":"IF(+'GUI XREF'!AG22=0,\"\",+'GUI XREF'!AG22)","v":""}]
["03",{"$f":"+'52722 Flat Rate'!B23:E23","v":"Rolling base year 2 - actual consumption (12-month period 7/1/2008 to 6/30/2009)"},null,null,null,{"$f":"IF(+'GUI XREF'!AB23=0,\"\",+'GUI XREF'!AB23)","v":""},{"$f":"IF(+'GUI XREF'!AC23=0,\"\",+'GUI XREF'!AC23)","v":""},{"$f":"IF(+'GUI XREF'!AD23=0,\"\",+'GUI XREF'!AD23)","v":""},{"$f":"IF(+'GUI XREF'!AE23=0,\"\",+'GUI XREF'!AE23)","v":""},{"$f":"IF(+'GUI XREF'!AF23=0,\"\",+'GUI XREF'!AF23)","v":""},{"$f":"IF(+'GUI XREF'!AG23=0,\"\",+'GUI XREF'!AG23)","v":""}]
["04",{"$f":"+'52722 Flat Rate'!B24:E24","v":"Rolling base year 3 - actual consumption (12-month period 7/1/2007 to 6/30/2008)"},null,null,null,{"$f":"IF(+'GUI XREF'!AB24=0,\"\",+'GUI XREF'!AB24)","v":""},{"$f":"IF(+'GUI XREF'!AC24=0,\"\",+'GUI XREF'!AC24)","v":""},{"$f":"IF(+'GUI XREF'!AD24=0,\"\",+'GUI XREF'!AD24)","v":""},{"$f":"IF(+'GUI XREF'!AE24=0,\"\",+'GUI XREF'!AE24)","v":""},{"$f":"IF(+'GUI XREF'!AF24=0,\"\",+'GUI XREF'!AF24)","v":""},{"$f":"IF(+'GUI XREF'!AG24=0,\"\",+'GUI XREF'!AG24)","v":""}]
["05","Total Consumption during 3-year Rolling Base period (Lines 02 + 03 + 04)",null,null,null,{"$f":"IF(+'GUI XREF'!AB25=0,\"\",+'GUI XREF'!AB25)","v":""},{"$f":"IF(+'GUI XREF'!AC25=0,\"\",+'GUI XREF'!AC25)","v":""},{"$f":"IF(+'GUI XREF'!AD25=0,\"\",+'GUI XREF'!AD25)","v":""},{"$f":"IF(+'GUI XREF'!AE25=0,\"\",+'GUI XREF'!AE25)","v":""},{"$f":"IF(+'GUI XREF'!AF25=0,\"\",+'GUI XREF'!AF25)","v":""},{"$f":"IF(+'GUI XREF'!AG25=0,\"\",+'GUI XREF'!AG25)","v":""}]
[null,null,null,null,null,null,null,null,null,null,{"$f":"CONCATENATE(\"Operating Fund Project Number\n\",PPN)","v":"Operating Fund Project Number\n"}]
["06","Average rolling base consumption (Line 05 ¸ 3)",null,null,null,{"$f":"IF(+'GUI XREF'!AB27=0,\"\",+'GUI XREF'!AB27)","v":""},{"$f":"IF(+'GUI XREF'!AC27=0,\"\",+'GUI XREF'!AC27)","v":""},{"$f":"IF(+'GUI XREF'!AD27=0,\"\",+'GUI XREF'!AD27)","v":""},{"$f":"IF(+'GUI XREF'!AE27=0,\"\",+'GUI XREF'!AE27)","v":""},{"$f":"IF(+'GUI XREF'!AF27=0,\"\",+'GUI XREF'!AF27)","v":""},{"$f":"IF(+'GUI XREF'!AG27=0,\"\",+'GUI XREF'!AG27)","v":""}]
["07","Actual consumption for new units",null,null,null,{"$f":"IF(+'GUI XREF'!AB28=0,\"\",+'GUI XREF'!AB28)","v":""},{"$f":"IF(+'GUI XREF'!AC28=0,\"\",+'GUI XREF'!AC28)","v":""},{"$f":"IF(+'GUI XREF'!AD28=0,\"\",+'GUI XREF'!AD28)","v":""},{"$f":"IF(+'GUI XREF'!AE28=0,\"\",+'GUI XREF'!AE28)","v":""},{"$f":"IF(+'GUI XREF'!AF28=0,\"\",+'GUI XREF'!AF28)","v":""},{"$f":"IF(+'GUI XREF'!AG28=0,\"\",+'GUI XREF'!AG28)","v":""}]
["08","Rolling Base Consumption (Line 06 + 07)",null,null,null,{"$f":"IF(+'GUI XREF'!AB29=0,\"\",+'GUI XREF'!AB29)","v":""},{"$f":"IF(+'GUI XREF'!AC29=0,\"\",+'GUI XREF'!AC29)","v":""},{"$f":"IF(+'GUI XREF'!AD29=0,\"\",+'GUI XREF'!AD29)","v":""},{"$f":"IF(+'GUI XREF'!AE29=0,\"\",+'GUI XREF'!AE29)","v":""},{"$f":"IF(+'GUI XREF'!AF29=0,\"\",+'GUI XREF'!AF29)","v":""},{"$f":"IF(+'GUI XREF'!AG29=0,\"\",+'GUI XREF'!AG29)","v":""}]
["Section 4 - Base Consumption"]
["09","Base Consumption (lesser of Line 01 or 08)",null,null,null,{"$f":"IF(+'GUI XREF'!AB31=0,\"\",+'GUI XREF'!AB31)","v":""},{"$f":"IF(+'GUI XREF'!AC31=0,\"\",+'GUI XREF'!AC31)","v":""},{"$f":"IF(+'GUI XREF'!AD31=0,\"\",+'GUI XREF'!AD31)","v":""},{"$f":"IF(+'GUI XREF'!AE31=0,\"\",+'GUI XREF'!AE31)","v":""},{"$f":"IF(+'GUI XREF'!AF31=0,\"\",+'GUI XREF'!AF31)","v":""},{"$f":"IF(+'GUI XREF'!AG31=0,\"\",+'GUI XREF'!AG31)","v":""}]
["Section 5 - Utility Consumption Incentive"]
["10","Actual consumption > rolling base (If Line 01 is greater than Line 08, enter the difference as positive; if not, enter 0)",null,null,null,{"$f":"IF(+'GUI XREF'!AB33=0,\"\",+'GUI XREF'!AB33)","v":""},{"$f":"IF(+'GUI XREF'!AC33=0,\"\",+'GUI XREF'!AC33)","v":""},{"$f":"IF(+'GUI XREF'!AD33=0,\"\",+'GUI XREF'!AD33)","v":""},{"$f":"IF(+'GUI XREF'!AE33=0,\"\",+'GUI XREF'!AE33)","v":""},{"$f":"IF(+'GUI XREF'!AF33=0,\"\",+'GUI XREF'!AF33)","v":""},{"$f":"IF(+'GUI XREF'!AG33=0,\"\",+'GUI XREF'!AG33)","v":""}]
["11","Actual consumption < rolling base (If Line 01 is less than Line 08, enter the difference as positive; if not, enter 0)",null,null,null,{"$f":"IF(+'GUI XREF'!AB34=0,\"\",+'GUI XREF'!AB34)","v":""},{"$f":"IF(+'GUI XREF'!AC34=0,\"\",+'GUI XREF'!AC34)","v":""},{"$f":"IF(+'GUI XREF'!AD34=0,\"\",+'GUI XREF'!AD34)","v":""},{"$f":"IF(+'GUI XREF'!AE34=0,\"\",+'GUI XREF'!AE34)","v":""},{"$f":"IF(+'GUI XREF'!AF34=0,\"\",+'GUI XREF'!AF34)","v":""},{"$f":"IF(+'GUI XREF'!AG34=0,\"\",+'GUI XREF'!AG34)","v":""}]
["12","75%/25% Split (Line 10 x 0.25)",null,null,null,{"$f":"IF(+'GUI XREF'!AB35=0,\"\",+'GUI XREF'!AB35)","v":""},{"$f":"IF(+'GUI XREF'!AC35=0,\"\",+'GUI XREF'!AC35)","v":""},{"$f":"IF(+'GUI XREF'!AD35=0,\"\",+'GUI XREF'!AD35)","v":""},{"$f":"IF(+'GUI XREF'!AE35=0,\"\",+'GUI XREF'!AE35)","v":""},{"$f":"IF(+'GUI XREF'!AF35=0,\"\",+'GUI XREF'!AF35)","v":""},{"$f":"IF(+'GUI XREF'!AG35=0,\"\",+'GUI XREF'!AG35)","v":""}]
["13","75%/25% Split (Line 11 x 0.75)",null,null,null,{"$f":"IF(+'GUI XREF'!AB36=0,\"\",+'GUI XREF'!AB36)","v":""},{"$f":"IF(+'GUI XREF'!AC36=0,\"\",+'GUI XREF'!AC36)","v":""},{"$f":"IF(+'GUI XREF'!AD36=0,\"\",+'GUI XREF'!AD36)","v":""},{"$f":"IF(+'GUI XREF'!AE36=0,\"\",+'GUI XREF'!AE36)","v":""},{"$f":"IF(+'GUI XREF'!AF36=0,\"\",+'GUI XREF'!AF36)","v":""},{"$f":"IF(+'GUI XREF'!AG36=0,\"\",+'GUI XREF'!AG36)","v":""}]
["Section 6 - Payable Consumption"]
[14,"Annualization of consumption for new units",null,null,null,{"$f":"IF(+'GUI XREF'!AB38=0,\"\",+'GUI XREF'!AB38)","v":""},{"$f":"IF(+'GUI XREF'!AC38=0,\"\",+'GUI XREF'!AC38)","v":""},{"$f":"IF(+'GUI XREF'!AD38=0,\"\",+'GUI XREF'!AD38)","v":""},{"$f":"IF(+'GUI XREF'!AE38=0,\"\",+'GUI XREF'!AE38)","v":""},{"$f":"IF(+'GUI XREF'!AF38=0,\"\",+'GUI XREF'!AF38)","v":""},{"$f":"IF(+'GUI XREF'!AG38=0,\"\",+'GUI XREF'!AG38)","v":""}]
[15,"Payable consumption (Sum of Line 09, Line 12, Line 13, and Line 14)",null,null,null,{"$f":"IF(+'GUI XREF'!AB39=0,\"\",+'GUI XREF'!AB39)","v":""},{"$f":"IF(+'GUI XREF'!AC39=0,\"\",+'GUI XREF'!AC39)","v":""},{"$f":"IF(+'GUI XREF'!AD39=0,\"\",+'GUI XREF'!AD39)","v":""},{"$f":"IF(+'GUI XREF'!AE39=0,\"\",+'GUI XREF'!AE39)","v":""},{"$f":"IF(+'GUI XREF'!AF39=0,\"\",+'GUI XREF'!AF39)","v":""},{"$f":"IF(+'GUI XREF'!AG39=0,\"\",+'GUI XREF'!AG39)","v":""}]
["Section 7 - Actual Utility Costs and Average Rate"]
[16,{"$f":"+'52722 Flat Rate'!B41:E41","v":"Actual utility costs (12-month period 7/1/2010 to 6/30/2011)"},null,null,null,{"$f":"IF(+'GUI XREF'!AB41=0,\"\",+'GUI XREF'!AB41)","v":""},{"$f":"IF(+'GUI XREF'!AC41=0,\"\",+'GUI XREF'!AC41)","v":""},{"$f":"IF(+'GUI XREF'!AD41=0,\"\",+'GUI XREF'!AD41)","v":""},{"$f":"IF(+'GUI XREF'!AE41=0,\"\",+'GUI XREF'!AE41)","v":""},{"$f":"IF(+'GUI XREF'!AF41=0,\"\",+'GUI XREF'!AF41)","v":""},{"$f":"IF(+'GUI XREF'!AG41=0,\"\",+'GUI XREF'!AG41)","v":""}]
[17,"Actual average utility rate (Line 16 ¸ Line 01)",null,null,null,{"$f":"IF(+'GUI XREF'!AB42=0,\"\",+'GUI XREF'!AB42)","v":""},{"$f":"IF(+'GUI XREF'!AC42=0,\"\",+'GUI XREF'!AC42)","v":""},{"$f":"IF(+'GUI XREF'!AD42=0,\"\",+'GUI XREF'!AD42)","v":""},{"$f":"IF(+'GUI XREF'!AE42=0,\"\",+'GUI XREF'!AE42)","v":""},{"$f":"IF(+'GUI XREF'!AF42=0,\"\",+'GUI XREF'!AF42)","v":""},{"$f":"IF(+'GUI XREF'!AG42=0,\"\",+'GUI XREF'!AG42)","v":""}]
["Section 8 - Base Utilities and Inflation/Deflation Factor"]
[18,"Base utilities expense level - whole dollars (Line 15 x Line 17)",null,null,null,{"$f":"IF(+'GUI XREF'!AB44=0,\"\",+'GUI XREF'!AB44)","v":""},{"$f":"IF(+'GUI XREF'!AC44=0,\"\",+'GUI XREF'!AC44)","v":""},{"$f":"IF(+'GUI XREF'!AD44=0,\"\",+'GUI XREF'!AD44)","v":""},{"$f":"IF(+'GUI XREF'!AE44=0,\"\",+'GUI XREF'!AE44)","v":""},{"$f":"IF(+'GUI XREF'!AF44=0,\"\",+'GUI XREF'!AF44)","v":""},{"$f":"IF(+'GUI XREF'!AG44=0,\"\",+'GUI XREF'!AG44)","v":""},{"$f":"SUM(F44:K44)","v":0}]
[19,{"$f":"+'52722 Flat Rate'!B45:E45","v":"Surcharges for excess consumption of PHA-supplied utilities (12-month period 7/1/2010 to 6/30/2011) - whole dollars"}]
[null,null,null,null,null,null,null,null,null,null,{"$f":"CONCATENATE(\"Operating Fund Project Number\n\",PPN)","v":"Operating Fund Project Number\n"}]
[20,"Base Utilities expense level minus surcharges (Line 18 minus Line 19)"]
[21,"Utilities inflation/deflation factor"]
["Section 9 - Calculation of Utilities Expense Level"]
[22,"Utilities expense level adjusted for inflation/deflation - whole dollars (Line 20 x Line 21)"]
[23,"Energy rate incentive"]
[24,"Utilities expense level - whole dollars (Line 22 + Line 23)"]
[25,"Eligible unit months (from the original form HUD-52723, Column B, Line 15 plus Line 17 minus Line 04)"]
[26,"Utilities Expense Level - PUM (Line 24 ¸ Line 25)"]
["Section 10 - Remarks (provide section, part, and line numbers)"]
[]
[]
[null,null,{"$f":"IF(+'GUI XREF'!AB12=\"\",\"\",+'GUI XREF'!AB12)","v":""},null,null,null,null,null,{"$f":"IF(+'GUI XREF'!AH12=\"\",\"\",+'GUI XREF'!AH12)","v":""},{"$f":"IF(+'GUI XREF'!AI12=\"\",\"\",+'GUI XREF'!AI12)","v":""},{"$f":"IF(+'GUI XREF'!AJ12=\"\",\"\",+'GUI XREF'!AJ12)","v":""}]
[null,null,{"$f":"IF(+'GUI XREF'!AC12=\"\",\"\",+'GUI XREF'!AC12)","v":""}]
[null,null,{"$f":"IF(+'GUI XREF'!AD12=\"\",\"\",+'GUI XREF'!AD12)","v":""}]
[null,null,{"$f":"IF(+'GUI XREF'!AE12=\"\",\"\",+'GUI XREF'!AE12)","v":""}]
[null,null,{"$f":"IF(+'GUI XREF'!AF12=\"\",\"\",+'GUI XREF'!AF12)","v":""}]
[null,null,{"$f":"IF(+'GUI XREF'!AG12=\"\",\"\",+'GUI XREF'!AG12)","v":""}]

{"sheet":"52722 Frozen","index":6,"n_rows":63,"n_cols":12,"rows_kept":63,"cut":false,"hidden":true,"merged":[[0,0,0,5],[1,0,1,5],[3,0,3,4],[4,0,4,11],[6,0,6,11],[7,11,8,11],[8,0,9,4],[8,5,8,6],[9,8,10,8],[10,0,10,4],[7,0,7,4],[7,5,7,6],[7,7,7,8],[7,9,8,9],[7,10,8,10],[11,0,11,2],[11,3,11,5],[11,6,11,8],[11,9,12,9],[12,0,12,2],[12,3,12,5],[13,0,13,11],[14,1,14,4],[14,5,14,10],[16,1,16,4],[17,0,17,11],[18,1,18,4],[19,1,19,4],[20,0,20,11],[21,1,21,4],[22,1,22,4],[23,1,23,4],[24,1,24,4],[25,0,25,9],[25,10,25,11],[26,1,26,4],[27,1,27,4],[28,1,28,4],[29,0,29,11],[30,1,30,4],[31,0,31,11],[32,1,32,4],[33,1,33,4],[34,1,34,4],[35,1,35,4],[36,0,36,11],[37,1,37,4],[38,1,38,4],[39,0,39,11],[40,1,40,4],[41,1,41,4],[42,0,42,11],[43,1,43,4],[44,1,44,4],[45,0,45,9],[45,10,45,11],[52,1,52,4],[53,1,53,4],[54,0,54,11],[55,0,55,11],[46,1,46,4],[47,1,47,4],[48,0,48,11],[49,1,49,4],[50,1,50,4],[51,1,51,4]]}
["Operating Fund",null,null,null,null,null,null,null,"U.S. Department of Housing and"]
["Calculation of Utilities Expense Level",null,null,null,null,null,"Frozen",null,"Urban Development"]
["PHA-Owned Rental Housing",null,null,null,null,null,null,null,"Office of Public and Indian Housing"]
[]
["Public Reporting Burden for this collection of information is estimated to average .75 hours per response, including the time for reviewing instructions, searching existing data sources, gathering and maintaining data needed, and completing and reviewing the collection of information.  This agency may not collect this information, and you are not required to complete this form, unless it displays a currently valid OMB control number.  This information is required by Section 9(a) of the U.S. Housing Act of 1937, as amended, and by 24 CFR Part 990 HUD regulations.  HUD makes payments for the operation and maintenance of low-income housing projects to PHAs.  The Operating Fund determines the amount of operating subsidy to be paid to PHAs.  PHAs provide information on the Project Expense Level (PEL), Utilities Expense Level (UEL), Other Formula Expenses (Add-ons) and Formula Income - the major Operating Fund components.  HUD reviews the information to determine each PHA's Formula Amount and the funds to be obligated for the period to each PHA based on the appropriation by Congress.  HUD also uses the information as the basis for requesting annual appropriations from Congress.  Responses to the collection of information are required to obtain a benefit.  The information requested does not lend itself to confidentiality."]
[]
["Section 1 - General Information"]
["1. Name of Public Housing Agency:",null,null,null,null,"2. Funding Period: ",null,"3. Type of Submission:",null,"4. Unit Change Indicator:","5. Frozen Rolling Base:","6. Rate Reduction Incentive:"]
[{"$f":"HAName","v":""},null,null,null,null,{"$f":"+StudyYear","v":"07/1/2010 to 06/30/2011"}]
[null,null,null,null,null,null,null,"Original",null,{"$f":"IF(UnitChangeInd=0,\"\",UnitChangeInd)","v":""},true,{"$f":"IF(RRIYN=0,\"\",RRIYN)","v":""}]
[]
["7. ACC Number:",null,null,"8. Operating Fund Project Number:",null,null,"9. Fiscal Year End:",null,null,"10. ROFO Code\n(HUD Use Only):",null,"11. DUNS Number:"]
[{"$f":"ACC","v":""},null,null,{"$f":"IF(PPN=0,\"\",PPN)","v":""},null,null,null,{"$f":"+FYE","v":""},null,null,{"$f":"ROFO","v":""},{"$f":"DUNS","v":""}]
[]
["Line No.","Description",null,null,null,"Select Utility Types",null,null,null,null,null,"Total"]
[null,null,null,null,null,{"$f":"IF(+'GUI XREF'!AH16=0,\"\",+'GUI XREF'!AH16)","v":""},{"$f":"IF(+'GUI XREF'!AI16=0,\"\",+'GUI XREF'!AI16)","v":""},{"$f":"IF(+'GUI XREF'!AJ16=0,\"\",+'GUI XREF'!AJ16)","v":""},{"$f":"IF(+'GUI XREF'!AK16=0,\"\",+'GUI XREF'!AK16)","v":""},{"$f":"IF(+'GUI XREF'!AL16=0,\"\",+'GUI XREF'!AL16)","v":""},{"$f":"IF(+'GUI XREF'!AM16=0,\"\",+'GUI XREF'!AM16)","v":""}]
["A","B",null,null,null,"C","D","E","F","G","H","I"]
["Section 2 - Current consumption Level"]
["01",{"$f":"+'52722 Flat Rate'!B19:E19","v":"Actual Consumption (12-month period 7/1/2010 to 6/30/2011"},null,null,null,{"$f":"IF(+'GUI XREF'!AH19=0,\"\",+'GUI XREF'!AH19)","v":""},{"$f":"IF(+'GUI XREF'!AI19=0,\"\",+'GUI XREF'!AI19)","v":""},{"$f":"IF(+'GUI XREF'!AJ19=0,\"\",+'GUI XREF'!AJ19)","v":""},{"$f":"IF(+'GUI XREF'!AK19=0,\"\",+'GUI XREF'!AK19)","v":""},{"$f":"IF(+'GUI XREF'!AL19=0,\"\",+'GUI XREF'!AL19)","v":""},{"$f":"IF(+'GUI XREF'!AM19=0,\"\",+'GUI XREF'!AM19)","v":""}]
["01a","Unit of consumption (e.g., gallons, kWh, therms)",null,null,null,{"$f":"IF(+'GUI XREF'!AH20=0,\"\",+'GUI XREF'!AH20)","v":""},{"$f":"IF(+'GUI XREF'!AI20=0,\"\",+'GUI XREF'!AI20)","v":""},{"$f":"IF(+'GUI XREF'!AJ20=0,\"\",+'GUI XREF'!AJ20)","v":""},{"$f":"IF(+'GUI XREF'!AK20=0,\"\",+'GUI XREF'!AK20)","v":""},{"$f":"IF(+'GUI XREF'!AL20=0,\"\",+'GUI XREF'!AL20)","v":""},{"$f":"IF(+'GUI XREF'!AM20=0,\"\",+'GUI XREF'!AM20)","v":""}]
["Section 3 - Rolling Base consumption Level"]
["02",{"$f":"+'52722 Flat Rate'!B22:E22","v":"Rolling base year 1 - actual consumption (12-month period 7/1/2009 to 6/30/2010)"},null,null,null,{"$f":"IF(+'GUI XREF'!AH22=0,\"\",+'GUI XREF'!AH22)","v":""},{"$f":"IF(+'GUI XREF'!AI22=0,\"\",+'GUI XREF'!AI22)","v":""},{"$f":"IF(+'GUI XREF'!AJ22=0,\"\",+'GUI XREF'!AJ22)","v":""},{"$f":"IF(+'GUI XREF'!AK22=0,\"\",+'GUI XREF'!AK22)","v":""},{"$f":"IF(+'GUI XREF'!AL22=0,\"\",+'GUI XREF'!AL22)","v":""},{"$f":"IF(+'GUI XREF'!AM22=0,\"\",+'GUI XREF'!AM22)","v":""}]
["03",{"$f":"+'52722 Flat Rate'!B23:E23","v":"Rolling base year 2 - actual consumption (12-month period 7/1/2008 to 6/30/2009)"},null,null,null,{"$f":"IF(+'GUI XREF'!AH23=0,\"\",+'GUI XREF'!AH23)","v":""},{"$f":"IF(+'GUI XREF'!AI23=0,\"\",+'GUI XREF'!AI23)","v":""},{"$f":"IF(+'GUI XREF'!AJ23=0,\"\",+'GUI XREF'!AJ23)","v":""},{"$f":"IF(+'GUI XREF'!AK23=0,\"\",+'GUI XREF'!AK23)","v":""},{"$f":"IF(+'GUI XREF'!AL23=0,\"\",+'GUI XREF'!AL23)","v":""},{"$f":"IF(+'GUI XREF'!AM23=0,\"\",+'GUI XREF'!AM23)","v":""}]
["04",{"$f":"+'52722 Flat Rate'!B24:E24","v":"Rolling base year 3 - actual consumption (12-month period 7/1/2007 to 6/30/2008)"},null,null,null,{"$f":"IF(+'GUI XREF'!AH24=0,\"\",+'GUI XREF'!AH24)","v":""},{"$f":"IF(+'GUI XREF'!AI24=0,\"\",+'GUI XREF'!AI24)","v":""},{"$f":"IF(+'GUI XREF'!AJ24=0,\"\",+'GUI XREF'!AJ24)","v":""},{"$f":"IF(+'GUI XREF'!AK24=0,\"\",+'GUI XREF'!AK24)","v":""},{"$f":"IF(+'GUI XREF'!AL24=0,\"\",+'GUI XREF'!AL24)","v":""},{"$f":"IF(+'GUI XREF'!AM24=0,\"\",+'GUI XREF'!AM24)","v":""}]
["05","Total Consumption during 3-year Rolling Base period (Lines 02 + 03 + 04)",null,null,null,{"$f":"IF(+'GUI XREF'!AH25=0,\"\",+'GUI XREF'!AH25)","v":""},{"$f":"IF(+'GUI XREF'!AI25=0,\"\",+'GUI XREF'!AI25)","v":""},{"$f":"IF(+'GUI XREF'!AJ25=0,\"\",+'GUI XREF'!AJ25)","v":""},{"$f":"IF(+'GUI XREF'!AK25=0,\"\",+'GUI XREF'!AK25)","v":""},{"$f":"IF(+'GUI XREF'!AL25=0,\"\",+'GUI XREF'!AL25)","v":""},{"$f":"IF(+'GUI XREF'!AM25=0,\"\",+'GUI XREF'!AM25)","v":""}]
[null,null,null,null,null,null,null,null,null,null,{"$f":"CONCATENATE(\"Operating Fund Project Number\n\",PPN)","v":"Operating Fund Project Number\n"}]
["06","Average rolling base consumption (Line 05 ¸ 3)",null,null,null,{"$f":"IF(+'GUI XREF'!AH27=0,\"\",+'GUI XREF'!AH27)","v":""},{"$f":"IF(+'GUI XREF'!AI27=0,\"\",+'GUI XREF'!AI27)","v":""},{"$f":"IF(+'GUI XREF'!AJ27=0,\"\",+'GUI XREF'!AJ27)","v":""},{"$f":"IF(+'GUI XREF'!AK27=0,\"\",+'GUI XREF'!AK27)","v":""},{"$f":"IF(+'GUI XREF'!AL27=0,\"\",+'GUI XREF'!AL27)","v":""},{"$f":"IF(+'GUI XREF'!AM27=0,\"\",+'GUI XREF'!AM27)","v":""}]
["07","Actual consumption for new units",null,null,null,{"$f":"IF(+'GUI XREF'!AH28=0,\"\",+'GUI XREF'!AH28)","v":""},{"$f":"IF(+'GUI XREF'!AI28=0,\"\",+'GUI XREF'!AI28)","v":""},{"$f":"IF(+'GUI XREF'!AJ28=0,\"\",+'GUI XREF'!AJ28)","v":""},{"$f":"IF(+'GUI XREF'!AK28=0,\"\",+'GUI XREF'!AK28)","v":""},{"$f":"IF(+'GUI XREF'!AL28=0,\"\",+'GUI XREF'!AL28)","v":""},{"$f":"IF(+'GUI XREF'!AM28=0,\"\",+'GUI XREF'!AM28)","v":""}]
["08","Rolling Base Consumption (Line 06 + 07)",null,null,null,{"$f":"IF(+'GUI XREF'!AH29=0,\"\",+'GUI XREF'!AH29)","v":""},{"$f":"IF(+'GUI XREF'!AI29=0,\"\",+'GUI XREF'!AI29)","v":""},{"$f":"IF(+'GUI XREF'!AJ29=0,\"\",+'GUI XREF'!AJ29)","v":""},{"$f":"IF(+'GUI XREF'!AK29=0,\"\",+'GUI XREF'!AK29)","v":""},{"$f":"IF(+'GUI XREF'!AL29=0,\"\",+'GUI XREF'!AL29)","v":""},{"$f":"IF(+'GUI XREF'!AM29=0,\"\",+'GUI XREF'!AM29)","v":""}]
["Section 4 - Base Consumption"]
["09","Base Consumption (lesser of Line 01 or 08)",null,null,null,{"$f":"IF(+'GUI XREF'!AH31=0,\"\",+'GUI XREF'!AH31)","v":""},{"$f":"IF(+'GUI XREF'!AI31=0,\"\",+'GUI XREF'!AI31)","v":""},{"$f":"IF(+'GUI XREF'!AJ31=0,\"\",+'GUI XREF'!AJ31)","v":""},{"$f":"IF(+'GUI XREF'!AK31=0,\"\",+'GUI XREF'!AK31)","v":""},{"$f":"IF(+'GUI XREF'!AL31=0,\"\",+'GUI XREF'!AL31)","v":""},{"$f":"IF(+'GUI XREF'!AM31=0,\"\",+'GUI XREF'!AM31)","v":""}]
["Section 5 - Utility Consumption Incentive"]
["10","Actual consumption > rolling base (If Line 01 is greater than Line 08, enter the difference as positive; if not, enter 0)",null,null,null,{"$f":"IF(+'GUI XREF'!AH33=0,\"\",+'GUI XREF'!AH33)","v":""},{"$f":"IF(+'GUI XREF'!AI33=0,\"\",+'GUI XREF'!AI33)","v":""},{"$f":"IF(+'GUI XREF'!AJ33=0,\"\",+'GUI XREF'!AJ33)","v":""},{"$f":"IF(+'GUI XREF'!AK33=0,\"\",+'GUI XREF'!AK33)","v":""},{"$f":"IF(+'GUI XREF'!AL33=0,\"\",+'GUI XREF'!AL33)","v":""},{"$f":"IF(+'GUI XREF'!AM33=0,\"\",+'GUI XREF'!AM33)","v":""}]
["11","Actual consumption < rolling base (If Line 01 is less than Line 08, enter the difference as positive; if not, enter 0)",null,null,null,{"$f":"IF(+'GUI XREF'!AH34=0,\"\",+'GUI XREF'!AH34)","v":""},{"$f":"IF(+'GUI XREF'!AI34=0,\"\",+'GUI XREF'!AI34)","v":""},{"$f":"IF(+'GUI XREF'!AJ34=0,\"\",+'GUI XREF'!AJ34)","v":""},{"$f":"IF(+'GUI XREF'!AK34=0,\"\",+'GUI XREF'!AK34)","v":""},{"$f":"IF(+'GUI XREF'!AL34=0,\"\",+'GUI XREF'!AL34)","v":""},{"$f":"IF(+'GUI XREF'!AM34=0,\"\",+'GUI XREF'!AM34)","v":""}]
["12","75%/25% Split (Line 10 x 0.25)",null,null,null,{"$f":"IF(+'GUI XREF'!AH35=0,\"\",+'GUI XREF'!AH35)","v":""},{"$f":"IF(+'GUI XREF'!AI35=0,\"\",+'GUI XREF'!AI35)","v":""},{"$f":"IF(+'GUI XREF'!AJ35=0,\"\",+'GUI XREF'!AJ35)","v":""},{"$f":"IF(+'GUI XREF'!AK35=0,\"\",+'GUI XREF'!AK35)","v":""},{"$f":"IF(+'GUI XREF'!AL35=0,\"\",+'GUI XREF'!AL35)","v":""},{"$f":"IF(+'GUI XREF'!AM35=0,\"\",+'GUI XREF'!AM35)","v":""}]
["13","75%/25% Split (Line 11 x 0.75)",null,null,null,{"$f":"IF(+'GUI XREF'!AH36=0,\"\",+'GUI XREF'!AH36)","v":""},{"$f":"IF(+'GUI XREF'!AI36=0,\"\",+'GUI XREF'!AI36)","v":""},{"$f":"IF(+'GUI XREF'!AJ36=0,\"\",+'GUI XREF'!AJ36)","v":""},{"$f":"IF(+'GUI XREF'!AK36=0,\"\",+'GUI XREF'!AK36)","v":""},{"$f":"IF(+'GUI XREF'!AL36=0,\"\",+'GUI XREF'!AL36)","v":""},{"$f":"IF(+'GUI XREF'!AM36=0,\"\",+'GUI XREF'!AM36)","v":""}]
["Section 6 - Payable Consumption"]
[14,"Annualization of consumption for new units",null,null,null,{"$f":"IF(+'GUI XREF'!AH38=0,\"\",+'GUI XREF'!AH38)","v":""},{"$f":"IF(+'GUI XREF'!AI38=0,\"\",+'GUI XREF'!AI38)","v":""},{"$f":"IF(+'GUI XREF'!AJ38=0,\"\",+'GUI XREF'!AJ38)","v":""},{"$f":"IF(+'GUI XREF'!AK38=0,\"\",+'GUI XREF'!AK38)","v":""},{"$f":"IF(+'GUI XREF'!AL38=0,\"\",+'GUI XREF'!AL38)","v":""},{"$f":"IF(+'GUI XREF'!AM38=0,\"\",+'GUI XREF'!AM38)","v":""}]
[15,"Payable consumption (Sum of Line 09, Line 12, Line 13, and Line 14)",null,null,null,{"$f":"IF(+'GUI XREF'!AH39=0,\"\",+'GUI XREF'!AH39)","v":""},{"$f":"IF(+'GUI XREF'!AI39=0,\"\",+'GUI XREF'!AI39)","v":""},{"$f":"IF(+'GUI XREF'!AJ39=0,\"\",+'GUI XREF'!AJ39)","v":""},{"$f":"IF(+'GUI XREF'!AK39=0,\"\",+'GUI XREF'!AK39)","v":""},{"$f":"IF(+'GUI XREF'!AL39=0,\"\",+'GUI XREF'!AL39)","v":""},{"$f":"IF(+'GUI XREF'!AM39=0,\"\",+'GUI XREF'!AM39)","v":""}]
["Section 7 - Actual Utility Costs and Average Rate"]
[16,{"$f":"+'52722 Flat Rate'!B41:E41","v":"Actual utility costs (12-month period 7/1/2010 to 6/30/2011)"},null,null,null,{"$f":"IF(+'GUI XREF'!AH41=0,\"\",+'GUI XREF'!AH41)","v":""},{"$f":"IF(+'GUI XREF'!AI41=0,\"\",+'GUI XREF'!AI41)","v":""},{"$f":"IF(+'GUI XREF'!AJ41=0,\"\",+'GUI XREF'!AJ41)","v":""},{"$f":"IF(+'GUI XREF'!AK41=0,\"\",+'GUI XREF'!AK41)","v":""},{"$f":"IF(+'GUI XREF'!AL41=0,\"\",+'GUI XREF'!AL41)","v":""},{"$f":"IF(+'GUI XREF'!AM41=0,\"\",+'GUI XREF'!AM41)","v":""}]
[17,"Actual average utility rate (Line 16 ¸ Line 01)",null,null,null,{"$f":"IF(+'GUI XREF'!AH42=0,\"\",+'GUI XREF'!AH42)","v":""},{"$f":"IF(+'GUI XREF'!AI42=0,\"\",+'GUI XREF'!AI42)","v":""},{"$f":"IF(+'GUI XREF'!AJ42=0,\"\",+'GUI XREF'!AJ42)","v":""},{"$f":"IF(+'GUI XREF'!AK42=0,\"\",+'GUI XREF'!AK42)","v":""},{"$f":"IF(+'GUI XREF'!AL42=0,\"\",+'GUI XREF'!AL42)","v":""},{"$f":"IF(+'GUI XREF'!AM42=0,\"\",+'GUI XREF'!AM42)","v":""}]
["Section 8 - Base Utilities and Inflation/Deflation Factor"]
[18,"Base utilities expense level - whole dollars (Line 15 x Line 17)",null,null,null,{"$f":"IF(+'GUI XREF'!AH44=0,\"\",+'GUI XREF'!AH44)","v":""},{"$f":"IF(+'GUI XREF'!AI44=0,\"\",+'GUI XREF'!AI44)","v":""},{"$f":"IF(+'GUI XREF'!AJ44=0,\"\",+'GUI XREF'!AJ44)","v":""},{"$f":"IF(+'GUI XREF'!AK44=0,\"\",+'GUI XREF'!AK44)","v":""},{"$f":"IF(+'GUI XREF'!AL44=0,\"\",+'GUI XREF'!AL44)","v":""},{"$f":"IF(+'GUI XREF'!AM44=0,\"\",+'GUI XREF'!AM44)","v":""},{"$f":"SUM(F44:K44)","v":0}]
[19,{"$f":"+'52722 Flat Rate'!B45:E45","v":"Surcharges for excess consumption of PHA-supplied utilities (12-month period 7/1/2010 to 6/30/2011) - whole dollars"}]
[null,null,null,null,null,null,null,null,null,null,{"$f":"CONCATENATE(\"Operating Fund Project Number\n\",PPN)","v":"Operating Fund Project Number\n"}]
[20,"Base Utilities expense level minus surcharges (Line 18 minus Line 19)"]
[21,"Utilities inflation/deflation factor"]
["Section 9 - Calculation of Utilities Expense Level"]
[22,"Utilities expense level adjusted for inflation/deflation - whole dollars (Line 20 x Line 21)"]
[23,"Energy rate incentive"]
[24,"Utilities expense level - whole dollars (Line 22 + Line 23)"]
[25,"Eligible unit months (from the original form HUD-52723, Column B, Line 15 plus Line 17 minus Line 04)"]
[26,"Utilities Expense Level - PUM (Line 24 ¸ Line 25)"]
["Section 10 - Remarks (provide section, part, and line numbers)"]
[]
[]
[null,null,{"$f":"IF(+'GUI XREF'!AH12=\"\",\"\",+'GUI XREF'!AH12)","v":""}]
[null,null,{"$f":"IF(+'GUI XREF'!AI12=\"\",\"\",+'GUI XREF'!AI12)","v":""}]
[null,null,{"$f":"IF(+'GUI XREF'!AJ12=\"\",\"\",+'GUI XREF'!AJ12)","v":""}]
[null,null,{"$f":"IF(+'GUI XREF'!AK12=\"\",\"\",+'GUI XREF'!AK12)","v":""}]
[null,null,{"$f":"IF(+'GUI XREF'!AL12=\"\",\"\",+'GUI XREF'!AL12)","v":""}]
[null,null,{"$f":"IF(+'GUI XREF'!AM12=\"\",\"\",+'GUI XREF'!AM12)","v":""}]

{"sheet":"Sheet3","index":7,"n_rows":0,"n_cols":0,"rows_kept":0,"cut":false,"hidden":false,"merged":[]}

{"sheet":"UEL Header","index":8,"n_rows":2,"n_cols":18,"rows_kept":2,"cut":false,"hidden":true,"merged":[]}
["PPN","HAName","ACC","DUNS","ROFO","FYE","UnitChangeInd","RRIYN","StudyYear","BaseUtilityExpenseLevel","UtilitySurcharges","BaseMinusSurcharge","UtiliyInflationDeflationFactor","UELAdjustedForInflation","EnergyRateIncentive","UEL","EligibleUnitMonths","FinalUEL"]
[{"$f":"+PPN","v":0},{"$f":"+HAName","v":""},{"$f":"+ACC","v":""},{"$f":"+DUNS","v":""},{"$f":"+ROFO","v":""},{"$f":"+FYE","v":""},{"$f":"+UnitChangeInd","v":0},{"$f":"+RRIYN","v":0},{"$f":"+StudyYear","v":"07/1/2010 to 06/30/2011"},{"$f":"+'GUI XREF'!AT44","v":0},{"$f":"+'GUI XREF'!AT45","v":0},{"$f":"+'GUI XREF'!AT47","v":0},{"$f":"+'GUI XREF'!AT48","v":1.0791999999999999},{"$f":"+'GUI XREF'!AT50","v":0},{"$f":"+'GUI XREF'!AT51","v":0},{"$f":"+'GUI XREF'!AT52","v":0},{"$f":"+'GUI XREF'!AT53","v":0},{"$f":"+'GUI XREF'!AT54","v":0}]

{"sheet":"Sheet1","index":9,"n_rows":193,"n_cols":6,"rows_kept":193,"cut":false,"hidden":true,"merged":[]}
["No.","Type.","Text.","Caption.","Name/Range.","Caption2."]
[1,"Frame","FrameIncentive"]
[2,"OptionButton","OptionButtonNonFrozen",null,"Non-Frozen"]
[3,"OptionButton","OptionButtonFrozen",null,"Frozen"]
[4,"OptionButton","OptionButtonFlatRate",null,"Flat Rate"]
[5,"ComboBox","ComboBoxUT"]
[6,"ComboBox","ComboBoxUOC"]
[7,"Label","LabelSelectIncentive",null,"Select Incentive"]
[8,"Label","LabelSelectUT",null,"Select Utility Type"]
[9,"Label","LabelSelectUOC",null,"Select Units of Consumption"]
[10,"Label","LabelSect12",null,"Sect 1 - #2    Operating Fund Project Number:"]
[11,"Label","LabelSect14",null,"Sect 1 - #4    Unit Change Indicator:"]
[12,"Label","LabelSect16",null,"Sect 1 - #6    Rate Reduction Incentive:"]
[13,"Label","LabelSect19",null,"Sect 8 - L19   Line 19 - Excess Consumption Surcharges:"]
[14,"Label","LabelSect23",null,"Sect 9 - L23   Line 23 - Energy Rate Reduction:"]
[15,"Label","LabelSect25",null,"Sect 9 - L25   Line 25 - Eligible Unit Months:"]
[16,"TextBox","TextBoxEC"]
[17,"TextBox","TextBoxERR"]
[18,"TextBox","TextBoxEUM"]
[19,"CheckBox","CheckBoxUCI",null,"Yes"]
[20,"CheckBox","CheckBoxRRI",null,"Yes"]
[21,"Label","LabelPHANAME"]
[22,"Label","LabelFYE"]
[23,"Label","LabelROFO"]
[24,"Label","LabelACC"]
[25,"Label","LabelDUNS"]
[26,"Label","Label02",null,"02|Rolling base year 1 - actual consumption (12-month period 7/1/2008 to 6/30/2009)"]
[27,"Label","Label03",null,"03|Rolling base year 2 - actual consumption (12-month period 7/1/2007 to 6/30/2008)"]
[28,"Label","Label04",null,"04|Rolling base year 3 - actual consumption (12-month period 7/1/2006 to 6/30/2007)"]
[29,"Label","Label01",null,"01|Actual Consumption (12-month period 7/1/2009 to 6/30/2010)"]
[30,"Label","Label07",null,"07|Actual consumption for new units"]
[31,"Label","Label14",null,"14|Annualization of consumption for new units"]
[32,"Label","Label16",null,"16|Actual utility costs (12-month period 7/1/2009 to 6/30/2010)"]
[33,"TextBox","TextBox01"]
[34,"TextBox","TextBox02"]
[35,"TextBox","TextBox03"]
[36,"Label","LabelUELTOOL",null," Input Form (CY 2011)"]
[37,"Label","LabelUtilityType",null,"Select Utility Type"]
[38,"TextBox","TextBox04"]
[39,"TextBox","TextBox07"]
[40,"TextBox","TextBox14"]
[41,"TextBox","TextBox16"]
[42,"CommandButton","CBtnSaveAdd",null,"Save Added / 'Cancel' Add"]
[43,"TextBox","TextBoxUTO"]
[44,"TextBox","TextBoxUOMO"]
[45,"CommandButton","CBtnGoToNF",null,"View Non-Frozen"]
[46,"CommandButton","CBtnGoToFZ",null,"View Frozen"]
[47,"CommandButton","CBtnGotoFR",null,"View Flat Rate"]
[48,"CommandButton","CBtnGoToCR",null,"View Consolidated Report"]
[49,"Frame","FrameAction"]
[50,"OptionButton","OBtnAdd",null,"Input Utility Type"]
[51,"OptionButton","OBtnEdit",null,"Edit/Delete Utility Type"]
[52,"OptionButton","OBtnDelete",null,"View Reports"]
[53,"CommandButton","CBtnAddComment",null,"Add Comment"]
[54,"TextBox","TextBoxComment"]
[55,"Label","LabelUEL"]
[56,"Frame","FrameUEL",null,"UEL Value"]
[57,"CommandButton","CBSaveFile",null,"Save UEL Data"]
[58,"CommandButton","CBPrint",null,"Print"]
[59,"Label","Label17",null,"Operating Fund\t\t\r\n"]
[60,"Label","Label18",null,"Calculation of Utilities Expense Level\t\t\t"]
[61,"Label","Label20",null,"U.S. Department of Housing and\t\r\n"]
[62,"Label","Label21",null,"Office of Public and Indian Housing"]
[63,"Label","Label22",null,"PHA-Owned Rental Housing"]
[64,"Label","Label23",null,"Urban Development"]
[65,"CommandButton","CBClose",null,"Close File"]
[66,"Frame","Frame1"]
[67,"CommandButton","CBClearAll",null,"Clear all data"]
[68,"CheckBox","CheckBoxFO",null,"If you are a Field Office analyst and have completed review of this form, check this box."]
[69,"CommandButton","CBEmailFile",null,"Send Form to HUD"]
[70,"Frame","FrameReports",null,"Reports"]
[71,"TextBox","TextBoxPPN"]
[72,"CommandButton","cmdPrevious",null,"Previous"]
[73,"CommandButton","cmdNext",null,"Next"]
[74,"CommandButton","cmdDelete",null,"Delete"]
[75,"Frame","FrameTBHdr"]
[76,"Frame","FrameTBDetails"]
[77,"Frame","FrameNextPrev"]
[78,"Label","LabelPN"]
[79,"Frame","FrameRB123"]
[80,"ComboBox","ComboBoxPPN"]
[81,"Named Range","ACC",{"$f":"'GUI XREF'!$K$4","v":""},"='GUI XREF'!$K$4"]
[82,"Named Range","ALLDATA",{"$f":"'GUI XREF'!$AB$3:$AS$12","v":{"$error":"#VALUE!"}},"='GUI XREF'!$AB$3:$AS$12"]
[83,"Named Range","BeginFR",{"$f":"'GUI XREF'!$AN$3","v":0},"='GUI XREF'!$AN$3"]
[84,"Named Range","BeginFZ",{"$f":"'GUI XREF'!$AH$3","v":0},"='GUI XREF'!$AH$3"]
[85,"Named Range","BeginNF",{"$f":"'GUI XREF'!$AB$3","v":0},"='GUI XREF'!$AB$3"]
[86,"Named Range","DDEDIT",{"$f":"'GUI XREF'!$AB$3:$AS$4","v":{"$error":"#VALUE!"}},"='GUI XREF'!$AB$3:$AS$4"]
[87,"Named Range","DDRange",{"$f":"'GUI XREF'!$AV$20","v":""},"='GUI XREF'!$AV$20"]
[88,"Named Range","DUNS",{"$f":"'GUI XREF'!$K$5","v":""},"='GUI XREF'!$K$5"]
[89,"Named Range","ENERGYRATEREDUCTION",{"$f":"'GUI XREF'!$K$11","v":0},"='GUI XREF'!$K$11"]
[90,"Named Range","EUM",{"$f":"'GUI XREF'!$K$12","v":0},"='GUI XREF'!$K$12"]
[91,"Named Range","Consolidated Report'!ExcessConsumption",{"$f":"'GUI XREF'!$K$10","v":0},"='GUI XREF'!$K$10"]
[92,"Named Range","ExcessConsumption",{"$f":"'GUI XREF'!$K$10","v":0},"='GUI XREF'!$K$10"]
[93,"Named Range","ExportMe",{"$f":"'GUI XREF'!$AB$12:$AS$44","v":{"$error":"#VALUE!"}},"='GUI XREF'!$AB$12:$AS$44"]
[94,"Named Range","EXPORTUEL",{"$f":"'GUI XREF'!$BL$1:$CG$29","v":{"$error":"#VALUE!"}},"='GUI XREF'!$BL$1:$CG$29"]
[95,"Named Range","FillPPN",{"$f":"'GUI XREF'!$A$3155:$C$10160","v":{"$error":"#VALUE!"}},"='GUI XREF'!$A$3150:$C$10191"]
[96,"Named Range","FirstRow",{"$f":"'GUI XREF'!$AV$23","v":0},"='GUI XREF'!$AV$23"]
[97,"Named Range","FLARANGE",{"$f":"'GUI XREF'!$AU$15:$AU$17","v":{"$error":"#VALUE!"}},"='GUI XREF'!$AU$15:$AU$17"]
[98,"Named Range","FLRANGE",{"$f":"'GUI XREF'!$AV$2:$AV$3","v":{"$error":"#VALUE!"}},"='GUI XREF'!$AV$2:$AV$3"]
[99,"Named Range","FRCMTA",{"$f":"'GUI XREF'!$AH$12","v":0},"='GUI XREF'!$AH$12"]
[100,"Named Range","52722 Frozen'!Frozen",{"$f":"'52722 Frozen'!$K$10","v":true},"='52722 Frozen'!$K$10"]
[101,"Named Range","Frozen",{"$f":"'52722 Frozen'!$K$10","v":true},"='52722 Frozen'!$K$10"]
[102,"Named Range","Consolidated Report'!FrozenFR",{"$f":"'Consolidated Report'!$K$3","v":0},"='Consolidated Report'!$K$3"]
[103,"Named Range","FrozenFR",{"$f":"'52722 Non-Frozen'!$K$10","v":false},"='52722 Non-Frozen'!$K$10"]
[104,"Named Range","FYE",{"$f":"'GUI XREF'!$K$7","v":""},"='GUI XREF'!$K$7"]
[105,"Named Range","FZARANGE",{"$f":"'GUI XREF'!$AW$3:R0C49","v":{"$error":"#NAME?"}},"='GUI XREF'!$AW$3:R0C49"]
[106,"Named Range","GotData",{"$f":"'GUI XREF'!$AB$3:$AS$3","v":{"$error":"#VALUE!"}},"='GUI XREF'!$AB$3:$AS$3"]
[107,"Named Range","HAName",{"$f":"'GUI XREF'!$K$3","v":""},"='GUI XREF'!$K$3"]
[108,"Named Range","Import",{"$f":"'GUI XREF'!$AV$13:$AV$17","v":{"$error":"#VALUE!"}},"='GUI XREF'!$AV$13:$AV$17"]
[109,"Named Range","InflationFactor",{"$f":"'GUI XREF'!$K$13","v":1.0791999999999999},"='GUI XREF'!$K$13"]
[110,"Named Range","LastAMP",{"$f":"'GUI XREF'!$G$2","v":3142},"='GUI XREF'!$G$2"]
[111,"Named Range","LastRow",{"$f":"'GUI XREF'!$AV$25","v":-1},"='GUI XREF'!$AV$25"]
[112,"Named Range","NAMMETEST",{"$f":"'GUI XREF'!$J$20:$J$33","v":{"$error":"#VALUE!"}},"='GUI XREF'!$J$20:$J$33"]
[113,"Named Range","PHALIST",{"$f":"'GUI XREF'!$B$3:$B$3117","v":"AL149"},"='GUI XREF'!$B$3:$B$3143"]
[114,"Named Range","PHALOOKUP",{"$f":"'GUI XREF'!$B$3:$G$3117","v":"A-3016"},"='GUI XREF'!$B$3:$G$3142"]
[115,"Named Range","PHAXREF",{"$f":"'GUI XREF'!$B$3:$H$6950","v":"A-4015"},"='GUI XREF'!$B$3:$H$6950"]
[116,"Named Range","PPN",{"$f":"'GUI XREF'!$K$2","v":0},"='GUI XREF'!$K$2"]
[117,"Named Range","PPNFEED",{"$f":"'GUI XREF'!$C$2:$C$3117","v":"Housing Authority of the Town of Parrish"},"='GUI XREF'!$C$2:$C$3142"]
[118,"Named Range","PPNONLY",{"$f":"'GUI XREF'!$C$3157:$C$10234","v":{"$error":"#VALUE!"}},"='GUI XREF'!$C$3152:$C$10191"]
[119,"Named Range","Consolidated Report'!Print_Area",{"$f":"'Consolidated Report'!$A$1:$L$48","v":{"$error":"#VALUE!"}},"='Consolidated Report'!$A$1:$L$48"]
[120,"Named Range","Consolidated Report'!Print_Titles",{"$f":"'Consolidated Report'!$A:$E,'Consolidated Report'!$1:$11","v":{"$error":"#VALUE!"}},"='Consolidated Report'!$A:$E,'Consolidated Report'!$1:$11"]
[121,"Named Range","Sheet1!Print_Titles",{"$f":"Sheet1!#REF!","v":{"$error":"#REF!"}},"=Sheet1!#REF!"]
[122,"Named Range","PSAP",{"$f":"'GUI XREF'!$C$2","v":"Please Select an Operating Fund Project Number"},"='GUI XREF'!$C$2"]
[123,"Named Range","ROFO",{"$f":"'GUI XREF'!$K$6","v":""},"='GUI XREF'!$K$6"]
[124,"Named Range","RRIYN",{"$f":"'GUI XREF'!$K$9","v":0},"='GUI XREF'!$K$9"]
[125,"Named Range","StudyYear",{"$f":"'GUI XREF'!$K$14","v":"07/1/2010 to 06/30/2011"},"='GUI XREF'!$K$14"]
[126,"Named Range","TOTALCOMBNS",{"$f":"'GUI XREF'!$Y$4","v":0},"='GUI XREF'!$Y$4"]
[127,"Named Range","TotalFL",{"$f":"'GUI XREF'!$Y$3","v":0},"='GUI XREF'!$Y$3"]
[128,"Named Range","TotalFR",{"$f":"'GUI XREF'!$Y$3","v":0},"='GUI XREF'!$Y$3"]
[129,"Named Range","TotalFZ",{"$f":"'GUI XREF'!$Y$2","v":0},"='GUI XREF'!$Y$2"]
[130,"Named Range","TotalNF",{"$f":"'GUI XREF'!$Y$1","v":0},"='GUI XREF'!$Y$1"]
[131,"Named Range","UEL",{"$f":"'GUI XREF'!$AT$54","v":0},"='GUI XREF'!$AT$54"]
[132,"Named Range","UnitChangeInd",{"$f":"'GUI XREF'!$K$8","v":0},"='GUI XREF'!$K$8"]
[133,"Named Range","UOMCOAL",{"$f":"'GUI XREF'!$T$3:$T$5","v":{"$error":"#VALUE!"}},"='GUI XREF'!$T$3:$T$5"]
[134,"Named Range","UOMELEC",{"$f":"'GUI XREF'!$T$7:$T$8","v":{"$error":"#VALUE!"}},"='GUI XREF'!$T$7:$T$8"]
[135,"Named Range","UOMGAS",{"$f":"'GUI XREF'!$T$13:$T$17","v":{"$error":"#VALUE!"}},"='GUI XREF'!$T$13:$T$17"]
[136,"Named Range","UOMOIL",{"$f":"'GUI XREF'!$T$10:$T$11","v":{"$error":"#VALUE!"}},"='GUI XREF'!$T$10:$T$11"]
[137,"Named Range","UOMOTHER",{"$f":"'GUI XREF'!$T$55:$T$66","v":{"$error":"#VALUE!"}},"='GUI XREF'!$T$55:$T$66"]
[138,"Named Range","UOMPROPANE",{"$f":"'GUI XREF'!$T$19:$T$20","v":{"$error":"#VALUE!"}},"='GUI XREF'!$T$19:$T$20"]
[139,"Named Range","UOMSEWER",{"$f":"'GUI XREF'!$T$22:$T$28","v":{"$error":"#VALUE!"}},"='GUI XREF'!$T$22:$T$28"]
[140,"Named Range","UOMSTEAM",{"$f":"'GUI XREF'!$T$49:$T$52","v":{"$error":"#VALUE!"}},"='GUI XREF'!$T$49:$T$52"]
[141,"Named Range","UOMWATER",{"$f":"'GUI XREF'!$T$38:$T$44","v":{"$error":"#VALUE!"}},"='GUI XREF'!$T$38:$T$44"]
[142,"Named Range","UOMWATERSEWER",{"$f":"'GUI XREF'!$T$30:$T$36","v":{"$error":"#VALUE!"}},"='GUI XREF'!$T$30:$T$36"]
[143,"Named Range","UOMWOOD",{"$f":"'GUI XREF'!$T$46:$T$47","v":{"$error":"#VALUE!"}},"='GUI XREF'!$T$46:$T$47"]
[144,"Named Range","UtilityTypes",{"$f":"'GUI XREF'!$P$2:$P$13","v":{"$error":"#VALUE!"}},"='GUI XREF'!$P$2:$P$13"]
[145,"Named Range","UTUOM",{"$f":"'GUI XREF'!$P$3:$Q$13","v":{"$error":"#VALUE!"}},"='GUI XREF'!$P$3:$Q$13"]
[146,"Frame","FrameIncentive",null,"OptionButtonNonFrozen","Non-Frozen"]
[147,null,null,null,"OptionButtonFrozen","Frozen"]
[148,null,null,null,"OptionButtonFlatRate","Flat Rate"]
[149,null,null,null,"LabelSelectUT","Select Utility Type"]
[150]
[151,"Frame","FrameAction",null,"OBtnAdd","Input Utility Type"]
[152,null,null,null,"OBtnEdit","Edit/Delete Utility Type"]
[153,null,null,null,"OBtnDelete","View Reports"]
[154]
[155,"Frame","FrameUEL","UEL Value","LabelUEL"]
[156]
[157,"Frame","Frame1",null,"TextBox01"]
[158,null,null,null,"TextBox02"]
[159,null,null,null,"TextBox03"]
[160,null,null,null,"TextBox04"]
[161,null,null,null,"TextBox07"]
[162,null,null,null,"TextBox14"]
[163,null,null,null,"TextBox16"]
[164]
[165,"Frame","FrameReports","Reports","CBtnGoToNF","View Non-Frozen"]
[166,null,null,null,"CBtnGoToFZ","View Frozen"]
[167,null,null,null,"CBtnGotoFR","View Flat Rate"]
[168,null,null,null,"CBtnGoToCR","View Consolidated Report"]
[169]
[170,"Frame","FrameTBHdr",null,"ComboBoxUT"]
[171,null,null,null,"ComboBoxUOC"]
[172,null,null,null,"TextBoxUTO"]
[173,null,null,null,"TextBoxUOMO"]
[174]
[175,"Frame","FrameTBDetails",null,"TextBox01"]
[176,null,null,null,"TextBox02"]
[177,null,null,null,"TextBox03"]
[178,null,null,null,"TextBox04"]
[179,null,null,null,"TextBox07"]
[180,null,null,null,"TextBox14"]
[181,null,null,null,"TextBox16"]
[182,null,null,null,"Frame1"]
[183]
[184,"Frame","FrameNextPrev",null,"cmdPrevious","Previous"]
[185,null,null,null,"cmdNext","Next"]
[186,null,null,null,"cmdDelete","Delete"]
[187,null,null,null,"LabelPN"]
[188]
[189,"Frame","FrameRB123",null,"Label02","02|Rolling base year 1 - actual consumption (12-month period 7/1/2008 to 6/30/2009)"]
[190,null,null,null,"Label03","03|Rolling base year 2 - actual consumption (12-month period 7/1/2007 to 6/30/2008)"]
[191,null,null,null,"Label04","04|Rolling base year 3 - actual consumption (12-month period 7/1/2006 to 6/30/2007)"]
[192]

{"sheet":"UEL Details","index":10,"n_rows":1,"n_cols":23,"rows_kept":1,"cut":false,"hidden":true,"merged":[]}
["PPN","FundingYear","UtilityCategory","UtilityType","ActualConsumption","UnitOfConsumption","ActualConsumptionYear-1","ActualConsumptionYear-2","ActualConsumptionYear-3","ActualConsumptionTotal","ActualConsumptionAvg","ActualConsumptionNewUnits","RollingBaseConsumption","BaseConsumptionMinusCalculated","CalculatedLine10","CalculatedLine11","CalculatedLine12","CalculatedLine13","AnnualizedComsumptionNewUnits","CalculatedLine15","ActualUtilityCosts","CalculatedLine17","CalculatedLine18"]